Workbook

Sheet Design Brief
E1: Design Brief
B3: Customer details
B5: Surname | D5: Oakes | E5: House Number | G5: 22 Seafield Ave | H5: Postcode | I5: JE23LZ
B8: About the space:
B9: Obstructions (Tick all that apply and then take photos and dimensions) | P9: Single Skin
C10: Tie-Bars | F10: Knee Brace | H10: Ridge Brace | J10: Fan | P10: Twin Wall
C11: Decorative Facia | F11: Box Sections | H11: Lights | P11: Unknown
C13: Box Gutter | G13: ↓ | H13: see box gutter guide if you do not know how to identify
B15: Existing Ventilation
C16: Automatic Roof Vents | F16: Manual Roof Vents | I16: AC Unit
C17: Side Opening Windows | F17: Doors Only | I17: Top Opening Windows (All sides)
B19: Sun Exposure Problem | P19: Office
C20: Morning | F20: Afternoon | I20: Evening | P20: TV Room
C21: Summer | F21: Winter | P21: Dining Room
P22: Main Living Room
B23: Main Use | P23: Play Room
C24: Dining Room | E24: ↓ | F24: Other | G24: Kitchen | P24: Garden Room
B27: About the requirements: | P27: Heat
B28: Areas to improve (Rate in order of importance if more than 1) | P28: Glare
P29: Privacy
C30: 1 | D30: Heat | E30: ↓ 2 | F30: Glare | G30: ↓ 3 | I30: ↓ | J30: Other | P30: Other
B32: I would ideally like this room to be… | P32: I like it quite hot, but not unbearable (Shade and Ventilation)
C33: Everyday Living Room (Full Climate Control) | J33: ↓ | P33: Casual Living Room or Transition Space (Shade and Ventilation)
P34: Everyday Living Room (Full Climate Control)
B35: Coverage/Design
C36: Complete - 75% (Max coverage standard design) | J36: ↓ | P36: Ultimate - 85% (Multiple sails with small gaps)
P37: Complete - 75% (Max coverage standard design)
B38: Additional Features | P38: Full Open - 65% (Point to point sails)
C39: Accent Sails | E39: Two Colour Design | P39: Simple - 85% (Minimum number of sails with max. coverage)
P40: Partial (Specify which areas in your email)
B41: Design Type Required
C42: Use My Design Sketch (attach to email) | G42: ↓ | H42: You must select one from drop down list | P42: Free Online Design
P43: Design PDF
B44: Information Attached/In File | P44: Use My Design Sketch (attach to email)
C45: Photos | E45: Obstruction Surveys | H45: Additional Sketch

Sheet Obstructions
M3: Fan Survey
M4: dimensions in mm
N5: Fan 1 | O5: Fan 2 | P5: Fan 3
M6: X
M7: Y
M8: Z
M10: Add any notes here
M20: Tie bar survey
M21: dimensions in mm
N22: Tie Bar 1 | O22: Tie Bar 2 | P22: Tie Bar 3
M23: X
M24: Z1
M25: Z2
M27: Add any notes here
M34: Roof vent survey
M35: dimensions in mm
N36: Vent 1 | O36: Vent 2 | P36: Vent 3
M37: X
M38: Y
M39: Z
M41: Add any notes here

Sheet Roof Lantern
BA1: Main Material | BB1: =IF(OR(E27=BG2,E27=BG3,E27=BG4,E27=BG5,E27=BG6),' '!B6,IF(OR(E27=BG7,E27=BG8,E27=BG9,E27=BG10,E27=BG11,E27=BG12,E27=BG13,E27=BG14,E27=BG15),' '!B7,IF(OR(E27=BG16,E27=BG17,E27=BG18,E27=BG19,E27=BG20),' '!B8,))) -> 4.54 | BC1: Material cost | BD1: =' '!$B$10 -> 13.25 | BE1: Sails | BG1: Fabric Colour | BI1: Fittings Colours | BL1: Main Material | BM1: =IF(OR(J27=BR2,J27=BR3,J27=BR4,J27=BR5,J27=BR6),' '!B6,IF(OR(J27=BR8,J27=BR9,J27=BR10,J27=BR11,J27=BR12,J27=BR13,J27=BR14,J27=BR15,J27=BR7),' '!B7,IF(OR(J27=BR18,J27=BR19,J27=BR20,J27=BR16,J27=BR17),' '!B8,))) -> 4.54 | BP1: Sails | BR1: Fabric Colour | BT1: Fittings Colours | BW1: Main Material | BX1: =IF(OR(N27=CC2,N27=CC3,N27=CC4,N27=CC5,N27=CC6),' '!B6,IF(OR(N27=CC8,N27=CC9,N27=CC10,N27=CC11,N27=CC12,N27=CC13,N27=CC14,N27=CC15,N27=CC7),' '!B7,IF(OR(N27=CC18,N27=CC19,N27=CC20,N27=CC17,N27=CC16),' '!B8,))) -> 4.54 | CA1: Sails | CC1: Fabric Colour | CE1: Fittings Colours
BA2: Tri Material | BB2: =IF(OR(E28=BG2,E28=BG3,E28=BG4,E28=BG5,E28=BG6),' '!B6,IF(OR(E28=BG7,E28=BG8,E28=BG9,E28=BG10,E28=BG11,E28=BG12,E28=BG13,E28=BG14,E28=BG15),' '!B7,IF(OR(E28=BG16,E28=BG17,E28=BG18,E28=BG19,E28=BG20),' '!B8,))) -> 4.54 | BC2: PE | BD2: =' '!$B$11 -> 3 | BE2: 1 | BG2: ISX Solid | BI2: Stainless steel | BL2: Tri Material | BM2: =IF(OR(J28=BR2,J28=BR3,J28=BR4,J28=BR5,J28=BR6),' '!B6,IF(OR(J28=BR8,J28=BR9,J28=BR10,J28=BR11,J28=BR12,J28=BR13,J28=BR14,J28=BR15,J28=BR7),' '!B7,IF(OR(J28=BR18,J28=BR19,J28=BR20,J28=BR16,J28=BR17),' '!B8,))) -> 4.54 | BP2: 1 | BR2: ISX Solid | BT2: Stainless steel | BW2: Tri Material | BX2: =IF(OR(N28=CC2,N28=CC3,N28=CC4,N28=CC5,N28=CC6,N28=CC7),' '!B6,IF(OR(N28=CC8,N28=CC9,N28=CC10,N28=CC11,N28=CC12,N28=CC13,N28=CC14,N28=CC15,N28=CC16,N28=CC17),' '!B7,IF(OR(N28=CC18,N28=CC19,N28=CC20,N28=CC21,N28=CC22,N28=CC23,N28=CC24),' '!B8,))) -> 4.54 | CA2: 1 | CC2: ISX Solid | CE2: Stainless steel
BC3: PN | BD3: =IF(BE8=4,' '!$B$19,' '!$B$20) -> 4.75 | BE3: 2 | BG3: ISX White | BI3: White | BN3: PN | BO3: =IF(BP8=4,' '!$B$19,' '!$B$20) -> 4.25 | BP3: 2 | BR3: ISX White | BT3: White | BY3: PN | BZ3: =IF(CA8=4,' '!$B$19,' '!$B$20) -> 4.25 | CA3: 2 | CC3: ISX White | CE3: White
BC4: IP | BD4: =' '!#REF! ->  | BE4: 3 | BG4: ISX Solid Ivory | BI4: Gold | BP4: 3 | BR4: ISX Solid Ivory | BT4: Gold | CA4: 3 | CC4: ISX Solid Ivory | CE4: Gold
B5: =' '!A46 -> v2023.2 | BC5: No. of vents | BE5: 4 | BG5: ISX Solid Oyster | BI5: Cost | BJ5: =IF(E29=BI2, ' '!B24, ' '!B25) -> 7 | BN5: No. of vents | BP5: 4 | BR5: ISX Solid Oyster | BT5: Cost | BU5: =IF(J29=BI2, ' '!B24, ' '!B25) -> 7 | BY5: No. of vents | CA5: 4 | CC5: ISX Solid Oyster | CE5: Cost | CF5: =IF(N29=BI2, ' '!B24, ' '!B25) -> 7
BA6: Standard | BB6: =' '!B14 -> 1 | BC6: 0 | BG6: ISX Solid Stone | BN6: 0 | BR6: ISX Solid Stone | BY6: 0 | CC6: ISX Solid Stone
BA7: Triangle | BB7: =' '!B15 -> 0.75 | BC7: 1 | BG7: ISX Duplex | BN7: 1 | BR7: ISX Duplex | BY7: 1 | CC7: ISX Duplex
BC8: 2 | BD8: No. of corners | BE8: =IF(E24=BI36,6,4) -> 6 | BG8: ISX Duplex Ocean | BN8: 2 | BO8: No. of corners | BP8: =IF(J24=BI36,6,4) -> 4 | BR8: ISX Duplex Ocean | BY8: 2 | BZ8: No. of corners | CA8: =IF(N24=BI36,6,4) -> 4 | CC8: ISX Duplex Ocean
BC9: 3 | BD9: Shape | BE9: Other | BG9: ISX Duplex Stone | BN9: 3 | BR9: ISX Duplex Stone | BY9: 3 | CC9: ISX Duplex Stone
B10: All dims in mm | BA10: Overlap left | BB10: =IF(E22=BA11,BB11,IF(E22=BA12,BB12,IF(E22=BA13,BB13))) ->  | BC10: 4 | BD10: Curve allowance | BE10: 0.5 | BG10: ISX Duplex Slate | BL10: Overlap left | BM10: =IF(J22=BL11,BM11,IF(J22=BL12,BM12,IF(J22=BL13,BM13))) ->  | BN10: 4 | BO10: Curve allowance | BP10: 0.5 | BR10: ISX Duplex Slate | BW10: Overlap left | BX10: =IF(N22=BW11,BX11,IF(N22=BW12,BX12,IF(N22=BW13,BX13))) -> 0 | BY10: 4 | BZ10: Curve allowance | CA10: 0.5 | CC10: ISX Duplex Slate
A11: Length | BA11: 0 | BB11: 0 | BC11: Triangles | BD11: Roof area | BE11: =BE14*BD31 ->  | BG11: ISX Duplex Graphite | BL11: 0 | BM11: 0 | BN11: Triangles | BO11: Roof area | BP11: =BP14*BO31 ->  | BR11: ISX Duplex Graphite | BW11: 0 | BX11: 0 | BY11: Triangles | BZ11: Roof area | CA11: =CA14*BZ31 ->  | CC11: ISX Duplex Graphite
A12: Width | BA12: 0.5 | BB12: =IF(E21=1,0,IF(E21=2,(BB29*0.5)+BE19,IF(E21=3,(BB29*0.75)+BE19,IF(E21=4,(BB29*0.75)+BE19)))) ->  | BC12: No | BD12: Area of each sail | BE12: =BE11/E21 ->  | BG12: ISXFR Solid | BL12: 0.5 | BM12: =IF(J21=1,0,IF(J21=2,(BM29*0.5)+BP19,IF(J21=3,(BM29*0.75)+BP19,IF(J21=4,(BM29*0.75)+BP19)))) ->  | BN12: No | BO12: Area of each sail | BP12: =BP11/J21 ->  | BR12: ISXFR Solid | BW12: 0.5 | BX12: =IF(N21=1,0,IF(N21=2,(BX29*0.5)+CA19,IF(N21=3,(BX29*0.75)+CA19,IF(N21=4,(BX29*0.75)+CA19)))) ->  | BY12: No | BZ12: Area of each sail | CA12: =CA11/N21 ->  | CC12: ISXFR Solid
A13: Depth | BA13: 1 | BB13: =IF(E21=1,0,IF(E21=2,BB29+(BE19*2),IF(E21=3,(BB29*1.34)+BE19,IF(E21=4,(BB29*1.67)+BE19)))) ->  | BC13: Yes | BD13: Sail perimeter | BE13: =((BE15+0.07)*2)+((BE16+0.07)*2) ->  | BG13: ISXFR White | BL13: 1 | BM13: =IF(J21=1,0,IF(J21=2,BM29+(BP19*2),IF(J21=3,(BM29*1.34)+BP19,IF(J21=4,(BM29*1.67)+BP19)))) ->  | BN13: Yes | BO13: Sail perimeter | BP13: =((BP15+0.07)*2)+((BP16+0.07)*2) ->  | BR13: ISXFR White | BW13: 1 | BX13: =IF(N21=1,0,IF(N21=2,BX29+(CA19*2),IF(N21=3,(BX29*1.34)+CA19,IF(N21=4,(BX29*1.67)+CA19)))) ->  | BY13: Yes | BZ13: Sail perimeter | CA13: =((CA15+0.07)*2)+((CA16+0.07)*2) ->  | CC13: ISXFR White
BA14: Overlap right | BB14: =IF(E21=BE3,BB10,IF(E22=BA11,BB11,IF(E22=BA12,BB12,IF(E22=BA13,BB13)))) ->  | BC14: Warnings | BD14: Glazing bar length | BE14: =SQRT((BD30-BD29)^2+BD32^2) ->  | BG14: ISXFR Solid Ivory | BL14: Overlap right | BM14: =IF(J21=BP3,BM10,IF(J22=BL11,BM11,IF(J22=BL12,BM12,IF(J22=BL13,BM13)))) ->  | BN14: Warnings | BO14: Glazing bar length | BP14: =SQRT((BO30-BO29)^2+BO32^2) ->  | BR14: ISXFR Solid Ivory | BW14: Overlap right | BX14: =IF(N21=CA3,BX10,IF(N22=BW11,BX11,IF(N22=BW12,BX12,IF(N22=BW13,BX13)))) ->  | BY14: Warnings | BZ14: Glazing bar length | CA14: =SQRT((BZ30-BZ29)^2+BZ32^2) ->  | CC14: ISXFR Solid Ivory
A15: These sails are designed to work either flat or twisted and be fitted into a box out or an orangery roof. Priced using 50% of depth. | BA15: Warning 1 | BB15: Warning: Sail too narrow, increase no. of sails, add additional fitting points or reduce gap size | BC15: =MAX(BB22:BD22) ->  | BD15: Length of sail | BE15: =BE14-(0.07/(IF(B11>B12,B11,B12)/1000)) ->  | BG15: ISXFR Solid Oyster | BL15: Warning 1 | BM15: Warning: Sail too narrow, increase no. of sails, add additional fitting points or reduce gap size | BN15: =MAX(BM22:BO22) ->  | BO15: Length of sail | BP15: =BP14-(0.07/(IF(B11>B12,B11,B12)/1000)) ->  | BR15: ISXFR Solid Oyster | BW15: Warning 1 | BX15: Warning: Sail too narrow, increase no. of sails, add additional fitting points or reduce gap size | BY15: =MAX(BX22:BZ22) ->  | BZ15: Length of sail | CA15: =CA14-(0.07/(IF(B11>B12,B11,B12)/1000)) ->  | CC15: ISXFR Solid Oyster
E16: Plan view - looking from above | J16: Plan view - looking from above | N16: Plan view - looking from above | BA16: Warning 2 | BB16: Warning: Sail too narrow, decrease no. of sails, add additional fitting points or increase gap size | BC16: =MAX(BB23:BD23) ->  | BD16: Width left | BE16: =(BD31/E21)-(0.07/(IF(B11>B12,B11,B12)/1000))+BB10 ->  | BF16: -> | BG16: ISXFR Duplex | BL16: Warning 2 | BM16: Warning: Sail too narrow, decrease no. of sails, add additional fitting points or increase gap size | BN16: =MAX(BM23:BO23) ->  | BO16: Width left | BP16: =(BO31/J21)-(0.07/(IF(B11>B12,B11,B12)/1000))+BM10 ->  | BQ16: -> | BR16: ISXFR Duplex | BW16: Warning 2 | BX16: Warning: Sail too narrow, decrease no. of sails, add additional fitting points or increase gap size | BY16: =MAX(BX23:BZ23) ->  | BZ16: Width left | CA16: =(BZ31/N21)-(0.07/(IF(B11>B12,B11,B12)/1000))+BX10 ->  | CB16: -> | CC16: ISXFR Duplex
BA17: Warning 3 | BB17: Warning: Sail too wide for standard fabric, please add more sails or increase gap size | BD17: Width mid | BE17: =((BD31/E21)-(0.07/(IF(B11>B12,B11,B12)/1000))+BB10) ->  | BF17: =((BD31/E21)-(0.07/(IF(B11>B12,B11,B12)/1000))+BB14) ->  | BG17: ISXFR Duplex Ocean | BL17: Warning 3 | BM17: Warning: Sail too wide for standard fabric, please add more sails or increase gap size | BO17: Width mid | BP17: =((BO31/J21)-(0.07/(IF(B11>B12,B11,B12)/1000))+BM10) ->  | BQ17: =((BO31/J21)-(0.07/(IF(B11>B12,B11,B12)/1000))+BM14) ->  | BR17: ISXFR Duplex Ocean | BW17: Warning 3 | BX17: Warning: Sail too wide for standard fabric, please add more sails or increase gap size | BZ17: Width mid | CA17: =((BZ31/N21)-(0.07/(IF(B11>B12,B11,B12)/1000))+BX10) ->  | CB17: =((BZ31/N21)-(0.07/(IF(B11>B12,B11,B12)/1000))+BX14) ->  | CC17: ISXFR Duplex Ocean
D18: =' '!$A$42 -> Starting Cost incl. Installation | E18: =(((BB25+BC25+BD25+IF(AND(E23=BC13,E21<>BE2),BE25,)+(' '!B21*E25)+IF(E29<>BI2,E25*' '!B26,0)))+(E26*' '!B31)) ->  | I18: =' '!$A$43 -> Average Cost incl. Installation | J18: =(((BM25+BN25+BO25+IF(AND(J23=BN13,J21<>BP2),BP25,)+(' '!B21*J25)+IF(J29<>BT2,J25*' '!B26,0)))+(J26*' '!B31)) ->  | M18: =' '!$A$44 -> High End Cost incl. Installation | N18: =(((BX25+BY25+BZ25+IF(AND(N23=BY13,N21<>CA2),CA25,)+(' '!B21*N25)+IF(N29<>CE2,N25*' '!B26,0)))+(N26*' '!B31)) ->  | BA18: Warning 4 | BB18: Warning: Space too long for standard fabric, contact office for more details | BD18: Width right | BE18: =(BD31/E21)-(0.07/(IF(B11>B12,B11,B12)/1000))+BB14 ->  | BG18: ISXFR Duplex Stone | BL18: Warning 4 | BM18: Warning: Space too long for standard fabric, contact office for more details | BO18: Width right | BP18: =(BO31/J21)-(0.07/(IF(B11>B12,B11,B12)/1000))+BM14 ->  | BR18: ISXFR Duplex Stone | BW18: Warning 4 | BX18: Warning: Space too long for standard fabric, contact office for more details | BZ18: Width right | CA18: =(BZ31/N21)-(0.07/(IF(B11>B12,B11,B12)/1000))+BX14 ->  | CC18: ISXFR Duplex Stone
E19: =' '!U2+' '!B33 ->  | J19: =' '!AG2+' '!B33 ->  | N19: =' '!AS2+' '!B33 ->  | BD19: 50mm links | BE19: 0.005 | BG19: ISXFR Duplex Slate | BO19: 50mm links | BP19: 0.005 | BR19: ISXFR Duplex Slate | BZ19: 50mm links | CA19: 0.005 | CC19: ISXFR Duplex Slate
BB20: 4 sails left | BC20: =(BD31*0.375)+(MAX(BB14,BB10)/6) ->  | BD20: 4 sails left | BE20: =(BD31*0.625)-(MAX(BB14,BB10)/6) ->  | BG20: ISXFR Duplex Graphite | BM20: 4 sails left | BN20: =(BO31*0.375)+(MAX(BM14,BM10)/6) ->  | BO20: 4 sails left | BP20: =(BO31*0.625)-(MAX(BM14,BM10)/6) ->  | BR20: ISXFR Duplex Graphite | BX20: 4 sails left | BY20: =(BZ31*0.375)+(MAX(BX14,BX10)/6) ->  | BZ20: 4 sails left | CA20: =(BZ31*0.625)-(MAX(BX14,BX10)/6) ->  | CC20: ISXFR Duplex Graphite
D21: Number of sails | E21: =BH27 ->  | I21: Number of sails | J21: =BS27 ->  | M21: Number of sails | N21: =CD27 ->  | BA21: Costs | BB21: left | BC21: mid | BD21: right | BE21: tri | BL21: Costs | BM21: left | BN21: mid | BO21: right | BP21: tri | BW21: Costs | BX21: left | BY21: mid | BZ21: right | CA21: tri
D22: Overlap | E22: 0.5 | I22: Overlap | J22: 0.5 | M22: Overlap | N22: 0 | BA22: Width | BB22: =BE14*(IF(B11>B12,B11,B12)/1000) ->  | BC22: =BB22 ->  | BD22: =BC22 ->  | BE22: =BD22 ->  | BL22: Width | BM22: =BP14*(IF(B11>B12,B11,B12)/1000) ->  | BN22: =BM22 ->  | BO22: =BN22 ->  | BP22: =BO22 ->  | BW22: Width | BX22: =CA14*(IF(B11>B12,B11,B12)/1000) ->  | BY22: =BX22 ->  | BZ22: =BY22 ->  | CA22: =BZ22 -> 
D23: Triangles | E23: No | I23: Triangles | J23: No | M23: Triangles | N23: Yes | BA23: Length | BB23: =((A49-A45)+(0.07/(IF(B11>B12,B11,B12)/1000)))*(IF(B11>B12,B11,B12)/1000) ->  | BC23: =IF(E21<>BE4,MIN(BB23,BD23),(E49-E45+(0.07/(IF(B11>B12,B11,B12)/1000)))*(IF(B11>B12,B11,B12)/1000)) ->  | BD23: =IF(E21<>BE2,(C49-C45+(0.07/(IF(B11>B12,B11,B12)/1000)))*(IF(B11>B12,B11,B12)/1000),BB23) ->  | BE23: =(BA27*(IF(B11>B12,B11,B12)/1000))+0.07 ->  | BL23: Length | BM23: =((R49-R45)+(0.07/(IF(B11>B12,B11,B12)/1000)))*(IF(B11>B12,B11,B12)/1000) ->  | BN23: =IF(J21<>BP4,MIN(BM23,BO23),(V49-V45+(0.07/(IF(B11>B12,B11,B12)/1000)))*(IF(B11>B12,B11,B12)/1000)) ->  | BO23: =IF(J21<>BP2,(T49-T45+(0.07/(IF(B11>B12,B11,B12)/1000)))*(IF(B11>B12,B11,B12)/1000),BM23) ->  | BP23: =(BL27*(IF(B11>B12,B11,B12)/1000))+0.07 ->  | BW23: Length | BX23: =((AI49-AI45)+(0.07/(IF(B11>B12,B11,B12)/1000)))*(IF(B11>B12,B11,B12)/1000) ->  | BY23: =IF(N21<>CA4,MIN(BX23,BZ23),(AM49-AM45+(0.07/(IF(B11>B12,B11,B12)/1000)))*(IF(B11>B12,B11,B12)/1000)) ->  | BZ23: =IF(N21<>CA2,(AK49-AK45+(0.07/(IF(B11>B12,B11,B12)/1000)))*(IF(B11>B12,B11,B12)/1000),BX23) ->  | CA23: =(BW27*(IF(B11>B12,B11,B12)/1000))+0.07 -> 
D24: 6 sided sails | E24: Yes | I24: 6 sided sails | J24: No | M24: 6 sided sails | N24: No | BA24: Perimeter | BB24: =((BB22*2)+(BB23*2))*1.05 ->  | BC24: =((BC22*2)+(BC23*2))*1.05 ->  | BD24: =((BD22*2)+(BD23*2))*1.05 ->  | BE24: =((BE22*2)+BE23)*1.05 ->  | BL24: Perimeter | BM24: =((BM22*2)+(BM23*2))*1.05 ->  | BN24: =((BN22*2)+(BN23*2))*1.05 ->  | BO24: =((BO22*2)+(BO23*2))*1.05 ->  | BP24: =((BP22*2)+BP23)*1.05 ->  | BW24: Perimeter | BX24: =((BX22*2)+(BX23*2))*1.05 ->  | BY24: =((BY22*2)+(BY23*2))*1.05 ->  | BZ24: =((BZ22*2)+(BZ23*2))*1.05 ->  | CA24: =((CA22*2)+CA23)*1.05 -> 
D25: Total additional fittings | E25: 0 | I25: Total additional fittings | J25: 0 | M25: Total additional fittings | N25: 0 | BB25: =(((BB1*((BB22*BB23*BD1*BB6)+(BB24*BD2)+(BE8*BD3)))+(BE8*BJ5)+' '!B35))*BF29 ->  | BC25: =(IF(E21<3,0,((IF(E21>2,(((BB1*((BC22*BC23*BD1*BB6)+(BC24*BD2)+(BE8*BD3))+(BE8*BJ5)+' '!B35)))*(IF(E21=4,2,1)))))))*BF29 ->  | BD25: =IF(E21=BE2,0,((IF(E21<>BE2,(((BB1*((BD22*BD23*BD1*BB6)+(BD24*BD2)+(BE8*BD3))+(BE8*BJ5)+' '!B35)))))))*BF29 ->  | BE25: =(((IF(E23=BI36,(((BB2*((BE22*BE23*BD1*BB7)+(BE24*BD2)+(3*' '!B19))+(3*BJ5)+' '!B35)))*(E21-1),)))) -> 0 | BM25: =(((BM1*((BM22*BM23*BD1*BB6)+(BM24*BD2)+(BP8*BO3))+(BP8*BU5)+' '!B35)))*BQ29 ->  | BN25: =(IF(J21<3,0,((IF(J21>2,(((BM1*((BN22*BN23*BD1*BB6)+(BN24*BD2)+(BP8*BO3))+(BP8*BU5)+' '!B35)))*(IF(J21=4,2,1)))))))*BQ29 ->  | BO25: =IF(J21=BP2,0,((IF(J21<>BP2,(((BM1*((BO22*BO23*BD1*BB6)+(BO24*BD2)+(BP8*BO3))+(BP8*BU5)+' '!B35)))+IF(J29<>BT2,8*VAT!V1,0))*BQ29)/1.2*VAT!V1)) ->  | BP25: =(((IF(J23=BI36,(((BM2*((BP22*BP23*BD1*BB7)+(BP24*BD2)+(3*' '!B19))+(3*BU5)+' '!B35)))*(J21-1),)))) -> 0 | BX25: =(((BX1*((BX22*BX23*BD1*BB6)+(BX24*BD2)+(CA8*BZ3))+(CA8*CF5)+' '!B35)))*CB29 ->  | BY25: =(IF(N21<3,0,((IF(N21>2,(((BX1*((BY22*BY23*BD1*BB6)+(CA8*BZ3)+(BY24*BD2))+(CA8*CF5)+' '!B35)))*(IF(N21=4,2,1)))))))*CB29 ->  | BZ25: =IF(N21=CA2,0,((IF(N21<>CA2,(((BX1*((BZ22*BZ23*BD1*BB6)+(CA8*BZ3)+(BZ24*BD2))+(CA8*CF5)+' '!B35)))))))*CB29 ->  | CA25: =(((IF(N23=BI36,(((BX2*((CA22*CA23*BD1*BB7)+(CA24*BD2)+(3*' '!B19))+(3*CF5)+' '!B35)))*(N21-1),))))*CB29 -> 
D26: Total straight edges | E26: 0 | I26: Total straight edges | J26: 0 | M26: Total straight edges | N26: 0 | BA26: tri width | BB26: tri length | BC26: tri mid | BD26: tri quarter | BF26: Shape % | BH26: Low | BL26: tri width | BM26: tri length | BN26: tri mid | BO26: tri quarter | BQ26: Shape % | BS26: Mid | BW26: tri width | BX26: tri length | BY26: tri mid | BZ26: tri quarter | CB26: Shape % | CD26: Top
D27: Colour of main sails | E27: ISX Solid | I27: Colour of main sails | J27: ISX Solid | M27: Colour of main sails | N27: ISX Solid | BA27: =BB27*0.8 ->  | BB27: =BE14-(BE19*2) ->  | BC27: =BA27*0.13 ->  | BD27: =BC27*0.75 ->  | BE27: W | BF27: =(SQRT(B12^2+(B13/2)^2))/B12 ->  | BG27: Number of sails | BH27: =IF(BH31<1.25,1,IF(AND(BH31>=1.25,BH31<=2.25),1,IF(AND(BH31>2.25,BH31<3.5),2,IF(AND(BH31>=3.5),3)))) ->  | BL27: =BM27*0.8 ->  | BM27: =BP14-(BP19*2) ->  | BN27: =BL27*0.13 ->  | BO27: =BN27*0.75 ->  | BP27: W | BQ27: =(SQRT(B12^2+(B13/2)^2))/B12 ->  | BR27: Number of sails | BS27: =IF(BS31<1.25,1,IF(AND(BS31>=1.25,BS31<=2.25),2,IF(AND(BS31>2.25,BS31<3),3,IF(AND(BS31>=3),4)))) ->  | BW27: =BX27*0.8 ->  | BX27: =CA14-(CA19*2) ->  | BY27: =BW27*0.13 ->  | BZ27: =BY27*0.75 ->  | CA27: W | CB27: =(SQRT(B12^2+(B13/2)^2))/B12 ->  | CC27: Number of sails | CD27: =IF(CD31<1.25,1,IF(AND(CD31>=1.25,CD31<=2.25),2,IF(AND(CD31>2.25,CD31<3),3,IF(AND(CD31>=3),4)))) -> 
D28: Colour of triangles | E28: ISX Solid | I28: Colour of triangles | J28: ISX Solid | M28: Colour of triangles | N28: ISX Solid | BB28: Mid | BC28: Quarters | BD28: Dims in m | BE28: L | BF28: =(SQRT((BB23*1000)^2+(B13/2)^2))/(BB23*1000) ->  | BG28: Overlap | BH28: 0.5 | BM28: Mid | BN28: Quarters | BO28: Dims in m | BP28: L | BQ28: =(SQRT((BM23*1000)^2+(B13/2)^2))/(BM23*1000) ->  | BR28: Overlap | BS28: 0.5 | BX28: Mid | BY28: Quarters | BZ28: Dims in m | CA28: L | CB28: =(SQRT((BX23*1000)^2+(B13/2)^2))/(BX23*1000) ->  | CC28: Overlap | CD28: 0
D29: Colour of fittings | E29: Stainless steel | I29: Colour of fittings | J29: Stainless steel | M29: Colour of fittings | N29: Stainless steel | BA29: Horizontal | BB29: =(((BE15+(0.07/(B11/1000)))*0.13)+BE19) ->  | BC29: =(BB29)*0.75 ->  | BD29: =B13/IF(B11>B12,B11,B12) ->  | BE29: Average | BF29: =AVERAGE(BF27:BF28) ->  | BG29: Triangles | BH29: No | BL29: Horizontal | BM29: =(((BP15+(0.07/(B11/1000)))*0.13)+BP19) ->  | BN29: =(BM29)*0.75 ->  | BO29: =B13/IF(B11>B12,B11,B12) ->  | BP29: Average | BQ29: =AVERAGE(BQ27:BQ28) ->  | BR29: Triangles | BS29: No | BW29: Horizontal | BX29: =(((CA15+(0.07/(B11/1000)))*0.13)+CA19) ->  | BY29: =(BX29)*0.75 ->  | BZ29: =B13/IF(B11>B12,B11,B12) ->  | CA29: Average | CB29: =AVERAGE(CB27:CB28) ->  | CC29: Triangles | CD29: Yes
BA30: Vertical left | BB30: =((BE16+(0.07/(B11/1000)))*0.13)+BE19 ->  | BC30: =BB30*0.75 ->  | BD30: =BD29 ->  | BG30: Total additional fittings | BH30: =IF(BH31<1.25,0,BH27*2) ->  | BL30: Vertical left | BM30: =((BP16+(0.07/(B11/1000)))*0.13)+BP19 ->  | BN30: =BM30*0.75 ->  | BO30: =BO29 ->  | BR30: Total additional fittings | BS30: =IF(BS31<1.25,2,) ->  | BW30: Vertical left | BX30: =((CA16+(0.07/(B11/1000)))*0.13)+CA19 ->  | BY30: =BX30*0.75 ->  | BZ30: =BZ29 ->  | CC30: Total additional fittings | CD30: =IF(CD31<1.25,4,) -> 
D31: Max length of a sail | E31: =(MAX(BB22:BD22))*1000 ->  | I31: Max length of a sail | J31: =(MAX(BM22:BO22))*1000 ->  | M31: Max length of a sail | N31: =(MAX(BX22:BZ22))*1000 ->  | BA31: Vertical mid | BB31: =((AVERAGE(BE17:BF17)+(0.07/(B11/1000)))*0.13)+BE19 ->  | BC31: =BB31*0.75 ->  | BD31: =B11/IF(B11>B12,B11,B12) ->  | BG31: Length/Width Ratio | BH31: =($B$11/$B$12) ->  | BL31: Vertical mid | BM31: =((AVERAGE(BP17:BQ17)+(0.07/(B11/1000)))*0.13)+BP19 ->  | BN31: =BM31*0.75 ->  | BO31: =B11/IF(B11>B12,B11,B12) ->  | BR31: Length/Width Ratio | BS31: =($B$11/$B$12) ->  | BW31: Vertical mid | BX31: =((AVERAGE(CA17:CB17)+(0.07/(B11/1000)))*0.13)+CA19 ->  | BY31: =BX31*0.75 ->  | BZ31: =B11/IF(B11>B12,B11,B12) ->  | CC31: Length/Width Ratio | CD31: =($B$11/$B$12) -> 
D32: Max width of a sail | E32: =(MAX(BB23:BD23))*1000 ->  | I32: Max width of a sail | J32: =(MAX(BM23:BO23))*1000 ->  | M32: Max width of a sail | N32: =(MAX(BX23:BZ23))*1000 ->  | BA32: Vertical right | BB32: =((BE18+(0.07/(B11/1000)))*0.13)+BE19 ->  | BC32: =BB32*0.75 ->  | BD32: =B12/IF(B11>B12,B11,B12) ->  | BL32: Vertical right | BM32: =((BP18+(0.07/(B11/1000)))*0.13)+BP19 ->  | BN32: =BM32*0.75 ->  | BO32: =B12/IF(B11>B12,B11,B12) ->  | BW32: Vertical right | BX32: =((CA18+(0.07/(B11/1000)))*0.13)+CA19 ->  | BY32: =BX32*0.75 ->  | BZ32: =B12/IF(B11>B12,B11,B12) -> 
D33: Sails +2100mm in both directions require seams | I33: Sails +2100mm in both directions require seams | M33: Sails +2100mm in both directions require seams
BH34: Overlaps | BI34: Triangles
BH35: 0 | BI35: No
BH36: 0.5 | BI36: Yes
BH37: 1
A43: x | B43: y | C43: x | D43: y | E43: x | F43: y | G43: x | H43: y | I43: x | J43: y | K43: x | L43: y | M43: x | N43: y | O43: Roof plan | R43: x | S43: y | T43: x | U43: y | V43: x | W43: y | X43: x | Y43: y | Z43: x | AA43: y | AB43: x | AC43: y | AD43: x | AE43: y | AF43: Roof plan | AI43: x | AJ43: y | AK43: x | AL43: y | AM43: x | AN43: y | AO43: x | AP43: y | AQ43: x | AR43: y | AS43: x | AT43: y | AU43: x | AV43: y | AW43: Roof plan
A44: Left sail | C44: Right sail | E44: Mid left sail | G44: Mid Right sail | I44: tri 1 | K44: tri 2 | M44: tri 3 | O44: x-axis | P44: y-axis | R44: Left sail | T44: Right sail | V44: Mid left sail | X44: Mid Right sail | Z44: tri 1 | AB44: tri 2 | AD44: tri 3 | AF44: x-axis | AG44: y-axis | AI44: Left sail | AK44: Right sail | AM44: Mid left sail | AO44: Mid Right sail | AQ44: tri 1 | AS44: tri 2 | AU44: tri 3 | AW44: x-axis | AX44: y-axis
A45: =BE19 -> 0.005 | B45: =BE19 -> 0.005 | C45: =IF(E21=1,0,C49-BE18) ->  | D45: =IF(E21=1,0,BE19) ->  | E45: =IF(E21=1,0,IF(E21=2,0,IF(E21=3,(BD31/2)-(BE17/2),IF(E21=4,BC20-(BE17/2))))) ->  | F45: =IF(E21=1,0,IF(E21=2,0,BE19)) ->  | G45: =IF(E21=4,BE20-(BE17/2)) ->  | H45: =IF(E21=4,BE19) ->  | I45: =IF(E23=BC13,IF(E21<>BE2,I47-(BA27/2),),) -> 0 | J45: =IF(E23=BC13,IF(E21<>BE2,BE19,),) -> 0 | K45: =IF(E23=BC13,IF(OR(OR(E21=BE4,E21=BE5),E21=BE5),K47-(BA27/2),),) -> 0 | L45: =IF(E23=BC13,IF(OR(E21=BE4,E21=BE5),BE19,),) -> 0 | M45: =IF($E$21=4,K45+0.25,) ->  | N45: =IF($E$21=4,L45,) ->  | O45: 0 | P45: 0 | R45: =BP19 -> 0.005 | S45: =BP19 -> 0.005 | T45: =IF(J21=1,0,T49-BP18) ->  | U45: =IF(J21=1,0,BP19) ->  | V45: =IF(J21=1,0,IF(J21=2,0,IF(J21=3,(BO31/2)-(BP17/2),IF(J21=4,BN20-(BP17/2))))) ->  | W45: =IF(J21=1,0,IF(J21=2,0,BP19)) ->  | X45: =IF(J21=4,BP20-(BP17/2)) ->  | Y45: =IF(J21=4,BP19) ->  | Z45: =IF(J23=BN13,IF(J21<>BP2,Z47-(BL27/2),),) -> 0 | AA45: =IF(J23=BN13,IF(J21<>BP2,BP19,),) -> 0 | AB45: =IF(J23=BN13,IF(OR(OR(J21=BP4,J21=BP5),J21=BP5),AB47-(BL27/2),),) -> 0 | AC45: =IF(J23=BN13,IF(OR(J21=BP4,J21=BP5),BP19,),) -> 0 | AD45: =IF($J$21=4,AB45+0.25,) ->  | AE45: =IF($J$21=4,AC45,) ->  | AF45: 0 | AG45: 0 | AI45: =CA19 -> 0.005 | AJ45: =CA19 -> 0.005 | AK45: =IF(N21=1,0,AK49-CA18) ->  | AL45: =IF(N21=1,0,CA19) ->  | AM45: =IF(N21=1,0,IF(N21=2,0,IF(N21=3,(BZ31/2)-(CA17/2),IF(N21=4,BY20-(CA17/2))))) ->  | AN45: =IF(N21=1,0,IF(N21=2,0,CA19)) ->  | AO45: =IF(N21=4,CA20-(CA17/2)) ->  | AP45: =IF(N21=4,CA19) ->  | AQ45: =IF(N23=BY13,IF(N21<>CA2,AQ47-(BW27/2),),) ->  | AR45: =IF(N23=BY13,IF(N21<>CA2,CA19,),) ->  | AS45: =IF(N23=BY13,IF(OR(OR(N21=CA4,N21=CA5),N21=CA5),AS47-(BW27/2),),) ->  | AT45: =IF(N23=BY13,IF(OR(N21=CA4,N21=CA5),CA19,),) ->  | AU45: =IF($N$21=4,AS45+0.25,) ->  | AV45: =IF($N$21=4,AT45,) ->  | AW45: 0 | AX45: 0
A46: =A45+(BE16/4) ->  | B46: =IF(E24=BI36,BB30*0.5,BB30*0.75) ->  | C46: =IF(E21=1,0,C47-(BE18/4)) ->  | D46: =IF(E21=1,0,D48) ->  | E46: =IF(E21=1,0,IF(E21=2,0,E45+(MAX(BE17:BF17)/4))) ->  | F46: =IF(E21=1,0,IF(E21=2,0,B46)) ->  | G46: =IF(E21=4,G45+(MAX(BE17:BF17)/4)) ->  | H46: =IF(E21=4,B46) ->  | I46: =IF(E23=BC13,IF(E21<>BE2,I45+(BA27/4),),) -> 0 | J46: =IF(E23=BC13,IF(E21<>BE2,BD27,),) -> 0 | K46: =IF(E23=BC13,IF(OR(E21=BE4,E21=BE5),K47-(BA27/4),),) -> 0 | L46: =IF(E23=BC13,IF(OR(E21=BE4,E21=BE5),BD27,),) -> 0 | O46: =BD31 ->  | P46: 0 | R46: =R45+(BP16/4) ->  | S46: =IF(J24=BI36,BM30*0.5,BM30*0.75) ->  | T46: =IF(J21=1,0,T47-(BP18/4)) ->  | U46: =IF(J21=1,0,U48) ->  | V46: =IF(J21=1,0,IF(J21=2,0,V45+(MAX(BP17:BQ17)/4))) ->  | W46: =IF(J21=1,0,IF(J21=2,0,S46)) ->  | X46: =IF(J21=4,X45+(MAX(BP17:BQ17)/4)) ->  | Y46: =IF(J21=4,S46) ->  | Z46: =IF(J23=BN13,IF(J21<>BP2,Z45+(BL27/4),),) -> 0 | AA46: =IF(J23=BN13,IF(J21<>BP2,BO27,),) -> 0 | AB46: =IF(J23=BN13,IF(OR(J21=BP4,J21=BP5),AB47-(BL27/4),),) -> 0 | AC46: =IF(J23=BN13,IF(OR(J21=BP4,J21=BP5),BO27,),) -> 0 | AF46: =BO31 ->  | AG46: 0 | AI46: =AI45+(CA16/4) ->  | AJ46: =IF(N24=BI36,BX30*0.5,BX30*0.75) ->  | AK46: =IF(N21=1,0,AK47-(CA18/4)) ->  | AL46: =IF(N21=1,0,AL48) ->  | AM46: =IF(N21=1,0,IF(N21=2,0,AM45+(MAX(CA17:CB17)/4))) ->  | AN46: =IF(N21=1,0,IF(N21=2,0,AJ46)) ->  | AO46: =IF(N21=4,AO45+(MAX(CA17:CB17)/4)) ->  | AP46: =IF(N21=4,AJ46) ->  | AQ46: =IF(N23=BY13,IF(N21<>CA2,AQ45+(BW27/4),),) ->  | AR46: =IF(N23=BY13,IF(N21<>CA2,BZ27,),) ->  | AS46: =IF(N23=BY13,IF(OR(N21=CA4,N21=CA5),AS47-(BW27/4),),) ->  | AT46: =IF(N23=BY13,IF(OR(N21=CA4,N21=CA5),BZ27,),) ->  | AW46: =BZ31 ->  | AX46: 0
A47: =(A49+A45)/2 ->  | B47: =IF(E24=BI36,B45,BB30) -> 0.005 | C47: =IF(E21=1,0,C49-(BE18/2)) ->  | D47: =IF(E21=1,0,B47) ->  | E47: =IF(E21=1,0,IF(E21=2,0,E49-((E49-E45)/2))) ->  | F47: =IF(E21=1,0,IF(E21=2,0,B47)) ->  | G47: =IF(E21=4,G49-((G49-G45)/2)) ->  | H47: =IF(E21=4,B47) ->  | I47: =IF(E23=BC13,IF(E21=BE3,O46/2,IF(E21=BE4,O46/3,IF(E21=BE5,O46/4))),) -> 0 | J47: =IF(E23=BC13,IF(E21<>BE2,BC27,),) -> 0 | K47: =IF(E23=BC13,IF(E21=BE4,O47*(2/3),IF(E21=BE5,O47/2,)),) -> 0 | L47: =IF(E23=BC13,IF(OR(E21=BE4,E21=BE5),BC27,),) -> 0 | O47: =BD31 ->  | P47: =BD32 ->  | R47: =(R49+R45)/2 ->  | S47: =IF(J24=BI36,S45,BM30) ->  | T47: =IF(J21=1,0,T49-(BP18/2)) ->  | U47: =IF(J21=1,0,S47) ->  | V47: =IF(J21=1,0,IF(J21=2,0,V49-((V49-V45)/2))) ->  | W47: =IF(J21=1,0,IF(J21=2,0,S47)) ->  | X47: =IF(J21=4,X49-((X49-X45)/2)) ->  | Y47: =IF(J21=4,S47) ->  | Z47: =IF(J23=BN13,IF(J21=BP3,AF46/2,IF(J21=BP4,AF46/3,IF(J21=BP5,AF46/4))),) -> 0 | AA47: =IF(J23=BN13,IF(J21<>BP2,BN27,),) -> 0 | AB47: =IF(J23=BN13,IF(J21=BP4,AF47*(2/3),IF(J21=BP5,AF47/2,)),) -> 0 | AC47: =IF(J23=BN13,IF(OR(J21=BP4,J21=BP5),BN27,),) -> 0 | AF47: =BO31 ->  | AG47: =BO32 ->  | AI47: =(AI49+AI45)/2 ->  | AJ47: =IF(N24=BI36,AJ45,BX30) ->  | AK47: =IF(N21=1,0,AK49-(CA18/2)) ->  | AL47: =IF(N21=1,0,AJ47) ->  | AM47: =IF(N21=1,0,IF(N21=2,0,AM49-((AM49-AM45)/2))) ->  | AN47: =IF(N21=1,0,IF(N21=2,0,AJ47)) ->  | AO47: =IF(N21=4,AO49-((AO49-AO45)/2)) ->  | AP47: =IF(N21=4,AJ47) ->  | AQ47: =IF(N23=BY13,IF(N21=CA3,AW46/2,IF(N21=CA4,AW46/3,IF(N21=CA5,AW46/4))),) ->  | AR47: =IF(N23=BY13,IF(N21<>CA2,BY27,),) ->  | AS47: =IF(N23=BY13,IF(N21=CA4,AW47*(2/3),IF(N21=CA5,AW47/2,)),) ->  | AT47: =IF(N23=BY13,IF(OR(N21=CA4,N21=CA5),BY27,),) ->  | AW47: =BZ31 ->  | AX47: =BZ32 -> 
A48: =A49-(BE16/4) ->  | B48: =B46 ->  | C48: =C49-(BE18/4) ->  | D48: =IF(E21=1,0,B48) ->  | E48: =IF(E21=1,0,IF(E21=2,0,E49-(MAX(BE17:BF17)/4))) ->  | F48: =IF(E21=BE4,B48,IF(E21=BE5,B48,)) ->  | G48: =IF(E21=4,G49-(MAX(BE17:BF17)/4)) ->  | H48: =IF(E21=4,B48,) ->  | I48: =IF(E23=BC13,IF(E21<>BE2,I47+(BA27/4),),) -> 0 | J48: =IF(E23=BC13,IF(E21<>BE2,BD27,),) -> 0 | K48: =IF(E23=BC13,IF(OR(E21=BE4,E21=BE5),K47+(BA27/4),),) -> 0 | L48: =IF(E23=BC13,IF(OR(E21=BE4,E21=BE5),L46,),) -> 0 | O48: 0 | P48: =BD32 ->  | R48: =R49-(BP16/4) ->  | S48: =S46 ->  | T48: =T49-(BP18/4) ->  | U48: =IF(J21=1,0,S48) ->  | V48: =IF(J21=1,0,IF(J21=2,0,V49-(MAX(BP17:BQ17)/4))) ->  | W48: =IF(J21=BP4,S48,IF(J21=BP5,S48,)) ->  | X48: =IF(J21=4,X49-(MAX(BP17:BQ17)/4)) ->  | Y48: =IF(J21=4,S48,) ->  | Z48: =IF(J23=BN13,IF(J21<>BP2,Z47+(BL27/4),),) -> 0 | AA48: =IF(J23=BN13,IF(J21<>BP2,BO27,),) -> 0 | AB48: =IF(J23=BN13,IF(OR(J21=BP4,J21=BP5),AB47+(BL27/4),),) -> 0 | AC48: =IF(J23=BN13,IF(OR(J21=BP4,J21=BP5),AC46,),) -> 0 | AF48: 0 | AG48: =BO32 ->  | AI48: =AI49-(CA16/4) ->  | AJ48: =AJ46 ->  | AK48: =AK49-(CA18/4) ->  | AL48: =IF(N21=1,0,AJ48) ->  | AM48: =IF(N21=1,0,IF(N21=2,0,AM49-(MAX(CA17:CB17)/4))) ->  | AN48: =IF(N21=CA4,AJ48,IF(N21=CA5,AJ48,)) ->  | AO48: =IF(N21=4,AO49-(MAX(CA17:CB17)/4)) ->  | AP48: =IF(N21=4,AJ48,) ->  | AQ48: =IF(N23=BY13,IF(N21<>CA2,AQ47+(BW27/4),),) ->  | AR48: =IF(N23=BY13,IF(N21<>CA2,BZ27,),) ->  | AS48: =IF(N23=BY13,IF(OR(N21=CA4,N21=CA5),AS47+(BW27/4),),) ->  | AT48: =IF(N23=BY13,IF(OR(N21=CA4,N21=CA5),AT46,),) ->  | AW48: 0 | AX48: =BZ32 -> 
A49: =A45+BE16 ->  | B49: =BE19 -> 0.005 | C49: =IF(E21=1,0,BD31-BE19) ->  | D49: =IF(E21=1,0,BE19) ->  | E49: =IF(E21=1,0,IF(E21=2,0,IF(E21=3,BD31/2+(BF17/2),IF(E21=4,BC20+(BF17/2))))) ->  | F49: =IF(E21=1,0,IF(E21=2,0,BE19)) ->  | G49: =IF(E21=4,BE20+(BF17/2)) ->  | H49: =IF(E21=4,BE19) ->  | I49: =IF(E23=BC13,IF(E21<>BE2,I47+(BA27/2),),) -> 0 | J49: =IF(E23=BC13,IF(E21<>BE2,BE19,),) -> 0 | K49: =IF(E23=BC13,IF(OR(E21=BE4,E21=BE5),K47+(BA27/2),),) -> 0 | L49: =IF(E23=BC13,IF(OR(E21=BE4,E21=BE5),L45,),) -> 0 | O49: 0 | P49: 0 | R49: =R45+BP16 ->  | S49: =BP19 -> 0.005 | T49: =IF(J21=1,0,BO31-BP19) ->  | U49: =IF(J21=1,0,BP19) ->  | V49: =IF(J21=1,0,IF(J21=2,0,IF(J21=3,BO31/2+(BQ17/2),IF(J21=4,BN20+(BQ17/2))))) ->  | W49: =IF(J21=1,0,IF(J21=2,0,BP19)) ->  | X49: =IF(J21=4,BP20+(BQ17/2)) ->  | Y49: =IF(J21=4,BP19) ->  | Z49: =IF(J23=BN13,IF(J21<>BP2,Z47+(BL27/2),),) -> 0 | AA49: =IF(J23=BN13,IF(J21<>BP2,BP19,),) -> 0 | AB49: =IF(J23=BN13,IF(OR(J21=BP4,J21=BP5),AB47+(BL27/2),),) -> 0 | AC49: =IF(J23=BN13,IF(OR(J21=BP4,J21=BP5),AC45,),) -> 0 | AF49: 0 | AG49: 0 | AI49: =AI45+CA16 ->  | AJ49: =CA19 -> 0.005 | AK49: =IF(N21=1,0,BZ31-CA19) ->  | AL49: =IF(N21=1,0,CA19) ->  | AM49: =IF(N21=1,0,IF(N21=2,0,IF(N21=3,BZ31/2+(CB17/2),IF(N21=4,BY20+(CB17/2))))) ->  | AN49: =IF(N21=1,0,IF(N21=2,0,CA19)) ->  | AO49: =IF(N21=4,CA20+(CB17/2)) ->  | AP49: =IF(N21=4,CA19) ->  | AQ49: =IF(N23=BY13,IF(N21<>CA2,AQ47+(BW27/2),),) ->  | AR49: =IF(N23=BY13,IF(N21<>CA2,CA19,),) ->  | AS49: =IF(N23=BY13,IF(OR(N21=CA4,N21=CA5),AS47+(BW27/2),),) ->  | AT49: =IF(N23=BY13,IF(OR(N21=CA4,N21=CA5),AT45,),) ->  | AW49: 0 | AX49: 0
A50: =A49-BC29 ->  | B50: =BD32/4 ->  | C50: =IF(E21=1,0,C49-BC29) ->  | D50: =IF(E21=1,0,B60) ->  | E50: =IF(E21=1,0,IF(E21=2,0,E49-BC29)) ->  | F50: =IF(E21=1,0,IF(E21=2,0,D50)) ->  | G50: =IF(E21=4,G49-BC29) ->  | H50: =IF(E21=4,D50) ->  | I50: =IF(E23=BC13,IF(E21<>BE2,I49-((I49-I53)/1.8),),) -> 0 | J50: =IF(E23=BC13,IF(E21<>BE2,P47/4,),) -> 0 | K50: =IF(E23=BC13,IF(OR(E21=BE4,E21=BE5),K49-((K49-K53)/1.8),),) -> 0 | L50: =IF(E23=BC13,IF(OR(E21=BE4,E21=BE5),P47/4,),) -> 0 | R50: =R49-BN29 ->  | S50: =BO32/4 ->  | T50: =IF(J21=1,0,T49-BN29) ->  | U50: =IF(J21=1,0,S60) ->  | V50: =IF(J21=1,0,IF(J21=2,0,V49-BN29)) ->  | W50: =IF(J21=1,0,IF(J21=2,0,U50)) ->  | X50: =IF(J21=4,X49-BN29) ->  | Y50: =IF(J21=4,U50) ->  | Z50: =IF(J23=BN13,IF(J21<>BP2,Z49-((Z49-Z53)/1.8),),) -> 0 | AA50: =IF(J23=BN13,IF(J21<>BP2,AG47/4,),) -> 0 | AB50: =IF(J23=BN13,IF(OR(J21=BP4,J21=BP5),AB49-((AB49-AB53)/1.8),),) -> 0 | AC50: =IF(J23=BN13,IF(OR(J21=BP4,J21=BP5),AG47/4,),) -> 0 | AI50: =AI49-BY29 ->  | AJ50: =BZ32/4 ->  | AK50: =IF(N21=1,0,AK49-BY29) ->  | AL50: =IF(N21=1,0,AJ60) ->  | AM50: =IF(N21=1,0,IF(N21=2,0,AM49-BY29)) ->  | AN50: =IF(N21=1,0,IF(N21=2,0,AL50)) ->  | AO50: =IF(N21=4,AO49-BY29) ->  | AP50: =IF(N21=4,AL50) ->  | AQ50: =IF(N23=BY13,IF(N21<>CA2,AQ49-((AQ49-AQ53)/1.8),),) ->  | AR50: =IF(N23=BY13,IF(N21<>CA2,AX47/4,),) ->  | AS50: =IF(N23=BY13,IF(OR(N21=CA4,N21=CA5),AS49-((AS49-AS53)/1.8),),) ->  | AT50: =IF(N23=BY13,IF(OR(N21=CA4,N21=CA5),AX47/4,),) -> 
A51: =A49-BB29 ->  | B51: =BD32/2 ->  | C51: =IF(E21=1,0,C49-BB29) ->  | D51: =IF(E21=1,0,B51) ->  | E51: =IF(E21=1,0,IF(E21=2,0,E49-BB29)) ->  | F51: =IF(E21=1,0,IF(E21=2,0,B51)) ->  | G51: =IF(E21=4,G49-BB29) ->  | H51: =IF(E21=4,B51) ->  | I51: =IF(E23=BC13,IF(E21<>BE2,I49-((I49-I53)*0.85),),) -> 0 | J51: =IF(E23=BC13,IF(E21<>BE2,P47/2,),) -> 0 | K51: =IF(E23=BC13,IF(OR(E21=BE4,E21=BE5),K49-((K49-K53)*0.85),),) -> 0 | L51: =IF(E23=BC13,IF(OR(E21=BE4,E21=BE5),P47/2,),) -> 0 | R51: =R49-BM29 ->  | S51: =BO32/2 ->  | T51: =IF(J21=1,0,T49-BM29) ->  | U51: =IF(J21=1,0,S51) ->  | V51: =IF(J21=1,0,IF(J21=2,0,V49-BM29)) ->  | W51: =IF(J21=1,0,IF(J21=2,0,S51)) ->  | X51: =IF(J21=4,X49-BM29) ->  | Y51: =IF(J21=4,S51) ->  | Z51: =IF(J23=BN13,IF(J21<>BP2,Z49-((Z49-Z53)*0.85),),) -> 0 | AA51: =IF(J23=BN13,IF(J21<>BP2,AG47/2,),) -> 0 | AB51: =IF(J23=BN13,IF(OR(J21=BP4,J21=BP5),AB49-((AB49-AB53)*0.85),),) -> 0 | AC51: =IF(J23=BN13,IF(OR(J21=BP4,J21=BP5),AG47/2,),) -> 0 | AI51: =AI49-BX29 ->  | AJ51: =BZ32/2 ->  | AK51: =IF(N21=1,0,AK49-BX29) ->  | AL51: =IF(N21=1,0,AJ51) ->  | AM51: =IF(N21=1,0,IF(N21=2,0,AM49-BX29)) ->  | AN51: =IF(N21=1,0,IF(N21=2,0,AJ51)) ->  | AO51: =IF(N21=4,AO49-BX29) ->  | AP51: =IF(N21=4,AJ51) ->  | AQ51: =IF(N23=BY13,IF(N21<>CA2,AQ49-((AQ49-AQ53)*0.85),),) ->  | AR51: =IF(N23=BY13,IF(N21<>CA2,AX47/2,),) ->  | AS51: =IF(N23=BY13,IF(OR(N21=CA4,N21=CA5),AS49-((AS49-AS53)*0.85),),) ->  | AT51: =IF(N23=BY13,IF(OR(N21=CA4,N21=CA5),AX47/2,),) -> 
A52: =A50 ->  | B52: =(BD32*0.75) ->  | C52: =C50 ->  | D52: =IF(E21=1,0,B58) ->  | E52: =E50 ->  | F52: =IF(E21=1,0,IF(E21=2,0,D52)) ->  | G52: =G50 ->  | H52: =IF(E21=4,D52) ->  | I52: =IF(E23=BC13,IF(E21<>BE2,I53+((I49-I53)*0.05),),) -> 0 | J52: =IF(E23=BC13,IF(E21<>BE2,P47*0.75,),) -> 0 | K52: =IF(E23=BC13,IF(OR(E21=BE4,E21=BE5),K53+((K49-K53)*0.05),),) -> 0 | L52: =IF(E23=BC13,IF(OR(E21=BE4,E21=BE5),P47*0.75,),) -> 0 | R52: =R50 ->  | S52: =(BO32*0.75) ->  | T52: =T50 ->  | U52: =IF(J21=1,0,S58) ->  | V52: =V50 ->  | W52: =IF(J21=1,0,IF(J21=2,0,U52)) ->  | X52: =X50 ->  | Y52: =IF(J21=4,U52) ->  | Z52: =IF(J23=BN13,IF(J21<>BP2,Z53+((Z49-Z53)*0.05),),) -> 0 | AA52: =IF(J23=BN13,IF(J21<>BP2,AG47*0.75,),) -> 0 | AB52: =IF(J23=BN13,IF(OR(J21=BP4,J21=BP5),AB53+((AB49-AB53)*0.05),),) -> 0 | AC52: =IF(J23=BN13,IF(OR(J21=BP4,J21=BP5),AG47*0.75,),) -> 0 | AI52: =AI50 ->  | AJ52: =(BZ32*0.75) ->  | AK52: =AK50 ->  | AL52: =IF(N21=1,0,AJ58) ->  | AM52: =AM50 ->  | AN52: =IF(N21=1,0,IF(N21=2,0,AL52)) ->  | AO52: =AO50 ->  | AP52: =IF(N21=4,AL52) ->  | AQ52: =IF(N23=BY13,IF(N21<>CA2,AQ53+((AQ49-AQ53)*0.05),),) ->  | AR52: =IF(N23=BY13,IF(N21<>CA2,AX47*0.75,),) ->  | AS52: =IF(N23=BY13,IF(OR(N21=CA4,N21=CA5),AS53+((AS49-AS53)*0.05),),) ->  | AT52: =IF(N23=BY13,IF(OR(N21=CA4,N21=CA5),AX47*0.75,),) -> 
A53: =A49 ->  | B53: =BD32-BE19 ->  | C53: =IF(E21=1,0,C49) ->  | D53: =IF(E21=1,0,B57) ->  | E53: =IF(E21=1,0,IF(E21=2,0,E49)) ->  | F53: =IF(E21=1,0,IF(E21=2,0,D57)) ->  | G53: =IF(E21=4,G49) ->  | H53: =IF(E21=4,D57) ->  | I53: =IF(E23=BC13,IF(E21<>BE2,I47,),) -> 0 | J53: =IF(E23=BC13,IF(E21<>BE2,P48-BE19,),) -> 0 | K53: =IF(E23=BC13,IF(OR(E21=BE4,E21=BE5),K47,),) -> 0 | L53: =IF(E23=BC13,IF(OR(E21=BE4,E21=BE5),P48-BE19,),) -> 0 | R53: =R49 ->  | S53: =BO32-BP19 ->  | T53: =IF(J21=1,0,T49) ->  | U53: =IF(J21=1,0,S57) ->  | V53: =IF(J21=1,0,IF(J21=2,0,V49)) ->  | W53: =IF(J21=1,0,IF(J21=2,0,U57)) ->  | X53: =IF(J21=4,X49) ->  | Y53: =IF(J21=4,U57) ->  | Z53: =IF(J23=BN13,IF(J21<>BP2,Z47,),) -> 0 | AA53: =IF(J23=BN13,IF(J21<>BP2,AG48-BP19,),) -> 0 | AB53: =IF(J23=BN13,IF(OR(J21=BP4,J21=BP5),AB47,),) -> 0 | AC53: =IF(J23=BN13,IF(OR(J21=BP4,J21=BP5),AG48-BP19,),) -> 0 | AI53: =AI49 ->  | AJ53: =BZ32-CA19 ->  | AK53: =IF(N21=1,0,AK49) ->  | AL53: =IF(N21=1,0,AJ57) ->  | AM53: =IF(N21=1,0,IF(N21=2,0,AM49)) ->  | AN53: =IF(N21=1,0,IF(N21=2,0,AL57)) ->  | AO53: =IF(N21=4,AO49) ->  | AP53: =IF(N21=4,AL57) ->  | AQ53: =IF(N23=BY13,IF(N21<>CA2,AQ47,),) ->  | AR53: =IF(N23=BY13,IF(N21<>CA2,AX48-CA19,),) ->  | AS53: =IF(N23=BY13,IF(OR(N21=CA4,N21=CA5),AS47,),) ->  | AT53: =IF(N23=BY13,IF(OR(N21=CA4,N21=CA5),AX48-CA19,),) -> 
A54: =A48 ->  | B54: =BD32-B46 ->  | C54: =C48 ->  | D54: =IF(E21=1,0,B54) ->  | E54: =E48 ->  | F54: =IF(E21=1,0,IF(E21=2,0,B54)) ->  | G54: =G48 ->  | H54: =IF(E21=4,B54) ->  | I54: =IF(E23=BC13,IF(E21<>BE2,I53-((I53-I57)*0.05),),) -> 0 | J54: =IF(E23=BC13,IF(E21<>BE2,J52,),) -> 0 | K54: =IF(E23=BC13,IF(OR(E21=BE4,E21=BE5),K53-((K53-K57)*0.05),),) -> 0 | L54: =IF(E23=BC13,IF(OR(E21=BE4,E21=BE5),L52,),) -> 0 | R54: =R48 ->  | S54: =BO32-S46 ->  | T54: =T48 ->  | U54: =IF(J21=1,0,S54) ->  | V54: =V48 ->  | W54: =IF(J21=1,0,IF(J21=2,0,S54)) ->  | X54: =X48 ->  | Y54: =IF(J21=4,S54) ->  | Z54: =IF(J23=BN13,IF(J21<>BP2,Z53-((Z53-Z57)*0.05),),) -> 0 | AA54: =IF(J23=BN13,IF(J21<>BP2,AA52,),) -> 0 | AB54: =IF(J23=BN13,IF(OR(J21=BP4,J21=BP5),AB53-((AB53-AB57)*0.05),),) -> 0 | AC54: =IF(J23=BN13,IF(OR(J21=BP4,J21=BP5),AC52,),) -> 0 | AI54: =AI48 ->  | AJ54: =BZ32-AJ46 ->  | AK54: =AK48 ->  | AL54: =IF(N21=1,0,AJ54) ->  | AM54: =AM48 ->  | AN54: =IF(N21=1,0,IF(N21=2,0,AJ54)) ->  | AO54: =AO48 ->  | AP54: =IF(N21=4,AJ54) ->  | AQ54: =IF(N23=BY13,IF(N21<>CA2,AQ53-((AQ53-AQ57)*0.05),),) ->  | AR54: =IF(N23=BY13,IF(N21<>CA2,AR52,),) ->  | AS54: =IF(N23=BY13,IF(OR(N21=CA4,N21=CA5),AS53-((AS53-AS57)*0.05),),) ->  | AT54: =IF(N23=BY13,IF(OR(N21=CA4,N21=CA5),AT52,),) -> 
A55: =A47 ->  | B55: =BD32-B47 ->  | C55: =IF(E21=1,0,C47) ->  | D55: =IF(E21=1,0,B55) ->  | E55: =IF(E21=1,0,IF(E21=2,0,E47)) ->  | F55: =IF(E21=1,0,IF(E21=2,0,B55)) ->  | G55: =IF(E21=4,G47) ->  | H55: =IF(E21=4,B55) ->  | I55: =IF(E23=BC13,IF(E21<>BE2,I57+((I53-I57)*0.85),),) -> 0 | J55: =IF(E23=BC13,IF(E21<>BE2,J51,),) -> 0 | K55: =IF(E23=BC13,IF(OR(E21=BE4,E21=BE5),K57+((K53-K57)*0.85),),) -> 0 | L55: =IF(E23=BC13,IF(OR(E21=BE4,E21=BE5),L51,),) -> 0 | R55: =R47 ->  | S55: =BO32-S47 ->  | T55: =IF(J21=1,0,T47) ->  | U55: =IF(J21=1,0,S55) ->  | V55: =IF(J21=1,0,IF(J21=2,0,V47)) ->  | W55: =IF(J21=1,0,IF(J21=2,0,S55)) ->  | X55: =IF(J21=4,X47) ->  | Y55: =IF(J21=4,S55) ->  | Z55: =IF(J23=BN13,IF(J21<>BP2,Z57+((Z53-Z57)*0.85),),) -> 0 | AA55: =IF(J23=BN13,IF(J21<>BP2,AA51,),) -> 0 | AB55: =IF(J23=BN13,IF(OR(J21=BP4,J21=BP5),AB57+((AB53-AB57)*0.85),),) -> 0 | AC55: =IF(J23=BN13,IF(OR(J21=BP4,J21=BP5),AC51,),) -> 0 | AI55: =AI47 ->  | AJ55: =BZ32-AJ47 ->  | AK55: =IF(N21=1,0,AK47) ->  | AL55: =IF(N21=1,0,AJ55) ->  | AM55: =IF(N21=1,0,IF(N21=2,0,AM47)) ->  | AN55: =IF(N21=1,0,IF(N21=2,0,AJ55)) ->  | AO55: =IF(N21=4,AO47) ->  | AP55: =IF(N21=4,AJ55) ->  | AQ55: =IF(N23=BY13,IF(N21<>CA2,AQ57+((AQ53-AQ57)*0.85),),) ->  | AR55: =IF(N23=BY13,IF(N21<>CA2,AR51,),) ->  | AS55: =IF(N23=BY13,IF(OR(N21=CA4,N21=CA5),AS57+((AS53-AS57)*0.85),),) ->  | AT55: =IF(N23=BY13,IF(OR(N21=CA4,N21=CA5),AT51,),) -> 
A56: =A46 ->  | B56: =B54 ->  | C56: =C46 ->  | D56: =IF(E21=1,0,D54) ->  | E56: =E46 ->  | F56: =F54 ->  | G56: =G46 ->  | H56: =H54 ->  | I56: =IF(E23=BC13,IF(E21<>BE2,I57+((I53-I57)/1.8),),) -> 0 | J56: =IF(E23=BC13,IF(E21<>BE2,J50,),) -> 0 | K56: =IF(E23=BC13,IF(OR(E21=BE4,E21=BE5),K57+((K53-K57)/1.8),),) -> 0 | L56: =IF(E23=BC13,IF(OR(E21=BE4,E21=BE5),L50,),) -> 0 | R56: =R46 ->  | S56: =S54 ->  | T56: =T46 ->  | U56: =IF(J21=1,0,U54) ->  | V56: =V46 ->  | W56: =W54 ->  | X56: =X46 ->  | Y56: =Y54 ->  | Z56: =IF(J23=BN13,IF(J21<>BP2,Z57+((Z53-Z57)/1.8),),) -> 0 | AA56: =IF(J23=BN13,IF(J21<>BP2,AA50,),) -> 0 | AB56: =IF(J23=BN13,IF(OR(J21=BP4,J21=BP5),AB57+((AB53-AB57)/1.8),),) -> 0 | AC56: =IF(J23=BN13,IF(OR(J21=BP4,J21=BP5),AC50,),) -> 0 | AI56: =AI46 ->  | AJ56: =AJ54 ->  | AK56: =AK46 ->  | AL56: =IF(N21=1,0,AL54) ->  | AM56: =AM46 ->  | AN56: =AN54 ->  | AO56: =AO46 ->  | AP56: =AP54 ->  | AQ56: =IF(N23=BY13,IF(N21<>CA2,AQ57+((AQ53-AQ57)/1.8),),) ->  | AR56: =IF(N23=BY13,IF(N21<>CA2,AR50,),) ->  | AS56: =IF(N23=BY13,IF(OR(N21=CA4,N21=CA5),AS57+((AS53-AS57)/1.8),),) ->  | AT56: =IF(N23=BY13,IF(OR(N21=CA4,N21=CA5),AT50,),) -> 
A57: =A45 -> 0.005 | B57: =B53 ->  | C57: =IF(E21=1,0,C45) ->  | D57: =IF(E21=1,0,D53) ->  | E57: =IF(E21=1,0,IF(E21=2,0,E45)) ->  | F57: =IF(E21=1,0,IF(E21=2,0,F53)) ->  | G57: =IF(E21=4,G45) ->  | H57: =IF(E21=4,H53) ->  | I57: =IF(E23=BC13,IF(E21<>BE2,I45,),) -> 0 | J57: =IF(E23=BC13,IF(E21<>BE2,J45,),) -> 0 | K57: =IF(E23=BC13,IF(OR(E21=BE4,E21=BE5),K45,),) -> 0 | L57: =IF(E23=BC13,IF(OR(E21=BE4,E21=BE5),L45,),) -> 0 | R57: =R45 -> 0.005 | S57: =S53 ->  | T57: =IF(J21=1,0,T45) ->  | U57: =IF(J21=1,0,U53) ->  | V57: =IF(J21=1,0,IF(J21=2,0,V45)) ->  | W57: =IF(J21=1,0,IF(J21=2,0,W53)) ->  | X57: =IF(J21=4,X45) ->  | Y57: =IF(J21=4,Y53) ->  | Z57: =IF(J23=BN13,IF(J21<>BP2,Z45,),) -> 0 | AA57: =IF(J23=BN13,IF(J21<>BP2,AA45,),) -> 0 | AB57: =IF(J23=BN13,IF(OR(J21=BP4,J21=BP5),AB45,),) -> 0 | AC57: =IF(J23=BN13,IF(OR(J21=BP4,J21=BP5),AC45,),) -> 0 | AI57: =AI45 -> 0.005 | AJ57: =AJ53 ->  | AK57: =IF(N21=1,0,AK45) ->  | AL57: =IF(N21=1,0,AL53) ->  | AM57: =IF(N21=1,0,IF(N21=2,0,AM45)) ->  | AN57: =IF(N21=1,0,IF(N21=2,0,AN53)) ->  | AO57: =IF(N21=4,AO45) ->  | AP57: =IF(N21=4,AP53) ->  | AQ57: =IF(N23=BY13,IF(N21<>CA2,AQ45,),) ->  | AR57: =IF(N23=BY13,IF(N21<>CA2,AR45,),) ->  | AS57: =IF(N23=BY13,IF(OR(N21=CA4,N21=CA5),AS45,),) ->  | AT57: =IF(N23=BY13,IF(OR(N21=CA4,N21=CA5),AT45,),) -> 
A58: =A45+BC29 ->  | B58: =B52 ->  | C58: =IF(E21=1,0,C45+BC29) ->  | D58: =D52 ->  | E58: =IF(E21=1,0,IF(E21=2,0,E45+BC29)) ->  | F58: =F52 ->  | G58: =IF(E21=4,G45+BC29) ->  | H58: =H52 ->  | R58: =R45+BN29 ->  | S58: =S52 ->  | T58: =IF(J21=1,0,T45+BN29) ->  | U58: =U52 ->  | V58: =IF(J21=1,0,IF(J21=2,0,V45+BN29)) ->  | W58: =W52 ->  | X58: =IF(J21=4,X45+BN29) ->  | Y58: =Y52 ->  | AI58: =AI45+BY29 ->  | AJ58: =AJ52 ->  | AK58: =IF(N21=1,0,AK45+BY29) ->  | AL58: =AL52 ->  | AM58: =IF(N21=1,0,IF(N21=2,0,AM45+BY29)) ->  | AN58: =AN52 ->  | AO58: =IF(N21=4,AO45+BY29) ->  | AP58: =AP52 -> 
A59: =A45+BB29 ->  | B59: =B51 ->  | C59: =IF(E21=1,0,C45+BB29) ->  | D59: =IF(E21=1,0,D51) ->  | E59: =IF(E21=1,0,IF(E21=2,0,E45+BB29)) ->  | F59: =IF(E21=1,0,IF(E21=2,0,B51)) ->  | G59: =IF(E21=4,G45+BB29) ->  | H59: =IF(E21=4,B51) ->  | R59: =R45+BM29 ->  | S59: =S51 ->  | T59: =IF(J21=1,0,T45+BM29) ->  | U59: =IF(J21=1,0,U51) ->  | V59: =IF(J21=1,0,IF(J21=2,0,V45+BM29)) ->  | W59: =IF(J21=1,0,IF(J21=2,0,S51)) ->  | X59: =IF(J21=4,X45+BM29) ->  | Y59: =IF(J21=4,S51) ->  | AI59: =AI45+BX29 ->  | AJ59: =AJ51 ->  | AK59: =IF(N21=1,0,AK45+BX29) ->  | AL59: =IF(N21=1,0,AL51) ->  | AM59: =IF(N21=1,0,IF(N21=2,0,AM45+BX29)) ->  | AN59: =IF(N21=1,0,IF(N21=2,0,AJ51)) ->  | AO59: =IF(N21=4,AO45+BX29) ->  | AP59: =IF(N21=4,AJ51) -> 
A60: =A58 ->  | B60: =B50 ->  | C60: =C58 ->  | D60: =D50 ->  | E60: =E58 ->  | F60: =F50 ->  | G60: =G58 ->  | H60: =H50 ->  | R60: =R58 ->  | S60: =S50 ->  | T60: =T58 ->  | U60: =U50 ->  | V60: =V58 ->  | W60: =W50 ->  | X60: =X58 ->  | Y60: =Y50 ->  | AI60: =AI58 ->  | AJ60: =AJ50 ->  | AK60: =AK58 ->  | AL60: =AL50 ->  | AM60: =AM58 ->  | AN60: =AN50 ->  | AO60: =AO58 ->  | AP60: =AP50 -> 
A61: =A45 -> 0.005 | B61: =BE19 -> 0.005 | C61: =IF(E21=1,0,C57) ->  | D61: =IF(E21=1,0,BE19) ->  | E61: =IF(E21=1,0,IF(E21=2,0,E57)) ->  | F61: =IF(E21=1,0,IF(E21=2,0,BE19)) ->  | G61: =IF(E21=4,G57) ->  | H61: =IF(E21=4,BE19) ->  | R61: =R45 -> 0.005 | S61: =BP19 -> 0.005 | T61: =IF(J21=1,0,T57) ->  | U61: =IF(J21=1,0,BP19) ->  | V61: =IF(J21=1,0,IF(J21=2,0,V57)) ->  | W61: =IF(J21=1,0,IF(J21=2,0,BP19)) ->  | X61: =IF(J21=4,X57) ->  | Y61: =IF(J21=4,BP19) ->  | AI61: =AI45 -> 0.005 | AJ61: =CA19 -> 0.005 | AK61: =IF(N21=1,0,AK57) ->  | AL61: =IF(N21=1,0,CA19) ->  | AM61: =IF(N21=1,0,IF(N21=2,0,AM57)) ->  | AN61: =IF(N21=1,0,IF(N21=2,0,CA19)) ->  | AO61: =IF(N21=4,AO57) ->  | AP61: =IF(N21=4,CA19) -> 

Sheet Lean To
AZ1: Main Material | BA1: =IF(OR(E27=BF2,E27=BF3,E27=BF4,E27=BF5,E27=BF6),' '!B6,IF(OR(E27=BF7,E27=BF8,E27=BF9,E27=BF10,E27=BF11,E27=BF12,E27=BF13,E27=BF14,E27=BF15),' '!B7,IF(OR(E27=BF16,E27=BF17,E27=BF20,E27=BF18,E27=BF19),' '!B8,))) -> 4.54 | BB1: Material cost | BC1: =' '!$B$10 -> 13.25 | BD1: Sails | BF1: Fabric Colour | BH1: Fittings Colours | BK1: Main Material | BL1: =IF(OR(H27=BQ2,H27=BQ3,H27=BQ4,H27=BQ5,H27=BQ6),' '!B6,IF(OR(H27=BQ7,H27=BQ8,H27=BQ9,H27=BQ10,H27=BQ11,H27=BQ12,H27=BQ13,H27=BQ14,H27=BQ15),' '!B7,IF(OR(H27=BQ16,H27=BQ17,H27=BQ18,H27=BQ19,H27=BQ20),' '!B8,))) -> 4.54 | BO1: Sails | BQ1: Fabric Colour | BS1: Fittings Colours | BV1: Main Material | BW1: =IF(OR(L27=CB2,L27=CB3,L27=CB4,L27=CB5,L27=CB6),' '!B6,IF(OR(L27=CB7,L27=CB8,L27=CB9,L27=CB10,L27=CB11,L27=CB12,L27=CB13,L27=CB14,L27=CB15),' '!B7,IF(OR(L27=CB16,L27=CB17,L27=CB18,L27=CB19,L27=CB20),' '!B8,))) -> 4.54 | BZ1: Sails | CB1: Fabric Colour | CD1: Fittings Colours
AZ2: Tri Material | BA2: =IF(OR(E28=BF2,E28=BF3,E28=BF4,E28=BF5,E28=BF6),' '!B6,IF(OR(E28=BF7,E28=BF8,E28=BF9,E28=BF10,E28=BF11,E28=BF12,E28=BF13,E28=BF14,E28=BF15),' '!B7,IF(OR(E28=BF16,E28=BF17,E28=BF18,E28=BF19,E28=BF20),' '!B8,))) -> 4.54 | BB2: PE | BC2: =' '!$B$11 -> 3 | BD2: 1 | BF2: ISX Solid | BH2: Stainless steel | BK2: Tri Material | BL2: =IF(OR(H28=BQ2,H28=BQ3,H28=BQ4,H28=BQ5,H28=BQ6),' '!B6,IF(OR(H28=BQ7,H28=BQ8,H28=BQ9,H28=BQ10,H28=BQ11,H28=BQ12,H28=BQ13,H28=BQ14,H28=BQ15),' '!B7,IF(OR(H28=BQ16,H28=BQ17,H28=BQ18,H28=BQ19,H28=BQ20),' '!B8,))) -> 4.54 | BO2: 1 | BQ2: ISX Solid | BS2: Stainless steel | BV2: Tri Material | BW2: =IF(OR(L28=CB2,L28=CB3,L28=CB4,L28=CB5,L28=CB6),' '!B6,IF(OR(L28=CB7,L28=CB8,L28=CB9,L28=CB10,L28=CB11,L28=CB12,L28=CB13,L28=CB14,L28=CB15),' '!B7,IF(OR(L28=CB16,L28=CB17,L28=CB18,L28=CB19,L28=CB20),' '!B8,))) -> 4.54 | BZ2: 1 | CB2: ISX Solid | CD2: Stainless steel
BB3: PN | BC3: =IF(BD8=4,' '!$B$19,' '!$B$20) -> 4.75 | BD3: 2 | BF3: ISX White | BH3: White | BM3: PN | BN3: =IF(BO8=4,' '!$B$19,' '!$B$20) -> 4.25 | BO3: 2 | BQ3: ISX White | BS3: White | BX3: PN | BY3: =IF(BZ8=4,' '!$B$19,' '!$B$20) -> 4.25 | BZ3: 2 | CB3: ISX White | CD3: White
BB4: IP | BC4: =' '!#REF! ->  | BD4: 3 | BF4: ISX Solid Ivory | BH4: Gold | BO4: 3 | BQ4: ISX Solid Ivory | BS4: Gold | BZ4: 3 | CB4: ISX Solid Ivory | CD4: Gold
B5: =' '!A46 -> v2023.2 | BB5: No. of vents | BD5: 4 | BF5: ISX Solid Oyster | BH5: Cost | BI5: =IF(E29=BH2, ' '!B24, ' '!B25) -> 7 | BM5: No. of vents | BO5: 4 | BQ5: ISX Solid Oyster | BS5: Cost | BT5: =IF(H29=BH2, ' '!B24, ' '!B25) -> 7 | BX5: No. of vents | BZ5: 4 | CB5: ISX Solid Oyster | CD5: Cost | CE5: =IF(L29=BH2, ' '!B24, ' '!B25) -> 7
AZ6: Shape | BA6: =' '!B14 -> 1 | BB6: 0 | BF6: ISX Solid Stone | BM6: 0 | BQ6: ISX Solid Stone | BX6: 0 | CB6: ISX Solid Stone
AZ7: Triangle | BA7: =' '!B15 -> 0.75 | BB7: 1 | BF7: ISX Duplex | BM7: 1 | BQ7: ISX Duplex | BX7: 1 | CB7: ISX Duplex
BB8: 2 | BC8: No. of corners | BD8: =IF(E25=BF37,6,4) -> 6 | BF8: ISX Duplex Ocean | BM8: 2 | BN8: No. of corners | BO8: =IF(H25=BF37,6,4) -> 4 | BQ8: ISX Duplex Ocean | BX8: 2 | BY8: No. of corners | BZ8: =IF(L25=BF37,6,4) -> 4 | CB8: ISX Duplex Ocean
BB9: 3 | BF9: ISX Duplex Stone | BM9: 3 | BQ9: ISX Duplex Stone | BX9: 3 | CB9: ISX Duplex Stone
AZ10: Overlap left | BA10: =IF(E23=AZ11,BA11,IF(E23=AZ12,BA12,IF(E23=AZ13,BA13))) -> 0 | BB10: 4 | BC10: Curve allowance | BD10: 0.5 | BF10: ISX Duplex Slate | BK10: Overlap left | BL10: =IF(H23=BK11,BL11,IF(H23=BK12,BL12,IF(H23=BK13,BL13))) -> 0.0882849432 | BM10: 4 | BN10: Curve allowance | BO10: 0.5 | BQ10: ISX Duplex Slate | BV10: Overlap left | BW10: =IF(L23=BV11,BW11,IF(L23=BV12,BW12,IF(L23=BV13,BW13))) -> 0 | BX10: 4 | BY10: Curve allowance | BZ10: 0.5 | CB10: ISX Duplex Slate
AZ11: 0 | BA11: 0 | BB11: Triangles | BC11: Roof area | BD11: =BD14*BC31 -> 0.5267201726 | BF11: ISX Duplex Graphite | BK11: 0 | BL11: 0 | BM11: Triangles | BN11: Roof area | BO11: =BO14*BN31 -> 0.5267201726 | BQ11: ISX Duplex Graphite | BV11: 0 | BW11: 0 | BX11: Triangles | BY11: Roof area | BZ11: =BZ14*BY31 -> 0.5267201726 | CB11: ISX Duplex Graphite
AZ12: 0.5 | BA12: =IF(E22=1,0,IF(E22=2,(BA29*0.5)+BD19,(BA29*0.75)+BD19)) -> 0 | BB12: No | BC12: Area of each sail | BD12: =BD11/E22 -> 0.5267201726 | BF12: ISXFR Solid | BK12: 0.5 | BL12: =IF(H22=1,0,IF(H22=2,(BL29*0.5)+BO19,(BL29*0.75)+BO19)) -> 0.0441424716 | BM12: No | BN12: Area of each sail | BO12: =BO11/H22 -> 0.2633600863 | BQ12: ISXFR Solid | BV12: 0.5 | BW12: =IF(L22=1,0,IF(L22=2,(BW29*0.5)+BZ19,(BW29*0.75)+BZ19)) -> 0.0441424716 | BX12: No | BY12: Area of each sail | BZ12: =BZ11/L22 -> 0.2633600863 | CB12: ISXFR Solid
AZ13: 1 | BA13: =IF(E22=1,0,IF(E22=2,BA29+(BD19*2),IF(E22=3,(BA29*1.34)+BD19,IF(E22=4,(BA29*1.67)+BD19)))) -> 0 | BB13: Yes | BC13: Sail perimeter | BD13: =((BD15+0.07)*2)+((BD16+0.07)*2) -> 3.280610157 | BF13: ISXFR White | BK13: 1 | BL13: =IF(H22=1,0,IF(H22=2,BL29+(BO19*2),IF(H22=3,(BL29*1.34)+BO19,IF(H22=4,(BL29*1.67)+BO19)))) -> 0.0882849432 | BM13: Yes | BN13: Sail perimeter | BO13: =((BO15+0.07)*2)+((BO16+0.07)*2) -> 2.457180043 | BQ13: ISXFR White | BV13: 1 | BW13: =IF(L22=1,0,IF(L22=2,BW29+(BZ19*2),IF(L22=3,(BW29*1.34)+BZ19,IF(L22=4,(BW29*1.67)+BZ19)))) -> 0.0882849432 | BX13: Yes | BY13: Sail perimeter | BZ13: =((BZ15+0.07)*2)+((BZ16+0.07)*2) -> 2.280610157 | CB13: ISXFR White
AZ14: Overlap right | BA14: =BA10 -> 0 | BB14: Warnings | BC14: Glazing bar length | BD14: =SQRT((BC30-BC29)^2+BC32^2) -> 0.5267201726 | BF14: ISXFR Solid Ivory | BK14: Overlap right | BL14: =BL10 -> 0.0882849432 | BM14: Warnings | BN14: Glazing bar length | BO14: =SQRT((BN30-BN29)^2+BN32^2) -> 0.5267201726 | BQ14: ISXFR Solid Ivory | BV14: Overlap right | BW14: =BW10 -> 0 | BX14: Warnings | BY14: Glazing bar length | BZ14: =SQRT((BY30-BY29)^2+BY32^2) -> 0.5267201726 | CB14: ISXFR Solid Ivory
AZ15: Warning 1 | BA15: Warning: Sail too narrow, increase no. of sails, add additional fitting points or reduce gap size | BB15: =MAX(BA22:BC22) -> 2.791616915 | BC15: Length of sail | BD15: =BD14-(0.07/(IF(B23>B24,B23,B24)/1000)) -> 0.5135126255 | BF15: ISXFR Solid Oyster | BK15: Warning 1 | BL15: Warning: Sail too narrow, increase no. of sails, add additional fitting points or reduce gap size | BM15: =MAX(BL22:BN22) -> 2.791616915 | BN15: Length of sail | BO15: =BO14-(0.07/(IF(B23>B24,B23,B24)/1000)) -> 0.5135126255 | BQ15: ISXFR Solid Oyster | BV15: Warning 1 | BW15: Warning: Sail too narrow, increase no. of sails, add additional fitting points or reduce gap size | BX15: =MAX(BW22:BY22) -> 2.791616915 | BY15: Length of sail | BZ15: =BZ14-(0.07/(IF(B23>B24,B23,B24)/1000)) -> 0.5135126255 | CB15: ISXFR Solid Oyster
AZ16: Warning 2 | BA16: Warning: Sail too narrow, decrease no. of sails, add additional fitting points or increase gap size | BB16: =MAX(BA23:BC23) -> 5.3 | BC16: Width left | BD16: =(BC31/E22)-(0.07/(IF(B23>B24,B23,B24)/1000))+BA10 -> 0.9867924528 | BE16: -> | BF16: ISXFR Duplex | BK16: Warning 2 | BL16: Warning: Sail too narrow, decrease no. of sails, add additional fitting points or increase gap size | BM16: =MAX(BL23:BN23) -> 3.117910199 | BN16: Width left | BO16: =(BN31/H22)-(0.07/(IF(B23>B24,B23,B24)/1000))+BL10 -> 0.575077396 | BP16: -> | BQ16: ISXFR Duplex | BV16: Warning 2 | BW16: Warning: Sail too narrow, decrease no. of sails, add additional fitting points or increase gap size | BX16: =MAX(BW23:BY23) -> 2.65 | BY16: Width left | BZ16: =(BY31/L22)-(0.07/(IF(B23>B24,B23,B24)/1000))+BW10 -> 0.4867924528 | CA16: -> | CB16: ISXFR Duplex
E17: Plan view - looking from above | H17: Plan view - looking from above | L17: Plan view - looking from above | AZ17: Warning 3 | BA17: Warning: Sail too wide for standard fabric, please add more sails or increase gap size | BC17: Width middle | BD17: =((BC31/E22)-(0.07/(IF(B23>B24,B23,B24)/1000))+BA10) -> 0.9867924528 | BE17: =((BC31/E22)-(0.07/(IF(B23>B24,B23,B24)/1000))+BA14) -> 0.9867924528 | BF17: ISXFR Duplex Ocean | BK17: Warning 3 | BL17: Warning: Sail too wide for standard fabric, please add more sails or increase gap size | BN17: Width middle | BO17: =((BN31/H22)-(0.07/(IF(B23>B24,B23,B24)/1000))+BL10) -> 0.575077396 | BP17: =((BN31/H22)-(0.07/(IF(B23>B24,B23,B24)/1000))+BL14) -> 0.575077396 | BQ17: ISXFR Duplex Ocean | BV17: Warning 3 | BW17: Warning: Sail too wide for standard fabric, please add more sails or increase gap size | BY17: Width middle | BZ17: =((BY31/L22)-(0.07/(IF(B23>B24,B23,B24)/1000))+BW10) -> 0.4867924528 | CA17: =((BY31/L22)-(0.07/(IF(B23>B24,B23,B24)/1000))+BW14) -> 0.4867924528 | CB17: ISXFR Duplex Ocean
AZ18: Warning 4 | BA18: Warning: Conservatory too long for standard fabric, contact office for more details | BC18: Width right | BD18: =(BC31/E22)-(0.07/(IF(B23>B24,B23,B24)/1000))+BA14 -> 0.9867924528 | BF18: ISXFR Duplex Stone | BK18: Warning 4 | BL18: Warning: Conservatory too long for standard fabric, contact office for more details | BN18: Width right | BO18: =(BN31/H22)-(0.07/(IF(B23>B24,B23,B24)/1000))+BL14 -> 0.575077396 | BQ18: ISXFR Duplex Stone | BV18: Warning 4 | BW18: Warning: Conservatory too long for standard fabric, contact office for more details | BY18: Width right | BZ18: =(BY31/L22)-(0.07/(IF(B23>B24,B23,B24)/1000))+BW14 -> 0.4867924528 | CB18: ISXFR Duplex Stone
D19: =' '!$A$42 -> Starting Cost incl. Installation | E19: =(((BA25+BB25+BC25+(E30*' '!B29)+IF(AND(E24=BB13,E22<>BD2),BD25,)+(' '!B21*E26)+IF(E29<>BH2,E26*' '!B26,0)))) -> 1297.853919 | G19: =' '!$A$43 -> Average Cost incl. Installation | H19: =(((BL25+BM25+BN25+(H30*' '!B29)+IF(AND(H24=BM13,H22<>BO2),BO25,)+(' '!B21*H26)+IF(H29<>BS2,H26*' '!B26,0)))) -> 1605.588134 | K19: =' '!$A$44 -> High End Cost incl. Installation | L19: =(((BW25+BX25+BY25+(L30*' '!B29)+BZ25)+(' '!B21*L26)+IF(L29<>CD2,L26*' '!B26,0))) -> 1900.579641 | BC19: 50mm links | BD19: =0.035/(IF(B23>B24,B23,B24)/1000) -> 0.006603773585 | BF19: ISXFR Duplex Slate | BN19: 50mm links | BO19: =BD19 -> 0.006603773585 | BQ19: ISXFR Duplex Slate | BY19: 50mm links | BZ19: =0.035/(IF(B23>B24,B23,B24)/1000) -> 0.006603773585 | CB19: ISXFR Duplex Slate
E20: =' '!U3+' '!B33 -> 1758.283135 | H20: =' '!AG3+' '!B33 -> 2025.588134 | L20: =' '!AS3+' '!B33 -> 2320.579641 | BA20: 4 sails left | BB20: =(BC31*0.375)+(MAX(BA14,BA10)/6) -> 0.375 | BC20: 4 sails left | BD20: =(BC31*0.625)-(MAX(BA14,BA10)/6) -> 0.625 | BF20: ISXFR Duplex Graphite | BL20: 4 sails left | BM20: =(BN31*0.375)+(MAX(BL14,BL10)/6) -> 0.3897141572 | BN20: 4 sails left | BO20: =(BN31*0.625)-(MAX(BL14,BL10)/6) -> 0.6102858428 | BQ20: ISXFR Duplex Graphite | BW20: 4 sails left | BX20: =(BY31*0.375)+(MAX(BW14,BW10)/6) -> 0.375 | BY20: 4 sails left | BZ20: =(BY31*0.625)-(MAX(BW14,BW10)/6) -> 0.625 | CB20: ISXFR Duplex Graphite
AZ21: Costs | BA21: left | BB21: mid | BC21: right | BD21: tri | BK21: Costs | BL21: left | BM21: mid | BN21: right | BO21: tri | BV21: Costs | BW21: left | BX21: mid | BY21: right | BZ21: tri
B22: All dims in mm | D22: Number of sails | E22: =BF28 -> 1 | G22: Number of sails | H22: =BR28 -> 2 | K22: Number of sails | L22: =CC28 -> 2 | AZ22: length | BA22: =BD14*(IF(B23>B24,B23,B24)/1000) -> 2.791616915 | BB22: =BA22 -> 2.791616915 | BC22: =BB22 -> 2.791616915 | BD22: =BC22 -> 2.791616915 | BK22: length | BL22: =BO14*(IF(B23>B24,B23,B24)/1000) -> 2.791616915 | BM22: =BL22 -> 2.791616915 | BN22: =BM22 -> 2.791616915 | BO22: =BN22 -> 2.791616915 | BV22: length | BW22: =BZ14*(IF(B23>B24,B23,B24)/1000) -> 2.791616915 | BX22: =BW22 -> 2.791616915 | BY22: =BX22 -> 2.791616915 | BZ22: =BY22 -> 2.791616915
A23: X1 | B23: 5300 | D23: Overlap | E23: 0.5 | G23: Overlap | H23: 1 | K23: Overlap | L23: 0 | AZ23: width | BA23: =((A49-A45)+(0.07/(IF(B23>B24,B23,B24)/1000)))*(IF(B23>B24,B23,B24)/1000) -> 5.3 | BB23: =IF(E22<>BD4,MIN(BA23,BC23),(E49-E45+(0.07/(IF(B23>B24,B23,B24)/1000)))*(IF(B23>B24,B23,B24)/1000)) -> 5.3 | BC23: =IF(E22<>BD2,(C49-C45+(0.07/(IF(B23>B24,B23,B24)/1000)))*(IF(B23>B24,B23,B24)/1000),BA23) -> 5.3 | BD23: =(AZ27*(IF(B23>B24,B23,B24)/1000))+0.07 -> 2.247293532 | BK23: width | BL23: =((R49-R45)+(0.07/(IF(B23>B24,B23,B24)/1000)))*(IF(B23>B24,B23,B24)/1000) -> 3.117910199 | BM23: =IF(H22<>BO4,MIN(BL23,BN23),(V49-V45+(0.07/(IF(B23>B24,B23,B24)/1000)))*(IF(B23>B24,B23,B24)/1000)) -> 3.117910199 | BN23: =IF(H22<>BO2,(T49-T45+(0.07/(IF(B23>B24,B23,B24)/1000)))*(IF(B23>B24,B23,B24)/1000),BL23) -> 3.117910199 | BO23: =(BK27*(IF(B23>B24,B23,B24)/1000))+0.07 -> 2.247293532 | BV23: width | BW23: =((AI49-AI45)+(0.07/(IF(B23>B24,B23,B24)/1000)))*(IF(B23>B24,B23,B24)/1000) -> 2.65 | BX23: =IF(L22<>BZ4,MIN(BW23,BY23),(AM49-AM45+(0.07/(IF(B23>B24,B23,B24)/1000)))*(IF(B23>B24,B23,B24)/1000)) -> 2.65 | BY23: =IF(L22<>BZ2,(AK49-AK45+(0.07/(IF(B23>B24,B23,B24)/1000)))*(IF(B23>B24,B23,B24)/1000),BW23) -> 2.65 | BZ23: =(BV27*(IF(B23>B24,B23,B24)/1000))+0.07 -> 2.247293532
A24: Y1 | B24: 2670 | D24: Triangles | E24: No | G24: Triangles | H24: No | K24: Triangles | L24: Yes | AZ24: perimeter | BA24: =((BA22*2)+(BA23*2))*1.05 -> 16.99239552 | BB24: =((BB22*2)+(BB23*2))*1.05 -> 16.99239552 | BC24: =((BC22*2)+(BC23*2))*1.05 -> 16.99239552 | BD24: =((BD22*2)+BD23)*1.05 -> 8.22205373 | BK24: perimeter | BL24: =((BL22*2)+(BL23*2))*1.05 -> 12.41000694 | BM24: =((BM22*2)+(BM23*2))*1.05 -> 12.41000694 | BN24: =((BN22*2)+(BN23*2))*1.05 -> 12.41000694 | BO24: =((BO22*2)+BO23)*1.05 -> 8.22205373 | BV24: perimeter | BW24: =((BW22*2)+(BW23*2))*1.05 -> 11.42739552 | BX24: =((BX22*2)+(BX23*2))*1.05 -> 11.42739552 | BY24: =((BY22*2)+(BY23*2))*1.05 -> 11.42739552 | BZ24: =((BZ22*2)+BZ23)*1.05 -> 8.22205373
A25: H1 | B25: 2185 | D25: 6 sided sails | E25: Yes | G25: 6 sided sails | H25: No | K25: 6 sided sails | L25: No | BA25: =((BA1*((BA22*BA23*BC1*BA6)+(BA24*BC2)+(BD8*BC3)))+(BD8*BI5)+' '!B35) -> 1297.853919 | BB25: =(IF(E22<3,0,((IF(E22>2,((BA1*((BA22*BA23*BC1*BA6)+(BA24*BC2)+(BD8*BC3)))+(BD8*BI5)+' '!B35)*(IF(E22=4,2,1))))))) -> 0 | BC25: =(IF(E22<>BD2,((BA1*((BA22*BA23*BC1*BA6)+(BA24*BC2)+(BD8*BC3)))+(BD8*BI5)+' '!B35),)) -> 0 | BD25: =((IF(E24=BB13,((BA2*((BD22*BD23*BC1*BA7)+(BD24*BC2)+(3*' '!B19)))+(3*BI5)+' '!B35)*(E22-1),))) -> 0 | BL25: =((BL1*((BL22*BL23*BC1*BA6)+(BL24*BC2)+(BO8*BN3)))+(BO8*BT5)+' '!B35) -> 802.7940672 | BM25: =(IF(H22<3,0,((IF(H22>2,((BL1*((BM22*BM23*BC1*BA6)+(BM24*BC2)+(BO8*BN3)))+(BO8*BT5)+' '!B35)*(IF(H22=4,2,1))))))) -> 0 | BN25: =(IF(H22<>BO2,((BL1*((BN22*BN23*BC1*BA6)+(BN24*BC2)+(BO8*BN3)))+(BO8*BT5)+' '!B35),)) -> 802.7940672 | BO25: =((IF(H24=BM13,((BL1*((BO22*BO23*BC1*BA7)+(BO24*BC2)+(3*' '!B19)))+(3*BT5)+' '!B35)*(H22-1),))) -> 0 | BW25: =((BW1*((BW22*BW23*BC1*BA6)+(BW24*BC2)+(BZ8*BY3)))+(BZ8*CE5)+' '!B35) -> 710.8348731 | BX25: =(IF(L22<3,0,((IF(L22>2,((BW1*((BX22*BX23*BC1*BA6)+(BX24*BC2)+(BZ8*BY3)))+(BZ8*CE5)+' '!B35)*(IF(L22=4,2,1))))))) -> 0 | BY25: =(IF(L22<>BZ2,((BW1*((BY22*BY23*BC1*BA6)+(BY24*BC2)+(BZ8*BY3)))+(BZ8*CE5)+' '!B35),)) -> 710.8348731 | BZ25: =((IF(L24=BX13,((BW2*((BZ22*BZ23*BC1*BA7)+(BZ24*BC2)+(3*' '!B19)))+(3*CE5)+' '!B35)*(L22-1)))) -> 478.9098944
A26: H2 | B26: 3000 | D26: Total additional fittings | E26: 0 | G26: Total additional fittings | H26: 0 | K26: Total additional fittings | L26: 0 | AZ26: tri width | BA26: tri length | BB26: tri mid | BC26: tri quarter | BK26: tri width | BL26: tri length | BM26: tri mid | BN26: tri quarter | BV26: tri width | BW26: tri length | BX26: tri mid | BY26: tri quarter
D27: Colour of main sails | E27: ISX Solid | G27: Colour of main sails | H27: ISX Solid | K27: Colour of main sails | L27: ISX Solid | AZ27: =BA27*0.8 -> 0.4108101004 | BA27: =BD14-(BD19*2) -> 0.5135126255 | BB27: =AZ27*0.13 -> 0.05340531305 | BC27: =BB27*0.75 -> 0.04005398479 | BF27: Low | BK27: =BL27*0.8 -> 0.4108101004 | BL27: =BO14-(BO19*2) -> 0.5135126255 | BM27: =BK27*0.13 -> 0.05340531305 | BN27: =BM27*0.75 -> 0.04005398479 | BR27: Mid | BV27: =BW27*0.8 -> 0.4108101004 | BW27: =BZ14-(BZ19*2) -> 0.5135126255 | BX27: =BV27*0.13 -> 0.05340531305 | BY27: =BX27*0.75 -> 0.04005398479 | CC27: Top
D28: Colour of triangles | E28: ISX Solid | G28: Colour of triangles | H28: ISX Solid | K28: Colour of triangles | L28: ISX Solid | BA28: Mid | BB28: Quarters | BC28: Dims in m | BE28: Number of sails | BF28: =IF(BH32<1.25,1,IF(AND(BH32>=1.25,BH32<=2.25),1,IF(AND(BH32>2.25,BH32<3.5),2,IF(AND(BH32>=3.5),3)))) -> 1 | BL28: Mid | BM28: Quarters | BN28: Dims in m | BQ28: Number of sails | BR28: =IF(BR32<1.25,1,IF(AND(BR32>=1.25,BR32<=2.25),2,IF(AND(BR32>2.25,BR32<3.5),3,IF(AND(BR32>=3.5),4)))) -> 2 | BW28: Mid | BX28: Quarters | BY28: Dims in m | CB28: Number of sails | CC28: =IF(CC32<1.25,1,IF(AND(CC32>=1.25,CC32<=2.25),2,IF(AND(CC32>2.25,CC32<3.5),3,IF(AND(CC32>=3.5),4)))) -> 2
D29: Colour of fittings | E29: Stainless steel | G29: Colour of fittings | H29: Stainless steel | K29: Colour of fittings | L29: Stainless steel | AZ29: Horizontal | BA29: =(((BD15+(0.07/(B23/1000)))*0.13)+BD19) -> 0.07507739603 | BB29: =(BA29)*0.75 -> 0.05630804702 | BC29: =B25/IF(B23>B24,B23,B24) -> 0.4122641509 | BE29: Overlap | BF29: 0.5 | BK29: Horizontal | BL29: =(((BO15+(0.07/(B23/1000)))*0.13)+BO19) -> 0.07507739603 | BM29: =(BL29)*0.75 -> 0.05630804702 | BN29: =B25/IF(B23>B24,B23,B24) -> 0.4122641509 | BQ29: Overlap | BR29: 0.5 | BV29: Horizontal | BW29: =(((BZ15+(0.07/(B23/1000)))*0.13)+BZ19) -> 0.07507739603 | BX29: =(BW29)*0.75 -> 0.05630804702 | BY29: =B25/IF(B23>B24,B23,B24) -> 0.4122641509 | CB29: Overlap | CC29: 0
D30: Number of window vents | E30: 0 | G30: Number of window vents | H30: 0 | K30: Number of window vents | L30: 0 | AZ30: Vertical left | BA30: =((BD16+(0.07/(B23/1000)))*0.13)+BD19 -> 0.1366037736 | BB30: =BA30*0.75 -> 0.1024528302 | BC30: =B26/IF(B23>B24,B23,B24) -> 0.5660377358 | BE30: Triangles | BF30: No | BK30: Vertical left | BL30: =((BO16+(0.07/(B23/1000)))*0.13)+BO19 -> 0.0830808162 | BM30: =BL30*0.75 -> 0.06231061215 | BN30: =B26/IF(B23>B24,B23,B24) -> 0.5660377358 | BQ30: Triangles | BR30: No | BV30: Vertical left | BW30: =((BZ16+(0.07/(B23/1000)))*0.13)+BZ19 -> 0.07160377358 | BX30: =BW30*0.75 -> 0.05370283019 | BY30: =B26/IF(B23>B24,B23,B24) -> 0.5660377358 | CB30: Triangles | CC30: Yes
AZ31: Vertical mid | BA31: =((AVERAGE(BD17:BE17)+(0.07/(B23/1000)))*0.13)+BD19 -> 0.1366037736 | BB31: =BA31*0.75 -> 0.1024528302 | BC31: =B23/IF(B23>B24,B23,B24) -> 1 | BE31: Total additional fittings | BF31: =IF(BH32<1.25,0,2*E22) -> 2 | BK31: Vertical mid | BL31: =((AVERAGE(BO17:BP17)+(0.07/(B23/1000)))*0.13)+BO19 -> 0.0830808162 | BM31: =BL31*0.75 -> 0.06231061215 | BN31: =B23/IF(B23>B24,B23,B24) -> 1 | BQ31: Total additional fittings | BR31: =IF(BR32<1.25,2,) -> 0 | BV31: Vertical mid | BW31: =((AVERAGE(BZ17:CA17)+(0.07/(B23/1000)))*0.13)+BZ19 -> 0.07160377358 | BX31: =BW31*0.75 -> 0.05370283019 | BY31: =B23/IF(B23>B24,B23,B24) -> 1 | CB31: Total additional fittings | CC31: =IF(CC32<1.25,4,) -> 0
D32: Max length of a sail | E32: =(MAX(BA22:BC22))*1000 -> 2791.616915 | G32: Max length of a sail | H32: =(MAX(BL22:BN22))*1000 -> 2791.616915 | K32: Max length of a sail | L32: =(MAX(BW22:BY22))*1000 -> 2791.616915 | AZ32: Vertical right | BA32: =((BD18+(0.07/(B23/1000)))*0.13)+BD19 -> 0.1366037736 | BB32: =BA32*0.75 -> 0.1024528302 | BC32: =B24/IF(B23>B24,B23,B24) -> 0.5037735849 | BG32: Length/Width Ratio | BH32: =(B23/B24) -> 1.985018727 | BK32: Vertical right | BL32: =((BO18+(0.07/(B23/1000)))*0.13)+BO19 -> 0.0830808162 | BM32: =BL32*0.75 -> 0.06231061215 | BN32: =B24/IF(B23>B24,B23,B24) -> 0.5037735849 | BQ32: Length/Width Ratio | BR32: =(B23/B24) -> 1.985018727 | BV32: Vertical right | BW32: =((BZ18+(0.07/(B23/1000)))*0.13)+BZ19 -> 0.07160377358 | BX32: =BW32*0.75 -> 0.05370283019 | BY32: =B24/IF(B23>B24,B23,B24) -> 0.5037735849 | CB32: Length/Width Ratio | CC32: =(B23/B24) -> 1.985018727
D33: Max width of a sail | E33: =(MAX(BA23:BC23))*1000 -> 5300 | G33: Max width of a sail | H33: =(MAX(BL23:BN23))*1000 -> 3117.910199 | K33: Max width of a sail | L33: =(MAX(BW23:BY23))*1000 -> 2650
E34: Sails +2100mm in both directions require seams | H34: Sails +2100mm in both directions require seams | L34: Sails +2100mm in both directions require seams
BE35: Overlaps | BF35: Triangles
BE36: 0 | BF36: No
BE37: 0.5 | BF37: Yes
BE38: 1
A43: x | B43: y | C43: x | D43: y | E43: x | F43: y | I43: x | J43: y | K43: x | L43: y | M43: x | N43: y | O43: Roof plan | R43: x | S43: y | T43: x | U43: y | V43: x | W43: y | Z43: x | AA43: y | AB43: x | AC43: y | AD43: x | AE43: y | AF43: Roof plan | AI43: x | AJ43: y | AK43: x | AL43: y | AM43: x | AN43: y | AQ43: x | AR43: y | AS43: x | AT43: y | AU43: x | AV43: y | AW43: Roof plan
A44: Left sail | C44: Right sail | E44: Mid sail | I44: tri 1 | K44: tri 2 | M44: tri 3 | O44: x-axis | P44: y-axis | R44: Left sail | T44: Right sail | V44: Mid sail | Z44: tri 1 | AB44: tri 2 | AD44: tri 3 | AF44: x-axis | AG44: y-axis | AI44: Left sail | AK44: Right sail | AM44: Mid sail | AQ44: tri 1 | AS44: tri 2 | AU44: tri 3 | AW44: x-axis | AX44: y-axis
A45: =BD19 -> 0.006603773585 | B45: =BD19 -> 0.006603773585 | C45: =IF(E22=1,0,C49-BD18) -> 0 | D45: =IF(E22=1,0,BD19) -> 0 | E45: =IF(E22=1,0,IF(E22=2,0,IF(E22=3,(BC31/2)-(BD17/2),IF(E22=4,BB20-(BD17/2))))) -> 0 | F45: =IF(E22=1,0,IF(E22=2,0,BD19)) -> 0 | G45: =IF(E22=4,BD20-(BD17/2),0) -> 0 | H45: =IF(E22=4,BD19,0) -> 0 | I45: =IF(E24=BB13,IF(E22<>BD2,I47-(AZ27/2),),) -> 0 | J45: =IF(E24=BB13,IF(E22<>BD2,BD19,),) -> 0 | K45: =IF(E24=BB13,IF(OR(OR(E22=BD4,E22=BD5),E22=BD5),K47-(AZ27/2),),) -> 0 | L45: =IF(E24=BB13,IF(OR(E22=BD4,E22=BD5),BD19,),) -> 0 | M45: =IF($E$22=$BD$5,K45+0.25,) -> 0 | N45: =IF($E$22=$BD$5,L45,) -> 0 | O45: 0 | P45: 0 | R45: =BO19 -> 0.006603773585 | S45: =BO19 -> 0.006603773585 | T45: =IF(H22=1,0,T49-BO18) -> 0.4183188304 | U45: =IF(H22=1,0,BO19) -> 0.006603773585 | V45: =IF(H22=1,0,IF(H22=2,0,IF(H22=3,(BN31/2)-(BO17/2),IF(H22=4,BM20-(BO17/2))))) -> 0 | W45: =IF(H22=1,0,IF(H22=2,0,BO19)) -> 0 | X45: =IF(H22=4,BO20-(BO17/2),0) -> 0 | Y45: =IF(H22=4,BO19,0) -> 0 | Z45: =IF(H24=BM13,IF(H22<>BO2,Z47-(BK27/2),),) -> 0 | AA45: =IF(H24=BM13,IF(H22<>BO2,BO19,),) -> 0 | AB45: =IF(H24=BM13,IF(OR(H22=BO4,H22=BO5),AB47-(BK27/2),),) -> 0 | AC45: =IF(H24=BM13,IF(OR(H22=BO4,H22=BO5),BO19,),) -> 0 | AD45: =IF($H$22=4,AB45+0.25,) -> 0 | AE45: =IF($H$22=$BO$5,AC45,) -> 0 | AF45: 0 | AG45: 0 | AI45: =BZ19 -> 0.006603773585 | AJ45: =BZ19 -> 0.006603773585 | AK45: =IF(L22=1,0,AK49-BZ18) -> 0.5066037736 | AL45: =IF(L22=1,0,BZ19) -> 0.006603773585 | AM45: =IF(L22=1,0,IF(L22=2,0,IF(L22=3,(BY31/2)-(BZ17/2),IF(L22=4,BX20-(BZ17/2))))) -> 0 | AN45: =IF(L22=1,0,IF(L22=2,0,BZ19)) -> 0 | AO45: =IF(L22=4,BZ20-(BZ17/2),0) -> 0 | AP45: =IF(L22=4,BZ19,0) -> 0 | AQ45: =IF(L24=BX13,IF(L22<>BZ2,AQ47-(BV27/2),),) -> 0.2945949498 | AR45: =IF(L24=BX13,IF(L22<>BZ2,BZ19,),) -> 0.006603773585 | AS45: =IF(L24=BX13,IF(OR(L22=BZ4,L22=BZ5),AS47-(BV27/2),),) -> 0 | AT45: =IF(L24=BX13,IF(OR(L22=BZ4,L22=BZ5),BZ19,),) -> 0 | AU45: =IF($L$22=$BZ$5,AS45+0.25) -> FALSE | AV45: =AT45 -> 0 | AW45: 0 | AX45: 0
A46: =A45+(BD16/4) -> 0.2533018868 | B46: =IF(E25=BF37,BA30*0.5,BA30*0.75) -> 0.06830188679 | C46: =IF(E22=1,0,C45+(BD18/4)) -> 0 | D46: =IF(E22=1,0,D48) -> 0 | E46: =IF(E22=1,0,IF(E22=2,0,E45+(MAX(BD17:BE17)/4))) -> 0 | F46: =IF(E22=1,0,IF(E22=2,0,B46)) -> 0 | G46: =IF(E22=4,G45+(MAX(BD17:BE17)/4),0) -> 0 | H46: =IF(E22=4,B46,0) -> 0 | I46: =IF(E24=BB13,IF(E22<>BD2,I45+(AZ27/4),),) -> 0 | J46: =IF(E24=BB13,IF(E22<>BD2,BC27,),) -> 0 | K46: =IF(E24=BB13,IF(OR(E22=BD4,E22=BD5),K47-(AZ27/4),),) -> 0 | L46: =IF(E24=BB13,IF(OR(E22=BD4,E22=BD5),BC27,),) -> 0 | M46: =IF($E$22=$BD$5,K46+0.25,) -> 0 | N46: =IF($E$22=$BD$5,L46,) -> 0 | O46: =BC31 -> 1 | P46: 0 | R46: =R45+(BO16/4) -> 0.1503731226 | S46: =IF(H25=BF37,BL30*0.5,BL30*0.75) -> 0.06231061215 | T46: =IF(H22=1,0,T45+(BO18/4)) -> 0.5620881794 | U46: =IF(H22=1,0,U48) -> 0.06231061215 | V46: =IF(H22=1,0,IF(H22=2,0,V45+(MAX(BO17:BP17)/4))) -> 0 | W46: =IF(H22=1,0,IF(H22=2,0,S46)) -> 0 | X46: =IF(H22=4,X45+(MAX(BO17:BP17)/4),0) -> 0 | Y46: =IF(H22=4,S46,0) -> 0 | Z46: =IF(H24=BM13,IF(H22<>BO2,Z45+(BK27/4),),) -> 0 | AA46: =IF(H24=BM13,IF(H22<>BO2,BN27,),) -> 0 | AB46: =IF(H24=BM13,IF(OR(H22=BO4,H22=BO5),AB47-(BK27/4),),) -> 0 | AC46: =IF(H24=BM13,IF(OR(H22=BO4,H22=BO5),BN27,),) -> 0 | AD46: =IF($H$22=4,AB46+0.25,) -> 0 | AE46: =IF($H$22=$BO$5,AC46,) -> 0 | AF46: =BN31 -> 1 | AG46: 0 | AI46: =AI45+(BZ16/4) -> 0.1283018868 | AJ46: =IF(L25=BF37,BW30*0.5,BW30*0.75) -> 0.05370283019 | AK46: =IF(L22=1,0,AK45+(BZ18/4)) -> 0.6283018868 | AL46: =IF(L22=1,0,AL48) -> 0.05370283019 | AM46: =IF(L22=1,0,IF(L22=2,0,AM45+(MAX(BZ17:CA17)/4))) -> 0 | AN46: =IF(L22=1,0,IF(L22=2,0,AJ46)) -> 0 | AO46: =IF(L22=4,AO45+(MAX(BZ17:CA17)/4),0) -> 0 | AP46: =IF(L22=4,AJ46,0) -> 0 | AQ46: =IF(L24=BX13,IF(L22<>BZ2,AQ45+(BV27/4),),) -> 0.3972974749 | AR46: =IF(L24=BX13,IF(L22<>BZ2,BY27,),) -> 0.04005398479 | AS46: =IF(L24=BX13,IF(OR(L22=BZ4,L22=BZ5),AS47-(BV27/4),),) -> 0 | AT46: =IF(L24=BX13,IF(OR(L22=BZ4,L22=BZ5),BY27,),) -> 0 | AU46: =IF($L$22=$BZ$5,AS46+0.25) -> FALSE | AV46: =AT46 -> 0 | AW46: =BY31 -> 1 | AX46: 0
A47: =A49-(BD16/2) -> 0.5 | B47: =IF(E25=BF37,B45,BA30) -> 0.006603773585 | C47: =IF(E22=1,0,C49-BD19-(BD18/2)) -> 0 | D47: =IF(E22=1,0,B47) -> 0 | E47: =IF(E22=1,0,IF(E22=2,0,E49-((E49-E45)/2))) -> 0 | F47: =IF(E22=1,0,IF(E22=2,0,B47)) -> 0 | G47: =IF(E22=4,G49-((G49-G45)/2),0) -> 0 | H47: =IF(E22=4,B47,0) -> 0 | I47: =IF(E24=BB13,IF(E22=BD3,O46/2,IF(E22=BD4,O46/3,IF(E22=BD5,O46/4))),) -> 0 | J47: =IF(E24=BB13,IF(E22<>BD2,BB27,),) -> 0 | K47: =IF(E24=BB13,IF(E22=BD4,O47*(2/3),IF(E22=BD5,O47/2,)),) -> 0 | L47: =IF(E24=BB13,IF(OR(E22=BD4,E22=BD5),BB27,),) -> 0 | M47: 0 | N47: 0 | O47: =BC31 -> 1 | P47: =BC32 -> 0.5037735849 | R47: =R49-(BO16/2) -> 0.2941424716 | S47: =IF(H25=BF37,B45,BL30) -> 0.0830808162 | T47: =IF(H22=1,0,T49-BO19-(BO18/2)) -> 0.6992537548 | U47: =IF(H22=1,0,S47) -> 0.0830808162 | V47: =IF(H22=1,0,IF(H22=2,0,V49-((V49-V45)/2))) -> 0 | W47: =IF(H22=1,0,IF(H22=2,0,S47)) -> 0 | X47: =IF(H22=4,X49-((X49-X45)/2),0) -> 0 | Y47: =IF(H22=4,S47,0) -> 0 | Z47: =IF(H24=BM13,IF(H22=BO3,AF46/2,IF(H22=BO4,AF46/3,IF(H22=BO5,AF46/4))),) -> 0 | AA47: =IF(H24=BM13,IF(H22<>BO2,BM27,),) -> 0 | AB47: =IF(H24=BM13,IF(H22=BO4,AF47*(2/3),IF(H22=BO5,AF47/2,)),) -> 0 | AC47: =IF(H24=BM13,IF(OR(H22=BO4,H22=BO5),BM27,),) -> 0 | AD47: 0 | AE47: 0 | AF47: =BN31 -> 1 | AG47: =BN32 -> 0.5037735849 | AI47: =AI49-(BZ16/2) -> 0.25 | AJ47: =IF(L25=BF37,AJ45,BW30) -> 0.07160377358 | AK47: =IF(L22=1,0,AK49-BZ19-(BZ18/2)) -> 0.7433962264 | AL47: =IF(L22=1,0,AJ47) -> 0.07160377358 | AM47: =IF(L22=1,0,IF(L22=2,0,AM49-((AM49-AM45)/2))) -> 0 | AN47: =IF(L22=1,0,IF(L22=2,0,AJ47)) -> 0 | AO47: =IF(L22=4,AO49-((AO49-AO45)/2),0) -> 0 | AP47: =IF(L22=4,AJ47,0) -> 0 | AQ47: =IF(L24=BX13,IF(L22=BZ3,AW46/2,IF(L22=BZ4,AW46/3,IF(L22=BZ5,AW46/4))),) -> 0.5 | AR47: =IF(L24=BX13,IF(L22<>BZ2,BX27,),) -> 0.05340531305 | AS47: =IF(L24=BX13,IF(L22=BZ4,AW47*(2/3),IF(L22=BZ5,AW47/2)),) -> FALSE | AT47: =IF(L24=BX13,IF(OR(L22=BZ4,L22=BZ5),BX27,),) -> 0 | AU47: FALSE | AV47: =AT47 -> 0 | AW47: =BY31 -> 1 | AX47: =BY32 -> 0.5037735849
A48: =A49-(BD16/4) -> 0.7466981132 | B48: =B46 -> 0.06830188679 | C48: =C49-(BD18/4) -> -0.2466981132 | D48: =IF(E22=1,0,B48) -> 0 | E48: =IF(E22=1,0,IF(E22=2,0,E49-(MAX(BD17:BE17)/4))) -> 0 | F48: =F46 -> 0 | G48: =IF(E22=4,G49-(MAX(BD17:BE17)/4),0) -> 0 | H48: =IF(E22=4,B48,0) -> 0 | I48: =IF(E24=BB13,IF(E22<>BD2,I47+(AZ27/4),),) -> 0 | J48: =IF(E24=BB13,IF(E22<>BD2,BC27,),) -> 0 | K48: =IF(E24=BB13,IF(OR(E22=BD4,E22=BD5),K47+(AZ27/4),),) -> 0 | L48: =IF(E24=BB13,IF(OR(E22=BD4,E22=BD5),L46,),) -> 0 | M48: 0 | N48: 0 | O48: 0 | P48: =BC32 -> 0.5037735849 | R48: =R49-(BO16/4) -> 0.4379118206 | S48: =S46 -> 0.06231061215 | T48: =T49-(BO18/4) -> 0.8496268774 | U48: =IF(H22=1,0,S48) -> 0.06231061215 | V48: =IF(H22=1,0,IF(H22=2,0,V49-(MAX(BO17:BP17)/4))) -> 0 | W48: =IF(H22=BO4,S48,IF(H22=BO5,S48,)) -> 0 | X48: =IF(H22=4,X49-(MAX(BO17:BP17)/4),0) -> 0 | Y48: =IF(H22=4,S48,0) -> 0 | Z48: =IF(H24=BM13,IF(H22<>BO2,Z47+(BK27/4),),) -> 0 | AA48: =IF(H24=BM13,IF(H22<>BO2,BN27,),) -> 0 | AB48: =IF(H24=BM13,IF(OR(H22=BO4,H22=BO5),AB47+(BK27/4),),) -> 0 | AC48: =IF(H24=BM13,IF(OR(H22=BO4,H22=BO5),AC46,),) -> 0 | AD48: 0 | AE48: 0 | AF48: 0 | AG48: =BN32 -> 0.5037735849 | AI48: =AI49-(BZ16/4) -> 0.3716981132 | AJ48: =AJ46 -> 0.05370283019 | AK48: =AK49-(BZ18/4) -> 0.8716981132 | AL48: =IF(L22=1,0,AJ48) -> 0.05370283019 | AM48: =IF(L22=1,0,IF(L22=2,0,AM49-(MAX(BZ17:CA17)/4))) -> 0 | AN48: =IF(L22=BZ4,AJ48,IF(L22=BZ5,AJ48,)) -> 0 | AO48: =IF(L22=4,AO49-(MAX(BZ17:CA17)/4),0) -> 0 | AP48: =IF(L22=4,AJ48,0) -> 0 | AQ48: =IF(L24=BX13,IF(L22<>BZ2,AQ47+(BV27/4),),) -> 0.6027025251 | AR48: =IF(L24=BX13,IF(L22<>BZ2,BY27,),) -> 0.04005398479 | AS48: =IF(L24=BX13,IF(OR(L22=BZ4,L22=BZ5),AS47+(BV27/4),),) -> 0 | AT48: =IF(L24=BX13,IF(OR(L22=BZ4,L22=BZ5),AT46,),) -> 0 | AU48: FALSE | AV48: 0 | AW48: 0 | AX48: =BY32 -> 0.5037735849
A49: =A45+BD16 -> 0.9933962264 | B49: =BD19 -> 0.006603773585 | C49: =IF(E22=1,0,BC31-BD19) -> 0 | D49: =IF(E22=1,0,BD19) -> 0 | E49: =IF(E22=1,0,IF(E22=2,0,IF(E22=3,BC31/2+(BE17/2),IF(E22=4,BB20+(BE17/2))))) -> 0 | F49: =IF(E22=1,0,IF(E22=2,0,BD19)) -> 0 | G49: =IF(E22=4,BD20+(BE17/2),0) -> 0 | H49: =IF(E22=4,BD19,) -> 0 | I49: =IF(E24=BB13,IF(E22<>BD2,I47+(AZ27/2),),) -> 0 | J49: =IF(E24=BB13,IF(E22<>BD2,BD19,),) -> 0 | K49: =IF(E24=BB13,IF(OR(E22=BD4,E22=BD5),K47+(AZ27/2),),) -> 0 | L49: =IF(E24=BB13,IF(OR(E22=BD4,E22=BD5),L45,),) -> 0 | M49: 0 | N49: 0 | O49: 0 | P49: 0 | R49: =R45+BO16 -> 0.5816811696 | S49: =BO19 -> 0.006603773585 | T49: =IF(H22=1,0,BN31-BO19) -> 0.9933962264 | U49: =IF(H22=1,0,BO19) -> 0.006603773585 | V49: =IF(H22=1,0,IF(H22=2,0,IF(H22=3,BN31/2+(BP17/2),IF(H22=4,BM20+(BP17/2))))) -> 0 | W49: =IF(H22=1,0,IF(H22=2,0,BO19)) -> 0 | X49: =IF(H22=4,BO20+(BP17/2),0) -> 0 | Y49: =IF(H22=4,BO19,) -> 0 | Z49: =IF(H24=BM13,IF(H22<>BO2,Z47+(BK27/2),),) -> 0 | AA49: =IF(H24=BM13,IF(H22<>BO2,BO19,),) -> 0 | AB49: =IF(H24=BM13,IF(OR(H22=BO4,H22=BO5),AB47+(BK27/2),),) -> 0 | AC49: =IF(H24=BM13,IF(OR(H22=BO4,H22=BO5),AC45,),) -> 0 | AD49: 0 | AE49: 0 | AF49: 0 | AG49: 0 | AI49: =AI45+BZ16 -> 0.4933962264 | AJ49: =BZ19 -> 0.006603773585 | AK49: =IF(L22=1,0,BY31-BZ19) -> 0.9933962264 | AL49: =IF(L22=1,0,BZ19) -> 0.006603773585 | AM49: =IF(L22=1,0,IF(L22=2,0,IF(L22=3,BY31/2+(CA17/2),IF(L22=4,BX20+(CA17/2))))) -> 0 | AN49: =IF(L22=1,0,IF(L22=2,0,BZ19)) -> 0 | AO49: =IF(L22=4,BZ20+(CA17/2),0) -> 0 | AP49: =IF(L22=4,BZ19,) -> 0 | AQ49: =IF(L24=BX13,IF(L22<>BZ2,AQ47+(BV27/2),),) -> 0.7054050502 | AR49: =IF(L24=BX13,IF(L22<>BZ2,BZ19,),) -> 0.006603773585 | AS49: =IF(L24=BX13,IF(OR(L22=BZ4,L22=BZ5),AS47+(BV27/2),),) -> 0 | AT49: =IF(L24=BX13,IF(OR(L22=BZ4,L22=BZ5),AT45,),) -> 0 | AU49: FALSE | AV49: 0 | AW49: 0 | AX49: 0
A50: =A49-BB29 -> 0.9370881794 | B50: =BC32/4 -> 0.1259433962 | C50: =IF(E22=1,0,C49-BB29) -> 0 | D50: =IF(E22=1,0,B60) -> 0 | E50: =IF(E22=1,0,IF(E22=2,0,E49-BB29)) -> 0 | F50: =IF(E22=1,0,IF(E22=2,0,D50)) -> 0 | G50: =IF(E22=4,G49-BB29,0) -> 0 | H50: =IF(E22=4,D50,) -> 0 | I50: =IF(E24=BB13,IF(E22<>BD2,I49-((I49-I53)/1.8),),) -> 0 | J50: =IF(E24=BB13,IF(E22<>BD2,P47/4,),) -> 0 | K50: =IF(E24=BB13,IF(OR(E22=BD4,E22=BD5),K49-((K49-K53)/1.8),),) -> 0 | L50: =IF(E24=BB13,IF(OR(E22=BD4,E22=BD5),P47/4,),) -> 0 | M50: 0 | N50: 0 | R50: =R49-BM29 -> 0.5253731226 | S50: =BN32/4 -> 0.1259433962 | T50: =IF(H22=1,0,T49-BM29) -> 0.9370881794 | U50: =IF(H22=1,0,S60) -> 0.1259433962 | V50: =IF(H22=1,0,IF(H22=2,0,V49-BM29)) -> 0 | W50: =IF(H22=1,0,IF(H22=2,0,U50)) -> 0 | X50: =IF(H22=4,X49-BM29,0) -> 0 | Y50: =IF(H22=4,U50,) -> 0 | Z50: =IF(H24=BM13,IF(H22<>BO2,Z49-((Z49-Z53)/1.8),),) -> 0 | AA50: =IF(H24=BM13,IF(H22<>BO2,AG47/4,),) -> 0 | AB50: =IF(H24=BM13,IF(OR(H22=BO4,H22=BO5),AB49-((AB49-AB53)/1.8),),) -> 0 | AC50: =IF(H24=BM13,IF(OR(H22=BO4,H22=BO5),AG47/4,),) -> 0 | AD50: 0 | AE50: 0 | AI50: =AI49-BX29 -> 0.4370881794 | AJ50: =BY32/4 -> 0.1259433962 | AK50: =IF(L22=1,0,AK49-BX29) -> 0.9370881794 | AL50: =IF(L22=1,0,AJ60) -> 0.1259433962 | AM50: =IF(L22=1,0,IF(L22=2,0,AM49-BX29)) -> 0 | AN50: =IF(L22=1,0,IF(L22=2,0,AL50)) -> 0 | AO50: =IF(L22=4,AO49-BX29,0) -> 0 | AP50: =IF(L22=4,AL50,) -> 0 | AQ50: =IF(L24=BX13,IF(L22<>BZ2,AQ49-((AQ49-AQ53)/1.8),),) -> 0.5912911334 | AR50: =IF(L24=BX13,IF(L22<>BZ2,AX47/4,),) -> 0.1259433962 | AS50: =IF(L24=BX13,IF(OR(L22=BZ4,L22=BZ5),AS49-((AS49-AS53)/1.8),),) -> 0 | AT50: =IF(L24=BX13,IF(OR(L22=BZ4,L22=BZ5),AX47/4,),) -> 0 | AU50: FALSE | AV50: 0
A51: =A49-BA29 -> 0.9183188304 | B51: =BC32/2 -> 0.2518867925 | C51: =IF(E22=1,0,C49-BA29) -> 0 | D51: =IF(E22=1,0,B51) -> 0 | E51: =IF(E22=1,0,IF(E22=2,0,E49-BA29)) -> 0 | F51: =IF(E22=1,0,IF(E22=2,0,B51)) -> 0 | G51: =IF(E22=4,G49-BA29,0) -> 0 | H51: =IF(E22=4,B51,) -> 0 | I51: =IF(E24=BB13,IF(E22<>BD2,I49-((I49-I53)*0.85),),) -> 0 | J51: =IF(E24=BB13,IF(E22<>BD2,P47/2,),) -> 0 | K51: =IF(E24=BB13,IF(OR(E22=BD4,E22=BD5),K49-((K49-K53)*0.85),),) -> 0 | L51: =IF(E24=BB13,IF(OR(E22=BD4,E22=BD5),P47/2,),) -> 0 | M51: 0 | N51: 0 | R51: =R49-BL29 -> 0.5066037736 | S51: =BN32/2 -> 0.2518867925 | T51: =IF(H22=1,0,T49-BL29) -> 0.9183188304 | U51: =IF(H22=1,0,S51) -> 0.2518867925 | V51: =IF(H22=1,0,IF(H22=2,0,V49-BL29)) -> 0 | W51: =IF(H22=1,0,IF(H22=2,0,S51)) -> 0 | X51: =IF(H22=4,X49-BL29,0) -> 0 | Y51: =IF(H22=4,S51,) -> 0 | Z51: =IF(H24=BM13,IF(H22<>BO2,Z49-((Z49-Z53)*0.85),),) -> 0 | AA51: =IF(H24=BM13,IF(H22<>BO2,AG47/2,),) -> 0 | AB51: =IF(H24=BM13,IF(OR(H22=BO4,H22=BO5),AB49-((AB49-AB53)*0.85),),) -> 0 | AC51: =IF(H24=BM13,IF(OR(H22=BO4,H22=BO5),AG47/2,),) -> 0 | AD51: 0 | AE51: 0 | AI51: =AI49-BW29 -> 0.4183188304 | AJ51: =BY32/2 -> 0.2518867925 | AK51: =IF(L22=1,0,AK49-BW29) -> 0.9183188304 | AL51: =IF(L22=1,0,AJ51) -> 0.2518867925 | AM51: =IF(L22=1,0,IF(L22=2,0,AM49-BW29)) -> 0 | AN51: =IF(L22=1,0,IF(L22=2,0,AJ51)) -> 0 | AO51: =IF(L22=4,AO49-BW29,0) -> 0 | AP51: =IF(L22=4,AJ51,) -> 0 | AQ51: =IF(L24=BX13,IF(L22<>BZ2,AQ49-((AQ49-AQ53)*0.85),),) -> 0.5308107575 | AR51: =IF(L24=BX13,IF(L22<>BZ2,AX47/2,),) -> 0.2518867925 | AS51: =IF(L24=BX13,IF(OR(L22=BZ4,L22=BZ5),AS49-((AS49-AS53)*0.85),),) -> 0 | AT51: =IF(L24=BX13,IF(OR(L22=BZ4,L22=BZ5),AX47/2,),) -> 0 | AU51: FALSE | AV51: 0
A52: =A50 -> 0.9370881794 | B52: =(BC32*0.75) -> 0.3778301887 | C52: =C50 -> 0 | D52: =IF(E22=1,0,B58) -> 0 | E52: =E50 -> 0 | F52: =IF(E22=1,0,IF(E22=2,0,D52)) -> 0 | G52: =G50 -> 0 | H52: =IF(E22=4,D52,) -> 0 | I52: =IF(E24=BB13,IF(E22<>BD2,I53+((I49-I53)*0.05),),) -> 0 | J52: =IF(E24=BB13,IF(E22<>BD2,P47*0.75,),) -> 0 | K52: =IF(E24=BB13,IF(OR(E22=BD4,E22=BD5),K53+((K49-K53)*0.05),),) -> 0 | L52: =IF(E24=BB13,IF(OR(E22=BD4,E22=BD5),P47*0.75,),) -> 0 | M52: 0 | N52: 0 | R52: =R50 -> 0.5253731226 | S52: =(BN32*0.75) -> 0.3778301887 | T52: =T50 -> 0.9370881794 | U52: =IF(H22=1,0,S58) -> 0.3778301887 | V52: =V50 -> 0 | W52: =IF(H22=1,0,IF(H22=2,0,U52)) -> 0 | X52: =X50 -> 0 | Y52: =IF(H22=4,U52,) -> 0 | Z52: =IF(H24=BM13,IF(H22<>BO2,Z53+((Z49-Z53)*0.05),),) -> 0 | AA52: =IF(H24=BM13,IF(H22<>BO2,AG47*0.75,),) -> 0 | AB52: =IF(H24=BM13,IF(OR(H22=BO4,H22=BO5),AB53+((AB49-AB53)*0.05),),) -> 0 | AC52: =IF(H24=BM13,IF(OR(H22=BO4,H22=BO5),AG47*0.75,),) -> 0 | AD52: 0 | AE52: 0 | AI52: =AI50 -> 0.4370881794 | AJ52: =(BY32*0.75) -> 0.3778301887 | AK52: =AK50 -> 0.9370881794 | AL52: =IF(L22=1,0,AJ58) -> 0.3778301887 | AM52: =AM50 -> 0 | AN52: =IF(L22=1,0,IF(L22=2,0,AL52)) -> 0 | AO52: =AO50 -> 0 | AP52: =IF(L22=4,AL52,) -> 0 | AQ52: =IF(L24=BX13,IF(L22<>BZ2,AQ53+((AQ49-AQ53)*0.05),),) -> 0.5102702525 | AR52: =IF(L24=BX13,IF(L22<>BZ2,AX47*0.75,),) -> 0.3778301887 | AS52: =IF(L24=BX13,IF(OR(L22=BZ4,L22=BZ5),AS53+((AS49-AS53)*0.05),),) -> 0 | AT52: =IF(L24=BX13,IF(OR(L22=BZ4,L22=BZ5),AX47*0.75,),) -> 0 | AU52: FALSE | AV52: 0
A53: =A49 -> 0.9933962264 | B53: =BC32-BD19 -> 0.4971698113 | C53: =IF(E22=1,0,C49) -> 0 | D53: =IF(E22=1,0,BC32-BD19) -> 0 | E53: =IF(E22=1,0,IF(E22=2,0,E49)) -> 0 | F53: =IF(E22=1,0,IF(E22=2,0,D57)) -> 0 | G53: =IF(E22=4,G49,0) -> 0 | H53: =IF(E22=4,D57,) -> 0 | I53: =IF(E24=BB13,IF(E22<>BD2,I47,),) -> 0 | J53: =IF(E24=BB13,IF(E22<>BD2,P48-BD19,),) -> 0 | K53: =IF(E24=BB13,IF(OR(E22=BD4,E22=BD5),K47,),) -> 0 | L53: =IF(E24=BB13,IF(OR(E22=BD4,E22=BD5),P48-BD19,),) -> 0 | M53: 0 | N53: 0 | R53: =R49 -> 0.5816811696 | S53: =BN32-BO19 -> 0.4971698113 | T53: =IF(H22=1,0,T49) -> 0.9933962264 | U53: =IF(H22=1,0,BN32-BO19) -> 0.4971698113 | V53: =IF(H22=1,0,IF(H22=2,0,V49)) -> 0 | W53: =IF(H22=1,0,IF(H22=2,0,U57)) -> 0 | X53: =IF(H22=4,X49,0) -> 0 | Y53: =IF(H22=4,U57,) -> 0 | Z53: =IF(H24=BM13,IF(H22<>BO2,Z47,),) -> 0 | AA53: =IF(H24=BM13,IF(H22<>BO2,AG48-BO19,),) -> 0 | AB53: =IF(H24=BM13,IF(OR(H22=BO4,H22=BO5),AB47,),) -> 0 | AC53: =IF(H24=BM13,IF(OR(H22=BO4,H22=BO5),AG48-BO19,),) -> 0 | AD53: 0 | AE53: 0 | AI53: =AI49 -> 0.4933962264 | AJ53: =BY32-BZ19 -> 0.4971698113 | AK53: =IF(L22=1,0,AK49) -> 0.9933962264 | AL53: =IF(L22=1,0,BY32-BZ19) -> 0.4971698113 | AM53: =IF(L22=1,0,IF(L22=2,0,AM49)) -> 0 | AN53: =IF(L22=1,0,IF(L22=2,0,AL57)) -> 0 | AO53: =IF(L22=4,AO49,0) -> 0 | AP53: =IF(L22=4,AL57,) -> 0 | AQ53: =IF(L24=BX13,IF(L22<>BZ2,AQ47,),) -> 0.5 | AR53: =IF(L24=BX13,IF(L22<>BZ2,AX48-BZ19,),) -> 0.4971698113 | AS53: =IF(L24=BX13,IF(OR(L22=BZ4,L22=BZ5),AS47,),) -> 0 | AT53: =IF(L24=BX13,IF(OR(L22=BZ4,L22=BZ5),AX48-BZ19,),) -> 0 | AU53: FALSE | AV53: 0
A54: =A48 -> 0.7466981132 | B54: =BC32-B46 -> 0.4354716981 | C54: =C48 -> -0.2466981132 | D54: =IF(E22=1,0,BC32-D46) -> 0 | E54: =E48 -> 0 | F54: =IF(E22=1,0,IF(E22=2,0,B54)) -> 0 | G54: =G48 -> 0 | H54: =IF(E22=4,B54,) -> 0 | I54: =IF(E24=BB13,IF(E22<>BD2,I53-((I53-I57)*0.05),),) -> 0 | J54: =IF(E24=BB13,IF(E22<>BD2,J52,),) -> 0 | K54: =IF(E24=BB13,IF(OR(E22=BD4,E22=BD5),K53-((K53-K57)*0.05),),) -> 0 | L54: =IF(E24=BB13,IF(OR(E22=BD4,E22=BD5),L52,),) -> 0 | M54: 0 | N54: 0 | R54: =R48 -> 0.4379118206 | S54: =BN32-S46 -> 0.4414629728 | T54: =T48 -> 0.8496268774 | U54: =IF(H22=1,0,S54) -> 0.4414629728 | V54: =V48 -> 0 | W54: =IF(H22=1,0,IF(H22=2,0,S54)) -> 0 | X54: =X48 -> 0 | Y54: =IF(H22=4,S54,) -> 0 | Z54: =IF(H24=BM13,IF(H22<>BO2,Z53-((Z53-Z57)*0.05),),) -> 0 | AA54: =IF(H24=BM13,IF(H22<>BO2,AA52,),) -> 0 | AB54: =IF(H24=BM13,IF(OR(H22=BO4,H22=BO5),AB53-((AB53-AB57)*0.05),),) -> 0 | AC54: =IF(H24=BM13,IF(OR(H22=BO4,H22=BO5),AC52,),) -> 0 | AD54: 0 | AE54: 0 | AI54: =AI48 -> 0.3716981132 | AJ54: =BY32-AJ46 -> 0.4500707547 | AK54: =AK48 -> 0.8716981132 | AL54: =IF(L22=1,0,AJ54) -> 0.4500707547 | AM54: =AM48 -> 0 | AN54: =IF(L22=1,0,IF(L22=2,0,AJ54)) -> 0 | AO54: =AO48 -> 0 | AP54: =IF(L22=4,AJ54,) -> 0 | AQ54: =IF(L24=BX13,IF(L22<>BZ2,AQ53-((AQ53-AQ57)*0.05),),) -> 0.4897297475 | AR54: =IF(L24=BX13,IF(L22<>BZ2,AR52,),) -> 0.3778301887 | AS54: =IF(L24=BX13,IF(OR(L22=BZ4,L22=BZ5),AS53-((AS53-AS57)*0.05),),) -> 0 | AT54: =IF(L24=BX13,IF(OR(L22=BZ4,L22=BZ5),AT52,),) -> 0 | AU54: FALSE | AV54: 0
A55: =A47 -> 0.5 | B55: =BC32-B47 -> 0.4971698113 | C55: =IF(E22=1,0,C47) -> 0 | D55: =IF(E22=1,0,BC32-D47) -> 0 | E55: =IF(E22=1,0,IF(E22=2,0,E47)) -> 0 | F55: =IF(E22=1,0,IF(E22=2,0,D55)) -> 0 | G55: =IF(E22=4,G47,0) -> 0 | H55: =IF(E22=4,B55,) -> 0 | I55: =IF(E24=BB13,IF(E22<>BD2,I57+((I53-I57)*0.85),),) -> 0 | J55: =IF(E24=BB13,IF(E22<>BD2,J51,),) -> 0 | K55: =IF(E24=BB13,IF(OR(E22=BD4,E22=BD5),K57+((K53-K57)*0.85),),) -> 0 | L55: =IF(E24=BB13,IF(OR(E22=BD4,E22=BD5),L51,),) -> 0 | M55: 0 | N55: 0 | R55: =R47 -> 0.2941424716 | S55: =BN32-S47 -> 0.4206927687 | T55: =IF(H22=1,0,T47) -> 0.6992537548 | U55: =IF(H22=1,0,S55) -> 0.4206927687 | V55: =IF(H22=1,0,IF(H22=2,0,V47)) -> 0 | W55: =IF(H22=1,0,IF(H22=2,0,S55)) -> 0 | X55: =IF(H22=4,X47,0) -> 0 | Y55: =IF(H22=4,S55,) -> 0 | Z55: =IF(H24=BM13,IF(H22<>BO2,Z57+((Z53-Z57)*0.85),),) -> 0 | AA55: =IF(H24=BM13,IF(H22<>BO2,AA51,),) -> 0 | AB55: =IF(H24=BM13,IF(OR(H22=BO4,H22=BO5),AB57+((AB53-AB57)*0.85),),) -> 0 | AC55: =IF(H24=BM13,IF(OR(H22=BO4,H22=BO5),AC51,),) -> 0 | AD55: 0 | AE55: 0 | AI55: =AI47 -> 0.25 | AJ55: =BY32-AJ47 -> 0.4321698113 | AK55: =IF(L22=1,0,AK47) -> 0.7433962264 | AL55: =IF(L22=1,0,AJ55) -> 0.4321698113 | AM55: =IF(L22=1,0,IF(L22=2,0,AM47)) -> 0 | AN55: =IF(L22=1,0,IF(L22=2,0,AJ55)) -> 0 | AO55: =IF(L22=4,AO47,0) -> 0 | AP55: =IF(L22=4,AJ55,) -> 0 | AQ55: =IF(L24=BX13,IF(L22<>BZ2,AQ57+((AQ53-AQ57)*0.85),),) -> 0.4691892425 | AR55: =IF(L24=BX13,IF(L22<>BZ2,AR51,),) -> 0.2518867925 | AS55: =IF(L24=BX13,IF(OR(L22=BZ4,L22=BZ5),AS57+((AS53-AS57)*0.85),),) -> 0 | AT55: =IF(L24=BX13,IF(OR(L22=BZ4,L22=BZ5),AT51,),) -> 0 | AU55: FALSE | AV55: 0
A56: =A46 -> 0.2533018868 | B56: =B54 -> 0.4354716981 | C56: =C46 -> 0 | D56: =IF(E22=1,0,D54) -> 0 | E56: =E46 -> 0 | F56: =F54 -> 0 | G56: =G46 -> 0 | H56: =H54 -> 0 | I56: =IF(E24=BB13,IF(E22<>BD2,I57+((I53-I57)/1.8),),) -> 0 | J56: =IF(E24=BB13,IF(E22<>BD2,J50,),) -> 0 | K56: =IF(E24=BB13,IF(OR(E22=BD4,E22=BD5),K57+((K53-K57)/1.8),),) -> 0 | L56: =IF(E24=BB13,IF(OR(E22=BD4,E22=BD5),L50,),) -> 0 | M56: 0 | N56: 0 | R56: =R46 -> 0.1503731226 | S56: =S54 -> 0.4414629728 | T56: =T46 -> 0.5620881794 | U56: =IF(H22=1,0,U54) -> 0.4414629728 | V56: =V46 -> 0 | W56: =W54 -> 0 | X56: =X46 -> 0 | Y56: =Y54 -> 0 | Z56: =IF(H24=BM13,IF(H22<>BO2,Z57+((Z53-Z57)/1.8),),) -> 0 | AA56: =IF(H24=BM13,IF(H22<>BO2,AA50,),) -> 0 | AB56: =IF(H24=BM13,IF(OR(H22=BO4,H22=BO5),AB57+((AB53-AB57)/1.8),),) -> 0 | AC56: =IF(H24=BM13,IF(OR(H22=BO4,H22=BO5),AC50,),) -> 0 | AD56: 0 | AE56: 0 | AI56: =AI46 -> 0.1283018868 | AJ56: =AJ54 -> 0.4500707547 | AK56: =AK46 -> 0.6283018868 | AL56: =IF(L22=1,0,AL54) -> 0.4500707547 | AM56: =AM46 -> 0 | AN56: =AN54 -> 0 | AO56: =AO46 -> 0 | AP56: =AP54 -> 0 | AQ56: =IF(L24=BX13,IF(L22<>BZ2,AQ57+((AQ53-AQ57)/1.8),),) -> 0.4087088666 | AR56: =IF(L24=BX13,IF(L22<>BZ2,AR50,),) -> 0.1259433962 | AS56: =IF(L24=BX13,IF(OR(L22=BZ4,L22=BZ5),AS57+((AS53-AS57)/1.8),),) -> 0 | AT56: =IF(L24=BX13,IF(OR(L22=BZ4,L22=BZ5),AT50,),) -> 0 | AU56: FALSE | AV56: 0
A57: =A45 -> 0.006603773585 | B57: =B53 -> 0.4971698113 | C57: =IF(E22=1,0,C45) -> 0 | D57: =IF(E22=1,0,D53) -> 0 | E57: =IF(E22=1,0,IF(E22=2,0,E45)) -> 0 | F57: =IF(E22=1,0,IF(E22=2,0,F53)) -> 0 | G57: =IF(E22=4,G45,0) -> 0 | H57: =IF(E22=4,H53,) -> 0 | I57: =IF(E24=BB13,IF(E22<>BD2,I45,),) -> 0 | J57: =IF(E24=BB13,IF(E22<>BD2,J45,),) -> 0 | K57: =IF(E24=BB13,IF(OR(E22=BD4,E22=BD5),K45,),) -> 0 | L57: =IF(E24=BB13,IF(OR(E22=BD4,E22=BD5),L45,),) -> 0 | M57: 0 | N57: 0 | R57: =R45 -> 0.006603773585 | S57: =S53 -> 0.4971698113 | T57: =IF(H22=1,0,T45) -> 0.4183188304 | U57: =IF(H22=1,0,U53) -> 0.4971698113 | V57: =IF(H22=1,0,IF(H22=2,0,V45)) -> 0 | W57: =IF(H22=1,0,IF(H22=2,0,W53)) -> 0 | X57: =IF(H22=4,X45,0) -> 0 | Y57: =IF(H22=4,Y53,) -> 0 | Z57: =IF(H24=BM13,IF(H22<>BO2,Z45,),) -> 0 | AA57: =IF(H24=BM13,IF(H22<>BO2,AA45,),) -> 0 | AB57: =IF(H24=BM13,IF(OR(H22=BO4,H22=BO5),AB45,),) -> 0 | AC57: =IF(H24=BM13,IF(OR(H22=BO4,H22=BO5),AC45,),) -> 0 | AD57: 0 | AE57: 0 | AI57: =AI45 -> 0.006603773585 | AJ57: =AJ53 -> 0.4971698113 | AK57: =IF(L22=1,0,AK45) -> 0.5066037736 | AL57: =IF(L22=1,0,AL53) -> 0.4971698113 | AM57: =IF(L22=1,0,IF(L22=2,0,AM45)) -> 0 | AN57: =IF(L22=1,0,IF(L22=2,0,AN53)) -> 0 | AO57: =IF(L22=4,AO45,0) -> 0 | AP57: =IF(L22=4,AP53,) -> 0 | AQ57: =IF(L24=BX13,IF(L22<>BZ2,AQ45,),) -> 0.2945949498 | AR57: =IF(L24=BX13,IF(L22<>BZ2,AR45,),) -> 0.006603773585 | AS57: =IF(L24=BX13,IF(OR(L22=BZ4,L22=BZ5),AS45,),) -> 0 | AT57: =IF(L24=BX13,IF(OR(L22=BZ4,L22=BZ5),AT45,),) -> 0 | AU57: FALSE | AV57: 0
A58: =A45+BB29 -> 0.06291182061 | B58: =B52 -> 0.3778301887 | C58: =IF(E22=1,0,C45+BB29) -> 0 | D58: =D52 -> 0 | E58: =IF(E22=1,0,IF(E22=2,0,E45+BB29)) -> 0 | F58: =F52 -> 0 | G58: =IF(E22=4,G45+BB29,0) -> 0 | H58: =H52 -> 0 | R58: =R45+BM29 -> 0.06291182061 | S58: =S52 -> 0.3778301887 | T58: =IF(H22=1,0,T45+BM29) -> 0.4746268774 | U58: =U52 -> 0.3778301887 | V58: =IF(H22=1,0,IF(H22=2,0,V45+BM29)) -> 0 | W58: =W52 -> 0 | X58: =IF(H22=4,X45+BM29,0) -> 0 | Y58: =Y52 -> 0 | AI58: =AI45+BX29 -> 0.06291182061 | AJ58: =AJ52 -> 0.3778301887 | AK58: =IF(L22=1,0,AK45+BX29) -> 0.5629118206 | AL58: =AL52 -> 0.3778301887 | AM58: =IF(L22=1,0,IF(L22=2,0,AM45+BX29)) -> 0 | AN58: =AN52 -> 0 | AO58: =IF(L22=4,AO45+BX29,0) -> 0 | AP58: =AP52 -> 0
A59: =A45+BA29 -> 0.08168116961 | B59: =B51 -> 0.2518867925 | C59: =IF(E22=1,0,C45+BA29) -> 0 | D59: =IF(E22=1,0,D51) -> 0 | E59: =IF(E22=1,0,IF(E22=2,0,E45+BA29)) -> 0 | F59: =IF(E22=1,0,IF(E22=2,0,B51)) -> 0 | G59: =IF(E22=4,G45+BA29,0) -> 0 | H59: =IF(E22=4,B51,) -> 0 | R59: =R45+BL29 -> 0.08168116961 | S59: =S51 -> 0.2518867925 | T59: =IF(H22=1,0,T45+BL29) -> 0.4933962264 | U59: =IF(H22=1,0,U51) -> 0.2518867925 | V59: =IF(H22=1,0,IF(H22=2,0,V45+BL29)) -> 0 | W59: =IF(H22=1,0,IF(H22=2,0,S51)) -> 0 | X59: =IF(H22=4,X45+BL29,0) -> 0 | Y59: =IF(H22=4,S51,) -> 0 | AI59: =AI45+BW29 -> 0.08168116961 | AJ59: =AJ51 -> 0.2518867925 | AK59: =IF(L22=1,0,AK45+BW29) -> 0.5816811696 | AL59: =IF(L22=1,0,AL51) -> 0.2518867925 | AM59: =IF(L22=1,0,IF(L22=2,0,AM45+BW29)) -> 0 | AN59: =IF(L22=1,0,IF(L22=2,0,AJ51)) -> 0 | AO59: =IF(L22=4,AO45+BW29,0) -> 0 | AP59: =IF(L22=4,AJ51,) -> 0
A60: =A58 -> 0.06291182061 | B60: =B50 -> 0.1259433962 | C60: =C58 -> 0 | D60: =D50 -> 0 | E60: =E58 -> 0 | F60: =F50 -> 0 | G60: =G58 -> 0 | H60: =H50 -> 0 | R60: =R58 -> 0.06291182061 | S60: =S50 -> 0.1259433962 | T60: =T58 -> 0.4746268774 | U60: =U50 -> 0.1259433962 | V60: =V58 -> 0 | W60: =W50 -> 0 | X60: =X58 -> 0 | Y60: =Y50 -> 0 | AI60: =AI58 -> 0.06291182061 | AJ60: =AJ50 -> 0.1259433962 | AK60: =AK58 -> 0.5629118206 | AL60: =AL50 -> 0.1259433962 | AM60: =AM58 -> 0 | AN60: =AN50 -> 0 | AO60: =AO58 -> 0 | AP60: =AP50 -> 0
A61: =A45 -> 0.006603773585 | B61: =BD19 -> 0.006603773585 | C61: =IF(E22=1,0,C57) -> 0 | D61: =IF(E22=1,0,BD19) -> 0 | E61: =IF(E22=1,0,IF(E22=2,0,E57)) -> 0 | F61: =IF(E22=1,0,IF(E22=2,0,BD19)) -> 0 | G61: =IF(E22=4,G57,0) -> 0 | H61: =IF(E22=4,BD19,) -> 0 | R61: =R45 -> 0.006603773585 | S61: =BO19 -> 0.006603773585 | T61: =IF(H22=1,0,T57) -> 0.4183188304 | U61: =IF(H22=1,0,BO19) -> 0.006603773585 | V61: =IF(H22=1,0,IF(H22=2,0,V57)) -> 0 | W61: =IF(H22=1,0,IF(H22=2,0,BO19)) -> 0 | X61: =IF(H22=4,X57,0) -> 0 | Y61: =IF(H22=4,BO19,) -> 0 | AI61: =AI45 -> 0.006603773585 | AJ61: =BZ19 -> 0.006603773585 | AK61: =IF(L22=1,0,AK57) -> 0.5066037736 | AL61: =IF(L22=1,0,BZ19) -> 0.006603773585 | AM61: =IF(L22=1,0,IF(L22=2,0,AM57)) -> 0 | AN61: =IF(L22=1,0,IF(L22=2,0,BZ19)) -> 0 | AO61: =IF(L22=4,AO57,0) -> 0 | AP61: =IF(L22=4,BZ19,) -> 0

Sheet Lean To Hipped
BH1: Main Material | BI1: =IF(OR(E28=BN2,E28=BN3,E28=BN4,E28=BN5,E28=BN6),' '!B6,IF(OR(E28=BN7,E28=BN8,E28=BN9,E28=BN10,E28=BN11,E28=BN12,E28=BN13,E28=BN14,E28=BN15),' '!B7,IF(OR(E28=BN16,E28=BN17,E28=BN18,E28=BN19,E28=BN20),' '!B8,))) -> 4.54 | BJ1: Material cost | BK1: =' '!$B$10 -> 13.25 | BL1: Sails | BN1: Fabric Colour | BP1: Fittings Colours | BS1: Main Material | BT1: =IF(OR(I28=BY2,I28=BY3,I28=BY4,I28=BY5,I28=BY6),' '!B6,IF(OR(I28=BY7,I28=BY8,I28=BY9,I28=BY10,I28=BY11,I28=BY12,I28=BY13,I28=BY14,I28=BY15),' '!B7,IF(OR(I28=BY16,I28=BY17,I28=BY18,I28=BY19,I28=BY20),' '!B8,))) -> 4.54 | BU1: Material cost | BV1: =' '!$B$10 -> 13.25 | BW1: Sails | BY1: Fabric Colour | CA1: Fittings Colours | CD1: Main Material | CE1: =IF(OR(L28=CJ2,L28=CJ3,L28=CJ4,L28=CJ5,L28=CJ6),' '!B6,IF(OR(L28=CJ7,L28=CJ8,L28=CJ9,L28=CJ10,L28=CJ11,L28=CJ12,L28=CJ13,L28=CJ14,L28=CJ15),' '!B7,IF(OR(L28=CJ16,L28=CJ17,L28=CJ18,L28=CJ19,L28=CJ20),' '!B8,))) -> 4.54 | CF1: Material cost | CG1: =' '!$B$10 -> 13.25 | CH1: Sails | CJ1: Fabric Colour | CL1: Fittings Colours
BH2: Tri Material | BI2: =IF(OR(E29=BN2,E29=BN3,E29=BN4,E29=BN5,E29=BN6),' '!B6,IF(OR(E29=BN7,E29=BN8,E29=BN9,E29=BN10,E29=BN11,E29=BN12,E29=BN13,E29=BN14,E29=BN15),' '!B7,IF(OR(E29=BN16,E29=BN17,E29=BN18,E29=BN19,E29=BN20),' '!B8,))) -> 4.54 | BJ2: PE | BK2: =' '!$B$11 -> 3 | BL2: 1 | BN2: ISX Solid | BP2: Stainless steel | BS2: Tri Material | BT2: =IF(OR(I29=BY2,I29=BY3,I29=BY4,I29=BY5,I29=BY6),' '!B6,IF(OR(I29=BY7,I29=BY8,I29=BY9,I29=BY10,I29=BY11,I29=BY12,I29=BY13,I29=BY14,I29=BY15),' '!B7,IF(OR(I29=BY16,I29=BY17,I29=BY18,I29=BY19,I29=BY20),' '!B8,))) -> 4.54 | BU2: PE | BV2: =' '!$B$11 -> 3 | BW2: 1 | BY2: ISX Solid | CA2: Stainless steel | CD2: Tri Material | CE2: =IF(OR(L29=CJ2,L29=CJ3,L29=CJ4,L29=CJ5,L29=CJ6),' '!B6,IF(OR(L29=CJ7,L29=CJ8,L29=CJ9,L29=CJ10,L29=CJ11,L29=CJ12,L29=CJ13,L29=CJ14,L29=CJ15),' '!B7,IF(OR(L29=CJ16,L29=CJ17,L29=CJ18,L29=CJ19,L29=CJ20),' '!B8,))) -> 4.54 | CF2: PE | CG2: =' '!$B$11 -> 3 | CH2: 1 | CJ2: ISX Solid | CL2: Stainless steel
BJ3: PN | BK3: =IF(BL8=4,' '!$B$19,' '!$B$20) -> 4.75 | BL3: 2 | BN3: ISX White | BP3: White | BU3: PN | BV3: =IF(BW8=4,' '!$B$19,' '!$B$20) -> 4.25 | BW3: 2 | BY3: ISX White | CA3: White | CF3: PN | CG3: =IF(CH8=4,' '!$B$19,' '!$B$20) -> 4.25 | CH3: 2 | CJ3: ISX White | CL3: White
BL4: 3 | BN4: ISX Solid Ivory | BP4: Gold | BW4: 3 | BY4: ISX Solid Ivory | CA4: Gold | CH4: 3 | CJ4: ISX Solid Ivory | CL4: Gold
B5: =' '!A46 -> v2023.2 | BJ5: No. of vents | BL5: 4 | BN5: ISX Solid Oyster | BP5: Cost | BQ5: =IF(E30=BP2, ' '!B24, ' '!B25) -> 7 | BU5: No. of vents | BW5: 4 | BY5: ISX Solid Oyster | CA5: Cost | CB5: =IF(I30=BP2, ' '!B24, ' '!B25) -> 7 | CF5: No. of vents | CH5: 4 | CJ5: ISX Solid Oyster | CL5: Cost | CM5: =IF(L30=BP2, ' '!B24, ' '!B25) -> 7
BH6: Shape | BI6: =' '!B14 -> 1 | BJ6: 0 | BN6: ISX Solid Stone | BU6: 0 | BY6: ISX Solid Stone | CF6: 0 | CJ6: ISX Solid Stone
BH7: Triangle | BI7: =' '!B15 -> 0.75 | BJ7: 1 | BN7: ISX Duplex | BU7: 1 | BY7: ISX Duplex | CF7: 1 | CJ7: ISX Duplex
BJ8: 2 | BK8: No. of corners | BL8: =IF(E24=BO37,6,4) -> 6 | BN8: ISX Duplex Ocean | BU8: 2 | BV8: No. of corners | BW8: =IF(I24=BO37,6,4) -> 4 | BY8: ISX Duplex Ocean | CF8: 2 | CG8: No. of corners | CH8: =IF(L24=BO37,6,4) -> 4 | CJ8: ISX Duplex Ocean
BJ9: 3 | BN9: ISX Duplex Stone | BU9: 3 | BY9: ISX Duplex Stone | CF9: 3 | CJ9: ISX Duplex Stone
BH10: Overlap left | BI10: =IF(E22=BH11,BI11,IF(E22=BH12,BI12,IF(E22=BH13,BI13))) ->  | BJ10: 4 | BK10: Curve allowance | BL10: 0.5 | BN10: ISX Duplex Slate | BS10: Overlap left | BT10: =IF(I22=BS11,BT11,IF(I22=BS12,BT12,IF(I22=BS13,BT13))) ->  | BU10: 4 | BV10: Curve allowance | BW10: 0.5 | BY10: ISX Duplex Slate | CD10: Overlap left | CE10: =IF(L22=CD11,CE11,IF(L22=CD12,CE12,IF(L22=CD13,CE13))) -> 0 | CF10: 4 | CG10: Curve allowance | CH10: 0.5 | CJ10: ISX Duplex Slate
BH11: 0 | BI11: 0 | BJ11: Triangles | BK11: Roof area | BL11: =BL14*BK31 ->  | BN11: ISX Duplex Graphite | BS11: 0 | BT11: 0 | BU11: Triangles | BV11: Roof area | BW11: =BW14*BV31 ->  | BY11: ISX Duplex Graphite | CD11: 0 | CE11: 0 | CF11: Triangles | CG11: Roof area | CH11: =CH14*CG31 ->  | CJ11: ISX Duplex Graphite
BH12: 0.5 | BI12: =IF(E21=1,0,IF(E21=2,(BI29*0.5)+BL19,IF(E21=3,(BI29*0.75)+BL19,IF(E21=4,(BI29*0.75)+BL19)))) ->  | BJ12: No | BK12: Area of each sail | BL12: =BL11/E21 ->  | BN12: ISXFR Solid | BS12: 0.5 | BT12: =IF(I21=1,0,IF(I21=2,(BT29*0.5)+BW19,IF(I21=3,(BT29*0.75)+BW19,IF(I21=4,(BT29*0.75)+BW19)))) ->  | BU12: No | BV12: Area of each sail | BW12: =BW11/I21 ->  | BY12: ISXFR Solid | CD12: 0.5 | CE12: =IF(L21=1,0,IF(L21=2,(CE29*0.5)+CH19,IF(L21=3,(CE29*0.75)+CH19,IF(L21=4,(CE29*0.75)+CH19)))) ->  | CF12: No | CG12: Area of each sail | CH12: =CH11/L21 ->  | CJ12: ISXFR Solid
BH13: 1 | BI13: =IF(E21=1,0,IF(E21=2,BI29+(BL19*2),IF(E21=3,(BI29*1.34)+BL19,IF(E21=4,(BI29*1.67)+BL19)))) ->  | BJ13: Yes | BK13: Sail perimeter | BL13: =((BL15+0.07)*2)+((BL16+0.07)*2) ->  | BN13: ISXFR White | BS13: 1 | BT13: =IF(I21=1,0,IF(I21=2,BT29+(BW19*2),IF(I21=3,(BT29*1.34)+BW19,IF(I21=4,(BT29*1.67)+BW19)))) ->  | BU13: Yes | BV13: Sail perimeter | BW13: =((BW15+0.07)*2)+((BW16+0.07)*2) ->  | BY13: ISXFR White | CD13: 1 | CE13: =IF(L21=1,0,IF(L21=2,CE29+(CH19*2),IF(L21=3,(CE29*1.34)+CH19,IF(L21=4,(CE29*1.67)+CH19)))) ->  | CF13: Yes | CG13: Sail perimeter | CH13: =((CH15+0.07)*2)+((CH16+0.07)*2) ->  | CJ13: ISXFR White
BH14: Overlap right | BI14: =BI10 ->  | BJ14: Warnings | BK14: Glazing bar length | BL14: =SQRT((BK30-BK29)^2+BK32^2) ->  | BN14: ISXFR Solid Ivory | BS14: Overlap right | BT14: =BT10 ->  | BU14: Warnings | BV14: Glazing bar length | BW14: =SQRT((BV30-BV29)^2+BV32^2) ->  | BY14: ISXFR Solid Ivory | CD14: Overlap right | CE14: =CE10 -> 0 | CF14: Warnings | CG14: Glazing bar length | CH14: =SQRT((CG30-CG29)^2+CG32^2) ->  | CJ14: ISXFR Solid Ivory
BH15: Warning 1 | BI15: Warning: Sail too narrow, increase no. of sails, add additional fitting points or reduce gap size | BJ15: =MAX(BI22:BK22) ->  | BK15: Length of sail | BL15: =BL14-(0.07/(IF(B23>B24,B23,B24)/1000)) ->  | BN15: ISXFR Solid Oyster | BS15: Warning 1 | BT15: Warning: Sail too narrow, increase no. of sails, add additional fitting points or reduce gap size | BU15: =MAX(BT22:BV22) ->  | BV15: Length of sail | BW15: =BW14-(0.07/(IF(B23>B24,B23,B24)/1000)) ->  | BY15: ISXFR Solid Oyster | CD15: Warning 1 | CE15: Warning: Sail too narrow, increase no. of sails, add additional fitting points or reduce gap size | CF15: =MAX(CE22:CG22) ->  | CG15: Length of sail | CH15: =CH14-(0.07/(IF(B23>B24,B23,B24)/1000)) ->  | CJ15: ISXFR Solid Oyster
E16: Plan view - looking from above | I16: Plan view - looking from above | L16: Plan view - looking from above | BH16: Warning 2 | BI16: Warning: Sail too narrow, decrease no. of sails, add additional fitting points or increase gap size | BJ16: =MAX(BI23:BK23) ->  | BK16: Width left | BL16: =(BK31/E21)-(0.07/(IF(B23>B24,B23,B24)/1000))+BI10 ->  | BM16: -> | BN16: ISXFR Duplex | BS16: Warning 2 | BT16: Warning: Sail too narrow, decrease no. of sails, add additional fitting points or increase gap size | BU16: =MAX(BT23:BV23) ->  | BV16: Width left | BW16: =(BV31/I21)-(0.07/(IF(B23>B24,B23,B24)/1000))+BT10 ->  | BX16: -> | BY16: ISXFR Duplex | CD16: Warning 2 | CE16: Warning: Sail too narrow, decrease no. of sails, add additional fitting points or increase gap size | CF16: =MAX(CE23:CG23) ->  | CG16: Width left | CH16: =(CG31/L21)-(0.07/(IF(B23>B24,B23,B24)/1000))+CE10 ->  | CI16: -> | CJ16: ISXFR Duplex
BH17: Warning 3 | BI17: Warning: Sail too wide for standard fabric, please add more sails or increase gap size | BK17: Width middle | BL17: =((BK31/E21)-(0.07/(IF(B23>B24,B23,B24)/1000))+BI10) ->  | BM17: =((BK31/E21)-(0.07/(IF(B23>B24,B23,B24)/1000))+BI14) ->  | BN17: ISXFR Duplex Ocean | BS17: Warning 3 | BT17: Warning: Sail too wide for standard fabric, please add more sails or increase gap size | BV17: Width middle | BW17: =((BV31/I21)-(0.07/(IF(B23>B24,B23,B24)/1000))+BT10) ->  | BX17: =((BV31/I21)-(0.07/(IF(B23>B24,B23,B24)/1000))+BT14) ->  | BY17: ISXFR Duplex Ocean | CD17: Warning 3 | CE17: Warning: Sail too wide for standard fabric, please add more sails or increase gap size | CG17: Width middle | CH17: =((CG31/L21)-(0.07/(IF(B23>B24,B23,B24)/1000))+CE10) ->  | CI17: =((CG31/L21)-(0.07/(IF(B23>B24,B23,B24)/1000))+CE14) ->  | CJ17: ISXFR Duplex Ocean
D18: =' '!$A$42 -> Starting Cost incl. Installation | E18: =((((BI25+BJ25+BK25+BL25+(E31*' '!B29)+(' '!B21*E25)+IF(E30<>BP2,E25*' '!B26,0)))+(E26*' '!B30)+(E27*' '!B31))) ->  | H18: =' '!$A$43 -> Average Cost incl. Installation | I18: =((((BT25+BU25+BV25+BW25+(I31*' '!B29)+(' '!B21*I25)+IF(I30<>CA2,I25*' '!B26,0)))+(I26*' '!B30)+(I27*' '!B31))) ->  | K18: =' '!$A$44 -> High End Cost incl. Installation | L18: =((((CE25+CF25+CG25+CH25+(L31*' '!B29)+(' '!B21*L25)+IF(L30<>CL2,L25*' '!B26,0)))+(L26*' '!B30)+(L27*' '!B31))) ->  | BH18: Warning 4 | BI18: Warning: Conservatory too long for standard fabric, contact office for more details | BK18: Width right | BL18: =(BK31/E21)-(0.07/(IF(B23>B24,B23,B24)/1000))+BI14 ->  | BN18: ISXFR Duplex Stone | BS18: Warning 4 | BT18: Warning: Conservatory too long for standard fabric, contact office for more details | BV18: Width right | BW18: =(BV31/I21)-(0.07/(IF(B23>B24,B23,B24)/1000))+BT14 ->  | BY18: ISXFR Duplex Stone | CD18: Warning 4 | CE18: Warning: Conservatory too long for standard fabric, contact office for more details | CG18: Width right | CH18: =(CG31/L21)-(0.07/(IF(B23>B24,B23,B24)/1000))+CE14 ->  | CJ18: ISXFR Duplex Stone
E19: =(' '!U4+' '!B33)*1.015 ->  | I19: =(' '!AG4+' '!B33)*1.015 ->  | L19: =(' '!AS4+' '!B33)*1.015 ->  | BK19: 50mm links | BL19: =0.035/(IF(B23>B24,B23,B24)/1000) ->  | BN19: ISXFR Duplex Slate | BV19: 50mm links | BW19: =0.035/(IF(B23>B24,B23,B24)/1000) ->  | BY19: ISXFR Duplex Slate | CG19: 50mm links | CH19: =0.035/(IF(B23>B24,B23,B24)/1000) ->  | CJ19: ISXFR Duplex Slate
BI20: 4 sails left | BJ20: =(BK31*0.375)+(MAX(BI14,BI10)/6) ->  | BK20: 4 sails left | BL20: =(BK31*0.625)-(MAX(BI14,BI10)/6) ->  | BN20: ISXFR Duplex Graphite | BT20: 4 sails left | BU20: =(BV31*0.375)+(MAX(BT14,BT10)/6) ->  | BV20: 4 sails left | BW20: =(BV31*0.625)-(MAX(BT14,BT10)/6) ->  | BY20: ISXFR Duplex Graphite | CE20: 4 sails left | CF20: =(CG31*0.375)+(MAX(CE14,CE10)/6) ->  | CG20: 4 sails left | CH20: =(CG31*0.625)-(MAX(CE14,CE10)/6) ->  | CJ20: ISXFR Duplex Graphite
D21: Number of sails | E21: =BO27 ->  | H21: Number of sails | I21: =BZ27 ->  | K21: Number of sails | L21: =CK27 ->  | BH21: Costs | BI21: left | BJ21: mid | BK21: right | BL21: tri | BS21: Costs | BT21: left | BU21: mid | BV21: right | BW21: tri | CD21: Costs | CE21: left | CF21: mid | CG21: right | CH21: tri
B22: All dims in mm | D22: Overlap | E22: 0.5 | H22: Overlap | I22: 0.5 | K22: Overlap | L22: 0 | BH22: length | BI22: =BL14*(IF(B23>B24,B23,B24)/1000) ->  | BJ22: =BI22 ->  | BK22: =BJ22 ->  | BL22: =BK22 ->  | BS22: length | BT22: =BW14*(IF(B23>B24,B23,B24)/1000) ->  | BU22: =BT22 ->  | BV22: =BU22 ->  | BW22: =BV22 ->  | CD22: length | CE22: =CH14*(IF(B23>B24,B23,B24)/1000) ->  | CF22: =CE22 ->  | CG22: =CF22 ->  | CH22: =CG22 -> 
A23: X1 | D23: Triangles | E23: No | H23: Triangles | I23: No | K23: Triangles | L23: Yes | BH23: width | BI23: =((A49-A45)+(0.07/(IF(B23>B24,B23,B24)/1000)))*(IF(B23>B24,B23,B24)/1000) ->  | BJ23: =IF(E21<>BL4,MIN(BI23,BK23),(E49-E45+(0.07/(IF(B23>B24,B23,B24)/1000)))*(IF(B23>B24,B23,B24)/1000)) ->  | BK23: =IF(E21<>BL2,(C49-C45+(0.07/(IF(B23>B24,B23,B24)/1000)))*(IF(B23>B24,B23,B24)/1000),BI23) ->  | BL23: =(BH27*(IF(B23>B24,B23,B24)/1000))+0.07 ->  | BS23: width | BT23: =((U49-U45)+(0.07/(IF(B23>B24,B23,B24)/1000)))*(IF(B23>B24,B23,B24)/1000) ->  | BU23: =IF(I21<>BW4,MIN(BT23,BV23),(Y49-Y45+(0.07/(IF(B23>B24,B23,B24)/1000)))*(IF(B23>B24,B23,B24)/1000)) ->  | BV23: =IF(I21<>BW2,(W49-W45+(0.07/(IF(B23>B24,B23,B24)/1000)))*(IF(B23>B24,B23,B24)/1000),BT23) ->  | BW23: =(BS27*(IF(B23>B24,B23,B24)/1000))+0.07 ->  | CD23: width | CE23: =((AO49-AO45)+(0.07/(IF(B23>B24,B23,B24)/1000)))*(IF(B23>B24,B23,B24)/1000) ->  | CF23: =IF(L21<>CH4,MIN(CE23,CG23),(AS49-AS45+(0.07/(IF(B23>B24,B23,B24)/1000)))*(IF(B23>B24,B23,B24)/1000)) ->  | CG23: =IF(L21<>CH2,(AQ49-AQ45+(0.07/(IF(B23>B24,B23,B24)/1000)))*(IF(B23>B24,B23,B24)/1000),CE23) ->  | CH23: =(CD27*(IF(B23>B24,B23,B24)/1000))+0.07 -> 
A24: Y1 | D24: 6 sided sails | E24: Yes | H24: 6 sided sails | I24: No | K24: 6 sided sails | L24: No | BH24: perimeter | BI24: =((BI22*2)+(BI23*2))*1.05 ->  | BJ24: =((BJ22*2)+(BJ23*2))*1.05 ->  | BK24: =((BK22*2)+(BK23*2))*1.05 ->  | BL24: =((BL22*2)+BL23)*1.05 ->  | BS24: perimeter | BT24: =((BT22*2)+(BT23*2))*1.05 ->  | BU24: =((BU22*2)+(BU23*2))*1.05 ->  | BV24: =((BV22*2)+(BV23*2))*1.05 ->  | BW24: =((BW22*2)+BW23)*1.05 ->  | CD24: perimeter | CE24: =((CE22*2)+(CE23*2))*1.05 ->  | CF24: =((CF22*2)+(CF23*2))*1.05 ->  | CG24: =((CG22*2)+(CG23*2))*1.05 ->  | CH24: =((CH22*2)+CH23)*1.05 -> 
A25: H1 | D25: Total additional fittings | E25: 0 | H25: Total additional fittings | I25: 0 | K25: Total additional fittings | L25: 0 | BI25: =((BI1*((BI22*BI23*BK1*BI6)+(BI24*BK2)+(BL8*BK3)))+(BL8*BQ5)+' '!B35) ->  | BJ25: =(IF(E21<3,0,((IF(E21>2,((BI1*((BJ22*BJ23*BK1*BI6)+(BJ24*BK2)+(BL8*BK3)))+(BL8*BQ5)+' '!B35)*(IF(E21=4,2,1)),))))) ->  | BK25: =(IF(E21<>BL2,((BI1*((BK22*BK23*BK1*BI6)+(BK24*BK2)+(BL8*BK3)))+(BL8*BQ5)+' '!B35),)) ->  | BL25: =((IF(E23=BJ13,((BI2*((BL22*BL23*BK1*BI7)+(BL24*BK2)+(3*' '!B19)))+(3*BQ5)+' '!B35)*(E21-1),))) -> 0 | BT25: =((BT1*((BT22*BT23*BK1*BI6)+(BT24*BK2)+(BW8*BV3)))+(BW8*CB5)+' '!B35) ->  | BU25: =(IF(I21<3,0,((IF(I21>2,((BT1*((BU22*BU23*BK1*BI6)+(BU24*BK2)+(BW8*BV3)))+(BW8*CB5)+' '!B35)*(IF(I21=4,2,1))))))) ->  | BV25: =(IF(I21<>BW2,((BT1*((BV22*BV23*BK1*BI6)+(BV24*BK2)+(BW8*BV3)))+(BW8*CB5)+' '!B35),)) ->  | BW25: =((IF(I23=BU13,((BT2*((BW22*BW23*BK1*BI7)+(BW24*BK2)+(3*' '!B19)))+(3*CB5)+' '!B35)*(I21-1),))) -> 0 | CE25: =((CE1*((CE22*CE23*BK1*BI6)+(CE24*BK2)+(CH8*CG3)))+(CH8*CM5)+' '!B35) ->  | CF25: =(IF(L21<3,0,((IF(L21>2,((CE1*((CF22*CF23*BK1*BI6)+(CF24*BK2)+(CH8*CG3)))+(CH8*CM5)+' '!B35)*(IF(L21=4,2,1)),))))) ->  | CG25: =(IF(L21<>CH2,((CE1*((CG22*CG23*BK1*BI6)+(CG24*BK2)+(CH8*CG3)))+(CH8*CM5)+' '!B35),)) ->  | CH25: =((IF(L23=CF13,((CE2*((CH22*CH23*BK1*BI7)+(CH24*BK2)+(3*' '!B19)))+(3*CM5)+' '!B35)*(L21-1),))) -> 
A26: H2 | D26: Total tie-bar loops | E26: 0 | H26: Total tie-bar loops | I26: 0 | K26: Total tie-bar loops | L26: 0 | AL26: =' '!AQ12 -> 0 | BH26: tri width | BI26: tri length | BJ26: tri mid | BK26: tri quarter | BO26: Low | BQ26: =' '!BV12 -> 0 | BS26: tri width | BT26: tri length | BU26: tri mid | BV26: tri quarter | BZ26: Mid | CD26: tri width | CE26: tri length | CF26: tri mid | CG26: tri quarter | CK26: Top
A27: R1 | D27: Total straight edges | E27: 0 | H27: Total straight edges | I27: 0 | K27: Total straight edges | L27: 0 | BH27: =BI27*0.8 ->  | BI27: =BL14-(BL19*2) ->  | BJ27: =BH27*0.13 ->  | BK27: =BJ27*0.75 ->  | BN27: Number of sails | BO27: =IF(BO31<1.25,1,IF(AND(BO31>=1.25,BO31<=2.25),1,IF(AND(BO31>2.25,BO31<3.5),2,IF(AND(BO31>=3.5),3)))) ->  | BS27: =BT27*0.8 ->  | BT27: =BW14-(BW19*2) ->  | BU27: =BS27*0.13 ->  | BV27: =BU27*0.75 ->  | BY27: Number of sails | BZ27: =IF(BZ31<1.25,1,IF(AND(BZ31>=1.25,BZ31<=2.25),2,IF(AND(BZ31>2.25,BZ31<3.5),3,IF(AND(BZ31>=3.5),4)))) ->  | CD27: =CE27*0.8 ->  | CE27: =CH14-(CH19*2) ->  | CF27: =CD27*0.13 ->  | CG27: =CF27*0.75 ->  | CJ27: Number of sails | CK27: =IF(CK31<1.25,1,IF(AND(CK31>=1.25,CK31<=2.25),2,IF(AND(CK31>2.25,CK31<3.5),3,IF(AND(CK31>=3.5),4)))) -> 
D28: Colour of main sails | E28: ISX Solid | G28: =' '!A12 -> 0 | H28: Colour of main sails | I28: ISX Solid | K28: Colour of main sails | L28: ISX Solid | BI28: Mid | BJ28: Quarters | BK28: Dims in m | BN28: Overlap | BO28: 0.5 | BT28: Mid | BU28: Quarters | BV28: Dims in m | BY28: Overlap | BZ28: 0.5 | CE28: Mid | CF28: Quarters | CG28: Dims in m | CJ28: Overlap | CK28: 0
D29: Colour of triangles | E29: ISX Solid | H29: Colour of triangles | I29: ISX Solid | K29: Colour of triangles | L29: ISX Solid | BH29: Horizontal | BI29: =(((BL15+(0.07/(B23/1000)))*0.13)+BL19) ->  | BJ29: =(BI29)*0.75 ->  | BK29: =B25/IF(B23>B24,B23,B24) ->  | BN29: Triangles | BO29: No | BS29: Horizontal | BT29: =(((BW15+(0.07/(B23/1000)))*0.13)+BW19) ->  | BU29: =(BT29)*0.75 ->  | BV29: =B25/IF(B23>B24,B23,B24) ->  | BY29: Triangles | BZ29: No | CD29: Horizontal | CE29: =(((CH15+(0.07/(B23/1000)))*0.13)+CH19) ->  | CF29: =(CE29)*0.75 ->  | CG29: =B25/IF(B23>B24,B23,B24) ->  | CJ29: Triangles | CK29: Yes
D30: Colour of fittings | E30: Stainless steel | H30: Colour of fittings | I30: Stainless steel | K30: Colour of fittings | L30: Stainless steel | BH30: Vertical left | BI30: =((BL16+(0.07/(B23/1000)))*0.13)+BL19 ->  | BJ30: =BI30*0.75 ->  | BK30: =B26/IF(B23>B24,B23,B24) ->  | BN30: Total additional fittings | BO30: =IF(BO31<1.25,0,BO27*2) ->  | BS30: Vertical left | BT30: =((BW16+(0.07/(B23/1000)))*0.13)+BW19 ->  | BU30: =BT30*0.75 ->  | BV30: =B26/IF(B23>B24,B23,B24) ->  | BY30: Total additional fittings | BZ30: =IF(BZ31<1.25,2,) ->  | CD30: Vertical left | CE30: =((CH16+(0.07/(B23/1000)))*0.13)+CH19 ->  | CF30: =CE30*0.75 ->  | CG30: =B26/IF(B23>B24,B23,B24) ->  | CJ30: Total additional fittings | CK30: =IF(CK31<1.25,4,) -> 
D31: Number of window vents | E31: 0 | H31: Number of window vents | I31: 0 | K31: Number of window vents | L31: 0 | BH31: Vertical mid | BI31: =((AVERAGE(BL17:BM17)+(0.07/(B23/1000)))*0.13)+BL19 ->  | BJ31: =BI31*0.75 ->  | BK31: =B23/IF(B23>B24,B23,B24) ->  | BN31: Length/Width Ratio | BO31: =(B23/B24) ->  | BS31: Vertical mid | BT31: =((AVERAGE(BW17:BX17)+(0.07/(B23/1000)))*0.13)+BW19 ->  | BU31: =BT31*0.75 ->  | BV31: =B23/IF(B23>B24,B23,B24) ->  | BY31: Length/Width Ratio | BZ31: =(B23/B24) ->  | CD31: Vertical mid | CE31: =((AVERAGE(CH17:CI17)+(0.07/(B23/1000)))*0.13)+CH19 ->  | CF31: =CE31*0.75 ->  | CG31: =B23/IF(B23>B24,B23,B24) ->  | CJ31: Length/Width Ratio | CK31: =(B23/B24) -> 
BH32: Vertical right | BI32: =((BL18+(0.07/(B23/1000)))*0.13)+BL19 ->  | BJ32: =BI32*0.75 ->  | BK32: =B24/IF(B23>B24,B23,B24) ->  | BS32: Vertical right | BT32: =((BW18+(0.07/(B23/1000)))*0.13)+BW19 ->  | BU32: =BT32*0.75 ->  | BV32: =B24/IF(B23>B24,B23,B24) ->  | CD32: Vertical right | CE32: =((CH18+(0.07/(B23/1000)))*0.13)+CH19 ->  | CF32: =CE32*0.75 ->  | CG32: =B24/IF(B23>B24,B23,B24) -> 
D33: Max length of a sail | E33: =(MAX(BI22:BK22))*1000 ->  | H33: Max length of a sail | I33: =(MAX(BT22:BV22))*1000 ->  | K33: Max length of a sail | L33: =(MAX(CE22:CG22))*1000 ->  | BK33: =B27/IF(B23>B24,B23,B24) ->  | BV33: =B27/IF(B23>B24,B23,B24) ->  | CG33: =B27/IF(B23>B24,B23,B24) -> 
D34: Max width of a sail | E34: =(MAX(BI23:BK23))*1000 ->  | H34: Max width of a sail | I34: =(MAX(BT23:BV23))*1000 ->  | K34: Max width of a sail | L34: =(MAX(CE23:CG23))*1000 -> 
E35: Sails +2100mm in both directions require seams | I35: Sails +2100mm in both directions require seams | L35: Sails +2100mm in both directions require seams | BN35: Overlaps | BO35: Triangles
BN36: 0 | BO36: No
BN37: 0.5 | BO37: Yes
BN38: 1
A43: x | B43: y | C43: x | D43: y | E43: x | F43: y | I43: x | J43: y | K43: x | L43: y | M43: x | N43: y | O43: Roof plan | U43: x | V43: y | W43: x | X43: y | Y43: x | Z43: y | AC43: x | AD43: y | AE43: x | AF43: y | AG43: x | AH43: y | AI43: Roof plan | AO43: x | AP43: y | AQ43: x | AR43: y | AS43: x | AT43: y | AW43: x | AX43: y | AY43: x | AZ43: y | BA43: x | BB43: y | BC43: Roof plan
A44: Left sail | C44: Right sail | E44: Mid sail | I44: tri 1 | K44: tri 2 | M44: tri 3 | O44: x-axis | P44: y-axis | U44: Left sail | W44: Right sail | Y44: Mid sail | AC44: tri 1 | AE44: tri 2 | AG44: tri 3 | AI44: x-axis | AJ44: y-axis | AO44: Left sail | AQ44: Right sail | AS44: Mid sail | AW44: tri 1 | AY44: tri 2 | BA44: tri 3 | BC44: x-axis | BD44: y-axis
A45: =BL19 ->  | B45: =BL19 ->  | C45: =IF(E21=1,0,C49-BL18) ->  | D45: =IF(E21=1,0,BL19) ->  | E45: =IF(E21=1,0,IF(E21=2,0,IF(E21=3,(BK31/2)-(BL17/2),IF(E21=4,BJ20-(BL17/2))))) ->  | F45: =IF(E21=1,0,IF(E21=2,0,BL19)) ->  | G45: =IF(E21=4,BL20-(BL17/2),0) ->  | H45: =IF(E21=4,BL19,0) ->  | I45: =IF(E23=BJ13,IF(E21<>BL2,I47-(BH27/2),),) -> 0 | J45: =IF(E23=BJ13,IF(E21<>BL2,BL19,),) -> 0 | K45: =IF(E23=BJ13,IF(OR(E21=BL4,E21=BL5),K47-(BH27/2),),) -> 0 | L45: =IF(E23=BJ13,IF(OR(E21=BL4,E21=BL5),BL19,),) -> 0 | M45: =IF($E$21=$BL$5,K45+0.25,) ->  | N45: =L45 -> 0 | O45: 0 | P45: 0 | Q45: 0 | R45: 0 | U45: =BW19 ->  | V45: =BW19 ->  | W45: =IF(I21=1,0,W49-BW18) ->  | X45: =IF(I21=1,0,BW19) ->  | Y45: =IF(I21=1,0,IF(I21=2,0,IF(I21=3,(BV31/2)-(BW17/2),IF(I21=4,BU20-(BW17/2))))) ->  | Z45: =IF(I21=1,0,IF(I21=2,0,BW19)) ->  | AA45: =IF(I21=4,BW20-(BW17/2),0) ->  | AB45: =IF(I21=4,BW19,0) ->  | AC45: =IF(I23=BU13,IF(I21<>BW2,AC47-(BS27/2),),) -> 0 | AD45: =IF(I23=BU13,IF(I21<>BW2,BW19,),) -> 0 | AE45: =IF(I23=BU13,IF(OR(I21=BW4,I21=BW5),AE47-(BS27/2),),) -> 0 | AF45: =IF(I23=BU13,IF(OR(I21=BW4,I21=BW5),BW19,),) -> 0 | AG45: =IF($I$21=4,AE45+0.25,) ->  | AH45: =AF45 -> 0 | AI45: 0 | AJ45: 0 | AK45: 0 | AL45: 0 | AO45: =CH19 ->  | AP45: =CH19 ->  | AQ45: =IF(L21=1,0,AQ49-CH18) ->  | AR45: =IF(L21=1,0,CH19) ->  | AS45: =IF(L21=1,0,IF(L21=2,0,IF(L21=3,(CG31/2)-(CH17/2),IF(L21=4,CF20-(CH17/2))))) ->  | AT45: =IF(L21=1,0,IF(L21=2,0,CH19)) ->  | AU45: =IF(L21=4,CH20-(CH17/2),0) ->  | AV45: =IF(L21=4,CH19,0) ->  | AW45: =IF(L23=CF13,IF(L21<>CH2,AW47-(CD27/2),),) ->  | AX45: =IF(L23=CF13,IF(L21<>CH2,CH19,),) ->  | AY45: =IF(L23=CF13,IF(OR(L21=CH4,L21=CH5),AY47-(CD27/2),),) ->  | AZ45: =IF(L23=CF13,IF(OR(L21=CH4,L21=CH5),CH19,),) ->  | BA45: =IF($L$21=4,AY45+0.25,) ->  | BB45: =AZ45 ->  | BC45: 0 | BD45: 0 | BE45: 0 | BF45: 0
A46: =A45+(BL16/4) ->  | B46: =IF(E24=BO37,BI30*0.5,BI30*0.75) ->  | C46: =IF(E21=1,0,C45+(BL18/4)) ->  | D46: =IF(E21=1,0,D48) ->  | E46: =IF(E21=1,0,IF(E21=2,0,E45+(MAX(BL17:BM17)/4))) ->  | F46: =IF(E21=1,0,IF(E21=2,0,B46)) ->  | G46: =IF(E21=4,G45+(MAX(BL17:BM17)/4),0) ->  | H46: =IF(E21=4,B46,0) ->  | I46: =IF(E23=BJ13,IF(E21<>BL2,I45+(BH27/4),),) -> 0 | J46: =IF(E23=BJ13,IF(E21<>BL2,BK27,),) -> 0 | K46: =IF(E23=BJ13,IF(OR(E21=BL4,E21=BL5),K47-(BH27/4),),) -> 0 | L46: =IF(E23=BJ13,IF(OR(E21=BL4,E21=BL5),BK27,),) -> 0 | N46: =L46 -> 0 | O46: =BK31 ->  | P46: 0 | Q46: 1 | R46: 0 | U46: =U45+(BW16/4) ->  | V46: =IF(I24=BO37,BT30*0.5,BT30*0.75) ->  | W46: =IF(I21=1,0,W45+(BW18/4)) ->  | X46: =IF(I21=1,0,X48) ->  | Y46: =IF(I21=1,0,IF(I21=2,0,Y45+(MAX(BW17:BX17)/4))) ->  | Z46: =IF(I21=1,0,IF(I21=2,0,V46)) ->  | AA46: =IF(I21=4,AA45+(MAX(BW17:BX17)/4),0) ->  | AB46: =IF(I21=4,V46,0) ->  | AC46: =IF(I23=BU13,IF(I21<>BW2,AC45+(BS27/4),),) -> 0 | AD46: =IF(I23=BU13,IF(I21<>BW2,BV27,),) -> 0 | AE46: =IF(I23=BU13,IF(OR(I21=BW4,I21=BW5),AE47-(BS27/4),),) -> 0 | AF46: =IF(I23=BU13,IF(OR(I21=BW4,I21=BW5),BV27,),) -> 0 | AH46: =AF46 -> 0 | AI46: =BV31 ->  | AJ46: 0 | AK46: 1 | AL46: 0 | AO46: =AO45+(CH16/4) ->  | AP46: =IF(L24=BO37,CE30*0.5,CE30*0.75) ->  | AQ46: =IF(L21=1,0,AQ45+(CH18/4)) ->  | AR46: =IF(L21=1,0,AR48) ->  | AS46: =IF(L21=1,0,IF(L21=2,0,AS45+(MAX(CH17:CI17)/4))) ->  | AT46: =IF(L21=1,0,IF(L21=2,0,AP46)) ->  | AU46: =IF(L21=4,AU45+(MAX(CH17:CI17)/4),0) ->  | AV46: =IF(L21=4,AP46,0) ->  | AW46: =IF(L23=CF13,IF(L21<>CH2,AW45+(CD27/4),),) ->  | AX46: =IF(L23=CF13,IF(L21<>CH2,CG27,),) ->  | AY46: =IF(L23=CF13,IF(OR(L21=CH4,L21=CH5),AY47-(CD27/4),),) ->  | AZ46: =IF(L23=CF13,IF(OR(L21=CH4,L21=CH5),CG27,),) ->  | BB46: =AZ46 ->  | BC46: =CG31 ->  | BD46: 0 | BE46: 1 | BF46: 0
A47: =A49-(BL16/2) ->  | B47: =IF(E24=BO37,B45,BI30) ->  | C47: =IF(E21=1,0,C49-BL19-(BL18/2)) ->  | D47: =IF(E21=1,0,B47) ->  | E47: =IF(E21=1,0,IF(E21=2,0,E49-((E49-E45)/2))) ->  | F47: =IF(E21=1,0,IF(E21=2,0,B47)) ->  | G47: =IF(E21=4,G49-((G49-G45)/2),0) ->  | H47: =IF(E21=4,B47,0) ->  | I47: =IF(E23=BJ13,IF(E21=BL3,O46/2,IF(E21=BL4,O46/3,IF(E21=BL5,O46/4))),) -> 0 | J47: =IF(E23=BJ13,IF(E21<>BL2,BJ27,),) -> 0 | K47: =IF(E23=BJ13,IF(E21=BL4,O47*(2/3),IF(E21=BL5,O46/2)),) -> 0 | L47: =IF(E23=BJ13,IF(OR(E21=BL4,E21=BL5),BJ27,),) -> 0 | N47: 0 | O47: =BK31 ->  | P47: =BK32 ->  | Q47: 1 | R47: 0.59375 | U47: =U49-(BW16/2) ->  | V47: =IF(I24=BO37,V45,BT30) ->  | W47: =IF(I21=1,0,W49-BW19-(BW18/2)) ->  | X47: =IF(I21=1,0,V47) ->  | Y47: =IF(I21=1,0,IF(I21=2,0,Y49-((Y49-Y45)/2))) ->  | Z47: =IF(I21=1,0,IF(I21=2,0,V47)) ->  | AA47: =IF(I21=4,AA49-((AA49-AA45)/2),0) ->  | AB47: =IF(I21=4,V47,0) ->  | AC47: =IF(I23=BU13,IF(I21=BW3,AI46/2,IF(I21=BW4,AI46/3,IF(I21=BW5,AI46/4))),) -> 0 | AD47: =IF(I23=BU13,IF(I21<>BW2,BU27,),) -> 0 | AE47: =IF(I23=BU13,IF(I21=BW4,AI47*(2/3),IF(I21=BW5,AI46/2)),) -> 0 | AF47: =IF(I23=BU13,IF(OR(I21=BW4,I21=BW5),BU27,),) -> 0 | AH47: 0 | AI47: =BV31 ->  | AJ47: =BV32 ->  | AK47: 1 | AL47: 0.59375 | AO47: =AO49-(CH16/2) ->  | AP47: =IF(L24=BO37,AP45,CE30) ->  | AQ47: =IF(L21=1,0,AQ49-CH19-(CH18/2)) ->  | AR47: =IF(L21=1,0,AP47) ->  | AS47: =IF(L21=1,0,IF(L21=2,0,AS49-((AS49-AS45)/2))) ->  | AT47: =IF(L21=1,0,IF(L21=2,0,AP47)) ->  | AU47: =IF(L21=4,AU49-((AU49-AU45)/2),0) ->  | AV47: =IF(L21=4,AP47,0) ->  | AW47: =IF(L23=CF13,IF(L21=CH3,BC46/2,IF(L21=CH4,BC46/3,IF(L21=CH5,BC46/4))),) ->  | AX47: =IF(L23=CF13,IF(L21<>CH2,CF27,),) ->  | AY47: =IF(L23=CF13,IF(L21=CH4,BC47*(2/3),IF(L21=CH5,BC46/2)),) ->  | AZ47: =IF(L23=CF13,IF(OR(L21=CH4,L21=CH5),CF27,),) ->  | BC47: =CG31 ->  | BD47: =CG32 ->  | BE47: 1 | BF47: 0.59375
A48: =A49-(BL16/4) ->  | B48: =B46 ->  | C48: =C49-(BL18/4) ->  | D48: =IF(E21=1,0,B48) ->  | E48: =IF(E21=1,0,IF(E21=2,0,E49-(MAX(BL17:BM17)/4))) ->  | F48: =IF(E21=BL4,B48,IF(E21=BL5,B48,)) ->  | G48: =IF(E21=4,G49-(MAX(BL17:BM17)/4),0) ->  | H48: =IF(E21=4,B48,) ->  | I48: =IF(E23=BJ13,IF(E21<>BL2,I47+(BH27/4),),) -> 0 | J48: =IF(E23=BJ13,IF(E21<>BL2,BK27,),) -> 0 | K48: =IF(E23=BJ13,IF(OR(E21=BL4,E21=BL5),K47+(BH27/4),),) -> 0 | L48: =IF(E23=BJ13,IF(OR(E21=BL4,E21=BL5),L46,),) -> 0 | N48: 0 | O48: 0 | P48: =BK32 ->  | Q48: 0 | R48: 0.59375 | U48: =U49-(BW16/4) ->  | V48: =V46 ->  | W48: =W49-(BW18/4) ->  | X48: =IF(I21=1,0,V48) ->  | Y48: =IF(I21=1,0,IF(I21=2,0,Y49-(MAX(BW17:BX17)/4))) ->  | Z48: =IF(I21=BW4,V48,IF(I21=BW5,V48,)) ->  | AA48: =IF(I21=4,AA49-(MAX(BW17:BX17)/4),0) ->  | AB48: =IF(I21=4,V48,) ->  | AC48: =IF(I23=BU13,IF(I21<>BW2,AC47+(BS27/4),),) -> 0 | AD48: =IF(I23=BU13,IF(I21<>BW2,BV27,),) -> 0 | AE48: =IF(I23=BU13,IF(OR(I21=BW4,I21=BW5),AE47+(BS27/4),),) -> 0 | AF48: =IF(I23=BU13,IF(OR(I21=BW4,I21=BW5),AF46,),) -> 0 | AH48: 0 | AI48: 0 | AJ48: =BV32 ->  | AK48: 0 | AL48: 0.59375 | AO48: =AO49-(CH16/4) ->  | AP48: =AP46 ->  | AQ48: =AQ49-(CH18/4) ->  | AR48: =IF(L21=1,0,AP48) ->  | AS48: =IF(L21=1,0,IF(L21=2,0,AS49-(MAX(CH17:CI17)/4))) ->  | AT48: =IF(L21=CH4,AP48,IF(L21=CH5,AP48,)) ->  | AU48: =IF(L21=4,AU49-(MAX(CH17:CI17)/4),0) ->  | AV48: =IF(L21=4,AP48,) ->  | AW48: =IF(L23=CF13,IF(L21<>CH2,AW47+(CD27/4),),) ->  | AX48: =IF(L23=CF13,IF(L21<>CH2,CG27,),) ->  | AY48: =IF(L23=CF13,IF(OR(L21=CH4,L21=CH5),AY47+(CD27/4),),) ->  | AZ48: =IF(L23=CF13,IF(OR(L21=CH4,L21=CH5),AZ46,),) ->  | BC48: 0 | BD48: =CG32 ->  | BE48: 0 | BF48: 0.59375
A49: =A45+BL16 ->  | B49: =BL19 ->  | C49: =IF(E21=1,0,BK31-BL19) ->  | D49: =IF(E21=1,0,BL19) ->  | E49: =IF(E21=1,0,IF(E21=2,0,IF(E21=3,BK31/2+(BM17/2),IF(E21=4,BJ20+(BM17/2))))) ->  | F49: =IF(E21=1,0,IF(E21=2,0,BL19)) ->  | G49: =IF(E21=4,BL20+(BM17/2),0) ->  | H49: =IF(E21=4,BL19,0) ->  | I49: =IF(E23=BJ13,IF(E21<>BL2,I47+(BH27/2),),) -> 0 | J49: =IF(E23=BJ13,IF(E21<>BL2,BL19,),) -> 0 | K49: =IF(E23=BJ13,IF(OR(E21=BL4,E21=BL5),K47+(BH27/2),),) -> 0 | L49: =IF(E23=BJ13,IF(OR(E21=BL4,E21=BL5),L45,),) -> 0 | N49: 0 | O49: 0 | P49: 0 | Q49: 0 | R49: 0 | U49: =U45+BW16 ->  | V49: =BW19 ->  | W49: =IF(I21=1,0,BV31-BW19) ->  | X49: =IF(I21=1,0,BW19) ->  | Y49: =IF(I21=1,0,IF(I21=2,0,IF(I21=3,BV31/2+(BX17/2),IF(I21=4,BU20+(BX17/2))))) ->  | Z49: =IF(I21=1,0,IF(I21=2,0,BW19)) ->  | AA49: =IF(I21=4,BW20+(BX17/2),0) ->  | AB49: =IF(I21=4,BW19,0) ->  | AC49: =IF(I23=BU13,IF(I21<>BW2,AC47+(BS27/2),),) -> 0 | AD49: =IF(I23=BU13,IF(I21<>BW2,BW19,),) -> 0 | AE49: =IF(I23=BU13,IF(OR(I21=BW4,I21=BW5),AE47+(BS27/2),),) -> 0 | AF49: =IF(I23=BU13,IF(OR(I21=BW4,I21=BW5),AF45,),) -> 0 | AH49: 0 | AI49: 0 | AJ49: 0 | AK49: 0 | AL49: 0 | AO49: =AO45+CH16 ->  | AP49: =CH19 ->  | AQ49: =IF(L21=1,0,CG31-CH19) ->  | AR49: =IF(L21=1,0,CH19) ->  | AS49: =IF(L21=1,0,IF(L21=2,0,IF(L21=3,CG31/2+(CI17/2),IF(L21=4,CF20+(CI17/2))))) ->  | AT49: =IF(L21=1,0,IF(L21=2,0,CH19)) ->  | AU49: =IF(L21=4,CH20+(CI17/2),0) ->  | AV49: =IF(L21=4,CH19,0) ->  | AW49: =IF(L23=CF13,IF(L21<>CH2,AW47+(CD27/2),),) ->  | AX49: =IF(L23=CF13,IF(L21<>CH2,CH19,),) ->  | AY49: =IF(L23=CF13,IF(OR(L21=CH4,L21=CH5),AY47+(CD27/2),),) ->  | AZ49: =IF(L23=CF13,IF(OR(L21=CH4,L21=CH5),AZ45,),) ->  | BC49: 0 | BD49: 0 | BE49: 0 | BF49: 0
A50: =A49-BJ29 ->  | B50: =BK32/4 ->  | C50: =IF(E21=1,0,C49-BJ29) ->  | D50: =IF(E21=1,0,B60) ->  | E50: =IF(E21=1,0,IF(E21=2,0,E49-BJ29)) ->  | F50: =IF(E21=1,0,IF(E21=2,0,D50)) ->  | G50: =IF(E21=4,G49-BJ29,0) ->  | H50: =IF(E21=4,D50,0) ->  | I50: =IF(E23=BJ13,IF(E21<>BL2,I49-((I49-I53)/1.8),),) -> 0 | J50: =IF(E23=BJ13,IF(E21<>BL2,P47/4,),) -> 0 | K50: =IF(E23=BJ13,IF(OR(E21=BL4,E21=BL5),K49-((K49-K53)/1.8),),) -> 0 | L50: =IF(E23=BJ13,IF(OR(E21=BL4,E21=BL5),P47/4,),) -> 0 | N50: 0 | O50: =(BK31/2)-(BK33/2) ->  | P50: =BK32 ->  | Q50: 0.25 | R50: 0.59375 | U50: =U49-BU29 ->  | V50: =BV32/4 ->  | W50: =IF(I21=1,0,W49-BU29) ->  | X50: =IF(I21=1,0,V60) ->  | Y50: =IF(I21=1,0,IF(I21=2,0,Y49-BU29)) ->  | Z50: =IF(I21=1,0,IF(I21=2,0,X50)) ->  | AA50: =IF(I21=4,AA49-BU29,0) ->  | AB50: =IF(I21=4,X50,0) ->  | AC50: =IF(I23=BU13,IF(I21<>BW2,AC49-((AC49-AC53)/1.8),),) -> 0 | AD50: =IF(I23=BU13,IF(I21<>BW2,AJ47/4,),) -> 0 | AE50: =IF(I23=BU13,IF(OR(I21=BW4,I21=BW5),AE49-((AE49-AE53)/1.8),),) -> 0 | AF50: =IF(I23=BU13,IF(OR(I21=BW4,I21=BW5),AJ47/4,),) -> 0 | AH50: 0 | AI50: =(BV31/2)-(BV33/2) ->  | AJ50: =BV32 ->  | AK50: 0.25 | AL50: 0.59375 | AO50: =AO49-CF29 ->  | AP50: =CG32/4 ->  | AQ50: =IF(L21=1,0,AQ49-CF29) ->  | AR50: =IF(L21=1,0,AP60) ->  | AS50: =IF(L21=1,0,IF(L21=2,0,AS49-CF29)) ->  | AT50: =IF(L21=1,0,IF(L21=2,0,AR50)) ->  | AU50: =IF(L21=4,AU49-CF29,0) ->  | AV50: =IF(L21=4,AR50,0) ->  | AW50: =IF(L23=CF13,IF(L21<>CH2,AW49-((AW49-AW53)/1.8),),) ->  | AX50: =IF(L23=CF13,IF(L21<>CH2,BD47/4,),) ->  | AY50: =IF(L23=CF13,IF(OR(L21=CH4,L21=CH5),AY49-((AY49-AY53)/1.8),),) ->  | AZ50: =IF(L23=CF13,IF(OR(L21=CH4,L21=CH5),BD47/4,),) ->  | BC50: =(CG31/2)-(CG33/2) ->  | BD50: =CG32 ->  | BE50: 0.25 | BF50: 0.59375
A51: =A49-BI29 ->  | B51: =BK32/2 ->  | C51: =IF(E21=1,0,C49-BI29) ->  | D51: =IF(E21=1,0,B51) ->  | E51: =IF(E21=1,0,IF(E21=2,0,E49-BI29)) ->  | F51: =IF(E21=1,0,IF(E21=2,0,B51)) ->  | G51: =IF(E21=4,G49-BI29,0) ->  | H51: =IF(E21=4,B51,0) ->  | I51: =IF(E23=BJ13,IF(E21<>BL2,I49-((I49-I53)*0.85),),) -> 0 | J51: =IF(E23=BJ13,IF(E21<>BL2,P47/2,),) -> 0 | K51: =IF(E23=BJ13,IF(OR(E21=BL4,E21=BL5),K49-((K49-K53)*0.85),),) -> 0 | L51: =IF(E23=BJ13,IF(OR(E21=BL4,E21=BL5),P47/2,),) -> 0 | N51: 0 | O51: =(BK31/2)+(BK33/2) ->  | P51: =P50 ->  | Q51: 0.75 | R51: 0.59375 | U51: =U49-BT29 ->  | V51: =BV32/2 ->  | W51: =IF(I21=1,0,W49-BT29) ->  | X51: =IF(I21=1,0,V51) ->  | Y51: =IF(I21=1,0,IF(I21=2,0,Y49-BT29)) ->  | Z51: =IF(I21=1,0,IF(I21=2,0,V51)) ->  | AA51: =IF(I21=4,AA49-BT29,0) ->  | AB51: =IF(I21=4,V51,0) ->  | AC51: =IF(I23=BU13,IF(I21<>BW2,AC49-((AC49-AC53)*0.85),),) -> 0 | AD51: =IF(I23=BU13,IF(I21<>BW2,AJ47/2,),) -> 0 | AE51: =IF(I23=BU13,IF(OR(I21=BW4,I21=BW5),AE49-((AE49-AE53)*0.85),),) -> 0 | AF51: =IF(I23=BU13,IF(OR(I21=BW4,I21=BW5),AJ47/2,),) -> 0 | AH51: 0 | AI51: =(BV31/2)+(BV33/2) ->  | AJ51: =AJ50 ->  | AK51: 0.75 | AL51: 0.59375 | AO51: =AO49-CE29 ->  | AP51: =CG32/2 ->  | AQ51: =IF(L21=1,0,AQ49-CE29) ->  | AR51: =IF(L21=1,0,AP51) ->  | AS51: =IF(L21=1,0,IF(L21=2,0,AS49-CE29)) ->  | AT51: =IF(L21=1,0,IF(L21=2,0,AP51)) ->  | AU51: =IF(L21=4,AU49-CE29,0) ->  | AV51: =IF(L21=4,AP51,0) ->  | AW51: =IF(L23=CF13,IF(L21<>CH2,AW49-((AW49-AW53)*0.85),),) ->  | AX51: =IF(L23=CF13,IF(L21<>CH2,BD47/2,),) ->  | AY51: =IF(L23=CF13,IF(OR(L21=CH4,L21=CH5),AY49-((AY49-AY53)*0.85),),) ->  | AZ51: =IF(L23=CF13,IF(OR(L21=CH4,L21=CH5),BD47/2,),) ->  | BC51: =(CG31/2)+(CG33/2) ->  | BD51: =BD50 ->  | BE51: 0.75 | BF51: 0.59375
A52: =A50 ->  | B52: =(BK32*0.75) ->  | C52: =C50 ->  | D52: =IF(E21=1,0,B58) ->  | E52: =E50 ->  | F52: =IF(E21=1,0,IF(E21=2,0,D52)) ->  | G52: =G50 ->  | H52: =IF(E21=4,D52,0) ->  | I52: =IF(E23=BJ13,IF(E21<>BL2,I53+((I49-I53)*0.05),),) -> 0 | J52: =IF(E23=BJ13,IF(E21<>BL2,P47*0.75,),) -> 0 | K52: =IF(E23=BJ13,IF(OR(E21=BL4,E21=BL5),K53+((K49-K53)*0.05),),) -> 0 | L52: =IF(E23=BJ13,IF(OR(E21=BL4,E21=BL5),P47*0.75,),) -> 0 | N52: 0 | O52: =BK31 ->  | P52: 0 | Q52: 1 | R52: 0 | U52: =U50 ->  | V52: =(BV32*0.75) ->  | W52: =W50 ->  | X52: =IF(I21=1,0,V58) ->  | Y52: =Y50 ->  | Z52: =IF(I21=1,0,IF(I21=2,0,X52)) ->  | AA52: =AA50 ->  | AB52: =IF(I21=4,X52,0) ->  | AC52: =IF(I23=BU13,IF(I21<>BW2,AC53+((AC49-AC53)*0.05),),) -> 0 | AD52: =IF(I23=BU13,IF(I21<>BW2,AJ47*0.75,),) -> 0 | AE52: =IF(I23=BU13,IF(OR(I21=BW4,I21=BW5),AE53+((AE49-AE53)*0.05),),) -> 0 | AF52: =IF(I23=BU13,IF(OR(I21=BW4,I21=BW5),AJ47*0.75,),) -> 0 | AH52: 0 | AI52: =BV31 ->  | AJ52: 0 | AK52: 1 | AL52: 0 | AO52: =AO50 ->  | AP52: =(CG32*0.75) ->  | AQ52: =AQ50 ->  | AR52: =IF(L21=1,0,AP58) ->  | AS52: =AS50 ->  | AT52: =IF(L21=1,0,IF(L21=2,0,AR52)) ->  | AU52: =AU50 ->  | AV52: =IF(L21=4,AR52,0) ->  | AW52: =IF(L23=CF13,IF(L21<>CH2,AW53+((AW49-AW53)*0.05),),) ->  | AX52: =IF(L23=CF13,IF(L21<>CH2,BD47*0.75,),) ->  | AY52: =IF(L23=CF13,IF(OR(L21=CH4,L21=CH5),AY53+((AY49-AY53)*0.05),),) ->  | AZ52: =IF(L23=CF13,IF(OR(L21=CH4,L21=CH5),BD47*0.75,),) ->  | BC52: =CG31 ->  | BD52: 0 | BE52: 1 | BF52: 0
A53: =A49 ->  | B53: =BK32-BL19 ->  | C53: =IF(E21=1,0,C49) ->  | D53: =IF(E21=1,0,BK32-BL19) ->  | E53: =IF(E21=1,0,IF(E21=2,0,E49)) ->  | F53: =IF(E21=1,0,IF(E21=2,0,D57)) ->  | G53: =IF(E21=4,G49,0) ->  | H53: =IF(E21=4,D57,0) ->  | I53: =IF(E23=BJ13,IF(E21<>BL2,I47,),) -> 0 | J53: =IF(E23=BJ13,IF(E21<>BL2,P48-BL19,),) -> 0 | K53: =IF(E23=BJ13,IF(OR(E21=BL4,E21=BL5),K47,),) -> 0 | L53: =IF(E23=BJ13,IF(OR(E21=BL4,E21=BL5),P48-BL19,),) -> 0 | N53: 0 | U53: =U49 ->  | V53: =BV32-BW19 ->  | W53: =IF(I21=1,0,W49) ->  | X53: =IF(I21=1,0,BV32-BW19) ->  | Y53: =IF(I21=1,0,IF(I21=2,0,Y49)) ->  | Z53: =IF(I21=1,0,IF(I21=2,0,X57)) ->  | AA53: =IF(I21=4,AA49,0) ->  | AB53: =IF(I21=4,X57,0) ->  | AC53: =IF(I23=BU13,IF(I21<>BW2,AC47,),) -> 0 | AD53: =IF(I23=BU13,IF(I21<>BW2,AJ48-BW19,),) -> 0 | AE53: =IF(I23=BU13,IF(OR(I21=BW4,I21=BW5),AE47,),) -> 0 | AF53: =IF(I23=BU13,IF(OR(I21=BW4,I21=BW5),AJ48-BW19,),) -> 0 | AH53: 0 | AO53: =AO49 ->  | AP53: =CG32-CH19 ->  | AQ53: =IF(L21=1,0,AQ49) ->  | AR53: =IF(L21=1,0,CG32-CH19) ->  | AS53: =IF(L21=1,0,IF(L21=2,0,AS49)) ->  | AT53: =IF(L21=1,0,IF(L21=2,0,AR57)) ->  | AU53: =IF(L21=4,AU49,0) ->  | AV53: =IF(L21=4,AR57,0) ->  | AW53: =IF(L23=CF13,IF(L21<>CH2,AW47,),) ->  | AX53: =IF(L23=CF13,IF(L21<>CH2,BD48-CH19,),) ->  | AY53: =IF(L23=CF13,IF(OR(L21=CH4,L21=CH5),AY47,),) ->  | AZ53: =IF(L23=CF13,IF(OR(L21=CH4,L21=CH5),BD48-CH19,),) -> 
A54: =A48 ->  | B54: =BK32-B46 ->  | C54: =C48 ->  | D54: =IF(E21=1,0,B54) ->  | E54: =E48 ->  | F54: =IF(E21=1,0,IF(E21=2,0,B54)) ->  | G54: =G48 ->  | H54: =IF(E21=4,B54,0) ->  | I54: =IF(E23=BJ13,IF(E21<>BL2,I53-((I53-I57)*0.05),),) -> 0 | J54: =IF(E23=BJ13,IF(E21<>BL2,J52,),) -> 0 | K54: =IF(E23=BJ13,IF(OR(E21=BL4,E21=BL5),K53-((K53-K57)*0.05),),) -> 0 | L54: =IF(E23=BJ13,IF(OR(E21=BL4,E21=BL5),L52,),) -> 0 | N54: 0 | U54: =U48 ->  | V54: =BV32-V46 ->  | W54: =W48 ->  | X54: =IF(I21=1,0,V54) ->  | Y54: =Y48 ->  | Z54: =IF(I21=1,0,IF(I21=2,0,V54)) ->  | AA54: =AA48 ->  | AB54: =IF(I21=4,V54,0) ->  | AC54: =IF(I23=BU13,IF(I21<>BW2,AC53-((AC53-AC57)*0.05),),) -> 0 | AD54: =IF(I23=BU13,IF(I21<>BW2,AD52,),) -> 0 | AE54: =IF(I23=BU13,IF(OR(I21=BW4,I21=BW5),AE53-((AE53-AE57)*0.05),),) -> 0 | AF54: =IF(I23=BU13,IF(OR(I21=BW4,I21=BW5),AF52,),) -> 0 | AH54: 0 | AO54: =AO48 ->  | AP54: =CG32-AP46 ->  | AQ54: =AQ48 ->  | AR54: =IF(L21=1,0,AP54) ->  | AS54: =AS48 ->  | AT54: =IF(L21=1,0,IF(L21=2,0,AP54)) ->  | AU54: =AU48 ->  | AV54: =IF(L21=4,AP54,0) ->  | AW54: =IF(L23=CF13,IF(L21<>CH2,AW53-((AW53-AW57)*0.05),),) ->  | AX54: =IF(L23=CF13,IF(L21<>CH2,AX52,),) ->  | AY54: =IF(L23=CF13,IF(OR(L21=CH4,L21=CH5),AY53-((AY53-AY57)*0.05),),) ->  | AZ54: =IF(L23=CF13,IF(OR(L21=CH4,L21=CH5),AZ52,),) -> 
A55: =A47 ->  | B55: =BK32-B47 ->  | C55: =IF(E21=1,0,C47) ->  | D55: =IF(E21=1,0,B55) ->  | E55: =IF(E21=1,0,IF(E21=2,0,E47)) ->  | F55: =IF(E21=1,0,IF(E21=2,0,B55)) ->  | G55: =IF(E21=4,G47,0) ->  | H55: =IF(E21=4,B55,0) ->  | I55: =IF(E23=BJ13,IF(E21<>BL2,I57+((I53-I57)*0.85),),) -> 0 | J55: =IF(E23=BJ13,IF(E21<>BL2,J51,),) -> 0 | K55: =IF(E23=BJ13,IF(OR(E21=BL4,E21=BL5),K57+((K53-K57)*0.85),),) -> 0 | L55: =IF(E23=BJ13,IF(OR(E21=BL4,E21=BL5),L51,),) -> 0 | N55: 0 | U55: =U47 ->  | V55: =BV32-V47 ->  | W55: =IF(I21=1,0,W47) ->  | X55: =IF(I21=1,0,V55) ->  | Y55: =IF(I21=1,0,IF(I21=2,0,Y47)) ->  | Z55: =IF(I21=1,0,IF(I21=2,0,V55)) ->  | AA55: =IF(I21=4,AA47,0) ->  | AB55: =IF(I21=4,V55,0) ->  | AC55: =IF(I23=BU13,IF(I21<>BW2,AC57+((AC53-AC57)*0.85),),) -> 0 | AD55: =IF(I23=BU13,IF(I21<>BW2,AD51,),) -> 0 | AE55: =IF(I23=BU13,IF(OR(I21=BW4,I21=BW5),AE57+((AE53-AE57)*0.85),),) -> 0 | AF55: =IF(I23=BU13,IF(OR(I21=BW4,I21=BW5),AF51,),) -> 0 | AH55: 0 | AO55: =AO47 ->  | AP55: =CG32-AP47 ->  | AQ55: =IF(L21=1,0,AQ47) ->  | AR55: =IF(L21=1,0,AP55) ->  | AS55: =IF(L21=1,0,IF(L21=2,0,AS47)) ->  | AT55: =IF(L21=1,0,IF(L21=2,0,AP55)) ->  | AU55: =IF(L21=4,AU47,0) ->  | AV55: =IF(L21=4,AP55,0) ->  | AW55: =IF(L23=CF13,IF(L21<>CH2,AW57+((AW53-AW57)*0.85),),) ->  | AX55: =IF(L23=CF13,IF(L21<>CH2,AX51,),) ->  | AY55: =IF(L23=CF13,IF(OR(L21=CH4,L21=CH5),AY57+((AY53-AY57)*0.85),),) ->  | AZ55: =IF(L23=CF13,IF(OR(L21=CH4,L21=CH5),AZ51,),) -> 
A56: =A46 ->  | B56: =B54 ->  | C56: =C46 ->  | D56: =IF(E21=1,0,D54) ->  | E56: =E46 ->  | F56: =F54 ->  | G56: =G46 ->  | H56: =H54 ->  | I56: =IF(E23=BJ13,IF(E21<>BL2,I57+((I53-I57)/1.8),),) -> 0 | J56: =IF(E23=BJ13,IF(E21<>BL2,J50,),) -> 0 | K56: =IF(E23=BJ13,IF(OR(E21=BL4,E21=BL5),K57+((K53-K57)/1.8),),) -> 0 | L56: =IF(E23=BJ13,IF(OR(E21=BL4,E21=BL5),L50,),) -> 0 | N56: 0 | U56: =U46 ->  | V56: =V54 ->  | W56: =W46 ->  | X56: =IF(I21=1,0,X54) ->  | Y56: =Y46 ->  | Z56: =Z54 ->  | AA56: =AA46 ->  | AB56: =AB54 ->  | AC56: =IF(I23=BU13,IF(I21<>BW2,AC57+((AC53-AC57)/1.8),),) -> 0 | AD56: =IF(I23=BU13,IF(I21<>BW2,AD50,),) -> 0 | AE56: =IF(I23=BU13,IF(OR(I21=BW4,I21=BW5),AE57+((AE53-AE57)/1.8),),) -> 0 | AF56: =IF(I23=BU13,IF(OR(I21=BW4,I21=BW5),AF50,),) -> 0 | AH56: 0 | AO56: =AO46 ->  | AP56: =AP54 ->  | AQ56: =AQ46 ->  | AR56: =IF(L21=1,0,AR54) ->  | AS56: =AS46 ->  | AT56: =AT54 ->  | AU56: =AU46 ->  | AV56: =AV54 ->  | AW56: =IF(L23=CF13,IF(L21<>CH2,AW57+((AW53-AW57)/1.8),),) ->  | AX56: =IF(L23=CF13,IF(L21<>CH2,AX50,),) ->  | AY56: =IF(L23=CF13,IF(OR(L21=CH4,L21=CH5),AY57+((AY53-AY57)/1.8),),) ->  | AZ56: =IF(L23=CF13,IF(OR(L21=CH4,L21=CH5),AZ50,),) -> 
A57: =A45 ->  | B57: =B53 ->  | C57: =IF(E21=1,0,C45) ->  | D57: =IF(E21=1,0,D53) ->  | E57: =IF(E21=1,0,IF(E21=2,0,E45)) ->  | F57: =IF(E21=1,0,IF(E21=2,0,F53)) ->  | G57: =IF(E21=4,G45,0) ->  | H57: =IF(E21=4,H53,0) ->  | I57: =IF(E23=BJ13,IF(E21<>BL2,I45,),) -> 0 | J57: =IF(E23=BJ13,IF(E21<>BL2,J45,),) -> 0 | K57: =IF(E23=BJ13,IF(OR(E21=BL4,E21=BL5),K45,),) -> 0 | L57: =IF(E23=BJ13,IF(OR(E21=BL4,E21=BL5),L45,),) -> 0 | N57: 0 | U57: =U45 ->  | V57: =V53 ->  | W57: =IF(I21=1,0,W45) ->  | X57: =IF(I21=1,0,X53) ->  | Y57: =IF(I21=1,0,IF(I21=2,0,Y45)) ->  | Z57: =IF(I21=1,0,IF(I21=2,0,Z53)) ->  | AA57: =IF(I21=4,AA45,0) ->  | AB57: =IF(I21=4,AB53,0) ->  | AC57: =IF(I23=BU13,IF(I21<>BW2,AC45,),) -> 0 | AD57: =IF(I23=BU13,IF(I21<>BW2,AD45,),) -> 0 | AE57: =IF(I23=BU13,IF(OR(I21=BW4,I21=BW5),AE45,),) -> 0 | AF57: =IF(I23=BU13,IF(OR(I21=BW4,I21=BW5),AF45,),) -> 0 | AH57: 0 | AO57: =AO45 ->  | AP57: =AP53 ->  | AQ57: =IF(L21=1,0,AQ45) ->  | AR57: =IF(L21=1,0,AR53) ->  | AS57: =IF(L21=1,0,IF(L21=2,0,AS45)) ->  | AT57: =IF(L21=1,0,IF(L21=2,0,AT53)) ->  | AU57: =IF(L21=4,AU45,0) ->  | AV57: =IF(L21=4,AV53,0) ->  | AW57: =IF(L23=CF13,IF(L21<>CH2,AW45,),) ->  | AX57: =IF(L23=CF13,IF(L21<>CH2,AX45,),) ->  | AY57: =IF(L23=CF13,IF(OR(L21=CH4,L21=CH5),AY45,),) ->  | AZ57: =IF(L23=CF13,IF(OR(L21=CH4,L21=CH5),AZ45,),) -> 
A58: =A45+BJ29 ->  | B58: =B52 ->  | C58: =IF(E21=1,0,C45+BJ29) ->  | D58: =D52 ->  | E58: =IF(E21=1,0,IF(E21=2,0,E45+BJ29)) ->  | F58: =F52 ->  | G58: =IF(E21=4,G45+BJ29,0) ->  | H58: =H52 ->  | U58: =U45+BU29 ->  | V58: =V52 ->  | W58: =IF(I21=1,0,W45+BU29) ->  | X58: =X52 ->  | Y58: =IF(I21=1,0,IF(I21=2,0,Y45+BU29)) ->  | Z58: =Z52 ->  | AA58: =IF(I21=4,AA45+BU29,0) ->  | AB58: =AB52 ->  | AO58: =AO45+CF29 ->  | AP58: =AP52 ->  | AQ58: =IF(L21=1,0,AQ45+CF29) ->  | AR58: =AR52 ->  | AS58: =IF(L21=1,0,IF(L21=2,0,AS45+CF29)) ->  | AT58: =AT52 ->  | AU58: =IF(L21=4,AU45+CF29,0) ->  | AV58: =AV52 -> 
A59: =A45+BI29 ->  | B59: =B51 ->  | C59: =IF(E21=1,0,C45+BI29) ->  | D59: =IF(E21=1,0,D51) ->  | E59: =IF(E21=1,0,IF(E21=2,0,E45+BI29)) ->  | F59: =IF(E21=1,0,IF(E21=2,0,B51)) ->  | G59: =IF(E21=4,G45+BI29,0) ->  | H59: =IF(E21=4,B51,0) ->  | U59: =U45+BT29 ->  | V59: =V51 ->  | W59: =IF(I21=1,0,W45+BT29) ->  | X59: =IF(I21=1,0,X51) ->  | Y59: =IF(I21=1,0,IF(I21=2,0,Y45+BT29)) ->  | Z59: =IF(I21=1,0,IF(I21=2,0,V51)) ->  | AA59: =IF(I21=4,AA45+BT29,0) ->  | AB59: =IF(I21=4,V51,0) ->  | AO59: =AO45+CE29 ->  | AP59: =AP51 ->  | AQ59: =IF(L21=1,0,AQ45+CE29) ->  | AR59: =IF(L21=1,0,AR51) ->  | AS59: =IF(L21=1,0,IF(L21=2,0,AS45+CE29)) ->  | AT59: =IF(L21=1,0,IF(L21=2,0,AP51)) ->  | AU59: =IF(L21=4,AU45+CE29,0) ->  | AV59: =IF(L21=4,AP51,0) -> 
A60: =A58 ->  | B60: =B50 ->  | C60: =C58 ->  | D60: =D50 ->  | E60: =E58 ->  | F60: =F50 ->  | G60: =G58 ->  | H60: =H50 ->  | U60: =U58 ->  | V60: =V50 ->  | W60: =W58 ->  | X60: =X50 ->  | Y60: =Y58 ->  | Z60: =Z50 ->  | AA60: =AA58 ->  | AB60: =AB50 ->  | AO60: =AO58 ->  | AP60: =AP50 ->  | AQ60: =AQ58 ->  | AR60: =AR50 ->  | AS60: =AS58 ->  | AT60: =AT50 ->  | AU60: =AU58 ->  | AV60: =AV50 -> 
A61: =A45 ->  | B61: =BL19 ->  | C61: =IF(E21=1,0,C57) ->  | D61: =IF(E21=1,0,BL19) ->  | E61: =IF(E21=1,0,IF(E21=2,0,E57)) ->  | F61: =IF(E21=1,0,IF(E21=2,0,BL19)) ->  | G61: =IF(E21=4,G57,0) ->  | H61: =IF(E21=4,BL19,0) ->  | U61: =U45 ->  | V61: =BW19 ->  | W61: =IF(I21=1,0,W57) ->  | X61: =IF(I21=1,0,BW19) ->  | Y61: =IF(I21=1,0,IF(I21=2,0,Y57)) ->  | Z61: =IF(I21=1,0,IF(I21=2,0,BW19)) ->  | AA61: =IF(I21=4,AA57,0) ->  | AB61: =IF(I21=4,BW19,0) ->  | AO61: =AO45 ->  | AP61: =CH19 ->  | AQ61: =IF(L21=1,0,AQ57) ->  | AR61: =IF(L21=1,0,CH19) ->  | AS61: =IF(L21=1,0,IF(L21=2,0,AS57)) ->  | AT61: =IF(L21=1,0,IF(L21=2,0,CH19)) ->  | AU61: =IF(L21=4,AU57,0) ->  | AV61: =IF(L21=4,CH19,0) -> 

Sheet Georgian Gable
BL1: Main material | BM1: =IF(OR(E29=BT2,E29=BT3,E29=BT4,E29=BT5,E29=BT6),' '!B6,IF(OR(E29=BT7,E29=BT8,E29=BT9,E29=BT10,E29=BT11,E29=BT12,E29=BT13,E29=BT14,E29=BT15),' '!B7,IF(OR(E29=BT16,E29=BT17,E29=BT18,E29=BT19,E29=BT20),' '!B8,))) -> 4.54 | BN1: Material cost | BO1: =' '!$B$10 -> 13.25 | BP1: Sails | BQ1: Warning 1 | BR1: Warning: Sail too narrow, increase no. of sails, add additional fitting points or reduce gap size | BS1: Sails | BT1: Fabric Colour | BV1: Fittings Colours | BY1: Main material | BZ1: =IF(OR(I29=CG2,I29=CG3,I29=CG4,I29=CG5,I29=CG6),' '!B6,IF(OR(I29=CG7,I29=CG8,I29=CG9,I29=CG10,I29=CG11,I29=CG12,I29=CG13,I29=CG14,I29=CG15),' '!B7,IF(OR(I29=CG16,I29=CG17,I29=CG18,I29=CG19,I29=CG20),' '!B8,))) -> 4.54 | CC1: Sails | CD1: Warning 1 | CE1: Warning: Sail too narrow, increase no. of sails, add additional fitting points or reduce gap size | CF1: Sails | CG1: Fabric Colour | CI1: Fittings Colours | CL1: Main material | CM1: =IF(OR(L29=CT2,L29=CT3,L29=CT4,L29=CT5,L29=CT6),' '!B6,IF(OR(L29=CT7,L29=CT8,L29=CT9,L29=CT10,L29=CT11,L29=CT12,L29=CT13,L29=CT14,L29=CT15),' '!B7,IF(OR(L29=CT16,L29=CT17,L29=CT18,L29=CT19,L29=CT20),' '!B8,))) -> 4.54 | CP1: Sails | CQ1: Warning 1 | CR1: Warning: Sail too narrow, increase no. of sails, add additional fitting points or reduce gap size | CS1: Sails | CT1: Fabric Colour | CV1: Fittings Colours
BL2: Tri material | BM2: =IF(OR(E30=BT2,E30=BT3,E30=BT4,E30=BT5,E30=BT6),' '!B6,IF(OR(E30=BT7,E30=BT8,E30=BT9,E30=BT10,E30=BT11,E30=BT12,E30=BT13,E30=BT14,E30=BT15),' '!B7,IF(OR(E30=BT16,E30=BT17,E30=BT18,E30=BT19,E30=BT20),' '!B8,))) -> 4.54 | BN2: PE | BO2: =' '!$B$11 -> 3 | BP2: 1 - Front | BQ2: Warning 2 | BR2: Warning: Sail too narrow, decrease no. of sails, add additional fitting points gap size | BS2: =IF(E22=BP2,2,IF(E22=BP3,1,E22)) ->  | BT2: ISX Solid | BV2: Stainless steel | BY2: Tri material | BZ2: =IF(OR(I30=CG2,I30=CG3,I30=CG4,I30=CG5,I30=CG6),' '!B6,IF(OR(I30=CG7,I30=CG8,I30=CG9,I30=CG10,I30=CG11,I30=CG12,I30=CG13,I30=CG14,I30=CG15),' '!B7,IF(OR(I30=CG16,I30=CG17,I30=CG18,I30=CG19,I30=CG20),' '!B8,))) -> 4.54 | CC2: 1 - Front | CD2: Warning 2 | CE2: Warning: Sail too narrow, decrease no. of sails, add additional fitting points gap size | CF2: =IF(I22=CC2,2,IF(I22=CC3,1,I22)) ->  | CG2: ISX Solid | CI2: Stainless steel | CL2: Tri material | CM2: =IF(OR(L30=CT2,L30=CT3,L30=CT4,L30=CT5,L30=CT6),' '!B6,IF(OR(L30=CT7,L30=CT8,L30=CT9,L30=CT10,L30=CT11,L30=CT12,L30=CT13,L30=CT14,L30=CT15),' '!B7,IF(OR(L30=CT16,L30=CT17,L30=CT18,L30=CT19,L30=CT20),' '!B8,))) -> 4.54 | CP2: 1 - Front | CQ2: Warning 2 | CR2: Warning: Sail too narrow, decrease no. of sails, add additional fitting points gap size | CS2: =IF(L22=CP2,2,IF(L22=CP3,1,L22)) ->  | CT2: ISX Solid | CV2: Stainless steel
BN3: PN | BO3: =IF(BP9=4,' '!$B$19,' '!$B$20) -> 4.75 | BP3: 1 | BQ3: Warning 3 | BR3: Warning: Sail too wide for standard fabric, please add more sails or increase gap size | BT3: ISX White | BV3: White | CA3: PN | CB3: =IF(CC9=4,' '!$B$19,' '!$B$20) -> 4.25 | CC3: 1 | CD3: Warning 3 | CE3: Warning: Sail too wide for standard fabric, please add more sails or increase gap size | CG3: ISX White | CI3: White | CN3: PN | CO3: =IF(CP9=4,' '!$B$19,' '!$B$20) -> 4.25 | CP3: 1 | CQ3: Warning 3 | CR3: Warning: Sail too wide for standard fabric, please add more sails or increase gap size | CT3: ISX White | CV3: White
BP4: 2 | BQ4: Warning 4 | BR4: Warning: Conservatory too long for standard fabric, contact office for more detailed price | BT4: ISX Solid Ivory | BV4: Gold | CC4: 2 | CD4: Warning 4 | CE4: Warning: Conservatory too long for standard fabric, contact office for more detailed price | CG4: ISX Solid Ivory | CI4: Gold | CP4: 2 | CQ4: Warning 4 | CR4: Warning: Conservatory too long for standard fabric, contact office for more detailed price | CT4: ISX Solid Ivory | CV4: Gold
B5: =' '!A46 -> v2023.2 | BN5: No. of vents | BP5: 3 | BT5: ISX Solid Oyster | BV5: Cost | BW5: =IF(E31=BV2, ' '!B24, ' '!B25) -> 7 | CA5: No. of vents | CC5: 3 | CG5: ISX Solid Oyster | CI5: Cost | CJ5: =IF(I31=BV2, ' '!B24, ' '!B25) -> 7 | CN5: No. of vents | CP5: 3 | CT5: ISX Solid Oyster | CV5: Cost | CW5: =IF(L31=BV2, ' '!B24, ' '!B25) -> 7
BL6: Standard | BM6: =' '!B14 -> 1 | BN6: 0 | BP6: 4 | BT6: ISX Solid Stone | CA6: 0 | CC6: 4 | CG6: ISX Solid Stone | CN6: 0 | CP6: 4 | CT6: ISX Solid Stone
BL7: Triangle | BM7: =' '!B15 -> 0.75 | BN7: 1 | BR7: Dims in m | BT7: ISX Duplex | CA7: 1 | CE7: Dims in m | CG7: ISX Duplex | CN7: 1 | CR7: Dims in m | CT7: ISX Duplex
BN8: 2 | BQ8: h1 | BR8: =B26/IF(B24>B25,B24,B25) ->  | BT8: ISX Duplex Ocean | CA8: 2 | CD8: h1 | CE8: =B26/IF(B24>B25,B24,B25) ->  | CG8: ISX Duplex Ocean | CN8: 2 | CQ8: h1 | CR8: =B26/IF(B24>B25,B24,B25) ->  | CT8: ISX Duplex Ocean
BN9: 3 | BO9: No. of corners | BP9: =IF(E25=BY33,6,4) -> 6 | BQ9: h2 | BR9: =B27/IF(B24>B25,B24,B25) ->  | BT9: ISX Duplex Stone | CA9: 3 | CB9: No. of corners | CC9: =IF(I25=BY33,6,4) -> 4 | CD9: h2 | CE9: =B27/IF(B24>B25,B24,B25) ->  | CG9: ISX Duplex Stone | CN9: 3 | CO9: No. of corners | CP9: =IF(L25=BY33,6,4) -> 4 | CQ9: h2 | CR9: =B27/IF(B24>B25,B24,B25) ->  | CT9: ISX Duplex Stone
BL10: Overlap left | BM10: =IF(E23=BL11,BM11,IF(E23=BL12,BM12,IF(E23=BL13,BM13,))) ->  | BN10: 4 | BQ10: y1 | BR10: =B25/IF(B24>B25,B24,B25) ->  | BT10: ISX Duplex Slate | BY10: Overlap left | BZ10: =IF(I23=BY11,BZ11,IF(I23=BY12,BZ12,IF(I23=BY13,BZ13,))) ->  | CA10: 4 | CD10: y1 | CE10: =B25/IF(B24>B25,B24,B25) ->  | CG10: ISX Duplex Slate | CL10: Overlap left | CM10: =IF(L23=CL11,CM11,IF(L23=CL12,CM12,IF(L23=CL13,CM13,))) -> 0 | CN10: 4 | CQ10: y1 | CR10: =B25/IF(B24>B25,B24,B25) ->  | CT10: ISX Duplex Slate
BL11: 0 | BM11: 0 | BO11: Curve allowance | BP11: 0.5 | BQ11: x1 | BR11: =B24/IF(B24>B25,B24,B25) ->  | BT11: ISX Duplex Graphite | BY11: 0 | BZ11: 0 | CB11: Curve allowance | CC11: 0.5 | CD11: x1 | CE11: =B24/IF(B24>B25,B24,B25) ->  | CG11: ISX Duplex Graphite | CL11: 0 | CM11: 0 | CO11: Curve allowance | CP11: 0.5 | CQ11: x1 | CR11: =B24/IF(B24>B25,B24,B25) ->  | CT11: ISX Duplex Graphite
BL12: 0.5 | BM12: =IF(E22=BP3,0,IF(OR(E22=BP4,E22=BP2),(BN16/2)+BR23,(BN16*0.75)+BR23)) ->  | BT12: ISXFR Solid | BY12: 0.5 | BZ12: =IF(I22=CC3,0,IF(OR(I22=CC4,I22=CC2),(CA16/2)+CE23,(CA16*0.75)+CE23)) ->  | CG12: ISXFR Solid | CL12: 0.5 | CM12: =IF(L22=CP3,0,IF(OR(L22=CP4,L22=CP2),(CN16/2)+CR23,(CN16*0.75)+CR23)) ->  | CT12: ISXFR Solid
BL13: 1 | BM13: =IF(E22=BP3,0,IF(OR(E22=BP4,E22=BP2),BN16+BR23,IF(E22=BP5,(BN16*1.34)+BR23,(BN16*1.67)+BR23))) ->  | BN13: tri width | BO13: tri length | BP13: tri mid | BQ13: tri quarter | BR13: tri perimeter | BT13: ISXFR White | BY13: 1 | BZ13: =IF(I22=CC3,0,IF(OR(I22=CC4,I22=CC2),CA16+CE23,IF(I22=CC5,(CA16*1.34)+CE23,(CA16*1.67)+CE23))) ->  | CA13: tri width | CB13: tri length | CC13: tri mid | CD13: tri quarter | CE13: tri perimeter | CG13: ISXFR White | CL13: 1 | CM13: =IF(L22=CP3,0,IF(OR(L22=CP4,L22=CP2),CN16+CR23,IF(L22=CP5,(CN16*1.34)+CR23,(CN16*1.67)+CR23))) ->  | CN13: tri width | CO13: tri length | CP13: tri mid | CQ13: tri quarter | CR13: tri perimeter | CT13: ISXFR White
BL14: Overlap right | BM14: =BM10 ->  | BN14: =BO14*0.8 ->  | BO14: =P65-(0.07/(IF(B24>B25,B24,B25)/1000)) ->  | BP14: =BN14*0.13 ->  | BQ14: =BP14*0.75 ->  | BR14: =(BN14+(0.07/(IF(B24>B25,B24,B25)/1000)))+((BO14+(0.07/(IF(B24>B25,B24,B25)/1000)))*2) ->  | BT14: ISXFR Solid Ivory | BY14: Overlap right | BZ14: =BZ10 ->  | CA14: =BO14*0.8 ->  | CB14: =AK65-(0.07/(IF(B24>B25,B24,B25)/1000)) ->  | CC14: =CA14*0.13 ->  | CD14: =CC14*0.75 ->  | CE14: =(CA14+(0.07/(IF(B24>B25,B24,B25)/1000)))+((BO14+(0.07/(IF(B24>B25,B24,B25)/1000)))*2) ->  | CG14: ISXFR Solid Ivory | CL14: Overlap right | CM14: =CM10 -> 0 | CN14: =BO14*0.8 ->  | CO14: =BF65-(0.07/(IF(B24>B25,B24,B25)/1000)) ->  | CP14: =CN14*0.13 ->  | CQ14: =CP14*0.75 ->  | CR14: =(CN14+(0.07/(IF(B24>B25,B24,B25)/1000)))+((BO14+(0.07/(IF(B24>B25,B24,B25)/1000)))*2) ->  | CT14: ISXFR Solid Ivory
BM15: Warnings | BN15: Mid | BO15: Quarters | BP15: Coverage | BQ15: Roof area (m^2) | BR15: =BR18*BR10 ->  | BT15: ISXFR Solid Oyster | BZ15: Warnings | CA15: Mid | CB15: Quarters | CC15: Coverage | CD15: Roof area (m^2) | CE15: =CE18*CE10 ->  | CG15: ISXFR Solid Oyster | CM15: Warnings | CN15: Mid | CO15: Quarters | CP15: Coverage | CQ15: Roof area (m^2) | CR15: =CR18*CR10 ->  | CT15: ISXFR Solid Oyster
E16: Plan view - looking from above | I16: Plan view - looking from above | L16: Plan view - looking from above | BL16: Width | BM16: =(IF(OR(E22=BP2,E22=BP3),BM23,IF(OR(E22=BP4,E22=BP5,E22=BP6),MIN(BM23:BO23),))) ->  | BN16: =((BR19+(0.07/(IF(B24>B25,B24,B25)/1000)))*0.13)+BR23 ->  | BO16: =(BN16)*0.75 ->  | BP16: One Side | BQ16: Area of each sail | BR16: =BR15/BS2 ->  | BT16: ISXFR Duplex | BY16: Width | BZ16: =(IF(OR(I22=CC2,I22=CC3),BZ23,IF(OR(I22=CC4,I22=CC5,I22=CC6),MIN(BZ23:CB23),))) ->  | CA16: =((CE19+(0.07/(IF(B24>B25,B24,B25)/1000)))*0.13)+CE23 ->  | CB16: =(CA16)*0.75 ->  | CC16: One Side | CD16: Area of each sail | CE16: =CE15/CF2 ->  | CG16: ISXFR Duplex | CL16: Width | CM16: =(IF(OR(L22=CP2,L22=CP3),CM23,IF(OR(L22=CP4,L22=CP5,L22=CP6),MIN(CM23:CO23),))) ->  | CN16: =((CR19+(0.07/(IF(B24>B25,B24,B25)/1000)))*0.13)+CR23 ->  | CO16: =(CN16)*0.75 ->  | CP16: One Side | CQ16: Area of each sail | CR16: =CR15/CS2 ->  | CT16: ISXFR Duplex
BL17: Length | BM17: =(BR19*(IF(B24>B25,B24,B25)/1000))+0.07 ->  | BN17: - | BO17: - | BP17: Both Sides | BQ17: Sail perimeter | BR17: =((BR19+0.07)*2)+((BR20+0.07)*2) ->  | BT17: ISXFR Duplex Ocean | BY17: Length | BZ17: =(CE19*(IF(B24>B25,B24,B25)/1000))+0.07 ->  | CA17: - | CB17: - | CC17: Both Sides | CD17: Sail perimeter | CE17: =((CE19+0.07)*2)+((CE20+0.07)*2) ->  | CG17: ISXFR Duplex Ocean | CL17: Length | CM17: =(CR19*(IF(B24>B25,B24,B25)/1000))+0.07 ->  | CN17: - | CO17: - | CP17: Both Sides | CQ17: Sail perimeter | CR17: =((CR19+0.07)*2)+((CR20+0.07)*2) ->  | CT17: ISXFR Duplex Ocean
D18: =' '!$A$42 -> Starting Cost incl. Installation | E18: =((((BM25+BN25+BO25+(E32*' '!B29)+BP25+(' '!B21*E26)+IF(E31<>BV2,E26*' '!B26,0)))+(E27*' '!B30)+(E28*' '!B31)+(IF(E22=BP6,BN25,0)))) ->  | H18: =' '!$A$43 -> Average Cost incl. Installation | I18: =((((BZ25+CA25+CB25+(I32*' '!B29)+CC25+(' '!B21*I26)+IF(I31<>CI2,I26*' '!B26,0)))+(I27*' '!B30)+(I28*' '!B31)+(IF(I22=CC6,CA25,0)))) ->  | K18: =' '!$A$44 -> High End Cost incl. Installation | L18: =(((CM25+CN25+CO25+(L32*' '!B29)+CP25+(' '!B21*L26)+IF(L31<>CV2,L26*' '!B26,0)))+(L27*' '!B30)+(L28*' '!B31)+(IF(L22=CP6,CN25,0))) ->  | BL18: Vertical left | BM18: =((BR20+(0.07/(IF(B24>B25,B24,B25)/1000)))*0.13)+BR23 ->  | BN18: =BM18*0.75 ->  | BP18: triangles | BQ18: Glazing bar length | BR18: =SQRT((BR9-BR8)^2+(BR11/2)^2) ->  | BT18: ISXFR Duplex Stone | BY18: Vertical left | BZ18: =((CE20+(0.07/(IF(B24>B25,B24,B25)/1000)))*0.13)+CE23 ->  | CA18: =BZ18*0.75 ->  | CC18: triangles | CD18: Glazing bar length | CE18: =SQRT((CE9-CE8)^2+(CE11/2)^2) ->  | CG18: ISXFR Duplex Stone | CL18: Vertical left | CM18: =((CR20+(0.07/(IF(B24>B25,B24,B25)/1000)))*0.13)+CR23 ->  | CN18: =CM18*0.75 ->  | CP18: triangles | CQ18: Glazing bar length | CR18: =SQRT((CR9-CR8)^2+(CR11/2)^2) ->  | CT18: ISXFR Duplex Stone
E19: =' '!U5+' '!B33 ->  | I19: =' '!AG5+' '!B33 ->  | L19: =' '!AS5+' '!B33 ->  | BL19: Vertical mid | BM19: =((AVERAGE(BR21:BS21)+(0.07/(IF(B24>B25,B24,B25)/1000)))*0.13)+BR23 ->  | BN19: =BM19*0.75 ->  | BP19: No | BQ19: Length of sail | BR19: =(BR11/2)-(0.07/(IF(B24>B25,B24,B25)/1000)) ->  | BT19: ISXFR Duplex Slate | BY19: Vertical mid | BZ19: =((AVERAGE(CE21:CF21)+(0.07/(IF(B24>B25,B24,B25)/1000)))*0.13)+CE23 ->  | CA19: =BZ19*0.75 ->  | CC19: No | CD19: Length of sail | CE19: =(CE11/2)-(0.07/(IF(B24>B25,B24,B25)/1000)) ->  | CG19: ISXFR Duplex Slate | CL19: Vertical mid | CM19: =((AVERAGE(CR21:CS21)+(0.07/(IF(B24>B25,B24,B25)/1000)))*0.13)+CR23 ->  | CN19: =CM19*0.75 ->  | CP19: No | CQ19: Length of sail | CR19: =(CR11/2)-(0.07/(IF(B24>B25,B24,B25)/1000)) ->  | CT19: ISXFR Duplex Slate
BL20: Vertical right | BM20: =((BR22+(0.07/(IF(B24>B25,B24,B25)/1000)))*0.13)+BR23 ->  | BN20: =BM20*0.75 ->  | BP20: Yes | BQ20: Width left | BR20: =(BR10/BS2)-(0.07/(IF(B24>B25,B24,B25)/1000))+BM10 ->  | BS20: -> | BT20: ISXFR Duplex Graphite | BY20: Vertical right | BZ20: =((CE22+(0.07/(IF(B24>B25,B24,B25)/1000)))*0.13)+CE23 ->  | CA20: =BZ20*0.75 ->  | CC20: Yes | CD20: Width left | CE20: =(CE10/CF2)-(0.07/(IF(B24>B25,B24,B25)/1000))+BZ10 ->  | CF20: -> | CG20: ISXFR Duplex Graphite | CL20: Vertical right | CM20: =((CR22+(0.07/(IF(B24>B25,B24,B25)/1000)))*0.13)+CR23 ->  | CN20: =CM20*0.75 ->  | CP20: Yes | CQ20: Width left | CR20: =(CR10/CS2)-(0.07/(IF(B24>B25,B24,B25)/1000))+CM10 ->  | CS20: -> | CT20: ISXFR Duplex Graphite
D21: Select coverage | E21: Both Sides | H21: Select coverage | I21: Both Sides | K21: Select coverage | L21: Both Sides | BL21: Costs | BM21: left | BN21: mid | BO21: right | BP21: tri | BQ21: Width middle | BR21: =(BR10/BS2)-(0.07/(IF(B24>B25,B24,B25)/1000))+BM10 ->  | BS21: =(BR10/BS2)-(0.07/(IF(B24>B25,B24,B25)/1000))+BM14 ->  | BY21: Costs | BZ21: left | CA21: mid | CB21: right | CC21: tri | CD21: Width middle | CE21: =(CE10/CF2)-(0.07/(IF(B24>B25,B24,B25)/1000))+BZ10 ->  | CF21: =(CE10/CF2)-(0.07/(IF(B24>B25,B24,B25)/1000))+BZ14 ->  | CL21: Costs | CM21: left | CN21: mid | CO21: right | CP21: tri | CQ21: Width middle | CR21: =(CR10/CS2)-(0.07/(IF(B24>B25,B24,B25)/1000))+CM10 ->  | CS21: =(CR10/CS2)-(0.07/(IF(B24>B25,B24,B25)/1000))+CM14 -> 
D22: Number of sails per side | E22: =BU27 ->  | H22: Number of sails per side | I22: =CH27 ->  | K22: Number of sails per side | L22: =CU27 ->  | BL22: length | BM22: =(BR18*(IF(B24>B25,B24,B25)/1000)) ->  | BN22: =BM22 ->  | BO22: =BN22 ->  | BP22: =BO22 ->  | BQ22: Width right | BR22: =(BR10/BS2)-(0.07/(IF(B24>B25,B24,B25)/1000))+BM14 ->  | BY22: length | BZ22: =(CE18*(IF(B24>B25,B24,B25)/1000)) ->  | CA22: =BZ22 ->  | CB22: =CA22 ->  | CC22: =CB22 ->  | CD22: Width right | CE22: =(CE10/CF2)-(0.07/(IF(B24>B25,B24,B25)/1000))+BZ14 ->  | CL22: length | CM22: =(CR18*(IF(B24>B25,B24,B25)/1000)) ->  | CN22: =CM22 ->  | CO22: =CN22 ->  | CP22: =CO22 ->  | CQ22: Width right | CR22: =(CR10/CS2)-(0.07/(IF(B24>B25,B24,B25)/1000))+CM14 -> 
B23: All dims in mm | D23: Overlaps | E23: 0.5 | H23: Overlaps | I23: 0.5 | K23: Overlaps | L23: 0 | AJ23: =' '!AO9 -> 0 | BL23: width | BM23: =((A68-A64)*(IF(B24>B25,B24,B25)/1000))+0.07 ->  | BN23: =IF(E22<>BP5,MIN(BM23,BO23),((E68-E64)*(IF(B24>B25,B24,B25)/1000))+0.07) ->  | BO23: =((C68-C64)*(IF(B24>B25,B24,B25)/1000))+0.07*IF(E22<>BP3,1,1000) ->  | BP23: =(BN14*(IF(B24>B25,B24,B25)/1000))+0.07 ->  | BQ23: 50mm links | BR23: =0.035/(IF(B24>B25,B24,B25)/1000) ->  | BY23: width | BZ23: =((V68-V64)*(IF(B24>B25,B24,B25)/1000))+0.07 ->  | CA23: =IF(I22<>CC5,MIN(BZ23,CB23),((Z68-Z64)*(IF(B24>B25,B24,B25)/1000))+0.07) ->  | CB23: =((X68-X64)*(IF(B24>B25,B24,B25)/1000))+0.07*IF(I22<>CC3,1,1000) ->  | CC23: =(CA14*(IF(B24>B25,B24,B25)/1000))+0.07 ->  | CD23: 50mm links | CE23: =0.035/(IF(B24>B25,B24,B25)/1000) ->  | CL23: width | CM23: =((AQ68-AQ64)*(IF(B24>B25,B24,B25)/1000))+0.07 ->  | CN23: =IF(L22<>CP5,MIN(CM23,CO23),((AU68-AU64)*(IF(B24>B25,B24,B25)/1000))+0.07) ->  | CO23: =((AS68-AS64)*(IF(B24>B25,B24,B25)/1000))+0.07*IF(L22<>CP3,1,1000) ->  | CP23: =(CN14*(IF(B24>B25,B24,B25)/1000))+0.07 ->  | CQ23: 50mm links | CR23: =0.035/(IF(B24>B25,B24,B25)/1000) -> 
A24: X1 | D24: Triangles | E24: No | H24: Triangles | I24: No | K24: Triangles | L24: Yes | BL24: perimeter | BM24: =((BM22*2)+(BM23*2))*1.05 ->  | BN24: =((BN22*2)+(BN23*2))*1.05 ->  | BO24: =((BO22*2)+(BO23*2))*1.05 ->  | BP24: =((BP22*2)+BP23)*1.05 ->  | BQ24: 4 sails left | BR24: =(BR10*0.375)+(MAX(BM14,BM10)/6) ->  | BS24: 4 sails left | BT24: =(BR10*0.625)-(MAX(BM14,BM10)/6) ->  | BY24: perimeter | BZ24: =((BZ22*2)+(BZ23*2))*1.05 ->  | CA24: =((CA22*2)+(CA23*2))*1.05 ->  | CB24: =((CB22*2)+(CB23*2))*1.05 ->  | CC24: =((CC22*2)+CC23)*1.05 ->  | CD24: 4 sails left | CE24: =(CE10*0.375)+(MAX(BZ14,BZ10)/6) ->  | CF24: 4 sails left | CG24: =(CE10*0.625)-(MAX(BZ14,BZ10)/6) ->  | CL24: perimeter | CM24: =((CM22*2)+(CM23*2))*1.05 ->  | CN24: =((CN22*2)+(CN23*2))*1.05 ->  | CO24: =((CO22*2)+(CO23*2))*1.05 ->  | CP24: =((CP22*2)+CP23)*1.05 ->  | CQ24: 4 sails left | CR24: =(CR10*0.375)+(MAX(CM14,CM10)/6) ->  | CS24: 4 sails left | CT24: =(CR10*0.625)-(MAX(CM14,CM10)/6) -> 
A25: Y1 | D25: 6 sided sails | E25: Yes | H25: 6 sided sails | I25: No | K25: 6 sided sails | L25: No | BM25: =(IF(E21=BP17,2,1)*((BM1*((BM22*BM23*BO1*BM6)+(BM24*BO2)+(BP9*BO3)))+(BP9*BW5)+' '!B35)) ->  | BN25: =(IF(OR(E22=BP2,E22=BP3,E22=BP4),0,(IF(E21=BP17,2,1)*(IF(OR(E22=BP5,E22=BP6),((BM1*((BN22*BN23*BO1*BM6)+(BN24*BO2)+(BP9*BO3)))+(BP9*BW5)+' '!B35),))))) ->  | BO25: =IF(OR(E22=BP2,E22=BP3),0,(IF(E21=BP17,2,1)*(IF(OR(E22=BP4,E22=BP5,E22=BP6),((BM1*((BO22*BO23*BO1*BM6)+(BO24*BO2)+(BP9*BO3)))+(BP9*BW5)+' '!B35),)))) ->  | BP25: =IF(E24=BP20,E22-1,0)*((BM2*((BP22*BP23*BO1*BM7)+(BP24*BO2)+(3*' '!B19)))+(3*BW5)+' '!B35)*IF(E21=BP17,2,1) ->  | BZ25: =(IF(I21=CC17,2,1)*((BZ1*((BZ22*BZ23*BO1*BM6)+(BZ24*BO2)+(CC9*CB3)))+(CC9*CJ5)+' '!B35)) ->  | CA25: =(IF(OR(I22=CC2,I22=CC3,I22=CC4),0,(IF(I21=CC17,2,1)*(IF(OR(I22=CC5,I22=CC6),((BZ1*((CA22*CA23*BO1*BM6)+(CA24*BO2)+(CC9*CB3)))+(CC9*CJ5)+' '!B35),))))) ->  | CB25: =IF(OR(I22=CC2,I22=CC3),0,(IF(I21=CC17,2,1)*(IF(OR(I22=CC4,I22=CC5,I22=CC6),((BZ1*((CB22*CB23*BO1*BM6)+(CB24*BO2)+(CC9*CB3)))+(CC9*CJ5)+' '!B35),)))) ->  | CC25: =IF(I24=CC20,I22-1,0)*((BZ2*((CC22*CC23*BO1*BM7)+(CC24*BO2)+(3*' '!B19)))+(3*CJ5)+' '!B35)*IF(I21=CC17,2,1) ->  | CM25: =(IF(L21=CP17,2,1)*((CM1*((CM22*CM23*BO1*BM6)+(CM24*BO2)+(CP9*CO3)))+(CP9*CW5)+' '!B35)) ->  | CN25: =(IF(OR(L22=CP2,L22=CP3,L22=CP4),0,(IF(L21=CP17,2,1)*(IF(OR(L22=CP5,L22=CP6),((CM1*((CN22*CN23*BO1*BM6)+(CN24*BO2)+(CP9*CO3)))+(CP9*CW5)+' '!B35),))))) ->  | CO25: =IF(OR(L22=CP2,L22=CP3),0,(IF(L21=CP17,2,1)*(IF(OR(L22=CP4,L22=CP5,L22=CP6),((CM1*((CO22*CO23*BO1*BM6)+(CO24*BO2)+(CP9*CO3)))+(CP9*CW5)+' '!B35),)))) ->  | CP25: =IF(L24=CP20,L22-1,0)*((CM2*((CP22*CP23*BO1*BM7)+(CP24*BO2)+(3*' '!B19)))+(3*CW5)+' '!B35)*IF(L21=CP17,2,1) -> 
A26: H1 | D26: Total additional fittings | E26: 0 | H26: Total additional fittings | I26: 0 | K26: Total additional fittings | L26: 0 | AJ26: =' '!AO12 -> 0 | BU26: Low | CH26: Mid | CU26: Top
A27: H2 | D27: Total tie-bar loops | E27: 0 | H27: Total tie-bar loops | I27: 0 | K27: Total tie-bar loops | L27: 0 | BT27: Number of sails per side | BU27: =IF(BU31<1.25,1,IF(AND(BU31>=1.25,BU31<=2.25),1,IF(AND(BU31>2.25,BU31<3),2,IF(AND(BU31>=3),3)))) ->  | CG27: Number of sails per side | CH27: =IF(CH31<1.25,1,IF(AND(CH31>=1.25,CH31<=2.25),2,IF(AND(CH31>2.25,CH31<3),3,IF(AND(CH31>=3),4)))) ->  | CT27: Number of sails per side | CU27: =IF(CU31<1.25,1,IF(AND(CU31>=1.25,CU31<=2.25),2,IF(AND(CU31>2.25,CU31<3),3,IF(AND(CU31>=3),4)))) -> 
D28: Total straight edges | E28: 0 | G28: =' '!A12 -> 0 | H28: Total straight edges | I28: 0 | K28: Total straight edges | L28: 0 | BT28: Overlaps | BU28: 0.5 | CG28: Overlaps | CH28: 0.5 | CT28: Overlaps | CU28: 0
D29: Colour of main sails | E29: ISX Solid | H29: Colour of main sails | I29: ISX Solid | K29: Colour of main sails | L29: ISX Solid | BT29: Triangles | BU29: No | CG29: Triangles | CH29: No | CT29: Triangles | CU29: Yes
D30: Colour of triangles | E30: ISX Solid | H30: Colour of triangles | I30: ISX Solid | K30: Colour of triangles | L30: ISX Solid | BT30: Total additional fittings | BU30: =BU27*2*IF(E21=BP17,2,1) ->  | CG30: Total additional fittings | CH30: =IF(CH31<1.25,2,)*IF(I21=CC17,2,1) ->  | CT30: Total additional fittings | CU30: =IF(CU31<1.25,4,)*IF(L21=CP17,2,1) -> 
D31: Colour of fittings | E31: Stainless steel | H31: Colour of fittings | I31: Stainless steel | K31: Colour of fittings | L31: Stainless steel | BT31: Length/Width Ratio | BU31: =B25/(B24/2) ->  | BX31: Overlaps | BY31: Triangles | CG31: Length/Width Ratio | CH31: =B25/(B24/2) ->  | CT31: Length/Width Ratio | CU31: =B25/(B24/2) -> 
D32: Number of window vents | E32: 0 | H32: Number of window vents | I32: 0 | K32: Number of window vents | L32: 0 | BX32: 0 | BY32: No
BX33: 0.5 | BY33: Yes
D34: Max length of sail | E34: =(MAX(BM22:BO22))*1000 ->  | H34: Max length of sail | I34: =(MAX(BZ22:CB22))*1000 ->  | K34: Max length of sail | L34: =(MAX(CM22:CO22))*1000 ->  | BX34: 1
D35: Max width of sail | E35: =BM16*1000 ->  | H35: Max width of sail | I35: =BZ16*1000 ->  | K35: Max width of sail | L35: =CM16*1000 -> 
E36: Sails +2100mm in both directions require seams | I36: Sails +2100mm in both directions require seams | L36: Sails +2100mm in both directions require seams
A42: x | B42: y | C42: x | D42: y | E42: x | F42: y | G42: x | H42: y | I42: triangles | V42: x | W42: y | X42: x | Y42: y | Z42: x | AA42: y | AB42: x | AC42: y | AD42: triangles | AQ42: x | AR42: y | AS42: x | AT42: y | AU42: x | AV42: y | AW42: x | AX42: y | AY42: triangles
A43: Left up | C43: Right up | E43: Mid left up | G43: Mid right up | I43: x | J43: y | K43: x | L43: y | M43: x | N43: y | O43: x | P43: y | Q43: x | R43: y | S43: x | T43: y | V43: Left up | X43: Right up | Z43: Mid left up | AB43: Mid right up | AD43: x | AE43: y | AF43: x | AG43: y | AH43: x | AI43: y | AJ43: x | AK43: y | AL43: x | AM43: y | AN43: x | AO43: y | AQ43: Left up | AS43: Right up | AU43: Mid left up | AW43: Mid right up | AY43: x | AZ43: y | BA43: x | BB43: y | BC43: x | BD43: y | BE43: x | BF43: y | BG43: x | BH43: y | BI43: x | BJ43: y
A44: =IF(E21=BP16,0,BR23) ->  | B44: =IF(E21=BP16,0,BR23+(BR11/2)) ->  | C44: =IF(E21=BP16,0,IF(E22=BP3,0,C48-BR22)) ->  | D44: =IF(E22=BP3,0,B44) ->  | E44: =IF($E$21=$BP$16,0,E64) ->  | F44: =IF(OR(E22=BP2,E22=BP3,E22=BP4),0,B44) ->  | G44: =IF($E$21=$BP$16,0,G64) ->  | H44: =F44 ->  | I44: down left | K44: down right | M44: down 3rd | O44: up left | Q44: up right | S44: up 3rd | V44: =IF(I21=CC16,0,CE23) ->  | W44: =IF(I21=CC16,0,CE23+(CE11/2)) ->  | X44: =IF(I21=CC16,0,IF(I22=CC3,0,X48-CE22)) ->  | Y44: =IF(I22=CC3,0,W44) ->  | Z44: =IF($I$21=$BP$16,0,Z64) ->  | AA44: =IF(OR(I22=CC2,I22=CC3,I22=CC4),0,W44) ->  | AB44: =IF($I$21=$BP$16,0,AB64) ->  | AC44: =AA44 ->  | AD44: down left | AF44: down right | AH44: down 3rd | AJ44: up left | AL44: up right | AN44: up 3rd | AQ44: =IF(L21=CP16,0,CR23) ->  | AR44: =IF(L21=CP16,0,CR23+(CR11/2)) ->  | AS44: =IF(L21=CP16,0,IF(L22=CP3,0,AS48-CR22)) ->  | AT44: =IF(L22=CP3,0,AR44) ->  | AU44: =IF($L$21=$BP$16,0,AU64) ->  | AV44: =IF(OR(L22=CP2,L22=CP3,L22=CP4),0,AR44) ->  | AW44: =IF($L$21=$BP$16,0,AW64) ->  | AX44: =AV44 ->  | AY44: down left | BA44: down right | BC44: down 3rd | BE44: up left | BG44: up right | BI44: up 3rd
A45: =IF(E21=BP16,0,A64+(BR20/4)) ->  | B45: =IF(E21=BP16,0,B65+(BR11/2)) ->  | C45: =IF(E21=BP16,0,IF(E22=BP3,0,C46-(BR22/4))) ->  | D45: =IF(E21=BP16,0,IF(E22=BP3,0,B45)) ->  | F45: =IF(E21=BP16,0,IF(OR(E22=BP2,E22=BP3,E22=BP4),0,B45)) ->  | H45: =F45 ->  | I45: =IF(E24=BP20,IF(E22<>BP3,I47-(BN14/2),),) -> 0 | J45: =IF(E24=BP20,IF(E22<>BP3,BR23,),) -> 0 | K45: =IF(E24=BP20,IF(OR(E22=BP5,E22=BP6),K47-(BN14/2),),) -> 0 | L45: =IF(E24=BP20,IF(OR(E22=BP5,E22=BP6),BR23,),) -> 0 | M45: =IF($E$22=4,K45+$I$47,) ->  | N45: =IF($E$22=4,L45,) ->  | O45: =IF(E21=BP16,0,IF(E24=BP20,IF(E22<>BP3,I47-(BN14/2),),)) -> 0 | P45: =IF(E21=BP16,0,IF(E24=BP20,IF(E22<>BP3,P63-BR23,),)) -> 0 | Q45: =IF(E21=BP16,0,IF(E24=BP20,IF(OR(E22=BP5,E22=BP6),K47-(BN14/2),),)) -> 0 | R45: =IF(E24=BP20,IF(OR(E22=BP5,E22=BP6),P63-BR23,),) -> 0 | S45: =IF(AND($E$22=4,$E$21=$BP$17),Q45+$O$47,) ->  | T45: =IF(AND($E$22=4,$E$21=$BP$17),R45,) ->  | V45: =IF(I21=CC16,0,V64+(CE20/4)) ->  | W45: =IF(I21=CC16,0,W65+(CE11/2)) ->  | X45: =IF(I21=CC16,0,IF(I22=CC3,0,X46-(CE22/4))) ->  | Y45: =IF(I21=CC16,0,IF(I22=CC3,0,W45)) ->  | AA45: =IF(I21=CC16,0,IF(OR(I22=CC2,I22=CC3,I22=CC4),0,W45)) ->  | AD45: =IF(I24=CC20,IF(I22<>CC3,AD47-(CA14/2),),) -> 0 | AE45: =IF(I24=CC20,IF(I22<>CC3,CE23,),) -> 0 | AF45: =IF(I24=CC20,IF(OR(I22=CC5,I22=CC6),AF47-(CA14/2),),) -> 0 | AG45: =IF(I24=CC20,IF(OR(I22=CC5,I22=CC6),CE23,),) -> 0 | AH45: =IF($I$22=4,AF45+$AD$47,) ->  | AI45: =IF($I$22=4,AG45,) ->  | AJ45: =IF(I21=CC16,0,IF(I24=CC20,IF(I22<>CC3,AD47-(CA14/2),),)) -> 0 | AK45: =IF(I21=CC16,0,IF(I24=CC20,IF(I22<>CC3,AK63-CE23,),)) -> 0 | AL45: =IF(I21=CC16,0,IF(I24=CC20,IF(OR(I22=CC5,I22=CC6),AF47-(CA14/2),),)) -> 0 | AM45: =IF(I24=CC20,IF(OR(I22=CC5,I22=CC6),AK63-CE23,),) -> 0 | AN45: =IF(AND($I$22=4,$I$21=$CC$17),AL45+$AJ$47,) ->  | AO45: =IF(AND($I$22=4,$I$21=$CC$17),AM45,) ->  | AQ45: =IF(L21=CP16,0,AQ64+(CR20/4)) ->  | AR45: =IF(L21=CP16,0,AR65+(CR11/2)) ->  | AS45: =IF(L21=CP16,0,IF(L22=CP3,0,AS46-(CR22/4))) ->  | AT45: =IF(L21=CP16,0,IF(L22=CP3,0,AR45)) ->  | AV45: =IF(L21=CP16,0,IF(OR(L22=CP2,L22=CP3,L22=CP4),0,AR45)) ->  | AX45: =AV45 ->  | AY45: =IF(L24=CP20,IF(L22<>CP3,AY47-(CN14/2),),) ->  | AZ45: =IF(L24=CP20,IF(L22<>CP3,CR23,),) ->  | BA45: =IF(L24=CP20,IF(OR(L22=CP5,L22=CP6),BA47-(CN14/2),),) ->  | BB45: =IF(L24=CP20,IF(OR(L22=CP5,L22=CP6),CR23,),) ->  | BC45: =IF($L$22=4,BA45+$AY$47,) ->  | BD45: =IF($L$22=4,BB45,) ->  | BE45: =IF(L21=CP16,0,IF(L24=CP20,IF(L22<>CP3,AY47-(CN14/2),),)) ->  | BF45: =IF(L21=CP16,0,IF(L24=CP20,IF(L22<>CP3,BF63-CR23,),)) ->  | BG45: =IF(L21=CP16,0,IF(L24=CP20,IF(OR(L22=CP5,L22=CP6),BA47-(CN14/2),),)) ->  | BH45: =IF(L24=CP20,IF(OR(L22=CP5,L22=CP6),BF63-CR23,),) ->  | BI45: =IF(AND($L$22=4,$L$21=$CP$17),BG45+$BE$47,) ->  | BJ45: =IF(AND($L$22=4,$L$21=$CP$17),BH45,) -> 
A46: =IF(E21=BP16,0,IF(E22=BP3,(BR10/2),A68-(BR20/2))) ->  | B46: =IF(E21=BP16,0,B66+(BR11/2)) ->  | C46: =IF(E21=BP16,0,IF(E22=BP3,0,C48-BR23-(BR22/2))) ->  | D46: =IF(E21=BP16,0,IF(E22=BP3,0,B46)) ->  | F46: =IF(E21=BP16,0,IF(OR(E22=BP2,E22=BP3,E22=BP4),0,B46)) ->  | H46: =F46 ->  | I46: =IF(E24=BP20,IF(E22<>BP3,I45+(BN14/4),),) -> 0 | J46: =IF(E24=BP20,IF(E22<>BP3,BQ14,),) -> 0 | K46: =IF(E24=BP20,IF(OR(OR(E22=BP5,E22=BP6),E22=BP6),K47-(BN14/4),),) -> 0 | L46: =IF(E24=BP20,IF(OR(E22=BP5,E22=BP6),BQ14,),) -> 0 | O46: =IF(E21=BP16,0,IF(E24=BP20,IF(E22<>BP3,I45+(BN14/4),),)) -> 0 | P46: =IF(E21=BP16,0,IF(E24=BP20,IF(E22<>BP3,P63-BQ14,),)) -> 0 | Q46: =IF(E21=BP16,0,IF(E24=BP20,IF(OR(E22=BP5,E22=BP6),K47-(BN14/4),),)) -> 0 | R46: =IF(E24=BP20,IF(OR(E22=BP5,E22=BP6),P63-BQ14,),) -> 0 | V46: =IF(I21=CC16,0,IF(I22=CC3,(CE10/2),V68-(CE20/2))) ->  | W46: =IF(I21=CC16,0,W66+(CE11/2)) ->  | X46: =IF(I21=CC16,0,IF(I22=CC3,0,X48-CE23-(CE22/2))) ->  | Y46: =IF(I21=CC16,0,IF(I22=CC3,0,W46)) ->  | AA46: =IF(I21=CC16,0,IF(OR(I22=CC2,I22=CC3,I22=CC4),0,W46)) ->  | AD46: =IF(I24=CC20,IF(I22<>CC3,AD45+(CA14/4),),) -> 0 | AE46: =IF(I24=CC20,IF(I22<>CC3,CD14,),) -> 0 | AF46: =IF(I24=CC20,IF(OR(OR(I22=CC5,I22=CC6),I22=CC6),AF47-(CA14/4),),) -> 0 | AG46: =IF(I24=CC20,IF(OR(I22=CC5,I22=CC6),CD14,),) -> 0 | AJ46: =IF(I21=CC16,0,IF(I24=CC20,IF(I22<>CC3,AD45+(CA14/4),),)) -> 0 | AK46: =IF(I21=CC16,0,IF(I24=CC20,IF(I22<>CC3,AK63-CD14,),)) -> 0 | AL46: =IF(I21=CC16,0,IF(I24=CC20,IF(OR(I22=CC5,I22=CC6),AF47-(CA14/4),),)) -> 0 | AM46: =IF(I24=CC20,IF(OR(I22=CC5,I22=CC6),AK63-CD14,),) -> 0 | AQ46: =IF(L21=CP16,0,IF(L22=CP3,(CR10/2),AQ68-(CR20/2))) ->  | AR46: =IF(L21=CP16,0,AR66+(CR11/2)) ->  | AS46: =IF(L21=CP16,0,IF(L22=CP3,0,AS48-CR23-(CR22/2))) ->  | AT46: =IF(L21=CP16,0,IF(L22=CP3,0,AR46)) ->  | AV46: =IF(L21=CP16,0,IF(OR(L22=CP2,L22=CP3,L22=CP4),0,AR46)) ->  | AX46: =AV46 ->  | AY46: =IF(L24=CP20,IF(L22<>CP3,AY45+(CN14/4),),) ->  | AZ46: =IF(L24=CP20,IF(L22<>CP3,CQ14,),) ->  | BA46: =IF(L24=CP20,IF(OR(OR(L22=CP5,L22=CP6),L22=CP6),BA47-(CN14/4),),) ->  | BB46: =IF(L24=CP20,IF(OR(L22=CP5,L22=CP6),CQ14,),) ->  | BE46: =IF(L21=CP16,0,IF(L24=CP20,IF(L22<>CP3,AY45+(CN14/4),),)) ->  | BF46: =IF(L21=CP16,0,IF(L24=CP20,IF(L22<>CP3,BF63-CQ14,),)) ->  | BG46: =IF(L21=CP16,0,IF(L24=CP20,IF(OR(L22=CP5,L22=CP6),BA47-(CN14/4),),)) ->  | BH46: =IF(L24=CP20,IF(OR(L22=CP5,L22=CP6),BF63-CQ14,),) -> 
A47: =IF(E21=BP16,0,A68-(BR20/4)) ->  | B47: =IF(E21=BP16,0,B65+(BR11/2)) ->  | C47: =C46+(BR22/4) ->  | D47: =IF(E22=BP3,0,D45) ->  | F47: =F45 ->  | I47: =IF(E24=BP20,IF(OR(E22=BP2,E22=BP4),BR10/2,IF(E22=BP5,BR10/3,IF(E22=BP6,BR10/4,)))) -> FALSE | J47: =IF(E24=BP20,IF(E22<>BP3,BP14,),) -> 0 | K47: =IF(E24=BP20,IF(E22=BP5,BR10*(2/3),IF(E22=BP6,BR10/2,))) -> FALSE | L47: =IF(E24=BP20,IF(OR(E22=BP5,E22=BP6),BP14,),) -> 0 | O47: =IF(E21=BP16,0,IF(E24=BP20,IF(OR(E22=BP2,E22=BP4),BR10/2,IF(E22=BP5,BR10/3,IF(E22=BP6,BR10/4,))))) -> FALSE | P47: =IF(E21=BP16,0,IF(E24=BP20,IF(E22<>BP3,P63-BP14,),)) -> 0 | Q47: =IF(E21=BP16,0,IF(E24=BP20,IF(E22=BP5,BR10*(2/3),IF(E22=BP6,BR10/2,)))) -> FALSE | R47: =IF(E24=BP20,IF(OR(E22=BP5,E22=BP6),P63-BP14,),) -> 0 | V47: =IF(I21=CC16,0,V68-(CE20/4)) ->  | W47: =IF(I21=CC16,0,W65+(CE11/2)) ->  | X47: =X46+(CE22/4) ->  | Y47: =IF(I22=CC3,0,Y45) ->  | AA47: =AA45 ->  | AD47: =IF(I24=CC20,IF(OR(I22=CC2,I22=CC4),CE10/2,IF(I22=CC5,CE10/3,IF(I22=CC6,CE10/4,)))) -> FALSE | AE47: =IF(I24=CC20,IF(I22<>CC3,CC14,),) -> 0 | AF47: =IF(I24=CC20,IF(I22=CC5,CE10*(2/3),IF(I22=CC6,CE10/2,))) -> FALSE | AG47: =IF(I24=CC20,IF(OR(I22=CC5,I22=CC6),CC14,),) -> 0 | AJ47: =IF(I21=CC16,0,IF(I24=CC20,IF(OR(I22=CC2,I22=CC4),CE10/2,IF(I22=CC5,CE10/3,IF(I22=CC6,CE10/4,))))) -> FALSE | AK47: =IF(I21=CC16,0,IF(I24=CC20,IF(I22<>CC3,AK63-CC14,),)) -> 0 | AL47: =IF(I21=CC16,0,IF(I24=CC20,IF(I22=CC5,CE10*(2/3),IF(I22=CC6,CE10/2,)))) -> FALSE | AM47: =IF(I24=CC20,IF(OR(I22=CC5,I22=CC6),AK63-CC14,),) -> 0 | AQ47: =IF(L21=CP16,0,AQ68-(CR20/4)) ->  | AR47: =IF(L21=CP16,0,AR65+(CR11/2)) ->  | AS47: =AS46+(CR22/4) ->  | AT47: =IF(L22=CP3,0,AT45) ->  | AV47: =AV45 ->  | AX47: =AV47 ->  | AY47: =IF(L24=CP20,IF(OR(L22=CP2,L22=CP4),CR10/2,IF(L22=CP5,CR10/3,IF(L22=CP6,CR10/4,)))) ->  | AZ47: =IF(L24=CP20,IF(L22<>CP3,CP14,),) ->  | BA47: =IF(L24=CP20,IF(L22=CP5,CR10*(2/3),IF(L22=CP6,CR10/2,))) ->  | BB47: =IF(L24=CP20,IF(OR(L22=CP5,L22=CP6),CP14,),) ->  | BE47: =IF(L21=CP16,0,IF(L24=CP20,IF(OR(L22=CP2,L22=CP4),CR10/2,IF(L22=CP5,CR10/3,IF(L22=CP6,CR10/4,))))) ->  | BF47: =IF(L21=CP16,0,IF(L24=CP20,IF(L22<>CP3,BF63-CP14,),)) ->  | BG47: =IF(L21=CP16,0,IF(L24=CP20,IF(L22=CP5,CR10*(2/3),IF(L22=CP6,CR10/2,)))) ->  | BH47: =IF(L24=CP20,IF(OR(L22=CP5,L22=CP6),BF63-CP14,),) -> 
A48: =IF(E21=BP16,0,A64+BR20) ->  | B48: =IF(E21=BP16,0,B44) ->  | C48: =IF(E21=BP16,0,IF(E22=BP3,0,BR10-BR23)) ->  | D48: =IF(E22=BP3,0,B44) ->  | F48: =IF(OR(E22=BP2,E22=BP3,E22=BP4),0,B44) ->  | I48: =IF(E24=BP20,IF(E22<>BP3,I47+(BN14/4),),) -> 0 | J48: =IF(E24=BP20,IF(E22<>BP3,BQ14,),) -> 0 | K48: =IF(E24=BP20,IF(OR(E22=BP5,E22=BP6),K47+(BN14/4),),) -> 0 | L48: =IF(E24=BP20,IF(OR(E22=BP5,E22=BP6),BQ14,),) -> 0 | O48: =IF(E21=BP16,0,IF(E24=BP20,IF(E22<>BP3,I47+(BN14/4),),)) -> 0 | P48: =IF(E21=BP16,0,IF(E24=BP20,IF(E22<>BP3,P63-BQ14,),)) -> 0 | Q48: =IF(E21=BP16,0,IF(E24=BP20,IF(OR(E22=BP5,E22=BP6),K47+(BN14/4),),)) -> 0 | R48: =IF(E24=BP20,IF(OR(E22=BP5,E22=BP6),R46,),) -> 0 | V48: =IF(I21=CC16,0,V64+CE20) ->  | W48: =IF(I21=CC16,0,W44) ->  | X48: =IF(I21=CC16,0,IF(I22=CC3,0,CE10-CE23)) ->  | Y48: =IF(I22=CC3,0,W44) ->  | AA48: =IF(OR(I22=CC2,I22=CC3,I22=CC4),0,W44) ->  | AD48: =IF(I24=CC20,IF(I22<>CC3,AD47+(CA14/4),),) -> 0 | AE48: =IF(I24=CC20,IF(I22<>CC3,CD14,),) -> 0 | AF48: =IF(I24=CC20,IF(OR(I22=CC5,I22=CC6),AF47+(CA14/4),),) -> 0 | AG48: =IF(I24=CC20,IF(OR(I22=CC5,I22=CC6),CD14,),) -> 0 | AJ48: =IF(I21=CC16,0,IF(I24=CC20,IF(I22<>CC3,AD47+(CA14/4),),)) -> 0 | AK48: =IF(I21=CC16,0,IF(I24=CC20,IF(I22<>CC3,AK63-CD14,),)) -> 0 | AL48: =IF(I21=CC16,0,IF(I24=CC20,IF(OR(I22=CC5,I22=CC6),AF47+(CA14/4),),)) -> 0 | AM48: =IF(I24=CC20,IF(OR(I22=CC5,I22=CC6),AM46,),) -> 0 | AQ48: =IF(L21=CP16,0,AQ64+CR20) ->  | AR48: =IF(L21=CP16,0,AR44) ->  | AS48: =IF(L21=CP16,0,IF(L22=CP3,0,CR10-CR23)) ->  | AT48: =IF(L22=CP3,0,AR44) ->  | AV48: =IF(OR(L22=CP2,L22=CP3,L22=CP4),0,AR44) ->  | AY48: =IF(L24=CP20,IF(L22<>CP3,AY47+(CN14/4),),) ->  | AZ48: =IF(L24=CP20,IF(L22<>CP3,CQ14,),) ->  | BA48: =IF(L24=CP20,IF(OR(L22=CP5,L22=CP6),BA47+(CN14/4),),) ->  | BB48: =IF(L24=CP20,IF(OR(L22=CP5,L22=CP6),CQ14,),) ->  | BE48: =IF(L21=CP16,0,IF(L24=CP20,IF(L22<>CP3,AY47+(CN14/4),),)) ->  | BF48: =IF(L21=CP16,0,IF(L24=CP20,IF(L22<>CP3,BF63-CQ14,),)) ->  | BG48: =IF(L21=CP16,0,IF(L24=CP20,IF(OR(L22=CP5,L22=CP6),BA47+(CN14/4),),)) ->  | BH48: =IF(L24=CP20,IF(OR(L22=CP5,L22=CP6),BH46,),) -> 
A49: =IF(E21=BP16,0,A68-BO16) ->  | B49: =IF(E21=BP16,0,(BR19/4)+(BR11/2)) ->  | C49: =IF(E21=BP16,0,IF(E22=BP3,0,C48-BO16)) ->  | D49: =IF(E22=BP3,0,B59) ->  | F49: =IF(OR(E22=BP2,E22=BP3,E22=BP4),0,D49) ->  | I49: =IF(E24=BP20,IF(E22<>BP3,I47+(BN14/2),),) -> 0 | J49: =IF(E24=BP20,IF(E22<>BP3,BR23,),) -> 0 | K49: =IF(E24=BP20,IF(OR(E22=BP5,E22=BP6),K47+(BN14/2),),) -> 0 | L49: =IF(E24=BP20,IF(OR(E22=BP5,E22=BP6),L45,),) -> 0 | O49: =IF(E21=BP16,0,IF(E24=BP20,IF(E22<>BP3,I47+(BN14/2),),)) -> 0 | P49: =IF(E21=BP16,0,IF(E24=BP20,IF(E22<>BP3,P63-BR23,),)) -> 0 | Q49: =IF(E21=BP16,0,IF(E24=BP20,IF(OR(E22=BP5,E22=BP6),K47+(BN14/2),),)) -> 0 | R49: =IF(E24=BP20,IF(OR(E22=BP5,E22=BP6),R45,),) -> 0 | V49: =IF(I21=CC16,0,V68-BO16) ->  | W49: =IF(I21=CC16,0,(CE19/4)+(CE11/2)) ->  | X49: =IF(I21=CC16,0,IF(I22=CC3,0,X48-BO16)) ->  | Y49: =IF(I22=CC3,0,W59) ->  | AA49: =IF(OR(I22=CC2,I22=CC3,I22=CC4),0,Y49) ->  | AD49: =IF(I24=CC20,IF(I22<>CC3,AD47+(CA14/2),),) -> 0 | AE49: =IF(I24=CC20,IF(I22<>CC3,CE23,),) -> 0 | AF49: =IF(I24=CC20,IF(OR(I22=CC5,I22=CC6),AF47+(CA14/2),),) -> 0 | AG49: =IF(I24=CC20,IF(OR(I22=CC5,I22=CC6),AG45,),) -> 0 | AJ49: =IF(I21=CC16,0,IF(I24=CC20,IF(I22<>CC3,AD47+(CA14/2),),)) -> 0 | AK49: =IF(I21=CC16,0,IF(I24=CC20,IF(I22<>CC3,AK63-CE23,),)) -> 0 | AL49: =IF(I21=CC16,0,IF(I24=CC20,IF(OR(I22=CC5,I22=CC6),AF47+(CA14/2),),)) -> 0 | AM49: =IF(I24=CC20,IF(OR(I22=CC5,I22=CC6),AM45,),) -> 0 | AQ49: =IF(L21=CP16,0,AQ68-BO16) ->  | AR49: =IF(L21=CP16,0,(CR19/4)+(CR11/2)) ->  | AS49: =IF(L21=CP16,0,IF(L22=CP3,0,AS48-BO16)) ->  | AT49: =IF(L22=CP3,0,AR59) ->  | AV49: =IF(OR(L22=CP2,L22=CP3,L22=CP4),0,AT49) ->  | AY49: =IF(L24=CP20,IF(L22<>CP3,AY47+(CN14/2),),) ->  | AZ49: =IF(L24=CP20,IF(L22<>CP3,CR23,),) ->  | BA49: =IF(L24=CP20,IF(OR(L22=CP5,L22=CP6),BA47+(CN14/2),),) ->  | BB49: =IF(L24=CP20,IF(OR(L22=CP5,L22=CP6),BB45,),) ->  | BE49: =IF(L21=CP16,0,IF(L24=CP20,IF(L22<>CP3,AY47+(CN14/2),),)) ->  | BF49: =IF(L21=CP16,0,IF(L24=CP20,IF(L22<>CP3,BF63-CR23,),)) ->  | BG49: =IF(L21=CP16,0,IF(L24=CP20,IF(OR(L22=CP5,L22=CP6),BA47+(CN14/2),),)) ->  | BH49: =IF(L24=CP20,IF(OR(L22=CP5,L22=CP6),BH45,),) -> 
A50: =IF(E21=BP16,0,A68-BN16) ->  | B50: =IF(E21=BP16,0,((BR11/2)/2)+(BR11/2)) ->  | C50: =IF(E21=BP16,0,IF(E22=BP3,0,C48-BN16)) ->  | D50: =IF(E22=BP3,0,B50) ->  | F50: =IF(OR(E22=BP2,E22=BP3,E22=BP4),0,B50) ->  | I50: =IF(E24=BP20,IF(E22<>BP3,I49-((I49-I53)/1.8),),) -> 0 | J50: =IF(E24=BP20,IF(E22<>BP3,P65/4,),) -> 0 | K50: =IF(E24=BP20,IF(OR(E22=BP5,E22=BP6),K49-((K49-K53)/1.8),),) -> 0 | L50: =IF(E24=BP20,IF(OR(E22=BP5,E22=BP6),P65/4,),) -> 0 | O50: =IF(E21=BP16,0,IF(E24=BP20,IF(E22<>BP3,I49-((I49-I53)/1.8),),)) -> 0 | P50: =IF(E21=BP16,0,IF(E24=BP20,IF(E22<>BP3,P65+P65*0.75,),)) -> 0 | Q50: =IF(E21=BP16,0,IF(E24=BP20,IF(OR(E22=BP5,E22=BP6),K49-((K49-K53)/1.8),),)) -> 0 | R50: =IF(E24=BP20,IF(OR(E22=BP5,E22=BP6),P65+P65*0.75,),) -> 0 | V50: =IF(I21=CC16,0,V68-CA16) ->  | W50: =IF(I21=CC16,0,((CE11/2)/2)+(CE11/2)) ->  | X50: =IF(I21=CC16,0,IF(I22=CC3,0,X48-CA16)) ->  | Y50: =IF(I22=CC3,0,W50) ->  | AA50: =IF(OR(I22=CC2,I22=CC3,I22=CC4),0,W50) ->  | AD50: =IF(I24=CC20,IF(I22<>CC3,AD49-((AD49-AD53)/1.8),),) -> 0 | AE50: =IF(I24=CC20,IF(I22<>CC3,AK65/4,),) -> 0 | AF50: =IF(I24=CC20,IF(OR(I22=CC5,I22=CC6),AF49-((AF49-AF53)/1.8),),) -> 0 | AG50: =IF(I24=CC20,IF(OR(I22=CC5,I22=CC6),AK65/4,),) -> 0 | AJ50: =IF(I21=CC16,0,IF(I24=CC20,IF(I22<>CC3,AD49-((AD49-AD53)/1.8),),)) -> 0 | AK50: =IF(I21=CC16,0,IF(I24=CC20,IF(I22<>CC3,AK65+AK65*0.75,),)) -> 0 | AL50: =IF(I21=CC16,0,IF(I24=CC20,IF(OR(I22=CC5,I22=CC6),AF49-((AF49-AF53)/1.8),),)) -> 0 | AM50: =IF(I24=CC20,IF(OR(I22=CC5,I22=CC6),AK65+AK65*0.75,),) -> 0 | AQ50: =IF(L21=CP16,0,AQ68-CN16) ->  | AR50: =IF(L21=CP16,0,((CR11/2)/2)+(CR11/2)) ->  | AS50: =IF(L21=CP16,0,IF(L22=CP3,0,AS48-CN16)) ->  | AT50: =IF(L22=CP3,0,AR50) ->  | AV50: =IF(OR(L22=CP2,L22=CP3,L22=CP4),0,AR50) ->  | AY50: =IF(L24=CP20,IF(L22<>CP3,AY49-((AY49-AY53)/1.8),),) ->  | AZ50: =IF(L24=CP20,IF(L22<>CP3,BF65/4,),) ->  | BA50: =IF(L24=CP20,IF(OR(L22=CP5,L22=CP6),BA49-((BA49-BA53)/1.8),),) ->  | BB50: =IF(L24=CP20,IF(OR(L22=CP5,L22=CP6),BF65/4,),) ->  | BE50: =IF(L21=CP16,0,IF(L24=CP20,IF(L22<>CP3,AY49-((AY49-AY53)/1.8),),)) ->  | BF50: =IF(L21=CP16,0,IF(L24=CP20,IF(L22<>CP3,BF65+BF65*0.75,),)) ->  | BG50: =IF(L21=CP16,0,IF(L24=CP20,IF(OR(L22=CP5,L22=CP6),BA49-((BA49-BA53)/1.8),),)) ->  | BH50: =IF(L24=CP20,IF(OR(L22=CP5,L22=CP6),BF65+BF65*0.75,),) -> 
A51: =IF(E21=BP16,0,A69) ->  | B51: =IF(E21=BP16,0,(BR19*0.75)+(BR11/2)) ->  | C51: =C49 ->  | D51: =IF(E22=BP3,0,B57) ->  | F51: =IF(OR(E22=BP2,E22=BP3,E22=BP4),0,D51) ->  | I51: =IF(E24=BP20,IF(E22<>BP3,I49-((I49-I53)*0.85),),) -> 0 | J51: =IF(E24=BP20,IF(E22<>BP3,P65/2,),) -> 0 | K51: =IF(E24=BP20,IF(OR(E22=BP5,E22=BP6),K49-((K49-K53)*0.85),),) -> 0 | L51: =IF(E24=BP20,IF(OR(E22=BP5,E22=BP6),P65/2,),) -> 0 | O51: =IF(E21=BP16,0,IF(E24=BP20,IF(E22<>BP3,I49-((I49-I53)*0.85),),)) -> 0 | P51: =IF(E21=BP16,0,IF(E24=BP20,IF(E22<>BP3,P65+P65/2,),)) -> 0 | Q51: =IF(E21=BP16,0,IF(E24=BP20,IF(OR(E22=BP5,E22=BP6),K49-((K49-K53)*0.85),),)) -> 0 | R51: =IF(E24=BP20,IF(OR(E22=BP5,E22=BP6),P65+P65/2,),) -> 0 | V51: =IF(I21=CC16,0,V69) ->  | W51: =IF(I21=CC16,0,(CE19*0.75)+(CE11/2)) ->  | X51: =X49 ->  | Y51: =IF(I22=CC3,0,W57) ->  | AA51: =IF(OR(I22=CC2,I22=CC3,I22=CC4),0,Y51) ->  | AD51: =IF(I24=CC20,IF(I22<>CC3,AD49-((AD49-AD53)*0.85),),) -> 0 | AE51: =IF(I24=CC20,IF(I22<>CC3,AK65/2,),) -> 0 | AF51: =IF(I24=CC20,IF(OR(I22=CC5,I22=CC6),AF49-((AF49-AF53)*0.85),),) -> 0 | AG51: =IF(I24=CC20,IF(OR(I22=CC5,I22=CC6),AK65/2,),) -> 0 | AJ51: =IF(I21=CC16,0,IF(I24=CC20,IF(I22<>CC3,AD49-((AD49-AD53)*0.85),),)) -> 0 | AK51: =IF(I21=CC16,0,IF(I24=CC20,IF(I22<>CC3,AK65+AK65/2,),)) -> 0 | AL51: =IF(I21=CC16,0,IF(I24=CC20,IF(OR(I22=CC5,I22=CC6),AF49-((AF49-AF53)*0.85),),)) -> 0 | AM51: =IF(I24=CC20,IF(OR(I22=CC5,I22=CC6),AK65+AK65/2,),) -> 0 | AQ51: =IF(L21=CP16,0,AQ69) ->  | AR51: =IF(L21=CP16,0,(CR19*0.75)+(CR11/2)) ->  | AS51: =AS49 ->  | AT51: =IF(L22=CP3,0,AR57) ->  | AV51: =IF(OR(L22=CP2,L22=CP3,L22=CP4),0,AT51) ->  | AY51: =IF(L24=CP20,IF(L22<>CP3,AY49-((AY49-AY53)*0.85),),) ->  | AZ51: =IF(L24=CP20,IF(L22<>CP3,BF65/2,),) ->  | BA51: =IF(L24=CP20,IF(OR(L22=CP5,L22=CP6),BA49-((BA49-BA53)*0.85),),) ->  | BB51: =IF(L24=CP20,IF(OR(L22=CP5,L22=CP6),BF65/2,),) ->  | BE51: =IF(L21=CP16,0,IF(L24=CP20,IF(L22<>CP3,AY49-((AY49-AY53)*0.85),),)) ->  | BF51: =IF(L21=CP16,0,IF(L24=CP20,IF(L22<>CP3,BF65+BF65/2,),)) ->  | BG51: =IF(L21=CP16,0,IF(L24=CP20,IF(OR(L22=CP5,L22=CP6),BA49-((BA49-BA53)*0.85),),)) ->  | BH51: =IF(L24=CP20,IF(OR(L22=CP5,L22=CP6),BF65+BF65/2,),) -> 
A52: =IF(E21=BP16,0,A68) ->  | B52: =IF(E21=BP16,0,((BR11/2)*2)-BR23) ->  | C52: =IF(E22=BP3,0,C48) ->  | D52: =IF(E22=BP3,0,B52) ->  | F52: =IF(OR(E22=BP2,E22=BP3,E22=BP4),0,D56) ->  | I52: =IF(E24=BP20,IF(E22<>BP3,I53+((I49-I53)*0.05),),) -> 0 | J52: =IF(E24=BP20,IF(E22<>BP3,P65*0.75,),) -> 0 | K52: =IF(E24=BP20,IF(OR(E22=BP5,E22=BP6),K53+((K49-K53)*0.05),),) -> 0 | L52: =IF(E24=BP20,IF(OR(E22=BP5,E22=BP6),P65*0.75,),) -> 0 | O52: =IF(E21=BP16,0,IF(E24=BP20,IF(E22<>BP3,I53+((I49-I53)*0.05),),)) -> 0 | P52: =IF(E21=BP16,0,IF(E24=BP20,IF(E22<>BP3,P65+P65/4,),)) -> 0 | Q52: =IF(E21=BP16,0,IF(E24=BP20,IF(OR(E22=BP5,E22=BP6),K53+((K49-K53)*0.05),),)) -> 0 | R52: =IF(E24=BP20,IF(OR(E22=BP5,E22=BP6),P65+P65/4,),) -> 0 | V52: =IF(I21=CC16,0,V68) ->  | W52: =IF(I21=CC16,0,((CE11/2)*2)-CE23) ->  | X52: =IF(I22=CC3,0,X48) ->  | Y52: =IF(I22=CC3,0,W52) ->  | AA52: =IF(OR(I22=CC2,I22=CC3,I22=CC4),0,Y56) ->  | AD52: =IF(I24=CC20,IF(I22<>CC3,AD53+((AD49-AD53)*0.05),),) -> 0 | AE52: =IF(I24=CC20,IF(I22<>CC3,AK65*0.75,),) -> 0 | AF52: =IF(I24=CC20,IF(OR(I22=CC5,I22=CC6),AF53+((AF49-AF53)*0.05),),) -> 0 | AG52: =IF(I24=CC20,IF(OR(I22=CC5,I22=CC6),AK65*0.75,),) -> 0 | AJ52: =IF(I21=CC16,0,IF(I24=CC20,IF(I22<>CC3,AD53+((AD49-AD53)*0.05),),)) -> 0 | AK52: =IF(I21=CC16,0,IF(I24=CC20,IF(I22<>CC3,AK65+AK65/4,),)) -> 0 | AL52: =IF(I21=CC16,0,IF(I24=CC20,IF(OR(I22=CC5,I22=CC6),AF53+((AF49-AF53)*0.05),),)) -> 0 | AM52: =IF(I24=CC20,IF(OR(I22=CC5,I22=CC6),AK65+AK65/4,),) -> 0 | AQ52: =IF(L21=CP16,0,AQ68) ->  | AR52: =IF(L21=CP16,0,((CR11/2)*2)-CR23) ->  | AS52: =IF(L22=CP3,0,AS48) ->  | AT52: =IF(L22=CP3,0,AR52) ->  | AV52: =IF(OR(L22=CP2,L22=CP3,L22=CP4),0,AT56) ->  | AY52: =IF(L24=CP20,IF(L22<>CP3,AY53+((AY49-AY53)*0.05),),) ->  | AZ52: =IF(L24=CP20,IF(L22<>CP3,BF65*0.75,),) ->  | BA52: =IF(L24=CP20,IF(OR(L22=CP5,L22=CP6),BA53+((BA49-BA53)*0.05),),) ->  | BB52: =IF(L24=CP20,IF(OR(L22=CP5,L22=CP6),BF65*0.75,),) ->  | BE52: =IF(L21=CP16,0,IF(L24=CP20,IF(L22<>CP3,AY53+((AY49-AY53)*0.05),),)) ->  | BF52: =IF(L21=CP16,0,IF(L24=CP20,IF(L22<>CP3,BF65+BF65/4,),)) ->  | BG52: =IF(L21=CP16,0,IF(L24=CP20,IF(OR(L22=CP5,L22=CP6),BA53+((BA49-BA53)*0.05),),)) ->  | BH52: =IF(L24=CP20,IF(OR(L22=CP5,L22=CP6),BF65+BF65/4,),) -> 
A53: =IF(E21=BP16,0,A67) ->  | B53: =IF(E21=BP16,0,((BR11/2)-B65)+(BR11/2)) ->  | C53: =C47 ->  | D53: =IF(E21=BP16,0,IF(E22=BP3,0,B53)) ->  | F53: =IF(E21=BP16,0,IF(OR(E22=BP2,E22=BP3,E22=BP4),0,B53)) ->  | I53: =IF(E24=BP20,IF(E22<>BP3,I47,),) -> 0 | J53: =IF(E24=BP20,IF(E22<>BP3,P65-BR23,),) -> 0 | K53: =IF(E24=BP20,IF(OR(E22=BP5,E22=BP6),K47,),) -> 0 | L53: =IF(E24=BP20,IF(OR(E22=BP5,E22=BP6),P65-BR23,),) -> 0 | O53: =IF(E21=BP16,0,IF(E24=BP20,IF(E22<>BP3,I47,),)) -> 0 | P53: =IF(E21=BP16,0,IF(E24=BP20,IF(E22<>BP3,P65+BR23,),)) -> 0 | Q53: =IF(E21=BP16,0,IF(E24=BP20,IF(OR(E22=BP5,E22=BP6),K47,),)) -> 0 | R53: =IF(E24=BP20,IF(OR(E22=BP5,E22=BP6),P65+BR23,),) -> 0 | V53: =IF(I21=CC16,0,V67) ->  | W53: =IF(I21=CC16,0,((CE11/2)-W65)+(CE11/2)) ->  | X53: =X47 ->  | Y53: =IF(I21=CC16,0,IF(I22=CC3,0,W53)) ->  | AA53: =IF(I21=CC16,0,IF(OR(I22=CC2,I22=CC3,I22=CC4),0,W53)) ->  | AD53: =IF(I24=CC20,IF(I22<>CC3,AD47,),) -> 0 | AE53: =IF(I24=CC20,IF(I22<>CC3,AK65-CE23,),) -> 0 | AF53: =IF(I24=CC20,IF(OR(I22=CC5,I22=CC6),AF47,),) -> 0 | AG53: =IF(I24=CC20,IF(OR(I22=CC5,I22=CC6),AK65-CE23,),) -> 0 | AJ53: =IF(I21=CC16,0,IF(I24=CC20,IF(I22<>CC3,AD47,),)) -> 0 | AK53: =IF(I21=CC16,0,IF(I24=CC20,IF(I22<>CC3,AK65+CE23,),)) -> 0 | AL53: =IF(I21=CC16,0,IF(I24=CC20,IF(OR(I22=CC5,I22=CC6),AF47,),)) -> 0 | AM53: =IF(I24=CC20,IF(OR(I22=CC5,I22=CC6),AK65+CE23,),) -> 0 | AQ53: =IF(L21=CP16,0,AQ67) ->  | AR53: =IF(L21=CP16,0,((CR11/2)-AR65)+(CR11/2)) ->  | AS53: =AS47 ->  | AT53: =IF(L21=CP16,0,IF(L22=CP3,0,AR53)) ->  | AV53: =IF(L21=CP16,0,IF(OR(L22=CP2,L22=CP3,L22=CP4),0,AR53)) ->  | AY53: =IF(L24=CP20,IF(L22<>CP3,AY47,),) ->  | AZ53: =IF(L24=CP20,IF(L22<>CP3,BF65-CR23,),) ->  | BA53: =IF(L24=CP20,IF(OR(L22=CP5,L22=CP6),BA47,),) ->  | BB53: =IF(L24=CP20,IF(OR(L22=CP5,L22=CP6),BF65-CR23,),) ->  | BE53: =IF(L21=CP16,0,IF(L24=CP20,IF(L22<>CP3,AY47,),)) ->  | BF53: =IF(L21=CP16,0,IF(L24=CP20,IF(L22<>CP3,BF65+CR23,),)) ->  | BG53: =IF(L21=CP16,0,IF(L24=CP20,IF(OR(L22=CP5,L22=CP6),BA47,),)) ->  | BH53: =IF(L24=CP20,IF(OR(L22=CP5,L22=CP6),BF65+CR23,),) -> 
A54: =IF(E21=BP16,0,A66) ->  | B54: =IF(E21=BP16,0,((BR11/2)-B66)+(BR11/2)) ->  | C54: =IF(E22=BP3,0,C46) ->  | D54: =IF(E21=BP16,0,IF(E22=BP3,0,B54)) ->  | F54: =IF(E21=BP16,0,IF(OR(E22=BP2,E22=BP3,E22=BP4),0,B54)) ->  | H54: =F54 ->  | I54: =IF(E24=BP20,IF(E22<>BP3,I53-((I53-I57)*0.05),),) -> 0 | J54: =IF(E24=BP20,IF(E22<>BP3,J52,),) -> 0 | K54: =IF(E24=BP20,IF(OR(E22=BP5,E22=BP6),K53-((K53-K57)*0.05),),) -> 0 | L54: =IF(E24=BP20,IF(OR(E22=BP5,E22=BP6),L52,),) -> 0 | O54: =IF(E21=BP16,0,IF(E24=BP20,IF(E22<>BP3,I53-((I53-I57)*0.05),),)) -> 0 | P54: =IF(E21=BP16,0,IF(E24=BP20,IF(E22<>BP3,P52,),)) -> 0 | Q54: =IF(E21=BP16,0,IF(E24=BP20,IF(OR(E22=BP5,E22=BP6),K53-((K53-K57)*0.05),),)) -> 0 | R54: =IF(E24=BP20,IF(OR(E22=BP5,E22=BP6),R52,),) -> 0 | V54: =IF(I21=CC16,0,V66) ->  | W54: =IF(I21=CC16,0,((CE11/2)-W66)+(CE11/2)) ->  | X54: =IF(I22=CC3,0,X46) ->  | Y54: =IF(I21=CC16,0,IF(I22=CC3,0,W54)) ->  | AA54: =IF(I21=CC16,0,IF(OR(I22=CC2,I22=CC3,I22=CC4),0,W54)) ->  | AD54: =IF(I24=CC20,IF(I22<>CC3,AD53-((AD53-AD57)*0.05),),) -> 0 | AE54: =IF(I24=CC20,IF(I22<>CC3,AE52,),) -> 0 | AF54: =IF(I24=CC20,IF(OR(I22=CC5,I22=CC6),AF53-((AF53-AF57)*0.05),),) -> 0 | AG54: =IF(I24=CC20,IF(OR(I22=CC5,I22=CC6),AG52,),) -> 0 | AJ54: =IF(I21=CC16,0,IF(I24=CC20,IF(I22<>CC3,AD53-((AD53-AD57)*0.05),),)) -> 0 | AK54: =IF(I21=CC16,0,IF(I24=CC20,IF(I22<>CC3,AK52,),)) -> 0 | AL54: =IF(I21=CC16,0,IF(I24=CC20,IF(OR(I22=CC5,I22=CC6),AF53-((AF53-AF57)*0.05),),)) -> 0 | AM54: =IF(I24=CC20,IF(OR(I22=CC5,I22=CC6),AM52,),) -> 0 | AQ54: =IF(L21=CP16,0,AQ66) ->  | AR54: =IF(L21=CP16,0,((CR11/2)-AR66)+(CR11/2)) ->  | AS54: =IF(L22=CP3,0,AS46) ->  | AT54: =IF(L21=CP16,0,IF(L22=CP3,0,AR54)) ->  | AV54: =IF(L21=CP16,0,IF(OR(L22=CP2,L22=CP3,L22=CP4),0,AR54)) ->  | AX54: =AV54 ->  | AY54: =IF(L24=CP20,IF(L22<>CP3,AY53-((AY53-AY57)*0.05),),) ->  | AZ54: =IF(L24=CP20,IF(L22<>CP3,AZ52,),) ->  | BA54: =IF(L24=CP20,IF(OR(L22=CP5,L22=CP6),BA53-((BA53-BA57)*0.05),),) ->  | BB54: =IF(L24=CP20,IF(OR(L22=CP5,L22=CP6),BB52,),) ->  | BE54: =IF(L21=CP16,0,IF(L24=CP20,IF(L22<>CP3,AY53-((AY53-AY57)*0.05),),)) ->  | BF54: =IF(L21=CP16,0,IF(L24=CP20,IF(L22<>CP3,BF52,),)) ->  | BG54: =IF(L21=CP16,0,IF(L24=CP20,IF(OR(L22=CP5,L22=CP6),BA53-((BA53-BA57)*0.05),),)) ->  | BH54: =IF(L24=CP20,IF(OR(L22=CP5,L22=CP6),BH52,),) -> 
A55: =IF(E21=BP16,0,A65) ->  | B55: =B53 ->  | C55: =C45 ->  | D55: =IF(E22=BP3,0,D53) ->  | F55: =F53 ->  | I55: =IF(E24=BP20,IF(E22<>BP3,I57+((I53-I57)*0.85),),) -> 0 | J55: =IF(E24=BP20,IF(E22<>BP3,J51,),) -> 0 | K55: =IF(E24=BP20,IF(OR(E22=BP5,E22=BP6),K57+((K53-K57)*0.85),),) -> 0 | L55: =IF(E24=BP20,IF(OR(E22=BP5,E22=BP6),L51,),) -> 0 | O55: =IF(E21=BP16,0,IF(E24=BP20,IF(E22<>BP3,I57+((I53-I57)*0.85),),)) -> 0 | P55: =IF(E24=BP20,IF(E22<>BP3,P51,),) -> 0 | Q55: =IF(E21=BP16,0,IF(E24=BP20,IF(OR(E22=BP5,E22=BP6),K57+((K53-K57)*0.85),),)) -> 0 | R55: =IF(E24=BP20,IF(OR(E22=BP5,E22=BP6),R51,),) -> 0 | V55: =IF(I21=CC16,0,V65) ->  | W55: =W53 ->  | X55: =X45 ->  | Y55: =IF(I22=CC3,0,Y53) ->  | AA55: =AA53 ->  | AD55: =IF(I24=CC20,IF(I22<>CC3,AD57+((AD53-AD57)*0.85),),) -> 0 | AE55: =IF(I24=CC20,IF(I22<>CC3,AE51,),) -> 0 | AF55: =IF(I24=CC20,IF(OR(I22=CC5,I22=CC6),AF57+((AF53-AF57)*0.85),),) -> 0 | AG55: =IF(I24=CC20,IF(OR(I22=CC5,I22=CC6),AG51,),) -> 0 | AJ55: =IF(I21=CC16,0,IF(I24=CC20,IF(I22<>CC3,AD57+((AD53-AD57)*0.85),),)) -> 0 | AK55: =IF(I24=CC20,IF(I22<>CC3,AK51,),) -> 0 | AL55: =IF(I21=CC16,0,IF(I24=CC20,IF(OR(I22=CC5,I22=CC6),AF57+((AF53-AF57)*0.85),),)) -> 0 | AM55: =IF(I24=CC20,IF(OR(I22=CC5,I22=CC6),AM51,),) -> 0 | AQ55: =IF(L21=CP16,0,AQ65) ->  | AR55: =AR53 ->  | AS55: =AS45 ->  | AT55: =IF(L22=CP3,0,AT53) ->  | AV55: =AV53 ->  | AX55: =AV55 ->  | AY55: =IF(L24=CP20,IF(L22<>CP3,AY57+((AY53-AY57)*0.85),),) ->  | AZ55: =IF(L24=CP20,IF(L22<>CP3,AZ51,),) ->  | BA55: =IF(L24=CP20,IF(OR(L22=CP5,L22=CP6),BA57+((BA53-BA57)*0.85),),) ->  | BB55: =IF(L24=CP20,IF(OR(L22=CP5,L22=CP6),BB51,),) ->  | BE55: =IF(L21=CP16,0,IF(L24=CP20,IF(L22<>CP3,AY57+((AY53-AY57)*0.85),),)) ->  | BF55: =IF(L24=CP20,IF(L22<>CP3,BF51,),) ->  | BG55: =IF(L21=CP16,0,IF(L24=CP20,IF(OR(L22=CP5,L22=CP6),BA57+((BA53-BA57)*0.85),),)) ->  | BH55: =IF(L24=CP20,IF(OR(L22=CP5,L22=CP6),BH51,),) -> 
A56: =IF(E21=BP16,0,A64) ->  | B56: =B52 ->  | C56: =IF(E22=BP3,0,C44) ->  | D56: =IF(E22=BP3,0,D52) ->  | F56: =IF(OR(E22=BP2,E22=BP3,E22=BP4),0,F52) ->  | I56: =IF(E24=BP20,IF(E22<>BP3,I57+((I53-I57)/1.8),),) -> 0 | J56: =IF(E24=BP20,IF(E22<>BP3,J50,),) -> 0 | K56: =IF(E24=BP20,IF(OR(E22=BP5,E22=BP6),K57+((K53-K57)/1.8),),) -> 0 | L56: =IF(E24=BP20,IF(OR(E22=BP5,E22=BP6),L50,),) -> 0 | O56: =IF(E21=BP16,0,IF(E24=BP20,IF(E22<>BP3,I57+((I53-I57)/1.8),),)) -> 0 | P56: =IF(E24=BP20,IF(E22<>BP3,P50,),) -> 0 | Q56: =IF(E21=BP16,0,IF(E24=BP20,IF(OR(E22=BP5,E22=BP6),K57+((K53-K57)/1.8),),)) -> 0 | R56: =IF(E24=BP20,IF(OR(E22=BP5,E22=BP6),R50,),) -> 0 | V56: =IF(I21=CC16,0,V64) ->  | W56: =W52 ->  | X56: =IF(I22=CC3,0,X44) ->  | Y56: =IF(I22=CC3,0,Y52) ->  | AA56: =IF(OR(I22=CC2,I22=CC3,I22=CC4),0,AA52) ->  | AD56: =IF(I24=CC20,IF(I22<>CC3,AD57+((AD53-AD57)/1.8),),) -> 0 | AE56: =IF(I24=CC20,IF(I22<>CC3,AE50,),) -> 0 | AF56: =IF(I24=CC20,IF(OR(I22=CC5,I22=CC6),AF57+((AF53-AF57)/1.8),),) -> 0 | AG56: =IF(I24=CC20,IF(OR(I22=CC5,I22=CC6),AG50,),) -> 0 | AJ56: =IF(I21=CC16,0,IF(I24=CC20,IF(I22<>CC3,AD57+((AD53-AD57)/1.8),),)) -> 0 | AK56: =IF(I24=CC20,IF(I22<>CC3,AK50,),) -> 0 | AL56: =IF(I21=CC16,0,IF(I24=CC20,IF(OR(I22=CC5,I22=CC6),AF57+((AF53-AF57)/1.8),),)) -> 0 | AM56: =IF(I24=CC20,IF(OR(I22=CC5,I22=CC6),AM50,),) -> 0 | AQ56: =IF(L21=CP16,0,AQ64) ->  | AR56: =AR52 ->  | AS56: =IF(L22=CP3,0,AS44) ->  | AT56: =IF(L22=CP3,0,AT52) ->  | AV56: =IF(OR(L22=CP2,L22=CP3,L22=CP4),0,AV52) ->  | AY56: =IF(L24=CP20,IF(L22<>CP3,AY57+((AY53-AY57)/1.8),),) ->  | AZ56: =IF(L24=CP20,IF(L22<>CP3,AZ50,),) ->  | BA56: =IF(L24=CP20,IF(OR(L22=CP5,L22=CP6),BA57+((BA53-BA57)/1.8),),) ->  | BB56: =IF(L24=CP20,IF(OR(L22=CP5,L22=CP6),BB50,),) ->  | BE56: =IF(L21=CP16,0,IF(L24=CP20,IF(L22<>CP3,AY57+((AY53-AY57)/1.8),),)) ->  | BF56: =IF(L24=CP20,IF(L22<>CP3,BF50,),) ->  | BG56: =IF(L21=CP16,0,IF(L24=CP20,IF(OR(L22=CP5,L22=CP6),BA57+((BA53-BA57)/1.8),),)) ->  | BH56: =IF(L24=CP20,IF(OR(L22=CP5,L22=CP6),BH50,),) -> 
A57: =IF(E21=BP16,0,A64+BO16) ->  | B57: =B51 ->  | C57: =IF(E21=BP16,0,C44+BO16) ->  | D57: =D51 ->  | F57: =F51 ->  | I57: =IF(E24=BP20,IF(E22<>BP3,I45,),) -> 0 | J57: =IF(E24=BP20,IF(E22<>BP3,J45,),) -> 0 | K57: =IF(E24=BP20,IF(OR(E22=BP5,E22=BP6),K45,),) -> 0 | L57: =IF(E24=BP20,IF(OR(E22=BP5,E22=BP6),L45,),) -> 0 | O57: =IF(E21=BP16,0,IF(E24=BP20,IF(E22<>BP3,I45,),)) -> 0 | P57: =IF(E24=BP20,IF(E22<>BP3,P45,),) -> 0 | Q57: =IF(E21=BP16,0,IF(E24=BP20,IF(OR(E22=BP5,E22=BP6),K45,),)) -> 0 | R57: =IF(E24=BP20,IF(OR(E22=BP5,E22=BP6),R49,),) -> 0 | V57: =IF(I21=CC16,0,V64+BO16) ->  | W57: =W51 ->  | X57: =IF(I21=CC16,0,X44+BO16) ->  | Y57: =Y51 ->  | AA57: =AA51 ->  | AD57: =IF(I24=CC20,IF(I22<>CC3,AD45,),) -> 0 | AE57: =IF(I24=CC20,IF(I22<>CC3,AE45,),) -> 0 | AF57: =IF(I24=CC20,IF(OR(I22=CC5,I22=CC6),AF45,),) -> 0 | AG57: =IF(I24=CC20,IF(OR(I22=CC5,I22=CC6),AG45,),) -> 0 | AJ57: =IF(I21=CC16,0,IF(I24=CC20,IF(I22<>CC3,AD45,),)) -> 0 | AK57: =IF(I24=CC20,IF(I22<>CC3,AK45,),) -> 0 | AL57: =IF(I21=CC16,0,IF(I24=CC20,IF(OR(I22=CC5,I22=CC6),AF45,),)) -> 0 | AM57: =IF(I24=CC20,IF(OR(I22=CC5,I22=CC6),AM49,),) -> 0 | AQ57: =IF(L21=CP16,0,AQ64+BO16) ->  | AR57: =AR51 ->  | AS57: =IF(L21=CP16,0,AS44+BO16) ->  | AT57: =AT51 ->  | AV57: =AV51 ->  | AY57: =IF(L24=CP20,IF(L22<>CP3,AY45,),) ->  | AZ57: =IF(L24=CP20,IF(L22<>CP3,AZ45,),) ->  | BA57: =IF(L24=CP20,IF(OR(L22=CP5,L22=CP6),BA45,),) ->  | BB57: =IF(L24=CP20,IF(OR(L22=CP5,L22=CP6),BB45,),) ->  | BE57: =IF(L21=CP16,0,IF(L24=CP20,IF(L22<>CP3,AY45,),)) ->  | BF57: =IF(L24=CP20,IF(L22<>CP3,BF45,),) ->  | BG57: =IF(L21=CP16,0,IF(L24=CP20,IF(OR(L22=CP5,L22=CP6),BA45,),)) ->  | BH57: =IF(L24=CP20,IF(OR(L22=CP5,L22=CP6),BH49,),) -> 
A58: =IF(E21=BP16,0,A64+BN16) ->  | B58: =B50 ->  | C58: =IF(E21=BP16,0,C44+BN16) ->  | D58: =IF(E22=BP3,0,D50) ->  | F58: =IF(OR(E22=BP2,E22=BP3,E22=BP4),0,B50) ->  | O58: Roof plan | V58: =IF(I21=CC16,0,V64+CA16) ->  | W58: =W50 ->  | X58: =IF(I21=CC16,0,X44+CA16) ->  | Y58: =IF(I22=CC3,0,Y50) ->  | AA58: =IF(OR(I22=CC2,I22=CC3,I22=CC4),0,W50) ->  | AJ58: Roof plan | AQ58: =IF(L21=CP16,0,AQ64+CN16) ->  | AR58: =AR50 ->  | AS58: =IF(L21=CP16,0,AS44+CN16) ->  | AT58: =IF(L22=CP3,0,AT50) ->  | AV58: =IF(OR(L22=CP2,L22=CP3,L22=CP4),0,AR50) ->  | BE58: Roof plan
A59: =IF(E21=BP16,0,A77) ->  | B59: =B49 ->  | C59: =C57 ->  | D59: =D49 ->  | F59: =F49 ->  | O59: x-axis | P59: y-axis | V59: =IF(I21=CC16,0,V77) ->  | W59: =W49 ->  | X59: =X57 ->  | Y59: =Y49 ->  | AA59: =AA49 ->  | AJ59: x-axis | AK59: y-axis | AQ59: =IF(L21=CP16,0,AQ77) ->  | AR59: =AR49 ->  | AS59: =AS57 ->  | AT59: =AT49 ->  | AV59: =AV49 ->  | BE59: x-axis | BF59: y-axis
A60: =IF(E21=BP16,0,A64) ->  | B60: =B44 ->  | C60: =IF(E22=BP3,0,C56) ->  | D60: =IF(E22=BP3,0,B44) ->  | F60: =IF(OR(E22=BP2,E22=BP3,E22=BP4),0,B44) ->  | O60: 0 | P60: 0 | V60: =IF(I21=CC16,0,V64) ->  | W60: =W44 ->  | X60: =IF(I22=CC3,0,X56) ->  | Y60: =IF(I22=CC3,0,W44) ->  | AA60: =IF(OR(I22=CC2,I22=CC3,I22=CC4),0,W44) ->  | AJ60: 0 | AK60: 0 | AQ60: =IF(L21=CP16,0,AQ64) ->  | AR60: =AR44 ->  | AS60: =IF(L22=CP3,0,AS56) ->  | AT60: =IF(L22=CP3,0,AR44) ->  | AV60: =IF(OR(L22=CP2,L22=CP3,L22=CP4),0,AR44) ->  | BE60: 0 | BF60: 0
O61: =BR10 ->  | P61: 0 | AJ61: =CE10 ->  | AK61: 0 | BE61: =CR10 ->  | BF61: 0
A62: x | B62: y | C62: x | D62: y | E62: x | F62: y | G62: x | H62: y | O62: =BR10 ->  | P62: =BR11 ->  | V62: x | W62: y | X62: x | Y62: y | Z62: x | AA62: y | AB62: x | AC62: y | AJ62: =CE10 ->  | AK62: =CE11 ->  | AQ62: x | AR62: y | AS62: x | AT62: y | AU62: x | AV62: y | AW62: x | AX62: y | BE62: =CR10 ->  | BF62: =CR11 -> 
A63: Left down | C63: Right down | E63: Mid left down | G63: Mid right down | O63: 0 | P63: =BR11 ->  | V63: Left down | X63: Right down | Z63: Mid left down | AB63: Mid right down | AJ63: 0 | AK63: =CE11 ->  | AQ63: Left down | AS63: Right down | AU63: Mid left down | AW63: Mid right down | BE63: 0 | BF63: =CR11 -> 
A64: =BR23 ->  | B64: =BR23 ->  | C64: =IF(E22=BP3,0,C68-BR22) ->  | D64: =IF(E22=BP3,0,BR23) ->  | E64: =IF(OR(E22=BP2,E22=BP3,E22=BP4),0,IF(E22=BP5,(BR10/2)-(BR21/2),BR24-(BR21/2))) ->  | F64: =IF(OR(E22=BP2,E22=BP3,E22=BP4),0,BR23) ->  | G64: =IF(OR(E22=BP2,E22=BP3,E22=BP4,E22=BP5),0,BT24-(BR21/2)) ->  | H64: =F64 ->  | O64: 0 | P64: 0 | V64: =CE23 ->  | W64: =CE23 ->  | X64: =IF(I22=CC3,0,X68-CE22) ->  | Y64: =IF(I22=CC3,0,CE23) ->  | Z64: =IF(OR(I22=CC2,I22=CC3,I22=CC4),0,IF(I22=CC5,(CE10/2)-(CE21/2),CE24-(CE21/2))) ->  | AA64: =IF(OR(I22=CC2,I22=CC3,I22=CC4),0,CE23) ->  | AB64: =IF(OR(I22=CC2,I22=CC3,I22=CC4,I22=CC5),0,CG24-(CE21/2)) ->  | AC64: =AA64 ->  | AJ64: 0 | AK64: 0 | AQ64: =CR23 ->  | AR64: =CR23 ->  | AS64: =IF(L22=CP3,0,AS68-CR22) ->  | AT64: =IF(L22=CP3,0,CR23) ->  | AU64: =IF(OR(L22=CP2,L22=CP3,L22=CP4),0,IF(L22=CP5,(CR10/2)-(CR21/2),CR24-(CR21/2))) ->  | AV64: =IF(OR(L22=CP2,L22=CP3,L22=CP4),0,CR23) ->  | AW64: =IF(OR(L22=CP2,L22=CP3,L22=CP4,L22=CP5),0,CT24-(CR21/2)) ->  | AX64: =AV64 ->  | BE64: 0 | BF64: 0
A65: =A64+(BR20/4)+BR23 ->  | B65: =IF(E25=BY33,BM18*0.5,BM18*0.75) ->  | C65: =IF(E22=BP3,0,C66-(BR22/4)) ->  | D65: =IF(E22=BP3,0,B65) ->  | E65: =IF(OR(E22=BP2,E22=BP3,E22=BP4),0,E64+(MAX(BR21:BS21)/4)) ->  | F65: =IF(OR(E22=BP2,E22=BP3,E22=BP4),0,B65) ->  | G65: =IF(E22<>BP6,0,G64+(MAX(BR21:BS21)/4)) ->  | H65: =F65 ->  | O65: 0 | P65: =BR11/2 ->  | V65: =V64+(CE20/4)+CE23 ->  | W65: =IF(I25=BY33,BZ18*0.5,BZ18*0.75) ->  | X65: =IF(I22=CC3,0,X66-(CE22/4)) ->  | Y65: =IF(I22=CC3,0,W65) ->  | Z65: =IF(OR(I22=CC2,I22=CC3,I22=CC4),0,Z64+(MAX(CE21:CF21)/4)) ->  | AA65: =IF(OR(I22=CC2,I22=CC3,I22=CC4),0,W65) ->  | AB65: =IF(I22<>CC6,0,AB64+(MAX(CE21:CF21)/4)) ->  | AJ65: 0 | AK65: =CE11/2 ->  | AQ65: =AQ64+(CR20/4)+CR23 ->  | AR65: =IF(L25=BY33,CM18*0.5,CM18*0.75) ->  | AS65: =IF(L22=CP3,0,AS66-(CR22/4)) ->  | AT65: =IF(L22=CP3,0,AR65) ->  | AU65: =IF(OR(L22=CP2,L22=CP3,L22=CP4),0,AU64+(MAX(CR21:CS21)/4)) ->  | AV65: =IF(OR(L22=CP2,L22=CP3,L22=CP4),0,AR65) ->  | AW65: =IF(L22<>CP6,0,AW64+(MAX(CR21:CS21)/4)) ->  | AX65: =AV65 ->  | BE65: 0 | BF65: =CR11/2 -> 
A66: =IF(E22=BP3,(BR10/2),A68-(BR20/2)) ->  | B66: =IF(E25=BY33,B64,BM18) ->  | C66: =IF(E22=BP3,0,C68-(BR22/2)) ->  | D66: =IF(E22=BP3,0,B66) ->  | E66: =IF(OR(E22=BP2,E22=BP3,E22=BP4),0,E68-((E68-E64)/2)) ->  | F66: =IF(OR(E22=BP2,E22=BP3,E22=BP4),0,B66) ->  | G66: =IF(E22<>BP6,0,G68-((G68-G64)/2)) ->  | O66: =O62 ->  | P66: =P65 ->  | V66: =IF(I22=CC3,(CE10/2),V68-(CE20/2)) ->  | W66: =IF(I25=BY33,W64,BZ18) ->  | X66: =IF(I22=CC3,0,X68-(CE22/2)) ->  | Y66: =IF(I22=CC3,0,W66) ->  | Z66: =IF(OR(I22=CC2,I22=CC3,I22=CC4),0,Z68-((Z68-Z64)/2)) ->  | AA66: =IF(OR(I22=CC2,I22=CC3,I22=CC4),0,W66) ->  | AB66: =IF(I22<>CC6,0,AB68-((AB68-AB64)/2)) ->  | AJ66: =AJ62 ->  | AK66: =AK65 ->  | AQ66: =IF(L22=CP3,(CR10/2),AQ68-(CR20/2)) ->  | AR66: =IF(L25=BY33,AR64,CM18) ->  | AS66: =IF(L22=CP3,0,AS68-(CR22/2)) ->  | AT66: =IF(L22=CP3,0,AR66) ->  | AU66: =IF(OR(L22=CP2,L22=CP3,L22=CP4),0,AU68-((AU68-AU64)/2)) ->  | AV66: =IF(OR(L22=CP2,L22=CP3,L22=CP4),0,AR66) ->  | AW66: =IF(L22<>CP6,0,AW68-((AW68-AW64)/2)) ->  | BE66: =BE62 ->  | BF66: =BF65 -> 
A67: =A68-(BR20/4) ->  | B67: =B65 ->  | C67: =C66+(BR22/4) ->  | D67: =IF(E22=BP3,0,B67) ->  | E67: =IF(OR(E22=BP2,E22=BP3,E22=BP4),0,E68-(MAX(BR21:BS21)/4)) ->  | F67: =F65 ->  | G67: =IF(E22<>BP6,0,G68-(MAX(BR21:BS21)/4)) ->  | V67: =V68-(CE20/4) ->  | W67: =W65 ->  | X67: =X66+(CE22/4) ->  | Y67: =IF(I22=CC3,0,W67) ->  | Z67: =IF(OR(I22=CC2,I22=CC3,I22=CC4),0,Z68-(MAX(CE21:CF21)/4)) ->  | AA67: =AA65 ->  | AB67: =IF(I22<>CC6,0,AB68-(MAX(CE21:CF21)/4)) ->  | AQ67: =AQ68-(CR20/4) ->  | AR67: =AR65 ->  | AS67: =AS66+(CR22/4) ->  | AT67: =IF(L22=CP3,0,AR67) ->  | AU67: =IF(OR(L22=CP2,L22=CP3,L22=CP4),0,AU68-(MAX(CR21:CS21)/4)) ->  | AV67: =AV65 ->  | AW67: =IF(L22<>CP6,0,AW68-(MAX(CR21:CS21)/4)) -> 
A68: =A64+BR20 ->  | B68: =BR23 ->  | C68: =IF(E22=BP3,0,BR10-BR23) ->  | D68: =IF(E22=BP3,0,BR23) ->  | E68: =IF(OR(E22=BP2,E22=BP3,E22=BP4),0,IF(E22=BP5,(BR10/2)+(BS21/2),BR24+(BR21/2))) ->  | F68: =IF(OR(E22=BP2,E22=BP3,E22=BP4),0,BR23) ->  | G68: =IF(E22<>BP6,0,BT24+(BR21/2)) ->  | V68: =V64+CE20 ->  | W68: =CE23 ->  | X68: =IF(I22=CC3,0,CE10-CE23) ->  | Y68: =IF(I22=CC3,0,CE23) ->  | Z68: =IF(OR(I22=CC2,I22=CC3,I22=CC4),0,IF(I22=CC5,(CE10/2)+(CF21/2),CE24+(CE21/2))) ->  | AA68: =IF(OR(I22=CC2,I22=CC3,I22=CC4),0,CE23) ->  | AB68: =IF(I22<>CC6,0,CG24+(CE21/2)) ->  | AQ68: =AQ64+CR20 ->  | AR68: =CR23 ->  | AS68: =IF(L22=CP3,0,CR10-CR23) ->  | AT68: =IF(L22=CP3,0,CR23) ->  | AU68: =IF(OR(L22=CP2,L22=CP3,L22=CP4),0,IF(L22=CP5,(CR10/2)+(CS21/2),CR24+(CR21/2))) ->  | AV68: =IF(OR(L22=CP2,L22=CP3,L22=CP4),0,CR23) ->  | AW68: =IF(L22<>CP6,0,CT24+(CR21/2)) -> 
A69: =A68-BO16 ->  | B69: =BR19/4 ->  | C69: =IF(E22=BP3,0,C68-BO16) ->  | D69: =IF(E22=BP3,0,B79) ->  | E69: =IF(OR(E22=BP2,E22=BP3,E22=BP4),0,E68-BO16) ->  | F69: =IF(OR(E22=BP2,E22=BP3,E22=BP4),0,D69) ->  | G69: =IF(E22<>BP6,0,G68-BO16) ->  | V69: =V68-BO16 ->  | W69: =CE19/4 ->  | X69: =IF(I22=CC3,0,X68-BO16) ->  | Y69: =IF(I22=CC3,0,W79) ->  | Z69: =IF(OR(I22=CC2,I22=CC3,I22=CC4),0,Z68-BO16) ->  | AA69: =IF(OR(I22=CC2,I22=CC3,I22=CC4),0,Y69) ->  | AB69: =IF(I22<>CC6,0,AB68-BO16) ->  | AQ69: =AQ68-BO16 ->  | AR69: =CR19/4 ->  | AS69: =IF(L22=CP3,0,AS68-BO16) ->  | AT69: =IF(L22=CP3,0,AR79) ->  | AU69: =IF(OR(L22=CP2,L22=CP3,L22=CP4),0,AU68-BO16) ->  | AV69: =IF(OR(L22=CP2,L22=CP3,L22=CP4),0,AT69) ->  | AW69: =IF(L22<>CP6,0,AW68-BO16) -> 
A70: =A68-BN16 ->  | B70: =(BR11/2)/2 ->  | C70: =IF(E22=BP3,0,C68-BN16) ->  | D70: =IF(E22=BP3,0,B70) ->  | E70: =IF(OR(E22=BP2,E22=BP3,E22=BP4),0,E68-BN16) ->  | F70: =IF(OR(E22=BP2,E22=BP3,E22=BP4),0,B70) ->  | G70: =IF(E22<>BP6,0,G68-BN16) ->  | V70: =V68-CA16 ->  | W70: =(CE11/2)/2 ->  | X70: =IF(I22=CC3,0,X68-CA16) ->  | Y70: =IF(I22=CC3,0,W70) ->  | Z70: =IF(OR(I22=CC2,I22=CC3,I22=CC4),0,Z68-CA16) ->  | AA70: =IF(OR(I22=CC2,I22=CC3,I22=CC4),0,W70) ->  | AB70: =IF(I22<>CC6,0,AB68-CA16) ->  | AQ70: =AQ68-CN16 ->  | AR70: =(CR11/2)/2 ->  | AS70: =IF(L22=CP3,0,AS68-CN16) ->  | AT70: =IF(L22=CP3,0,AR70) ->  | AU70: =IF(OR(L22=CP2,L22=CP3,L22=CP4),0,AU68-CN16) ->  | AV70: =IF(OR(L22=CP2,L22=CP3,L22=CP4),0,AR70) ->  | AW70: =IF(L22<>CP6,0,AW68-CN16) -> 
A71: =A69 ->  | B71: =(BR19*0.75) ->  | C71: =C69 ->  | D71: =IF(E22=BP3,0,B77) ->  | E71: =E69 ->  | F71: =IF(OR(E22=BP2,E22=BP3,E22=BP4),0,D71) ->  | G71: =G69 ->  | V71: =V69 ->  | W71: =(CE19*0.75) ->  | X71: =X69 ->  | Y71: =IF(I22=CC3,0,W77) ->  | Z71: =Z69 ->  | AA71: =IF(OR(I22=CC2,I22=CC3,I22=CC4),0,Y71) ->  | AB71: =AB69 ->  | AQ71: =AQ69 ->  | AR71: =(CR19*0.75) ->  | AS71: =AS69 ->  | AT71: =IF(L22=CP3,0,AR77) ->  | AU71: =AU69 ->  | AV71: =IF(OR(L22=CP2,L22=CP3,L22=CP4),0,AT71) ->  | AW71: =AW69 -> 
A72: =A68 ->  | B72: =(BR11/2)-BR23 ->  | C72: =IF(E22=BP3,0,C68) ->  | D72: =IF(E22=BP3,0,B76) ->  | E72: =IF(OR(E22=BP2,E22=BP3,E22=BP4),0,E68) ->  | F72: =IF(OR(E22=BP2,E22=BP3,E22=BP4),0,D76) ->  | G72: =IF(OR(E22=BP2,E22=BP3,E22=BP4),0,G68) ->  | V72: =V68 ->  | W72: =(CE11/2)-CE23 ->  | X72: =IF(I22=CC3,0,X68) ->  | Y72: =IF(I22=CC3,0,W76) ->  | Z72: =IF(OR(I22=CC2,I22=CC3,I22=CC4),0,Z68) ->  | AA72: =IF(OR(I22=CC2,I22=CC3,I22=CC4),0,Y76) ->  | AB72: =IF(OR(I22=CC2,I22=CC3,I22=CC4),0,AB68) ->  | AQ72: =AQ68 ->  | AR72: =(CR11/2)-CR23 ->  | AS72: =IF(L22=CP3,0,AS68) ->  | AT72: =IF(L22=CP3,0,AR76) ->  | AU72: =IF(OR(L22=CP2,L22=CP3,L22=CP4),0,AU68) ->  | AV72: =IF(OR(L22=CP2,L22=CP3,L22=CP4),0,AT76) ->  | AW72: =IF(OR(L22=CP2,L22=CP3,L22=CP4),0,AW68) -> 
A73: =A67 ->  | B73: =(BR11/2)-B65 ->  | C73: =C67 ->  | D73: =IF(E22=BP3,0,B73) ->  | E73: =E67 ->  | F73: =IF(OR(E22=BP2,E22=BP3,E22=BP4),0,B73) ->  | G73: =G67 ->  | V73: =V67 ->  | W73: =(CE11/2)-W65 ->  | X73: =X67 ->  | Y73: =IF(I22=CC3,0,W73) ->  | Z73: =Z67 ->  | AA73: =IF(OR(I22=CC2,I22=CC3,I22=CC4),0,W73) ->  | AB73: =AB67 ->  | AQ73: =AQ67 ->  | AR73: =(CR11/2)-AR65 ->  | AS73: =AS67 ->  | AT73: =IF(L22=CP3,0,AR73) ->  | AU73: =AU67 ->  | AV73: =IF(OR(L22=CP2,L22=CP3,L22=CP4),0,AR73) ->  | AW73: =AW67 -> 
A74: =A66 ->  | B74: =(BR11/2)-B66 ->  | C74: =IF(E22=BP3,0,C66) ->  | D74: =IF(E22=BP3,0,B74) ->  | E74: =IF(OR(E22=BP2,E22=BP3,E22=BP4),0,E66) ->  | F74: =IF(OR(E22=BP2,E22=BP3,E22=BP4),0,B74) ->  | G74: =IF(OR(E22=BP2,E22=BP3,E22=BP4),0,G66) ->  | V74: =V66 ->  | W74: =(CE11/2)-W66 ->  | X74: =IF(I22=CC3,0,X66) ->  | Y74: =IF(I22=CC3,0,W74) ->  | Z74: =IF(OR(I22=CC2,I22=CC3,I22=CC4),0,Z66) ->  | AA74: =IF(OR(I22=CC2,I22=CC3,I22=CC4),0,W74) ->  | AB74: =IF(OR(I22=CC2,I22=CC3,I22=CC4),0,AB66) ->  | AQ74: =AQ66 ->  | AR74: =(CR11/2)-AR66 ->  | AS74: =IF(L22=CP3,0,AS66) ->  | AT74: =IF(L22=CP3,0,AR74) ->  | AU74: =IF(OR(L22=CP2,L22=CP3,L22=CP4),0,AU66) ->  | AV74: =IF(OR(L22=CP2,L22=CP3,L22=CP4),0,AR74) ->  | AW74: =IF(OR(L22=CP2,L22=CP3,L22=CP4),0,AW66) -> 
A75: =A65 ->  | B75: =B73 ->  | C75: =C65 ->  | D75: =IF(E22=BP3,0,B75) ->  | E75: =E65 ->  | F75: =F73 ->  | G75: =G65 ->  | V75: =V65 ->  | W75: =W73 ->  | X75: =X65 ->  | Y75: =IF(I22=CC3,0,W75) ->  | Z75: =Z65 ->  | AA75: =AA73 ->  | AB75: =AB65 ->  | AQ75: =AQ65 ->  | AR75: =AR73 ->  | AS75: =AS65 ->  | AT75: =IF(L22=CP3,0,AR75) ->  | AU75: =AU65 ->  | AV75: =AV73 ->  | AW75: =AW65 -> 
A76: =A64 ->  | B76: =B72 ->  | C76: =IF(E22=BP3,0,C64) ->  | D76: =IF(E22=BP3,0,D72) ->  | E76: =IF(OR(E22=BP2,E22=BP3,E22=BP4),0,E64) ->  | F76: =IF(OR(E22=BP2,E22=BP3,E22=BP4),0,F72) ->  | G76: =IF(OR(E22=BP2,E22=BP3,E22=BP4),0,G64) ->  | V76: =V64 ->  | W76: =W72 ->  | X76: =IF(I22=CC3,0,X64) ->  | Y76: =IF(I22=CC3,0,Y72) ->  | Z76: =IF(OR(I22=CC2,I22=CC3,I22=CC4),0,Z64) ->  | AA76: =IF(OR(I22=CC2,I22=CC3,I22=CC4),0,AA72) ->  | AB76: =IF(OR(I22=CC2,I22=CC3,I22=CC4),0,AB64) ->  | AQ76: =AQ64 ->  | AR76: =AR72 ->  | AS76: =IF(L22=CP3,0,AS64) ->  | AT76: =IF(L22=CP3,0,AT72) ->  | AU76: =IF(OR(L22=CP2,L22=CP3,L22=CP4),0,AU64) ->  | AV76: =IF(OR(L22=CP2,L22=CP3,L22=CP4),0,AV72) ->  | AW76: =IF(OR(L22=CP2,L22=CP3,L22=CP4),0,AW64) -> 
A77: =A64+BO16 ->  | B77: =B71 ->  | C77: =IF(E22=BP3,0,C64+BO16) ->  | D77: =D71 ->  | E77: =IF(OR(E22=BP2,E22=BP3,E22=BP4),0,E64+BO16) ->  | F77: =F71 ->  | G77: =IF(E22<>BP6,0,G64+BO16) ->  | V77: =V64+BO16 ->  | W77: =W71 ->  | X77: =IF(I22=CC3,0,X64+BO16) ->  | Y77: =Y71 ->  | Z77: =IF(OR(I22=CC2,I22=CC3,I22=CC4),0,Z64+BO16) ->  | AA77: =AA71 ->  | AB77: =IF(I22<>CC6,0,AB64+BO16) ->  | AQ77: =AQ64+BO16 ->  | AR77: =AR71 ->  | AS77: =IF(L22=CP3,0,AS64+BO16) ->  | AT77: =AT71 ->  | AU77: =IF(OR(L22=CP2,L22=CP3,L22=CP4),0,AU64+BO16) ->  | AV77: =AV71 ->  | AW77: =IF(L22<>CP6,0,AW64+BO16) -> 
A78: =A64+BN16 ->  | B78: =B70 ->  | C78: =IF(E22=BP3,0,C64+BN16) ->  | D78: =IF(E22=BP3,0,D70) ->  | E78: =IF(OR(E22=BP2,E22=BP3,E22=BP4),0,E64+BN16) ->  | F78: =IF(OR(E22=BP2,E22=BP3,E22=BP4),0,B70) ->  | G78: =IF(E22<>BP6,0,G64+BN16) ->  | V78: =V64+CA16 ->  | W78: =W70 ->  | X78: =IF(I22=CC3,0,X64+CA16) ->  | Y78: =IF(I22=CC3,0,Y70) ->  | Z78: =IF(OR(I22=CC2,I22=CC3,I22=CC4),0,Z64+CA16) ->  | AA78: =IF(OR(I22=CC2,I22=CC3,I22=CC4),0,W70) ->  | AB78: =IF(I22<>CC6,0,AB64+CA16) ->  | AQ78: =AQ64+CN16 ->  | AR78: =AR70 ->  | AS78: =IF(L22=CP3,0,AS64+CN16) ->  | AT78: =IF(L22=CP3,0,AT70) ->  | AU78: =IF(OR(L22=CP2,L22=CP3,L22=CP4),0,AU64+CN16) ->  | AV78: =IF(OR(L22=CP2,L22=CP3,L22=CP4),0,AR70) ->  | AW78: =IF(L22<>CP6,0,AW64+CN16) -> 
A79: =A77 ->  | B79: =B69 ->  | C79: =C77 ->  | D79: =D69 ->  | E79: =E77 ->  | F79: =F69 ->  | G79: =G77 ->  | V79: =V77 ->  | W79: =W69 ->  | X79: =X77 ->  | Y79: =Y69 ->  | Z79: =Z77 ->  | AA79: =AA69 ->  | AB79: =AB77 ->  | AQ79: =AQ77 ->  | AR79: =AR69 ->  | AS79: =AS77 ->  | AT79: =AT69 ->  | AU79: =AU77 ->  | AV79: =AV69 ->  | AW79: =AW77 -> 
A80: =A64 ->  | B80: =BR23 ->  | C80: =IF(E22=BP3,0,C76) ->  | D80: =IF(E22=BP3,0,BR23) ->  | E80: =IF(OR(E22=BP2,E22=BP3,E22=BP4),0,E76) ->  | F80: =IF(OR(E22=BP2,E22=BP3,E22=BP4),0,BR23) ->  | G80: =IF(OR(E22=BP2,E22=BP3,E22=BP4),0,G76) ->  | V80: =V64 ->  | W80: =CE23 ->  | X80: =IF(I22=CC3,0,X76) ->  | Y80: =IF(I22=CC3,0,CE23) ->  | Z80: =IF(OR(I22=CC2,I22=CC3,I22=CC4),0,Z76) ->  | AA80: =IF(OR(I22=CC2,I22=CC3,I22=CC4),0,CE23) ->  | AB80: =IF(OR(I22=CC2,I22=CC3,I22=CC4),0,AB76) ->  | AQ80: =AQ64 ->  | AR80: =CR23 ->  | AS80: =IF(L22=CP3,0,AS76) ->  | AT80: =IF(L22=CP3,0,CR23) ->  | AU80: =IF(OR(L22=CP2,L22=CP3,L22=CP4),0,AU76) ->  | AV80: =IF(OR(L22=CP2,L22=CP3,L22=CP4),0,CR23) ->  | AW80: =IF(OR(L22=CP2,L22=CP3,L22=CP4),0,AW76) -> 

Sheet Georgian Hipped
BA1: Main material | BB1: =IF(OR(E28=BK2,E28=BK3,E28=BK4,E28=BK5,E28=BK6),' '!B6,IF(OR(E28=BK7,E28=BK8,E28=BK9,E28=BK10,E28=BK11,E28=BK12,E28=BK13,E28=BK14,E28=BK15),' '!B7,IF(OR(E28=BK16,E28=BK17,E28=BK18,E28=BK19,E28=BK20),' '!B8,))) -> 4.54 | BE1: Sails | BF1: Warning 1 | BG1: Warning: Sail too narrow, decrease no. of sails, add additional fitting points or increase gap size | BH1: Triangles | BK1: Fabric Colour | BM1: Fittings Colours | BP1: Main material | BQ1: =IF(OR(I28=BZ2,I28=BZ3,I28=BZ4,I28=BZ5,I28=BZ6),' '!B6,IF(OR(I28=BZ7,I28=BZ8,I28=BZ9,I28=BZ10,I28=BZ11,I28=BZ12,I28=BZ13,I28=BZ14,I28=BZ15),' '!B7,IF(OR(I28=BZ16,I28=BZ17,I28=BZ18,I28=BZ19,I28=BZ20),' '!B8,))) -> 4.54 | BR1: Material cost | BS1: =' '!B10 -> 13.25 | BT1: Sails | BU1: Warning 1 | BV1: Warning: Sail too narrow, decrease no. of sails, add additional fitting points or increase gap size | BW1: Triangles | BZ1: Fabric Colour | CB1: Fittings Colours | CE1: Main material | CF1: =IF(OR(L28=CO2,L28=CO3,L28=CO4,L28=CO5,L28=CO6),' '!B6,IF(OR(L28=CO7,L28=CO8,L28=CO9,L28=CO10,L28=CO11,L28=CO12,L28=CO13,L28=CO14,L28=CO15),' '!B7,IF(OR(L28=CO16,L28=CO17,L28=CO18,L28=CO19,L28=CO20),' '!B8,))) -> 4.54 | CI1: Sails | CJ1: Warning 1 | CK1: Warning: Sail too narrow, decrease no. of sails, add additional fitting points or increase gap size | CL1: Triangles | CO1: Fabric Colour | CQ1: Fittings Colours
BA2: Tri material | BB2: =IF(OR(E29=BK2,E29=BK3,E29=BK4,E29=BK5,E29=BK6),' '!B6,IF(OR(E29=BK7,E29=BK8,E29=BK9,E29=BK10,E29=BK11,E29=BK12,E29=BK13,E29=BK14,E29=BK15),' '!B7,IF(OR(E29=BK16,E29=BK17,E29=BK18,E29=BK19,E29=BK20),' '!B8,))) -> 4.54 | BF2: Warning 2 | BG2: Warning: Sail too narrow, increase no. of sails, add additional fitting points or reduce gap size | BH2: No | BK2: ISX Solid | BM2: Stainless steel | BP2: Tri material | BQ2: =IF(OR(I29=BZ2,I29=BZ3,I29=BZ4,I29=BZ5,I29=BZ6),' '!B6,IF(OR(I29=BZ7,I29=BZ8,I29=BZ9,I29=BZ10,I29=BZ11,I29=BZ12,I29=BZ13,I29=BZ14,I29=BZ15),' '!B7,IF(OR(I29=BZ16,I29=BZ17,I29=BZ18,I29=BZ19,I29=BZ20),' '!B8,))) -> 4.54 | BR2: PE | BS2: =' '!B11 -> 3 | BU2: Warning 2 | BV2: Warning: Sail too narrow, increase no. of sails, add additional fitting points or reduce gap size | BW2: No | BZ2: ISX Solid | CB2: Stainless steel | CE2: Tri material | CF2: =IF(OR(L29=CO2,L29=CO3,L29=CO4,L29=CO5,L29=CO6),' '!B6,IF(OR(L29=CO7,L29=CO8,L29=CO9,L29=CO10,L29=CO11,L29=CO12,L29=CO13,L29=CO14,L29=CO15),' '!B7,IF(OR(L29=CO16,L29=CO17,L29=CO18,L29=CO19,L29=CO20),' '!B8,))) -> 4.54 | CJ2: Warning 2 | CK2: Warning: Sail too narrow, increase no. of sails, add additional fitting points or reduce gap size | CL2: No | CO2: ISX Solid | CQ2: Stainless steel
BE3: 1 | BF3: Warning 3 | BG3: Warning: Sail too wide for standard fabric, please add more sails or increase gap size | BH3: Yes | BK3: ISX White | BM3: White | BR3: PN | BS3: =' '!B19 -> 4.25 | BT3: 1 | BU3: Warning 3 | BV3: Warning: Sail too wide for standard fabric, please add more sails or increase gap size | BW3: Yes | BZ3: ISX White | CB3: White | CI3: 1 | CJ3: Warning 3 | CK3: Warning: Sail too wide for standard fabric, please add more sails or increase gap size | CL3: Yes | CO3: ISX White | CQ3: White
BE4: 2 | BF4: Warning 4 | BG4: Warning: Conservatory too long for standard fabric, contact office for more detailed price | BH4: Coverage | BK4: ISX Solid Ivory | BM4: Gold | BR4: IP | BS4: =' '!#REF! ->  | BT4: 2 | BU4: Warning 4 | BV4: Warning: Conservatory too long for standard fabric, contact office for more detailed price | BW4: Coverage | BZ4: ISX Solid Ivory | CB4: Gold | CI4: 2 | CJ4: Warning 4 | CK4: Warning: Conservatory too long for standard fabric, contact office for more detailed price | CL4: Coverage | CO4: ISX Solid Ivory | CQ4: Gold
B5: =' '!A46 -> v2023.2 | BE5: 3 | BF5: Warning 5 | BG5: Warning: Ridge is too short for a 3 sails per side solution, reduce no. of sails | BH5: One Side | BK5: ISX Solid Oyster | BM5: Cost | BN5: =IF(E30=BM2, ' '!B24, ' '!B25) -> 7 | BT5: 3 | BU5: Warning 5 | BV5: Warning: Ridge is too short for a 3 sails per side solution, reduce no. of sails | BW5: One Side | BZ5: ISX Solid Oyster | CB5: Cost | CC5: =IF(I30=CB2, ' '!B24, ' '!B25) -> 7 | CI5: 3 | CJ5: Warning 5 | CK5: Warning: Ridge is too short for a 3 sails per side solution, reduce no. of sails | CL5: One Side | CO5: ISX Solid Oyster | CQ5: Cost | CR5: =IF(L30=CQ2, ' '!B24, ' '!B25) -> 7
BC6: No. of vents | BE6: 4 | BF6: Warning 6 | BG6: Warning: Some triangular sails are too thin for this conservatory | BH6: Both Sides | BK6: ISX Solid Stone | BP6: Standard | BQ6: =' '!B14 -> 1 | BR6: No. of vents | BT6: 4 | BU6: Warning 6 | BV6: Warning: Some triangular sails are too thin for this conservatory | BW6: Both Sides | BZ6: ISX Solid Stone | CG6: No. of vents | CI6: 4 | CJ6: Warning 6 | CK6: Warning: Some triangular sails are too thin for this conservatory | CL6: Both Sides | CO6: ISX Solid Stone
BC7: 0 | BK7: ISX Duplex | BP7: Tri/Dia | BQ7: =' '!B15 -> 0.75 | BR7: 0 | BZ7: ISX Duplex | CG7: 0 | CO7: ISX Duplex
BC8: 1 | BF8: Warnings front | BG8: Warnings mid | BH8: Warnings back | BI8: Warnings front tri | BJ8: Warnings back tri | BK8: ISX Duplex Ocean | BP8: Vic | BQ8: =' '!B16 -> 0.85 | BR8: 1 | BU8: Warnings front | BV8: Warnings mid | BW8: Warnings back | BX8: Warnings front tri | BY8: Warnings back tri | BZ8: ISX Duplex Ocean | CG8: 1 | CJ8: Warnings front | CK8: Warnings mid | CL8: Warnings back | CM8: Warnings front tri | CN8: Warnings back tri | CO8: ISX Duplex Ocean
BC9: 2 | BF9: =BD31 ->  | BG9: =IF(OR(E22=BE2,E22=BE3),BF9,BE31) ->  | BH9: =BF31 ->  | BI9: =IF(E24=BH2,0.001,1)*BG31 -> 0 | BJ9: =IF(OR(E24=BH3,E24=BH3),1,0.0001)*BH31 ->  | BK9: ISX Duplex Stone | BR9: 2 | BS9: No. of corners | BT9: 4 | BU9: =BS31 ->  | BV9: =IF(OR(I22=BT2,I22=BT3),BU9,BT31) ->  | BW9: =BU31 ->  | BX9: =IF(I24=BW2,0.001,1)*BV31 -> 0 | BY9: =IF(OR(I24=BW3,I24=BW3),1,0.0001)*BW31 ->  | BZ9: ISX Duplex Stone | CG9: 2 | CJ9: =CH31 ->  | CK9: =IF(OR(L22=CI2,L22=CI3),CJ9,CI31) ->  | CL9: =CJ31 ->  | CM9: =IF(L24=CL2,0.001,1)*CK31 -> 0 | CN9: =IF(OR(L24=CL3,L24=CL3),1,0.0001)*CL31 ->  | CO9: ISX Duplex Stone
BA10: Overlap front | BB10: =IF(E23=BA11,BB11,IF(E23=BA12,BB12,IF(E23=BA13,BB13,))) ->  | BC10: 3 | BF10: =BD32 ->  | BG10: =IF(OR(E22=BE2,E22=BE3),BF10,BE32) ->  | BH10: =IF(E22<>BE5,BF10,BF32) ->  | BI10: =BG32+IF(E22=BE3,1000) ->  | BJ10: =BH32 ->  | BK10: ISX Duplex Slate | BP10: Overlap front | BQ10: =IF(I23=BP11,BQ11,IF(I23=BP12,BQ12,IF(I23=BP13,BQ13,))) ->  | BR10: 3 | BU10: =BS32 ->  | BV10: =IF(OR(I22=BT2,I22=BT3),BU10,BT32) ->  | BW10: =IF(I22<>BT5,BU10,BU32) ->  | BX10: =BV32+IF(I22=BT3,1000) ->  | BY10: =BW32 ->  | BZ10: ISX Duplex Slate | CE10: Overlap front | CF10: =IF(L23=CE11,CF11,IF(L23=CE12,CF12,IF(L23=CE13,CF13,))) -> 0 | CG10: 3 | CJ10: =CH32 ->  | CK10: =IF(OR(L22=CI2,L22=CI3),CJ10,CI32) ->  | CL10: =IF(L22<>CI5,CJ10,CJ32) ->  | CM10: =CK32+IF(L22=CI3,1000) ->  | CN10: =CL32 ->  | CO10: ISX Duplex Slate
BA11: 0 | BB11: 0 | BC11: 4 | BD11: Curve allowance | BE11: 0.5 | BF11: Tri | BG11: Mid | BH11: Quarters | BK11: ISX Duplex Graphite | BP11: 0 | BQ11: 0 | BR11: 4 | BS11: Curve allowance | BT11: 0.5 | BU11: Tri | BV11: Mid | BW11: Quarters | BZ11: ISX Duplex Graphite | CE11: 0 | CF11: 0 | CG11: 4 | CH11: Curve allowance | CI11: 0.5 | CJ11: Tri | CK11: Mid | CL11: Quarters | CO11: ISX Duplex Graphite
BA12: 0.5 | BB12: =(BD15*2)/2+(0.035/(IF(B24>B25,B24,B25)/1000)) ->  | BC12: Front | BD12: Mid | BE12: Quarters | BF12: Vertical Back | BG12: =((BH25+(0.07/(IF(B24>B25,B24,B25)/1000)))*0.13)+BB30 ->  | BH12: =BG12*0.75 ->  | BK12: ISXFR Solid | BP12: 0.5 | BQ12: =(BS15*2)/2+(0.035/(IF(B24>B25,B24,B25)/1000)) ->  | BR12: Front | BS12: Mid | BT12: Quarters | BU12: Vertical Back | BV12: =((BW25+(0.07/(IF(B24>B25,B24,B25)/1000)))*0.13)+BQ30 ->  | BW12: =BV12*0.75 ->  | BZ12: ISXFR Solid | CE12: 0.5 | CF12: =(CH15*2)/2+(0.035/(IF(B24>B25,B24,B25)/1000)) ->  | CG12: Front | CH12: Mid | CI12: Quarters | CJ12: Vertical Back | CK12: =((CL25+(0.07/(IF(B24>B25,B24,B25)/1000)))*0.13)+CF30 ->  | CL12: =CK12*0.75 ->  | CO12: ISXFR Solid
BA13: 1 | BB13: =BD15*2+(0.035/(IF(B24>B25,B24,B25)/1000)) ->  | BC13: Horizontal | BD13: =((BD24+(0.07/(IF(B24>B25,B24,B25)/1000)))*0.13)+BB30 ->  | BE13: =(BD13)*0.75 ->  | BF13: Vertical Middle | BG13: =((BG25+(0.07/(IF(B24>B25,B24,B25)/1000)))*0.13)+BB30 ->  | BH13: =BG13*0.75 ->  | BK13: ISXFR White | BP13: 1 | BQ13: =BS15*2+(0.035/(IF(B24>B25,B24,B25)/1000)) ->  | BR13: Horizontal | BS13: =((BS24+(0.07/(IF(B24>B25,B24,B25)/1000)))*0.13)+BQ30 ->  | BT13: =(BS13)*0.75 ->  | BU13: Vertical Middle | BV13: =((BV25+(0.07/(IF(B24>B25,B24,B25)/1000)))*0.13)+BQ30 ->  | BW13: =BV13*0.75 ->  | BZ13: ISXFR White | CE13: 1 | CF13: =CH15*2+(0.035/(IF(B24>B25,B24,B25)/1000)) ->  | CG13: Horizontal | CH13: =((CH24+(0.07/(IF(B24>B25,B24,B25)/1000)))*0.13)+CF30 ->  | CI13: =(CH13)*0.75 ->  | CJ13: Vertical Middle | CK13: =((CK25+(0.07/(IF(B24>B25,B24,B25)/1000)))*0.13)+CF30 ->  | CL13: =CK13*0.75 ->  | CO13: ISXFR White
BA14: Overlap middle | BB14: =IF(E23=BA15,BB15,IF(E23=BA16,BB16,IF(E23=BA17,BB17,)))*IF(E22=BE3,0,1) ->  | BC14: Hotizontal overlaped | BD14: =((BE24+(0.07/(IF(B24>B25,B24,B25)/1000)))*0.13)+BB30 ->  | BE14: =(BD14)*0.75 ->  | BF14: Vertical Front | BG14: =((BF25+(0.07/(IF(B24>B25,B24,B25)/1000)))*0.13)+BB30 ->  | BH14: =BG14*0.75 ->  | BK14: ISXFR Solid Ivory | BP14: Overlap middle | BQ14: =IF(I23=BP15,BQ15,IF(I23=BP16,BQ16,IF(I23=BP17,BQ17,)))*IF(I22=BT3,0,1) ->  | BR14: Hotizontal overlaped | BS14: =((BT24+(0.07/(IF(B24>B25,B24,B25)/1000)))*0.13)+BQ30 ->  | BT14: =(BS14)*0.75 ->  | BU14: Vertical Front | BV14: =((BU25+(0.07/(IF(B24>B25,B24,B25)/1000)))*0.13)+BQ30 ->  | BW14: =BV14*0.75 ->  | BZ14: ISXFR Solid Ivory | CE14: Overlap middle | CF14: =IF(L23=CE15,CF15,IF(L23=CE16,CF16,IF(L23=CE17,CF17,)))*IF(L22=CI3,0,1) ->  | CG14: Hotizontal overlaped | CH14: =((CI24+(0.07/(IF(B24>B25,B24,B25)/1000)))*0.13)+CF30 ->  | CI14: =(CH14)*0.75 ->  | CJ14: Vertical Front | CK14: =((CJ25+(0.07/(IF(B24>B25,B24,B25)/1000)))*0.13)+CF30 ->  | CL14: =CK14*0.75 ->  | CO14: ISXFR Solid Ivory
BA15: 0 | BB15: 0 | BC15: Vertical | BD15: =IF(E22=BE2,((BD25+(0.07/(IF(B24>B25,B24,B25)/1000)))*0.13)+BB30,((BD25+(0.07/(IF(B24>B25,B24,B25)/1000)))*0.13)+BB30) ->  | BE15: =BD15*0.75 ->  | BF15: Back | BG15: Mid | BH15: Quarters | BK15: ISXFR Solid Oyster | BP15: 0 | BQ15: 0 | BR15: Vertical | BS15: =IF(I22=BT2,((BS25+(0.07/(IF(B24>B25,B24,B25)/1000)))*0.13)+BQ30,((BS25+(0.07/(IF(B24>B25,B24,B25)/1000)))*0.13)+BQ30) ->  | BT15: =BS15*0.75 ->  | BU15: Back | BV15: Mid | BW15: Quarters | BZ15: ISXFR Solid Oyster | CE15: 0 | CF15: 0 | CG15: Vertical | CH15: =IF(L22=CI2,((CH25+(0.07/(IF(B24>B25,B24,B25)/1000)))*0.13)+CF30,((CH25+(0.07/(IF(B24>B25,B24,B25)/1000)))*0.13)+CF30) ->  | CI15: =CH15*0.75 ->  | CJ15: Back | CK15: Mid | CL15: Quarters | CO15: ISXFR Solid Oyster
E16: Plan view - looking from above | I16: Plan view - looking from above | L16: Plan view - looking from above | BA16: 0.5 | BB16: =(BD18*2.5)/2+(0.035/(IF(B24>B25,B24,B25)/1000)) ->  | BC16: Vertical overlaped | BD16: =((BE25+(0.07/(IF(B24>B25,B24,B25)/1000)))*0.13)+BB30 ->  | BE16: =BD16*0.75 ->  | BF16: Horizontal | BG16: =((BG27+(0.07/(IF(B24>B25,B24,B25)/1000)))*0.13)+BB30 ->  | BH16: =BG16*0.75 ->  | BK16: ISXFR Duplex | BP16: 0.5 | BQ16: =(BS18*2.5)/2+(0.035/(IF(B24>B25,B24,B25)/1000)) ->  | BR16: Vertical overlaped | BS16: =((BT25+(0.07/(IF(B24>B25,B24,B25)/1000)))*0.13)+BQ30 ->  | BT16: =BS16*0.75 ->  | BU16: Horizontal | BV16: =((BV27+(0.07/(IF(B24>B25,B24,B25)/1000)))*0.13)+BQ30 ->  | BW16: =BV16*0.75 ->  | BZ16: ISXFR Duplex | CE16: 0.5 | CF16: =(CH18*2.5)/2+(0.035/(IF(B24>B25,B24,B25)/1000)) ->  | CG16: Vertical overlaped | CH16: =((CI25+(0.07/(IF(B24>B25,B24,B25)/1000)))*0.13)+CF30 ->  | CI16: =CH16*0.75 ->  | CJ16: Horizontal | CK16: =((CK27+(0.07/(IF(B24>B25,B24,B25)/1000)))*0.13)+CF30 ->  | CL16: =CK16*0.75 ->  | CO16: ISXFR Duplex
BA17: 1 | BB17: =BD18*2.5+(0.035/(IF(B24>B25,B24,B25)/1000)) ->  | BC17: Mid | BD17: Mid | BE17: Quarters | BF17: Vertical | BG17: =((BH28+(0.07/(IF(B24>B25,B24,B25)/1000)))*0.13) ->  | BH17: =BG17*0.75 ->  | BK17: ISXFR Duplex Ocean | BP17: 1 | BQ17: =BS18*2.5+(0.035/(IF(B24>B25,B24,B25)/1000)) ->  | BR17: Mid | BS17: Mid | BT17: Quarters | BU17: Vertical | BV17: =((BW28+(0.07/(IF(B24>B25,B24,B25)/1000)))*0.13) ->  | BW17: =BV17*0.75 ->  | BZ17: ISXFR Duplex Ocean | CE17: 1 | CF17: =CH18*2.5+(0.035/(IF(B24>B25,B24,B25)/1000)) ->  | CG17: Mid | CH17: Mid | CI17: Quarters | CJ17: Vertical | CK17: =((CL28+(0.07/(IF(B24>B25,B24,B25)/1000)))*0.13) ->  | CL17: =CK17*0.75 ->  | CO17: ISXFR Duplex Ocean
D18: =' '!$A$42 -> Starting Cost incl. Installation | E18: =((((E31*' '!B29)+BD34+BE34+BF34+IF(E24=BH3,BG34+((IF(E21=BH6,2,1)*(E22-1))*BH34),0))+(' '!B21*E25)+IF(E30<>BM2,E25*' '!B26,0)+(E26*' '!B30)+(E27*' '!B31))) ->  | H18: =' '!$A$43 -> Average Cost incl. Installation | I18: =((((I31*' '!B29)+BS34+BT34+BU34+IF(I24=BH3,BV34+((IF(I21=BW6,2,1)*(I22-1))*BW34),0))+(' '!B21*I25)+IF(I30<>BM2,I25*' '!B26,0)+(I26*' '!B30)+(I27*' '!B31))) ->  | K18: =' '!$A$44 -> High End Cost incl. Installation | L18: =((((L31*' '!B29)+CH34+CI34+CJ34+IF(L24=BH3,CK34+((IF(L21=CL6,2,1)*(L22-1))*CL34),0))+(' '!B21*L25)+IF(L30<>CQ2,L25*' '!B26,0)+(L26*' '!B30)+(L27*' '!B31))) ->  | BA18: Overlap back | BB18: =IF(OR(E22=BE2,E22=BE3,E22=BE4),0,IF(E23=BA15,BB19,IF(E23=BA16,BB20,IF(E23=BA17,BB21,)))) ->  | BC18: Horizontal | BD18: =((BD27+(0.07/(IF(B24>B25,B24,B25)/1000)))*0.13)+BB30 ->  | BE18: =(BD18)*0.75 ->  | BF18: Overlapped | BG18: =((BG28+(0.07/(IF(B24>B25,B24,B25)/1000)))*0.13)+BB30 ->  | BH18: =BG18*0.75 ->  | BK18: ISXFR Duplex Stone | BP18: Overlap back | BQ18: =IF(OR(I22=BT2,I22=BT3,I22=BT4),0,IF(I23=BP15,BQ19,IF(I23=BP16,BQ20,IF(I23=BP17,BQ21,)))) ->  | BR18: Horizontal | BS18: =((BS27+(0.07/(IF(B24>B25,B24,B25)/1000)))*0.13)+BQ30 ->  | BT18: =(BS18)*0.75 ->  | BU18: Overlapped | BV18: =((BV28+(0.07/(IF(B24>B25,B24,B25)/1000)))*0.13)+BQ30 ->  | BW18: =BV18*0.75 ->  | BZ18: ISXFR Duplex Stone | CE18: Overlap back | CF18: =IF(OR(L22=CI2,L22=CI3,L22=CI4),0,IF(L23=CE15,CF19,IF(L23=CE16,CF20,IF(L23=CE17,CF21,)))) ->  | CG18: Horizontal | CH18: =((CH27+(0.07/(IF(B24>B25,B24,B25)/1000)))*0.13)+CF30 ->  | CI18: =(CH18)*0.75 ->  | CJ18: Overlapped | CK18: =((CK28+(0.07/(IF(B24>B25,B24,B25)/1000)))*0.13)+CF30 ->  | CL18: =CK18*0.75 ->  | CO18: ISXFR Duplex Stone
E19: =' '!U6+' '!B33 ->  | I19: =' '!AG6+' '!B33 ->  | L19: =' '!AS6+' '!B33 ->  | BA19: 0 | BB19: 0 | BC19: Vertical | BD19: =((BD28+(0.07/(IF(B24>B25,B24,B25)/1000)))*0.13) ->  | BE19: =BD19*0.75 ->  | BK19: ISXFR Duplex Slate | BP19: 0 | BQ19: 0 | BR19: Vertical | BS19: =((BS28+(0.07/(IF(B24>B25,B24,B25)/1000)))*0.13) ->  | BT19: =BS19*0.75 ->  | BZ19: ISXFR Duplex Slate | CE19: 0 | CF19: 0 | CG19: Vertical | CH19: =((CH28+(0.07/(IF(B24>B25,B24,B25)/1000)))*0.13) ->  | CI19: =CH19*0.75 ->  | CO19: ISXFR Duplex Slate
BA20: 0.5 | BB20: =IF(E22=BE4,BD18+(0.035/(IF(B24>B25,B24,B25)/1000)),IF(OR(E22=BE5,E22=BE6),BD18+(0.035/(IF(B24>B25,B24,B25)/1000)),)) ->  | BC20: Vertical overlaped | BD20: =((MAX(BD28:BF28)+(0.07/(IF(B24>B25,B24,B25)/1000)))*0.13)+BB30 ->  | BE20: =BD20*0.75 ->  | BK20: ISXFR Duplex Graphite | BP20: 0.5 | BQ20: =IF(I22=BT4,BS18+(0.035/(IF(B24>B25,B24,B25)/1000)),IF(OR(I22=BT5,I22=BT6),BS18+(0.035/(IF(B24>B25,B24,B25)/1000)),)) ->  | BR20: Vertical overlaped | BS20: =((MAX(BS28:BU28)+(0.07/(IF(B24>B25,B24,B25)/1000)))*0.13)+BQ30 ->  | BT20: =BS20*0.75 ->  | BZ20: ISXFR Duplex Graphite | CE20: 0.5 | CF20: =IF(L22=CI4,CH18+(0.035/(IF(B24>B25,B24,B25)/1000)),IF(OR(L22=CI5,L22=CI6),CH18+(0.035/(IF(B24>B25,B24,B25)/1000)),)) ->  | CG20: Vertical overlaped | CH20: =((MAX(CH28:CJ28)+(0.07/(IF(B24>B25,B24,B25)/1000)))*0.13)+CF30 ->  | CI20: =CH20*0.75 ->  | CO20: ISXFR Duplex Graphite
D21: Select coverage | E21: Both Sides | H21: Select coverage | I21: Both Sides | K21: Select coverage | L21: Both Sides | BA21: 1 | BB21: =IF(E22=BE4,BD18*2+(0.035/(IF(B24>B25,B24,B25)/1000)),IF(OR(E22=BE5,E22=BE6),BD18*2+(0.035/(IF(B24>B25,B24,B25)/1000)),)) ->  | BD21: front | BE21: mid | BF21: back | BG21: tri front | BH21: tri mid/back | BP21: 1 | BQ21: =IF(I22=BT4,BS18*2+(0.035/(IF(B24>B25,B24,B25)/1000)),IF(OR(I22=BT5,I22=BT6),BS18*2+(0.035/(IF(B24>B25,B24,B25)/1000)),)) ->  | BS21: front | BT21: mid | BU21: back | BV21: tri front | BW21: tri mid/back | CE21: 1 | CF21: =IF(L22=CI4,CH18*2+(0.035/(IF(B24>B25,B24,B25)/1000)),IF(OR(L22=CI5,L22=CI6),CH18*2+(0.035/(IF(B24>B25,B24,B25)/1000)),)) ->  | CH21: front | CI21: mid | CJ21: back | CK21: tri front | CL21: tri mid/back
D22: Number of sails per side | E22: =BL27 ->  | H22: Number of sails per side | I22: =CA27 ->  | K22: Number of sails per side | L22: =CP27 ->  | BB22: Dims in m | BC22: Sail perimeter | BD22: =((BE24+0.07)*2)+((BE25+0.07)*2) ->  | BE22: =((BD27+0.07)*2)+BE28+0.07+BD28+0.07 ->  | BF22: =((BG27+0.07)*2)+((BG28+0.07)*2) ->  | BG22: =((BF24+0.07)*2)+BF25+0.07 ->  | BH22: =((BG24+0.07)*2)+BG25+0.07 ->  | BQ22: Dims in m | BR22: Sail perimeter | BS22: =((BT24+0.07)*2)+((BT25+0.07)*2) ->  | BT22: =((BS27+0.07)*2)+BT28+0.07+BS28+0.07 ->  | BU22: =((BV27+0.07)*2)+((BV28+0.07)*2) ->  | BV22: =((BU24+0.07)*2)+BU25+0.07 ->  | BW22: =((BV24+0.07)*2)+BV25+0.07 ->  | CF22: Dims in m | CG22: Sail perimeter | CH22: =((CI24+0.07)*2)+((CI25+0.07)*2) ->  | CI22: =((CH27+0.07)*2)+CI28+0.07+CH28+0.07 ->  | CJ22: =((CK27+0.07)*2)+((CK28+0.07)*2) ->  | CK22: =((CJ24+0.07)*2)+CJ25+0.07 ->  | CL22: =((CK24+0.07)*2)+CK25+0.07 -> 
B23: All dims in mm | D23: Overlaps | E23: 0.5 | H23: Overlaps | I23: 0.5 | K23: Overlaps | L23: 0 | BA23: h1 | BB23: =B26/IF(B24>B25,B24,B25) ->  | BD23: front + overlaped | BF23: tri front | BG23: tri mid | BH23: tri back | BP23: h1 | BQ23: =B26/IF(B24>B25,B24,B25) ->  | BS23: front + overlaped | BU23: tri front | BV23: tri mid | BW23: tri back | CE23: h1 | CF23: =B26/IF(B24>B25,B24,B25) ->  | CH23: front + overlaped | CJ23: tri front | CK23: tri mid | CL23: tri back
A24: X1 | D24: Triangles | E24: No | H24: Triangles | I24: No | K24: Triangles | L24: Yes | BA24: h2 | BB24: =B27/IF(B24>B25,B24,B25) ->  | BC24: Sail length | BD24: =(BB26/2)-(0.07/(IF(B24>B25,B24,B25)/1000)) ->  | BE24: =BD24+BB10 ->  | BF24: =O49-(0.07/(IF(B24>B25,B24,B25)/1000)) ->  | BG24: =(BB26/2)-(0.07/(IF(B24>B25,B24,B25)/1000)) ->  | BH24: =(BB26/2)-(0.07/(IF(B24>B25,B24,B25)/1000)) ->  | BP24: h2 | BQ24: =B27/IF(B24>B25,B24,B25) ->  | BR24: Sail length | BS24: =(BQ26/2)-(0.07/(IF(B24>B25,B24,B25)/1000)) ->  | BT24: =BS24+BQ10 ->  | BU24: =AF49-(0.07/(IF(B24>B25,B24,B25)/1000)) ->  | BV24: =(BQ26/2)-(0.07/(IF(B24>B25,B24,B25)/1000)) ->  | BW24: =(BQ26/2)-(0.07/(IF(B24>B25,B24,B25)/1000)) ->  | CE24: h2 | CF24: =B27/IF(B24>B25,B24,B25) ->  | CG24: Sail length | CH24: =(CF26/2)-(0.07/(IF(B24>B25,B24,B25)/1000)) ->  | CI24: =CH24+CF10 ->  | CJ24: =AW49-(0.07/(IF(B24>B25,B24,B25)/1000)) ->  | CK24: =(CF26/2)-(0.07/(IF(B24>B25,B24,B25)/1000)) ->  | CL24: =(CF26/2)-(0.07/(IF(B24>B25,B24,B25)/1000)) -> 
A25: Y1 | D25: Total additional fittings | E25: 0 | H25: Total additional fittings | I25: 0 | K25: Total additional fittings | L25: 0 | BA25: y1 | BB25: =B25/IF(B24>B25,B24,B25) ->  | BC25: Sail width | BD25: =IF(E22=BE3,O46-(0.07/(IF(B24>B25,B24,B25)/1000)),O49-(0.07/(IF(B24>B25,B24,B25)/1000))) ->  | BE25: =BD25+BB14 ->  | BF25: =BF24*0.7 ->  | BG25: =BG24*0.8 ->  | BH25: =BH24*0.8 ->  | BP25: y1 | BQ25: =B25/IF(B24>B25,B24,B25) ->  | BR25: Sail width | BS25: =IF(I22=BT3,AF46-(0.07/(IF(B24>B25,B24,B25)/1000)),AF49-(0.07/(IF(B24>B25,B24,B25)/1000))) ->  | BT25: =BS25+BQ14 ->  | BU25: =BU24*0.7 ->  | BV25: =BV24*0.8 ->  | BW25: =BW24*0.8 ->  | CE25: y1 | CF25: =B25/IF(B24>B25,B24,B25) ->  | CG25: Sail width | CH25: =IF(L22=CI3,AW46-(0.07/(IF(B24>B25,B24,B25)/1000)),AW49-(0.07/(IF(B24>B25,B24,B25)/1000))) ->  | CI25: =CH25+CF14 ->  | CJ25: =CJ24*0.7 ->  | CK25: =CK24*0.8 ->  | CL25: =CL24*0.8 -> 
A26: H1 | D26: Total tie-bar loops | E26: 0 | H26: Total tie-bar loops | I26: 0 | K26: Total tie-bar loops | L26: 0 | BA26: x1 | BB26: =B24/IF(B24>B25,B24,B25) ->  | BD26: mid + overlaped | BG26: back bott | BH26: back top | BL26: Low | BP26: x1 | BQ26: =B24/IF(B24>B25,B24,B25) ->  | BS26: mid + overlaped | BV26: back bott | BW26: back top | CA26: Mid | CE26: x1 | CF26: =B24/IF(B24>B25,B24,B25) ->  | CH26: mid + overlaped | CK26: back bott | CL26: back top | CP26: Top
A27: H2 | D27: Total straight edges | E27: 0 | H27: Total straight edges | I27: 0 | K27: Total straight edges | L27: 0 | BA27: r1 | BB27: =B28/IF(B24>B25,B24,B25) ->  | BC27: Sail length | BD27: =BD24 ->  | BE27: <- | BF27: -> | BG27: =BD27 ->  | BH27: =BG27 ->  | BK27: Number of sails per side | BL27: =IF(OR(BL32>1.5,B25>4000),2,1) ->  | BP27: r1 | BQ27: =B28/IF(B24>B25,B24,B25) ->  | BR27: Sail length | BS27: =BS24 ->  | BT27: <- | BU27: -> | BV27: =BS27 ->  | BW27: =BV27 ->  | BZ27: Number of sails per side | CA27: =IF(CA31<1.25,2,IF(AND(CA31>=1.25,CA31<=2.25),3,IF(CA31>2.25,4))) ->  | CE27: r1 | CF27: =B28/IF(B24>B25,B24,B25) ->  | CG27: Sail length | CH27: =CH24 ->  | CI27: <- | CJ27: -> | CK27: =CH27 ->  | CL27: =CK27 ->  | CO27: Number of sails per side | CP27: =IF(CP31<1.25,2,IF(AND(CP31>=1.25,CP31<=2.25),3,IF(CP31>2.25,4))) -> 
A28: R1 | D28: Colour of main sails | E28: ISX Solid | H28: Colour of main sails | I28: ISX Solid | K28: Colour of main sails | L28: ISX Solid | BA28: Roof area (m^2) | BB28: =BB29*BB25 ->  | BC28: Sail width | BD28: =((BB27/(IF(E22=BE5,2,IF(E22=BE6,3,1)))))-(0.07/(IF(B24>B25,B24,B25)/1000)) ->  | BE28: =BD28+BB14 ->  | BF28: =BD28+BB18 ->  | BG28: =BH28+BB18 ->  | BH28: =((BB27/IF(E22=BE4,1,IF(E22=BE5,2,3))-(0.07/(IF(B24>B25,B24,B25)/1000)))) ->  | BK28: Overlaps | BL28: 0.5 | BP28: Roof area (m^2) | BQ28: =BQ29*BQ25 ->  | BR28: Sail width | BS28: =((BQ27/(IF(I22=BT5,2,IF(I22=BT6,3,1)))))-(0.07/(IF(B24>B25,B24,B25)/1000)) ->  | BT28: =BS28+BQ14 ->  | BU28: =BS28+BQ18 ->  | BV28: =BW28+BQ18 ->  | BW28: =((BQ27/IF(I22=BT4,1,IF(I22=BT5,2,3))-(0.07/(IF(B24>B25,B24,B25)/1000)))) ->  | BZ28: Overlaps | CA28: 0.5 | CE28: Roof area (m^2) | CF28: =CF29*CF25 ->  | CG28: Sail width | CH28: =((CF27/(IF(L22=CI5,2,IF(L22=CI6,3,1)))))-(0.07/(IF(B24>B25,B24,B25)/1000)) ->  | CI28: =CH28+CF14 ->  | CJ28: =CH28+CF18 ->  | CK28: =CL28+CF18 ->  | CL28: =((CF27/IF(L22=CI4,1,IF(L22=CI5,2,3))-(0.07/(IF(B24>B25,B24,B25)/1000)))) ->  | CO28: Overlaps | CP28: 0
D29: Colour of triangles | E29: ISX Solid | H29: Colour of triangles | I29: ISX Solid | K29: Colour of triangles | L29: ISX Solid | BA29: Glazing bar length | BB29: =SQRT((BB24-BB23)^2+(BB26/2)^2) ->  | BD29: 4 sails left | BE29: =(BB27*0.333)+O52 ->  | BF29: 4 sails left | BG29: =(BB27*0.666)+O52 ->  | BK29: Triangles | BL29: No | BP29: Glazing bar length | BQ29: =SQRT((BQ24-BQ23)^2+(BQ26/2)^2) ->  | BS29: 4 sails left | BT29: =(BQ27*0.333)+AF52 ->  | BU29: 4 sails left | BV29: =(BQ27*0.666)+AF52 ->  | BZ29: Triangles | CA29: No | CE29: Glazing bar length | CF29: =SQRT((CF24-CF23)^2+(CF26/2)^2) ->  | CH29: 4 sails left | CI29: =(CF27*0.333)+AW52 ->  | CJ29: 4 sails left | CK29: =(CF27*0.666)+AW52 ->  | CO29: Triangles | CP29: Yes
D30: Colour of fittings | E30: Stainless steel | H30: Colour of fittings | I30: Stainless steel | K30: Colour of fittings | L30: Stainless steel | BA30: 50mm links | BB30: =(0.035/(IF(B24>B25,B24,B25)/1000)) ->  | BC30: Costs | BD30: front | BE30: mid | BF30: right | BG30: tri front | BH30: tri mid/back | BK30: Total additional fittings | BL30: =(IF(E21=BH6,2,1)*E22*2) ->  | BP30: 50mm links | BQ30: =(0.035/(IF(B24>B25,B24,B25)/1000)) ->  | BR30: Costs | BS30: front | BT30: mid | BU30: right | BV30: tri front | BW30: tri mid/back | BZ30: Total additional fittings | CA30: =IF(I22=1,1,0)*(IF(CA31<1.25,2,)) ->  | CE30: 50mm links | CF30: =(0.035/(IF(B24>B25,B24,B25)/1000)) ->  | CG30: Costs | CH30: front | CI30: mid | CJ30: right | CK30: tri front | CL30: tri mid/back | CO30: Total additional fittings | CP30: =IF(L22=1,1,0)*(IF(CP31<1.25,4,)) -> 
D31: Number of window vents | E31: 0 | H31: Number of window vents | I31: 0 | K31: Number of window vents | L31: 0 | BC31: length | BD31: =(IF((B72-B76)<BB29,BB29,(B72-B76))*(IF(B24>B25,B24,B25)/1000)) ->  | BE31: =(IF(BD27<BB29,BB29,BD27)*(IF(B24>B25,B24,B25)/1000)) ->  | BF31: =BE31 ->  | BG31: =(SQRT(((B25-B28)^2)+((B27-B26)^2)))/1000 -> 0 | BH31: =BF31 ->  | BK31: Length/Width Ratio | BL31: =BB27/(BB26/2) ->  | BR31: length | BS31: =(IF((S72-S76)<BQ29,BQ29,(S72-S76))*(IF(B24>B25,B24,B25)/1000)) ->  | BT31: =(IF(BS27<BQ29,BQ29,BS27)*(IF(B24>B25,B24,B25)/1000)) ->  | BU31: =BT31 ->  | BV31: =(SQRT(((B25-B28)^2)+((B27-B26)^2)))/1000 -> 0 | BW31: =BU31 ->  | BZ31: Length/Width Ratio | CA31: =BQ27/(BQ26/2) ->  | CG31: length | CH31: =(IF((AJ72-AJ76)<CF29,CF29,(AJ72-AJ76))*(IF(B24>B25,B24,B25)/1000)) ->  | CI31: =(IF(CH27<CF29,CF29,CH27)*(IF(B24>B25,B24,B25)/1000)) ->  | CJ31: =CI31 ->  | CK31: =(SQRT(((B25-B28)^2)+((B27-B26)^2)))/1000 -> 0 | CL31: =CJ31 ->  | CO31: Length/Width Ratio | CP31: =CF27/(CF26/2) -> 
BC32: width | BD32: =IF(E22=1,1,1)*(IF(E22<>BE3,IF((((A64-A60)*(IF(B24>B25,B24,B25)/1000))+0.07)>((SQRT(((B25-B28)^2)+((B27-B26)^2)))/1000),(((A64-A60)*(IF(B24>B25,B24,B25)/1000))+0.07),((SQRT(((B25-B28)^2)+((B27-B26)^2)))/1000)),(SQRT((B25^2)+((B27-B26)^2)))/1000)) ->  | BE32: =((C64-C60)*(IF(B24>B25,B24,B25)/1000))+0.07 ->  | BF32: =IF(E22<>BE5,MIN(BD32,BE32),((G64-G60)*(IF(B24>B25,B24,B25)/1000))+0.07) ->  | BG32: =((B44-B48)*(IF(B24>B25,B24,B25)/1000))+0.07 -> 0.07 | BH32: =(BG25*(IF(B24>B25,B24,B25)/1000))+0.07 ->  | BK32: Low Length/Width Ratio | BL32: =BB25/BB26 ->  | BR32: width | BS32: =IF(I22=1,1,1)*(IF(I22<>BT3,IF((((R64-R60)*(IF(B24>B25,B24,B25)/1000))+0.07)>((SQRT(((B25-B28)^2)+((B27-B26)^2)))/1000),(((R64-R60)*(IF(B24>B25,B24,B25)/1000))+0.07),((SQRT(((B25-B28)^2)+((B27-B26)^2)))/1000)),(SQRT((B25^2)+((B27-B26)^2)))/1000)) ->  | BT32: =((T64-T60)*(IF(B24>B25,B24,B25)/1000))+0.07 ->  | BU32: =IF(I22<>BT5,MIN(BS32,BT32),((X64-X60)*(IF(B24>B25,B24,B25)/1000))+0.07) ->  | BV32: =((S44-S48)*(IF(B24>B25,B24,B25)/1000))+0.07 -> 0.07 | BW32: =(BV25*(IF(B24>B25,B24,B25)/1000))+0.07 ->  | BZ32: Low Length/Width Ratio | CA32: =BQ25/BQ26 ->  | CG32: width | CH32: =IF(L22=1,1,1)*(IF(L22<>CI3,IF((((AI64-AI60)*(IF(B24>B25,B24,B25)/1000))+0.07)>((SQRT(((B25-B28)^2)+((B27-B26)^2)))/1000),(((AI64-AI60)*(IF(B24>B25,B24,B25)/1000))+0.07),((SQRT(((B25-B28)^2)+((B27-B26)^2)))/1000)),(SQRT((B25^2)+((B27-B26)^2)))/1000)) ->  | CI32: =((AK64-AK60)*(IF(B24>B25,B24,B25)/1000))+0.07 ->  | CJ32: =IF(L22<>CI5,MIN(CH32,CI32),((AO64-AO60)*(IF(B24>B25,B24,B25)/1000))+0.07) ->  | CK32: =((AJ44-AJ48)*(IF(B24>B25,B24,B25)/1000))+0.07 ->  | CL32: =(CK25*(IF(B24>B25,B24,B25)/1000))+0.07 ->  | CO32: Low Length/Width Ratio | CP32: =CF25/CF26 -> 
D33: Max length of sail | E33: =(MAX(BD31:BF31))*1000 ->  | H33: Max length of sail | I33: =(MAX(BS31:BU31))*1000 ->  | K33: Max length of sail | L33: =(MAX(CH31:CJ31))*1000 ->  | BC33: perimeter | BD33: =(BD31+BD32+((BD24*(IF(B24>B25,B24,B25)/1000))+0.07)+((BD25*(IF(B24>B25,B24,B25)/1000))+0.07))*1.05 ->  | BE33: =((BE31*2)+BE32+(((C68-C72)*(IF(B24>B25,B24,B25)/1000))+0.07))*1.05 ->  | BF33: =((BF31*2)+(BF32*2))*1.05 ->  | BG33: =((BG31*2)+BG32)*1.05 -> 0.0735 | BH33: =((BH31*2)+BH32)*1.05 ->  | BR33: perimeter | BS33: =(BS31+BS32+((BS24*(IF(B24>B25,B24,B25)/1000))+0.07)+((BS25*(IF(B24>B25,B24,B25)/1000))+0.07))*1.05 ->  | BT33: =((BT31*2)+BT32+(((T68-T72)*(IF(B24>B25,B24,B25)/1000))+0.07))*1.05 ->  | BU33: =((BU31*2)+(BU32*2))*1.05 ->  | BV33: =((BV31*2)+BV32)*1.05 -> 0.0735 | BW33: =((BW31*2)+BW32)*1.05 ->  | CG33: perimeter | CH33: =(CH31+CH32+((CH24*(IF(B24>B25,B24,B25)/1000))+0.07)+((CH25*(IF(B24>B25,B24,B25)/1000))+0.07))*1.05 ->  | CI33: =((CI31*2)+CI32+(((AK68-AK72)*(IF(B24>B25,B24,B25)/1000))+0.07))*1.05 ->  | CJ33: =((CJ31*2)+(CJ32*2))*1.05 ->  | CK33: =((CK31*2)+CK32)*1.05 ->  | CL33: =((CL31*2)+CL32)*1.05 -> 
D34: Max width of sail | E34: =(MAX(BD32:BF32))*1000 ->  | H34: Max width of sail | I34: =(MAX(BS32:BU32))*1000 ->  | K34: Max width of sail | L34: =(MAX(CH32:CJ32))*1000 ->  | BD34: =(IF(E21=BW6,2,1)*((BB1*((BD31*BD32*BS1*BQ6)+(BD33*BS2)+(BT9*BS3)))+(BT9*BN5)+' '!B35)) ->  | BE34: =(IF(E22=BE6,2,1))*((IF(OR(E22=BE2,E22=BE3),0,IF(E21=BW6,2,1)*((((BB1*((BE31*BE32*BS1*BQ6)+(BE33*BS2)+(BT9*BS3))+(BT9*BN5)+' '!B35))))))) ->  | BF34: =(IF(OR(E22=BE2,E22=BE3,E22=BE4),0,IF(E21=BW6,2,1)*((BB1*((BF31*BF32*BS1*BQ6)+(BF33*BS2)+(BT9*BS3)))+(BT9*BN5)+' '!B35))) ->  | BG34: =IF(E24=BH2,0,(IF(E24=BH3,((BB2*((BG31*BG32*BS1*BQ7)+(BG33*BS2)+(3*BS3)))+(3*BN5)+' '!B35)))) -> 0 | BH34: =(IF(E24=BH2,0,(((BB2*((BH31*BH32*BS1*BQ7)+(BH33*BS2)+(3*BS3)))+(3*BN5)+' '!B35)))) -> 0 | BN34: Overlaps | BO34: Triangles | BS34: =IF(I21=BW6,2,1)*((BQ1*((BS31*BS32*BS1*BQ6)+(BS33*BS2)+(BT9*BS3)))+(BT9*CC5)+' '!B35) ->  | BT34: =(IF(I22=BT6,2,1))*((IF(OR(I22=BT2,I22=BT3),0,IF(I21=BW6,2,1)*((((BQ1*((BT31*BT32*BS1*BQ6)+(BT33*BS2)+(BT9*BS3))+(BT9*CC5)+' '!B35))))))) ->  | BU34: =(IF(OR(I22=BT2,I22=BT3,I22=BT4),0,IF(I21=BW6,2,1)*((BQ1*((BU31*BU32*BS1*BQ6)+(BU33*BS2)+(BT9*BS3)))+(BT9*CC5)+' '!B35))) ->  | BV34: =IF(I24=BW2,0,(IF(I24=BW3,((BQ2*((BV31*BV32*BS1*BQ7)+(BV33*BS2)+(3*BS3)))+(3*CC5)+' '!B35)))) -> 0 | BW34: =(IF(I24=BW2,0,((BQ2*((BW31*BW32*BS1*BQ7)+(BW33*BS2)+(3*BS3)))+(3*CC5)+' '!B35))) -> 0 | CH34: =(IF(L21=BW6,2,1)*((CF1*((CH31*CH32*BS1*BQ6)+(CH33*BS2)+(BT9*BS3)))+(BT9*CR5)+' '!B35)) ->  | CI34: =(IF(L22=CI6,2,1))*((IF(OR(L22=CI2,L22=CI3),0,IF(L21=BW6,2,1)*((((CF1*((CI31*CI32*BS1*BQ6)+(CI33*BS2)+(BT9*BS3))+(BT9*CR5)+' '!B35))))))) ->  | CJ34: =(IF(OR(L22=CI2,L22=CI3,L22=CI4),0,IF(L21=BW6,2,1)*((CF1*((CJ31*CJ32*BS1*BQ6)+(CJ33*BS2)+(BT9*BS3)))+(BT9*CR5)+' '!B35))) ->  | CK34: =IF(L24=CL2,0,(IF(L24=CL3,((CF2*((CK31*CK32*BS1*BQ7)+(CK33*BS2)+(3*BS3)))+(3*CR5)+' '!B35)))) ->  | CL34: =(IF(L24=CL2,0,((CF2*((CL31*CL32*BS1*BQ7)+(CL33*BS2)+(3*BS3)))+(3*CR5)+' '!B35))) -> 
E35: Sails +2100mm in both directions require seams | I35: Sails +2100mm in both directions require seams | L35: Sails +2100mm in both directions require seams | BN35: 0 | BO35: No
BN36: 0.5 | BO36: Yes
BN37: 1
A42: x | B42: y | C42: x | D42: y | E42: x | F42: y | G42: x | H42: y | I42: x | J42: y | K42: x | L42: y | M42: x | N42: y | O42: Roof plan | R42: x | S42: y | T42: x | U42: y | V42: x | W42: y | X42: x | Y42: y | Z42: x | AA42: y | AB42: x | AC42: y | AD42: x | AE42: y | AF42: Roof plan | AI42: x | AJ42: y | AK42: x | AL42: y | AM42: x | AN42: y | AO42: x | AP42: y | AQ42: x | AR42: y | AS42: x | AT42: y | AU42: x | AV42: y | AW42: Roof plan
A43: f tri 3 | C43: m tri 1 | E43: m tri 2 | G43: b tri 4 | I43: b tri 5 | K43: b tri 6 | M43: b tri 7 | O43: x-axis | P43: y-axis | R43: f tri 3 | T43: m tri 1 | V43: m tri 2 | X43: b tri 4 | Z43: b tri 5 | AB43: b tri 6 | AD43: b tri 7 | AF43: x-axis | AG43: y-axis | AI43: f tri 3 | AK43: m tri 1 | AM43: m tri 2 | AO43: b tri 4 | AQ43: b tri 5 | AS43: b tri 6 | AU43: b tri 7 | AW43: x-axis | AX43: y-axis
A44: =IF(E24=BH3,BB30,) -> 0 | B44: =IF(E24=BH3,P49+(BF25/2),) -> 0 | C44: =IF(AND(E22<>BE3,E24=BH3),C46-(BG25/2),) ->  | D44: =IF(AND(E22<>BE3,E24=BH3),BB30,) ->  | E44: =IF(AND(E22<>BE3,E24=BH3,E21<>BH5),C46-(BG25/2),) ->  | F44: =IF(AND(E22<>BE3,E24=BH3,E21<>BH5),P46-BB30,) ->  | G44: =IF(AND(E22>2,E24=BH3),G46-(BH25/2),) ->  | H44: =IF(AND(E22>2,E24=BH3),BB30,) ->  | I44: =IF(AND(E22>2,E24=BH3,E21<>BH5),G46-(BH25/2),) ->  | J44: =IF(AND(E22>2,E24=BH3,E21<>BH5),P46-BB30,) ->  | K44: =IF(AND($E$24=BH3,$E$22=4),G44+($BB$27/3)-$A$60) ->  | L44: =IF(AND($E$24=BH3,$E$22=4),H44) ->  | M44: =IF(AND($E$24=BH3,$E$22=4,$E$21=$BH$6),I44+($BB$27/3)-$A$44) ->  | N44: =IF(AND($E$24=BH3,$E$22=4,$E$21=$BH$6),J44) ->  | O44: 0 | P44: 0 | R44: =IF(I24=BW3,BQ30,) -> 0 | S44: =IF(I24=BW3,AG49+(BU25/2),) -> 0 | T44: =IF(AND(I22<>BT3,I24=BW3),T46-(BV25/2),) ->  | U44: =IF(AND(I22<>BT3,I24=BW3),BQ30,) ->  | V44: =IF(AND(I22<>BT3,I24=BW3,I21<>BW5),T46-(BV25/2),) ->  | W44: =IF(AND(I22<>BT3,I24=BW3,I21<>BW5),AG46-BQ30,) ->  | X44: =IF(AND(I22>2,I24=BW3),X46-(BW25/2),) ->  | Y44: =IF(AND(I22>2,I24=BW3),BQ30,) ->  | Z44: =IF(AND(I22>2,I24=BW3,I21<>BW5),X46-(BW25/2),) ->  | AA44: =IF(AND(I22>2,I24=BW3,I21<>BW5),AG46-BQ30,) ->  | AB44: =IF(AND($I$24=BH3,$I$22=4),X44+($BB$27/3)-$R$60) ->  | AC44: =IF(AND($I$24=BH3,$I$22=4),Y44) ->  | AD44: =IF(AND($I$24=BH3,$I$22=4,$I$21=$BH$6),Z44+($BB$27/3)-$R$44) ->  | AE44: =IF(AND($I$24=BH3,$I$22=4,$I$21=$BH$6),AA44) ->  | AF44: 0 | AG44: 0 | AI44: =IF(L24=CL3,CF30,) ->  | AJ44: =IF(L24=CL3,AX49+(CJ25/2),) ->  | AK44: =IF(AND(L22<>CI3,L24=CL3),AK46-(CK25/2),) ->  | AL44: =IF(AND(L22<>CI3,L24=CL3),CF30,) ->  | AM44: =IF(AND(L22<>CI3,L24=CL3,L21<>CL5),AK46-(CK25/2),) ->  | AN44: =IF(AND(L22<>CI3,L24=CL3,L21<>CL5),AX46-CF30,) ->  | AO44: =IF(AND(L22>2,L24=CL3),AO46-(CL25/2),) ->  | AP44: =IF(AND(L22>2,L24=CL3),CF30,) ->  | AQ44: =IF(AND(L22>2,L24=CL3,L21<>CL5),AO46-(CL25/2),) ->  | AR44: =IF(AND(L22>2,L24=CL3,L21<>CL5),AX46-CF30,) ->  | AS44: =IF(AND($L$24=BH3,$L$22=4),AO44+($BB$27/3)-$AI$60) ->  | AT44: =IF(AND($L$24=BH3,$L$22=4),AP44) ->  | AU44: =IF(AND($L$24=BH3,$L$22=4,$L$21=$BH$6),AQ44+($BB$27/3)-$AI$44) ->  | AV44: =IF(AND($L$24=BH3,$L$22=4,$L$21=$BH$6),AR44) ->  | AW44: 0 | AX44: 0
A45: =IF(E24=BH3,BH14,) -> 0 | B45: =IF(E24=BH3,B44-(BF25/4),) -> 0 | C45: =IF(AND(E22<>BE3,E24=BH3),C46-(BG25/4),) ->  | D45: =IF(AND(E22<>BE3,E24=BH3),BH13,) ->  | E45: =IF(AND(E22<>BE3,E24=BH3,E21<>BH5),C46-(BG25/4),) ->  | F45: =IF(AND(E22<>BE3,E24=BH3,E21<>BH5),P46-BH13,) ->  | G45: =IF(AND(E22>2,E24=BH3),G46-(BH25/4),) ->  | H45: =IF(AND(E22>2,E24=BH3),BH12,) ->  | I45: =IF(AND(E22>2,E24=BH3,E21<>BH5),G46-(BH25/4),) ->  | J45: =IF(AND(E22>2,E24=BH3,E21<>BH5),P46-BH12,) ->  | K45: =IF(AND($E$24=BH3,$E$22=4),G45+($BB$27/3)-$A$60) ->  | L45: =IF(AND($E$24=BH3,$E$22=4),H45) ->  | M45: =IF(AND($E$24=BH3,$E$22=4,$E$21=$BH$6),I45+($BB$27/3)-$A$44) ->  | N45: =IF(AND($E$24=BH3,$E$22=4,$E$21=$BH$6),J45) ->  | O45: =BB25 ->  | P45: 0 | R45: =IF(I24=BW3,BW14,) -> 0 | S45: =IF(I24=BW3,S44-(BU25/4),) -> 0 | T45: =IF(AND(I22<>BT3,I24=BW3),T46-(BV25/4),) ->  | U45: =IF(AND(I22<>BT3,I24=BW3),BW13,) ->  | V45: =IF(AND(I22<>BT3,I24=BW3,I21<>BW5),T46-(BV25/4),) ->  | W45: =IF(AND(I22<>BT3,I24=BW3,I21<>BW5),AG46-BW13,) ->  | X45: =IF(AND(I22>2,I24=BW3),X46-(BW25/4),) ->  | Y45: =IF(AND(I22>2,I24=BW3),BW12,) ->  | Z45: =IF(AND(I22>2,I24=BW3,I21<>BW5),X46-(BW25/4),) ->  | AA45: =IF(AND(I22>2,I24=BW3,I21<>BW5),AG46-BW12,) ->  | AB45: =IF(AND($I$24=BH3,$I$22=4),X45+($BB$27/3)-$R$60) ->  | AC45: =IF(AND($I$24=BH3,$I$22=4),Y45) ->  | AD45: =IF(AND($I$24=BH3,$I$22=4,$I$21=$BH$6),Z45+($BB$27/3)-$R$44) ->  | AE45: =IF(AND($I$24=BH3,$I$22=4,$I$21=$BH$6),AA45) ->  | AF45: =BQ25 ->  | AG45: 0 | AI45: =IF(L24=CL3,CL14,) ->  | AJ45: =IF(L24=CL3,AJ44-(CJ25/4),) ->  | AK45: =IF(AND(L22<>CI3,L24=CL3),AK46-(CK25/4),) ->  | AL45: =IF(AND(L22<>CI3,L24=CL3),CL13,) ->  | AM45: =IF(AND(L22<>CI3,L24=CL3,L21<>CL5),AK46-(CK25/4),) ->  | AN45: =IF(AND(L22<>CI3,L24=CL3,L21<>CL5),AX46-CL13,) ->  | AO45: =IF(AND(L22>2,L24=CL3),AO46-(CL25/4),) ->  | AP45: =IF(AND(L22>2,L24=CL3),CL12,) ->  | AQ45: =IF(AND(L22>2,L24=CL3,L21<>CL5),AO46-(CL25/4),) ->  | AR45: =IF(AND(L22>2,L24=CL3,L21<>CL5),AX46-CL12,) ->  | AS45: =IF(AND($L$24=BH3,$L$22=4),AO45+($BB$27/3)-$AI$60) ->  | AT45: =IF(AND($L$24=BH3,$L$22=4),AP45) ->  | AU45: =IF(AND($L$24=BH3,$L$22=4,$L$21=$BH$6),AQ45+($BB$27/3)-$AI$44) ->  | AV45: =IF(AND($L$24=BH3,$L$22=4,$L$21=$BH$6),AR45) ->  | AW45: =CF25 ->  | AX45: 0
A46: =IF(E24=BH3,BG14,) -> 0 | B46: =IF(E24=BH3,B45-(BF25/4),) -> 0 | C46: =IF(AND(E22<>BE3,E24=BH3),C52,) ->  | D46: =IF(AND(E22<>BE3,E24=BH3),BG13,) ->  | E46: =IF(AND(E22<>BE3,E24=BH3,E21<>BH5),C52,) ->  | F46: =IF(AND(E22<>BE3,E24=BH3,E21<>BH5),P47-BG13,) ->  | G46: =IF(AND(E22>2,E24=BH3),G52,) ->  | H46: =IF(AND(E22>2,E24=BH3),BG12,) ->  | I46: =IF(AND(E22>2,E24=BH3,E21<>BH5),G52,) ->  | J46: =IF(AND(E22>2,E24=BH3,E21<>BH5),P47-BG12,) ->  | K46: =IF(AND($E$24=BH3,$E$22=4),G46+($BB$27/3)-$A$60) ->  | L46: =IF(AND($E$24=BH3,$E$22=4),H46) ->  | M46: =IF(AND($E$24=BH3,$E$22=4,$E$21=$BH$6),I46+($BB$27/3)-$A$44) ->  | N46: =IF(AND($E$24=BH3,$E$22=4,$E$21=$BH$6),J46) ->  | O46: =BB25 ->  | P46: =BB26 ->  | R46: =IF(I24=BW3,BV14,) -> 0 | S46: =IF(I24=BW3,S45-(BU25/4),) -> 0 | T46: =IF(AND(I22<>BT3,I24=BW3),T52,) ->  | U46: =IF(AND(I22<>BT3,I24=BW3),BV13,) ->  | V46: =IF(AND(I22<>BT3,I24=BW3,I21<>BW5),T52,) ->  | W46: =IF(AND(I22<>BT3,I24=BW3,I21<>BW5),AG47-BV13,) ->  | X46: =IF(AND(I22>2,I24=BW3),X52,) ->  | Y46: =IF(AND(I22>2,I24=BW3),BV12,) ->  | Z46: =IF(AND(I22>2,I24=BW3,I21<>BW5),X52,) ->  | AA46: =IF(AND(I22>2,I24=BW3,I21<>BW5),AG47-BV12,) ->  | AB46: =IF(AND($I$24=BH3,$I$22=4),X46+($BB$27/3)-$R$60) ->  | AC46: =IF(AND($I$24=BH3,$I$22=4),Y46) ->  | AD46: =IF(AND($I$24=BH3,$I$22=4,$I$21=$BH$6),Z46+($BB$27/3)-$R$44) ->  | AE46: =IF(AND($I$24=BH3,$I$22=4,$I$21=$BH$6),AA46) ->  | AF46: =BQ25 ->  | AG46: =BQ26 ->  | AI46: =IF(L24=CL3,CK14,) ->  | AJ46: =IF(L24=CL3,AJ45-(CJ25/4),) ->  | AK46: =IF(AND(L22<>CI3,L24=CL3),AK52,) ->  | AL46: =IF(AND(L22<>CI3,L24=CL3),CK13,) ->  | AM46: =IF(AND(L22<>CI3,L24=CL3,L21<>CL5),AK52,) ->  | AN46: =IF(AND(L22<>CI3,L24=CL3,L21<>CL5),AX47-CK13,) ->  | AO46: =IF(AND(L22>2,L24=CL3),AO52,) ->  | AP46: =IF(AND(L22>2,L24=CL3),CK12,) ->  | AQ46: =IF(AND(L22>2,L24=CL3,L21<>CL5),AO52,) ->  | AR46: =IF(AND(L22>2,L24=CL3,L21<>CL5),AX47-CK12,) ->  | AS46: =IF(AND($L$24=BH3,$L$22=4),AO46+($BB$27/3)-$AI$60) ->  | AT46: =IF(AND($L$24=BH3,$L$22=4),AP46) ->  | AU46: =IF(AND($L$24=BH3,$L$22=4,$L$21=$BH$6),AQ46+($BB$27/3)-$AI$44) ->  | AV46: =IF(AND($L$24=BH3,$L$22=4,$L$21=$BH$6),AR46) ->  | AW46: =CF25 ->  | AX46: =CF26 -> 
A47: =IF(E24=BH3,A45,) -> 0 | B47: =IF(E24=BH3,B46-(BF25/4),) -> 0 | C47: =IF(AND(E22<>BE3,E24=BH3),C46+(BG25/4),) ->  | D47: =IF(AND(E22<>BE3,E24=BH3),BH13,) ->  | E47: =IF(AND(E22<>BE3,E24=BH3,E21<>BH5),C46+(BG25/4),) ->  | F47: =IF(AND(E22<>BE3,E24=BH3,E21<>BH5),P47-BH13,) ->  | G47: =IF(AND(E22>2,E24=BH3),G46+(BH25/4),) ->  | H47: =IF(AND(E22>2,E24=BH3),BH12,) ->  | I47: =IF(AND(E22>2,E24=BH3,E21<>BH5),G46+(BH25/4),) ->  | J47: =IF(AND(E22>2,E24=BH3,E21<>BH5),P47-BH12,) ->  | K47: =IF(AND($E$24=BH3,$E$22=4),G47+($BB$27/3)-$A$60) ->  | L47: =IF(AND($E$24=BH3,$E$22=4),H47) ->  | M47: =IF(AND($E$24=BH3,$E$22=4,$E$21=$BH$6),I47+($BB$27/3)-$A$44) ->  | N47: =IF(AND($E$24=BH3,$E$22=4,$E$21=$BH$6),J47) ->  | O47: 0 | P47: =BB26 ->  | R47: =IF(I24=BW3,R45,) -> 0 | S47: =IF(I24=BW3,S46-(BU25/4),) -> 0 | T47: =IF(AND(I22<>BT3,I24=BW3),T46+(BV25/4),) ->  | U47: =IF(AND(I22<>BT3,I24=BW3),BW13,) ->  | V47: =IF(AND(I22<>BT3,I24=BW3,I21<>BW5),T46+(BV25/4),) ->  | W47: =IF(AND(I22<>BT3,I24=BW3,I21<>BW5),AG47-BW13,) ->  | X47: =IF(AND(I22>2,I24=BW3),X46+(BW25/4),) ->  | Y47: =IF(AND(I22>2,I24=BW3),BW12,) ->  | Z47: =IF(AND(I22>2,I24=BW3,I21<>BW5),X46+(BW25/4),) ->  | AA47: =IF(AND(I22>2,I24=BW3,I21<>BW5),AG47-BW12,) ->  | AB47: =IF(AND($I$24=BH3,$I$22=4),X47+($BB$27/3)-$R$60) ->  | AC47: =IF(AND($I$24=BH3,$I$22=4),Y47) ->  | AD47: =IF(AND($I$24=BH3,$I$22=4,$I$21=$BH$6),Z47+($BB$27/3)-$R$44) ->  | AE47: =IF(AND($I$24=BH3,$I$22=4,$I$21=$BH$6),AA47) ->  | AF47: 0 | AG47: =BQ26 ->  | AI47: =IF(L24=CL3,AI45,) ->  | AJ47: =IF(L24=CL3,AJ46-(CJ25/4),) ->  | AK47: =IF(AND(L22<>CI3,L24=CL3),AK46+(CK25/4),) ->  | AL47: =IF(AND(L22<>CI3,L24=CL3),CL13,) ->  | AM47: =IF(AND(L22<>CI3,L24=CL3,L21<>CL5),AK46+(CK25/4),) ->  | AN47: =IF(AND(L22<>CI3,L24=CL3,L21<>CL5),AX47-CL13,) ->  | AO47: =IF(AND(L22>2,L24=CL3),AO46+(CL25/4),) ->  | AP47: =IF(AND(L22>2,L24=CL3),CL12,) ->  | AQ47: =IF(AND(L22>2,L24=CL3,L21<>CL5),AO46+(CL25/4),) ->  | AR47: =IF(AND(L22>2,L24=CL3,L21<>CL5),AX47-CL12,) ->  | AS47: =IF(AND($L$24=BH3,$L$22=4),AO47+($BB$27/3)-$AI$60) ->  | AT47: =IF(AND($L$24=BH3,$L$22=4),AP47) ->  | AU47: =IF(AND($L$24=BH3,$L$22=4,$L$21=$BH$6),AQ47+($BB$27/3)-$AI$44) ->  | AV47: =IF(AND($L$24=BH3,$L$22=4,$L$21=$BH$6),AR47) ->  | AW47: 0 | AX47: =CF26 -> 
A48: =A44 -> 0 | B48: =IF(E24=BH3,P49-(BF25/2),) -> 0 | C48: =IF(AND(E22<>BE3,E24=BH3),C46+(BG25/2),) ->  | D48: =D44 ->  | E48: =IF(AND(E22<>BE3,E24=BH3,E21<>BH5),C46+(BG25/2),) ->  | F48: =IF(AND(E22<>BE3,E24=BH3,E21<>BH5),P46-D44,) ->  | G48: =IF(AND(E22>2,E24=BH3),G46+(BH25/2),) ->  | H48: =H44 ->  | I48: =IF(AND(E22>2,E24=BH3,E21<>BH5),G46+(BH25/2),) ->  | J48: =IF(AND(E22>2,E24=BH3,E21<>BH5),P46-D44,) ->  | K48: =IF(AND($E$24=BH3,$E$22=4),G48+($BB$27/3)-$A$60) ->  | L48: =IF(AND($E$24=BH3,$E$22=4),H48) ->  | M48: =IF(AND($E$24=BH3,$E$22=4,$E$21=$BH$6),I48+($BB$27/3)-$A$44) ->  | N48: =IF(AND($E$24=BH3,$E$22=4,$E$21=$BH$6),J48) ->  | O48: 0 | P48: 0 | R48: =R44 -> 0 | S48: =IF(I24=BW3,AG49-(BU25/2),) -> 0 | T48: =IF(AND(I22<>BT3,I24=BW3),T46+(BV25/2),) ->  | U48: =U44 ->  | V48: =IF(AND(I22<>BT3,I24=BW3,I21<>BW5),T46+(BV25/2),) ->  | W48: =IF(AND(I22<>BT3,I24=BW3,I21<>BW5),AG46-U44,) ->  | X48: =IF(AND(I22>2,I24=BW3),X46+(BW25/2),) ->  | Y48: =Y44 ->  | Z48: =IF(AND(I22>2,I24=BW3,I21<>BW5),X46+(BW25/2),) ->  | AA48: =IF(AND(I22>2,I24=BW3,I21<>BW5),AG46-U44,) ->  | AB48: =IF(AND($I$24=BH3,$I$22=4),X48+($BB$27/3)-$R$60) ->  | AC48: =IF(AND($I$24=BH3,$I$22=4),Y48) ->  | AD48: =IF(AND($I$24=BH3,$I$22=4,$I$21=$BH$6),Z48+($BB$27/3)-$R$44) ->  | AE48: =IF(AND($I$24=BH3,$I$22=4,$I$21=$BH$6),AA48) ->  | AF48: 0 | AG48: 0 | AI48: =AI44 ->  | AJ48: =IF(L24=CL3,AX49-(CJ25/2),) ->  | AK48: =IF(AND(L22<>CI3,L24=CL3),AK46+(CK25/2),) ->  | AL48: =AL44 ->  | AM48: =IF(AND(L22<>CI3,L24=CL3,L21<>CL5),AK46+(CK25/2),) ->  | AN48: =IF(AND(L22<>CI3,L24=CL3,L21<>CL5),AX46-AL44,) ->  | AO48: =IF(AND(L22>2,L24=CL3),AO46+(CL25/2),) ->  | AP48: =AP44 ->  | AQ48: =IF(AND(L22>2,L24=CL3,L21<>CL5),AO46+(CL25/2),) ->  | AR48: =IF(AND(L22>2,L24=CL3,L21<>CL5),AX46-AL44,) ->  | AS48: =IF(AND($L$24=BH3,$L$22=4),AO48+($BB$27/3)-$AI$60) ->  | AT48: =IF(AND($L$24=BH3,$L$22=4),AP48) ->  | AU48: =IF(AND($L$24=BH3,$L$22=4,$L$21=$BH$6),AQ48+($BB$27/3)-$AI$44) ->  | AV48: =IF(AND($L$24=BH3,$L$22=4,$L$21=$BH$6),AR48) ->  | AW48: 0 | AX48: 0
A49: =IF(E24=BH3,A50-(BF24/4),) -> 0 | B49: =IF(E24=BH3,B48+((B52-B48)/1.8),) -> 0 | C49: =IF(AND(E22<>BE3,E24=BH3),C48-((C48-C52)/1.8),) ->  | D49: =IF(AND(E22<>BE3,E24=BH3),D50-(BG24/4),) ->  | E49: =IF(AND(E24=BH3,E21<>BH5),C48-((C48-C52)/1.8),) -> 0 | F49: =IF(AND(E22<>BE3,E24=BH3,E21<>BH5),F50+(BG24/4),) ->  | G49: =IF(AND(E22>2,E24=BH3),G48-((G48-G52)/1.8),) ->  | H49: =IF(AND(E22>2,E24=BH3),H50-(BG24/4),) ->  | I49: =IF(AND(E24=BH3,E21<>BH5),G48-((G48-G52)/1.8),) -> 0 | J49: =IF(AND(E22>2,E24=BH3,E21<>BH5),J50+(BG24/4),) ->  | K49: =IF(AND($E$24=BH3,$E$22=4),G49+($BB$27/3)-$A$60) ->  | L49: =IF(AND($E$24=BH3,$E$22=4),H49) ->  | M49: =IF(AND($E$24=BH3,$E$22=4,$E$21=$BH$6),I49+($BB$27/3)-$A$44) ->  | N49: =IF(AND($E$24=BH3,$E$22=4,$E$21=$BH$6),J49) ->  | O49: =BB25-BB27 ->  | P49: =BB26/2 ->  | R49: =IF(I24=BW3,R50-(BU24/4),) -> 0 | S49: =IF(I24=BW3,S48+((S52-S48)/1.8),) -> 0 | T49: =IF(AND(I22<>BT3,I24=BW3),T48-((T48-T52)/1.8),) ->  | U49: =IF(AND(I22<>BT3,I24=BW3),U50-(BV24/4),) ->  | V49: =IF(AND(I24=BW3,I21<>BW5),T48-((T48-T52)/1.8),) -> 0 | W49: =IF(AND(I22<>BT3,I24=BW3,I21<>BW5),W50+(BV24/4),) ->  | X49: =IF(AND(I22>2,I24=BW3),X48-((X48-X52)/1.8),) ->  | Y49: =IF(AND(I22>2,I24=BW3),Y50-(BV24/4),) ->  | Z49: =IF(AND(I24=BW3,I21<>BW5),X48-((X48-X52)/1.8),) -> 0 | AA49: =IF(AND(I22>2,I24=BW3,I21<>BW5),AA50+(BV24/4),) ->  | AB49: =IF(AND($I$24=BH3,$I$22=4),X49+($BB$27/3)-$R$60) ->  | AC49: =IF(AND($I$24=BH3,$I$22=4),Y49) ->  | AD49: =IF(AND($I$24=BH3,$I$22=4,$I$21=$BH$6),Z49+($BB$27/3)-$R$44) ->  | AE49: =IF(AND($I$24=BH3,$I$22=4,$I$21=$BH$6),AA49) ->  | AF49: =BQ25-BQ27 ->  | AG49: =BQ26/2 ->  | AI49: =IF(L24=CL3,AI50-(CJ24/4),) ->  | AJ49: =IF(L24=CL3,AJ48+((AJ52-AJ48)/1.8),) ->  | AK49: =IF(AND(L22<>CI3,L24=CL3),AK48-((AK48-AK52)/1.8),) ->  | AL49: =IF(AND(L22<>CI3,L24=CL3),AL50-(CK24/4),) ->  | AM49: =IF(AND(L24=CL3,L21<>CL5),AK48-((AK48-AK52)/1.8),) ->  | AN49: =IF(AND(L22<>CI3,L24=CL3,L21<>CL5),AN50+(CK24/4),) ->  | AO49: =IF(AND(L22>2,L24=CL3),AO48-((AO48-AO52)/1.8),) ->  | AP49: =IF(AND(L22>2,L24=CL3),AP50-(CK24/4),) ->  | AQ49: =IF(AND(L24=CL3,L21<>CL5),AO48-((AO48-AO52)/1.8),) ->  | AR49: =IF(AND(L22>2,L24=CL3,L21<>CL5),AR50+(CK24/4),) ->  | AS49: =IF(AND($L$24=BH3,$L$22=4),AO49+($BB$27/3)-$AI$60) ->  | AT49: =IF(AND($L$24=BH3,$L$22=4),AP49) ->  | AU49: =IF(AND($L$24=BH3,$L$22=4,$L$21=$BH$6),AQ49+($BB$27/3)-$AI$44) ->  | AV49: =IF(AND($L$24=BH3,$L$22=4,$L$21=$BH$6),AR49) ->  | AW49: =CF25-CF27 ->  | AX49: =CF26/2 -> 
A50: =IF(E24=BH3,A51-(BF24/4),) -> 0 | B50: =IF(E24=BH3,B48+((B52-B48)*0.85),) -> 0 | C50: =IF(AND(E22<>BE3,E24=BH3),C48-((C48-C52)*0.85),) ->  | D50: =IF(AND(E22<>BE3,E24=BH3),(BB26/2)-(BB26/4),) ->  | E50: =IF(AND(E24=BH3,E21<>BH5),C48-((C48-C52)*0.85),) -> 0 | F50: =IF(AND(E22<>BE3,E24=BH3,E21<>BH5),P46-(BB26/4),) ->  | G50: =IF(AND(E22>2,E24=BH3),G48-((G48-G52)*0.85),) ->  | H50: =IF(AND(E22>2,E24=BH3),(BB26/2)-(BB26/4),) ->  | I50: =IF(AND(E24=BH3,E21<>BH5),G48-((G48-G52)*0.85),) -> 0 | J50: =IF(AND(E22>2,E24=BH3,E21<>BH5),P46-(BB26/4),) ->  | K50: =IF(AND($E$24=BH3,$E$22=4),G50+($BB$27/3)-$A$60) ->  | L50: =IF(AND($E$24=BH3,$E$22=4),H50) ->  | M50: =IF(AND($E$24=BH3,$E$22=4,$E$21=$BH$6),I50+($BB$27/3)-$A$44) ->  | N50: =IF(AND($E$24=BH3,$E$22=4,$E$21=$BH$6),J50) ->  | O50: =O46 ->  | P50: =P49 ->  | R50: =IF(I24=BW3,R51-(BU24/4),) -> 0 | S50: =IF(I24=BW3,S48+((S52-S48)*0.85),) -> 0 | T50: =IF(AND(I22<>BT3,I24=BW3),T48-((T48-T52)*0.85),) ->  | U50: =IF(AND(I22<>BT3,I24=BW3),(BQ26/2)-(BQ26/4),) ->  | V50: =IF(AND(I24=BW3,I21<>BW5),T48-((T48-T52)*0.85),) -> 0 | W50: =IF(AND(I22<>BT3,I24=BW3,I21<>BW5),AG46-(BQ26/4),) ->  | X50: =IF(AND(I22>2,I24=BW3),X48-((X48-X52)*0.85),) ->  | Y50: =IF(AND(I22>2,I24=BW3),(BQ26/2)-(BQ26/4),) ->  | Z50: =IF(AND(I24=BW3,I21<>BW5),X48-((X48-X52)*0.85),) -> 0 | AA50: =IF(AND(I22>2,I24=BW3,I21<>BW5),AG46-(BQ26/4),) ->  | AB50: =IF(AND($I$24=BH3,$I$22=4),X50+($BB$27/3)-$R$60) ->  | AC50: =IF(AND($I$24=BH3,$I$22=4),Y50) ->  | AD50: =IF(AND($I$24=BH3,$I$22=4,$I$21=$BH$6),Z50+($BB$27/3)-$R$44) ->  | AE50: =IF(AND($I$24=BH3,$I$22=4,$I$21=$BH$6),AA50) ->  | AF50: =AF46 ->  | AG50: =AG49 ->  | AI50: =IF(L24=CL3,AI51-(CJ24/4),) ->  | AJ50: =IF(L24=CL3,AJ48+((AJ52-AJ48)*0.85),) ->  | AK50: =IF(AND(L22<>CI3,L24=CL3),AK48-((AK48-AK52)*0.85),) ->  | AL50: =IF(AND(L22<>CI3,L24=CL3),(CF26/2)-(CF26/4),) ->  | AM50: =IF(AND(L24=CL3,L21<>CL5),AK48-((AK48-AK52)*0.85),) ->  | AN50: =IF(AND(L22<>CI3,L24=CL3,L21<>CL5),AX46-(CF26/4),) ->  | AO50: =IF(AND(L22>2,L24=CL3),AO48-((AO48-AO52)*0.85),) ->  | AP50: =IF(AND(L22>2,L24=CL3),(CF26/2)-(CF26/4),) ->  | AQ50: =IF(AND(L24=CL3,L21<>CL5),AO48-((AO48-AO52)*0.85),) ->  | AR50: =IF(AND(L22>2,L24=CL3,L21<>CL5),AX46-(CF26/4),) ->  | AS50: =IF(AND($L$24=BH3,$L$22=4),AO50+($BB$27/3)-$AI$60) ->  | AT50: =IF(AND($L$24=BH3,$L$22=4),AP50) ->  | AU50: =IF(AND($L$24=BH3,$L$22=4,$L$21=$BH$6),AQ50+($BB$27/3)-$AI$44) ->  | AV50: =IF(AND($L$24=BH3,$L$22=4,$L$21=$BH$6),AR50) ->  | AW50: =AW46 ->  | AX50: =AX49 -> 
A51: =IF(E24=BH3,A52-(BF24/4),) -> 0 | B51: =IF(E24=BH3,B52-((B52-B48)*0.05),) -> 0 | C51: =IF(AND(E22<>BE3,E24=BH3),C52+((C48-C52)*0.05),) ->  | D51: =IF(AND(E22<>BE3,E24=BH3),D50+(BG24/4),) ->  | E51: =IF(AND(E24=BH3,E21<>BH5),C52+((C48-C52)*0.05),) -> 0 | F51: =IF(AND(E22<>BE3,E24=BH3,E21<>BH5),F50-(BG24/4),) ->  | G51: =IF(AND(E22>2,E24=BH3),G52+((G48-G52)*0.05),) ->  | H51: =IF(AND(E22>2,E24=BH3),H50+(BG24/4),) ->  | I51: =IF(AND(E24=BH3,E21<>BH5),G52+((G48-G52)*0.05),) -> 0 | J51: =IF(AND(E22>2,E24=BH3,E21<>BH5),J50-(BG24/4),) ->  | K51: =IF(AND($E$24=BH3,$E$22=4),G51+($BB$27/3)-$A$60) ->  | L51: =IF(AND($E$24=BH3,$E$22=4),H51) ->  | M51: =IF(AND($E$24=BH3,$E$22=4,$E$21=$BH$6),I51+($BB$27/3)-$A$44) ->  | N51: =IF(AND($E$24=BH3,$E$22=4,$E$21=$BH$6),J51) ->  | O51: 0 | P51: 0 | R51: =IF(I24=BW3,R52-(BU24/4),) -> 0 | S51: =IF(I24=BW3,S52-((S52-S48)*0.05),) -> 0 | T51: =IF(AND(I22<>BT3,I24=BW3),T52+((T48-T52)*0.05),) ->  | U51: =IF(AND(I22<>BT3,I24=BW3),U50+(BV24/4),) ->  | V51: =IF(AND(I24=BW3,I21<>BW5),T52+((T48-T52)*0.05),) -> 0 | W51: =IF(AND(I22<>BT3,I24=BW3,I21<>BW5),W50-(BV24/4),) ->  | X51: =IF(AND(I22>2,I24=BW3),X52+((X48-X52)*0.05),) ->  | Y51: =IF(AND(I22>2,I24=BW3),Y50+(BV24/4),) ->  | Z51: =IF(AND(I24=BW3,I21<>BW5),X52+((X48-X52)*0.05),) -> 0 | AA51: =IF(AND(I22>2,I24=BW3,I21<>BW5),AA50-(BV24/4),) ->  | AB51: =IF(AND($I$24=BH3,$I$22=4),X51+($BB$27/3)-$R$60) ->  | AC51: =IF(AND($I$24=BH3,$I$22=4),Y51) ->  | AD51: =IF(AND($I$24=BH3,$I$22=4,$I$21=$BH$6),Z51+($BB$27/3)-$R$44) ->  | AE51: =IF(AND($I$24=BH3,$I$22=4,$I$21=$BH$6),AA51) ->  | AF51: 0 | AG51: 0 | AI51: =IF(L24=CL3,AI52-(CJ24/4),) ->  | AJ51: =IF(L24=CL3,AJ52-((AJ52-AJ48)*0.05),) ->  | AK51: =IF(AND(L22<>CI3,L24=CL3),AK52+((AK48-AK52)*0.05),) ->  | AL51: =IF(AND(L22<>CI3,L24=CL3),AL50+(CK24/4),) ->  | AM51: =IF(AND(L24=CL3,L21<>CL5),AK52+((AK48-AK52)*0.05),) ->  | AN51: =IF(AND(L22<>CI3,L24=CL3,L21<>CL5),AN50-(CK24/4),) ->  | AO51: =IF(AND(L22>2,L24=CL3),AO52+((AO48-AO52)*0.05),) ->  | AP51: =IF(AND(L22>2,L24=CL3),AP50+(CK24/4),) ->  | AQ51: =IF(AND(L24=CL3,L21<>CL5),AO52+((AO48-AO52)*0.05),) ->  | AR51: =IF(AND(L22>2,L24=CL3,L21<>CL5),AR50-(CK24/4),) ->  | AS51: =IF(AND($L$24=BH3,$L$22=4),AO51+($BB$27/3)-$AI$60) ->  | AT51: =IF(AND($L$24=BH3,$L$22=4),AP51) ->  | AU51: =IF(AND($L$24=BH3,$L$22=4,$L$21=$BH$6),AQ51+($BB$27/3)-$AI$44) ->  | AV51: =IF(AND($L$24=BH3,$L$22=4,$L$21=$BH$6),AR51) ->  | AW51: 0 | AX51: 0
A52: =IF(E24=BH3,O49-BB30,) -> 0 | B52: =IF(E24=BH3,P49,) -> 0 | C52: =IF(AND(E22<>BE3,E24=BH3),O49,) ->  | D52: =IF(AND(E22<>BE3,E24=BH3),P49-BB30,) ->  | E52: =IF(AND(E22<>BE3,E24=BH3,E21<>BH5),O49,) ->  | F52: =IF(AND(E22<>BE3,E24=BH3,E21<>BH5),P49+BB30,) ->  | G52: =IF(AND(E22>2,E24=BH3),A44+O49+(BB27/(E22-1)),) ->  | H52: =IF(AND(E22>2,E24=BH3),P49-BB30,) ->  | I52: =IF(AND(E22>2,E24=BH3,E21<>BH5),G52,) ->  | J52: =IF(AND(E22>2,E24=BH3,E21<>BH5),P49+BB30,) ->  | K52: =IF(AND($E$24=BH3,$E$22=4),G52+($BB$27/3)-$A$60) ->  | L52: =IF(AND($E$24=BH3,$E$22=4),H52) ->  | M52: =IF(AND($E$24=BH3,$E$22=4,$E$21=$BH$6),I52+($BB$27/3)-$A$44) ->  | N52: =IF(AND($E$24=BH3,$E$22=4,$E$21=$BH$6),J52) ->  | O52: =BB25-BB27 ->  | P52: =P50 ->  | R52: =IF(I24=BW3,AF49-BQ30,) -> 0 | S52: =IF(I24=BW3,AG49,) -> 0 | T52: =IF(AND(I22<>BT3,I24=BW3),AF49,) ->  | U52: =IF(AND(I22<>BT3,I24=BW3),AG49-BQ30,) ->  | V52: =IF(AND(I22<>BT3,I24=BW3,I21<>BW5),AF49,) ->  | W52: =IF(AND(I22<>BT3,I24=BW3,I21<>BW5),AG49+BQ30,) ->  | X52: =IF(AND(I22>2,I24=BW3),R44+AF49+(BQ27/(I22-1)),) ->  | Y52: =IF(AND(I22>2,I24=BW3),AG49-BQ30,) ->  | Z52: =IF(AND(I22>2,I24=BW3,I21<>BW5),X52,) ->  | AA52: =IF(AND(I22>2,I24=BW3,I21<>BW5),AG49+BQ30,) ->  | AB52: =IF(AND($I$24=BH3,$I$22=4),X52+($BB$27/3)-$R$60) ->  | AC52: =IF(AND($I$24=BH3,$I$22=4),Y52) ->  | AD52: =IF(AND($I$24=BH3,$I$22=4,$I$21=$BH$6),Z52+($BB$27/3)-$R$44) ->  | AE52: =IF(AND($I$24=BH3,$I$22=4,$I$21=$BH$6),AA52) ->  | AF52: =BQ25-BQ27 ->  | AG52: =AG50 ->  | AI52: =IF(L24=CL3,AW49-CF30,) ->  | AJ52: =IF(L24=CL3,AX49,) ->  | AK52: =IF(AND(L22<>CI3,L24=CL3),AW49,) ->  | AL52: =IF(AND(L22<>CI3,L24=CL3),AX49-CF30,) ->  | AM52: =IF(AND(L22<>CI3,L24=CL3,L21<>CL5),AW49,) ->  | AN52: =IF(AND(L22<>CI3,L24=CL3,L21<>CL5),AX49+CF30,) ->  | AO52: =IF(AND(L22>2,L24=CL3),AI44+AW49+(CF27/(L22-1)),) ->  | AP52: =IF(AND(L22>2,L24=CL3),AX49-CF30,) ->  | AQ52: =IF(AND(L22>2,L24=CL3,L21<>CL5),AO52,) ->  | AR52: =IF(AND(L22>2,L24=CL3,L21<>CL5),AX49+CF30,) ->  | AS52: =IF(AND($L$24=BH3,$L$22=4),AO52+($BB$27/3)-$AI$60) ->  | AT52: =IF(AND($L$24=BH3,$L$22=4),AP52) ->  | AU52: =IF(AND($L$24=BH3,$L$22=4,$L$21=$BH$6),AQ52+($BB$27/3)-$AI$44) ->  | AV52: =IF(AND($L$24=BH3,$L$22=4,$L$21=$BH$6),AR52) ->  | AW52: =CF25-CF27 ->  | AX52: =AX50 -> 
A53: =A51 -> 0 | B53: =B52+((B52-B48)*0.05) -> 0 | C53: =IF(AND(E22<>BE3,E24=BH3),C52-((C48-C52)*0.05),) ->  | D53: =D51 ->  | E53: =IF(AND(E24=BH3,E21<>BH5),C52-((C48-C52)*0.05),) -> 0 | F53: =F51 ->  | G53: =IF(AND(E22>2,E24=BH3),G52-((G48-G52)*0.05),) ->  | H53: =H51 ->  | I53: =IF(AND(E24=BH3,E21<>BH5),G52-((G48-G52)*0.05),) -> 0 | J53: =J51 ->  | K53: =IF(AND($E$24=BH3,$E$22=4),G53+($BB$27/3)-$A$60) ->  | L53: =IF(AND($E$24=BH3,$E$22=4),H53) ->  | M53: =IF(AND($E$24=BH3,$E$22=4,$E$21=$BH$6),I53+($BB$27/3)-$A$44) ->  | N53: =IF(AND($E$24=BH3,$E$22=4,$E$21=$BH$6),J53) ->  | O53: 0 | P53: =P47 ->  | R53: =R51 -> 0 | S53: =S52+((S52-S48)*0.05) -> 0 | T53: =IF(AND(I22<>BT3,I24=BW3),T52-((T48-T52)*0.05),) ->  | U53: =U51 ->  | V53: =IF(AND(I24=BW3,I21<>BW5),T52-((T48-T52)*0.05),) -> 0 | W53: =W51 ->  | X53: =IF(AND(I22>2,I24=BW3),X52-((X48-X52)*0.05),) ->  | Y53: =Y51 ->  | Z53: =IF(AND(I24=BW3,I21<>BW5),X52-((X48-X52)*0.05),) -> 0 | AA53: =AA51 ->  | AB53: =IF(AND($I$24=BH3,$I$22=4),X53+($BB$27/3)-$R$60) ->  | AC53: =IF(AND($I$24=BH3,$I$22=4),Y53) ->  | AD53: =IF(AND($I$24=BH3,$I$22=4,$I$21=$BH$6),Z53+($BB$27/3)-$R$44) ->  | AE53: =IF(AND($I$24=BH3,$I$22=4,$I$21=$BH$6),AA53) ->  | AF53: 0 | AG53: =AG47 ->  | AI53: =AI51 ->  | AJ53: =AJ52+((AJ52-AJ48)*0.05) ->  | AK53: =IF(AND(L22<>CI3,L24=CL3),AK52-((AK48-AK52)*0.05),) ->  | AL53: =AL51 ->  | AM53: =IF(AND(L24=CL3,L21<>CL5),AK52-((AK48-AK52)*0.05),) ->  | AN53: =AN51 ->  | AO53: =IF(AND(L22>2,L24=CL3),AO52-((AO48-AO52)*0.05),) ->  | AP53: =AP51 ->  | AQ53: =IF(AND(L24=CL3,L21<>CL5),AO52-((AO48-AO52)*0.05),) ->  | AR53: =AR51 ->  | AS53: =IF(AND($L$24=BH3,$L$22=4),AO53+($BB$27/3)-$AI$60) ->  | AT53: =IF(AND($L$24=BH3,$L$22=4),AP53) ->  | AU53: =IF(AND($L$24=BH3,$L$22=4,$L$21=$BH$6),AQ53+($BB$27/3)-$AI$44) ->  | AV53: =IF(AND($L$24=BH3,$L$22=4,$L$21=$BH$6),AR53) ->  | AW53: 0 | AX53: =AX47 -> 
A54: =A50 -> 0 | B54: =B56-((B52-B48)*0.85) -> 0 | C54: =IF(AND(E22<>BE3,E24=BH3),C56+((C52-C56)*0.85),) ->  | D54: =D50 ->  | E54: =IF(AND(E24=BH3,E21<>BH5),C56+((C52-C56)*0.85),) -> 0 | F54: =F50 ->  | G54: =IF(AND(E22>2,E24=BH3),G56+((G52-G56)*0.85),) ->  | H54: =H50 ->  | I54: =IF(AND(E24=BH3,E21<>BH5),G56+((G52-G56)*0.85),) -> 0 | J54: =J50 ->  | K54: =IF(AND($E$24=BH3,$E$22=4),G54+($BB$27/3)-$A$60) ->  | L54: =IF(AND($E$24=BH3,$E$22=4),H54) ->  | M54: =IF(AND($E$24=BH3,$E$22=4,$E$21=$BH$6),I54+($BB$27/3)-$A$44) ->  | N54: =IF(AND($E$24=BH3,$E$22=4,$E$21=$BH$6),J54) ->  | R54: =R50 -> 0 | S54: =S56-((S52-S48)*0.85) -> 0 | T54: =IF(AND(I22<>BT3,I24=BW3),T56+((T52-T56)*0.85),) ->  | U54: =U50 ->  | V54: =IF(AND(I24=BW3,I21<>BW5),T56+((T52-T56)*0.85),) -> 0 | W54: =W50 ->  | X54: =IF(AND(I22>2,I24=BW3),X56+((X52-X56)*0.85),) ->  | Y54: =Y50 ->  | Z54: =IF(AND(I24=BW3,I21<>BW5),X56+((X52-X56)*0.85),) -> 0 | AA54: =AA50 ->  | AB54: =IF(AND($I$24=BH3,$I$22=4),X54+($BB$27/3)-$R$60) ->  | AC54: =IF(AND($I$24=BH3,$I$22=4),Y54) ->  | AD54: =IF(AND($I$24=BH3,$I$22=4,$I$21=$BH$6),Z54+($BB$27/3)-$R$44) ->  | AE54: =IF(AND($I$24=BH3,$I$22=4,$I$21=$BH$6),AA54) ->  | AI54: =AI50 ->  | AJ54: =AJ56-((AJ52-AJ48)*0.85) ->  | AK54: =IF(AND(L22<>CI3,L24=CL3),AK56+((AK52-AK56)*0.85),) ->  | AL54: =AL50 ->  | AM54: =IF(AND(L24=CL3,L21<>CL5),AK56+((AK52-AK56)*0.85),) ->  | AN54: =AN50 ->  | AO54: =IF(AND(L22>2,L24=CL3),AO56+((AO52-AO56)*0.85),) ->  | AP54: =AP50 ->  | AQ54: =IF(AND(L24=CL3,L21<>CL5),AO56+((AO52-AO56)*0.85),) ->  | AR54: =AR50 ->  | AS54: =IF(AND($L$24=BH3,$L$22=4),AO54+($BB$27/3)-$AI$60) ->  | AT54: =IF(AND($L$24=BH3,$L$22=4),AP54) ->  | AU54: =IF(AND($L$24=BH3,$L$22=4,$L$21=$BH$6),AQ54+($BB$27/3)-$AI$44) ->  | AV54: =IF(AND($L$24=BH3,$L$22=4,$L$21=$BH$6),AR54) -> 
A55: =A49 -> 0 | B55: =B56-((B52-B48)/1.8) -> 0 | C55: =C56+((C52-C56)/1.8) ->  | D55: =D49 ->  | E55: =IF(AND(E24=BH3,E21<>BH5),C56+((C52-C56)/1.8),) -> 0 | F55: =F49 ->  | G55: =G56+((G52-G56)/1.8) ->  | H55: =H49 ->  | I55: =IF(AND(E24=BH3,E21<>BH5),G56+((G52-G56)/1.8),) -> 0 | J55: =J49 ->  | K55: =IF(AND($E$24=BH3,$E$22=4),G55+($BB$27/3)-$A$60) ->  | L55: =IF(AND($E$24=BH3,$E$22=4),H55) ->  | M55: =IF(AND($E$24=BH3,$E$22=4,$E$21=$BH$6),I55+($BB$27/3)-$A$44) ->  | N55: =IF(AND($E$24=BH3,$E$22=4,$E$21=$BH$6),J55) ->  | R55: =R49 -> 0 | S55: =S56-((S52-S48)/1.8) -> 0 | T55: =T56+((T52-T56)/1.8) ->  | U55: =U49 ->  | V55: =IF(AND(I24=BW3,I21<>BW5),T56+((T52-T56)/1.8),) -> 0 | W55: =W49 ->  | X55: =X56+((X52-X56)/1.8) ->  | Y55: =Y49 ->  | Z55: =IF(AND(I24=BW3,I21<>BW5),X56+((X52-X56)/1.8),) -> 0 | AA55: =AA49 ->  | AB55: =IF(AND($I$24=BH3,$I$22=4),X55+($BB$27/3)-$R$60) ->  | AC55: =IF(AND($I$24=BH3,$I$22=4),Y55) ->  | AD55: =IF(AND($I$24=BH3,$I$22=4,$I$21=$BH$6),Z55+($BB$27/3)-$R$44) ->  | AE55: =IF(AND($I$24=BH3,$I$22=4,$I$21=$BH$6),AA55) ->  | AI55: =AI49 ->  | AJ55: =AJ56-((AJ52-AJ48)/1.8) ->  | AK55: =AK56+((AK52-AK56)/1.8) ->  | AL55: =AL49 ->  | AM55: =IF(AND(L24=CL3,L21<>CL5),AK56+((AK52-AK56)/1.8),) ->  | AN55: =AN49 ->  | AO55: =AO56+((AO52-AO56)/1.8) ->  | AP55: =AP49 ->  | AQ55: =IF(AND(L24=CL3,L21<>CL5),AO56+((AO52-AO56)/1.8),) ->  | AR55: =AR49 ->  | AS55: =IF(AND($L$24=BH3,$L$22=4),AO55+($BB$27/3)-$AI$60) ->  | AT55: =IF(AND($L$24=BH3,$L$22=4),AP55) ->  | AU55: =IF(AND($L$24=BH3,$L$22=4,$L$21=$BH$6),AQ55+($BB$27/3)-$AI$44) ->  | AV55: =IF(AND($L$24=BH3,$L$22=4,$L$21=$BH$6),AR55) -> 
A56: =A44 -> 0 | B56: =B44 -> 0 | C56: =C44 ->  | D56: =D44 ->  | E56: =IF(AND(E24=BH3,E21<>BH5),C44,) -> 0 | F56: =F48 ->  | G56: =G44 ->  | H56: =H44 ->  | I56: =IF(AND(E24=BH3,E21<>BH5),G44,) -> 0 | J56: =J48 ->  | K56: =IF(AND($E$24=BH3,$E$22=4),G56+($BB$27/3)-$A$60) ->  | L56: =IF(AND($E$24=BH3,$E$22=4),H56) ->  | M56: =IF(AND($E$24=BH3,$E$22=4,$E$21=$BH$6),I56+($BB$27/3)-$A$44) ->  | N56: =IF(AND($E$24=BH3,$E$22=4,$E$21=$BH$6),J56) ->  | R56: =R44 -> 0 | S56: =S44 -> 0 | T56: =T44 ->  | U56: =U44 ->  | V56: =IF(AND(I24=BW3,I21<>BW5),T44,) -> 0 | W56: =W48 ->  | X56: =X44 ->  | Y56: =Y44 ->  | Z56: =IF(AND(I24=BW3,I21<>BW5),X44,) -> 0 | AA56: =AA48 ->  | AB56: =IF(AND($I$24=BH3,$I$22=4),X56+($BB$27/3)-$R$60) ->  | AC56: =IF(AND($I$24=BH3,$I$22=4),Y56) ->  | AD56: =IF(AND($I$24=BH3,$I$22=4,$I$21=$BH$6),Z56+($BB$27/3)-$R$44) ->  | AE56: =IF(AND($I$24=BH3,$I$22=4,$I$21=$BH$6),AA56) ->  | AI56: =AI44 ->  | AJ56: =AJ44 ->  | AK56: =AK44 ->  | AL56: =AL44 ->  | AM56: =IF(AND(L24=CL3,L21<>CL5),AK44,) ->  | AN56: =AN48 ->  | AO56: =AO44 ->  | AP56: =AP44 ->  | AQ56: =IF(AND(L24=CL3,L21<>CL5),AO44,) ->  | AR56: =AR48 ->  | AS56: =IF(AND($L$24=BH3,$L$22=4),AO56+($BB$27/3)-$AI$60) ->  | AT56: =IF(AND($L$24=BH3,$L$22=4),AP56) ->  | AU56: =IF(AND($L$24=BH3,$L$22=4,$L$21=$BH$6),AQ56+($BB$27/3)-$AI$44) ->  | AV56: =IF(AND($L$24=BH3,$L$22=4,$L$21=$BH$6),AR56) -> 
A58: x | B58: y | C58: x | D58: y | E58: x | F58: y | G58: x | H58: y | I58: x | J58: y | K58: x | L58: y | M58: x | N58: y | O58: x | P58: y | R58: x | S58: y | T58: x | U58: y | V58: x | W58: y | X58: x | Y58: y | Z58: x | AA58: y | AB58: x | AC58: y | AD58: x | AE58: y | AF58: x | AG58: y | AI58: x | AJ58: y | AK58: x | AL58: y | AM58: x | AN58: y | AO58: x | AP58: y | AQ58: x | AR58: y | AS58: x | AT58: y | AU58: x | AV58: y | AW58: x | AX58: y
A59: down front | C59: down mid left | E59: down mid right | G59: down right | I59: up front | K59: up mid left | M59: up mid right | O59: up right | R59: down front | T59: down mid left | V59: down mid right | X59: down right | Z59: up front | AB59: up mid left | AD59: up mid right | AF59: up right | AI59: down front | AK59: down mid left | AM59: down mid right | AO59: down right | AQ59: up front | AS59: up mid left | AU59: up mid right | AW59: up right
A60: =BB30 ->  | B60: =BB30 ->  | C60: =IF(OR(E22=BE4,E22=BE5,E22=BE6),O52+BB30-BB14,) ->  | D60: =IF(OR(E22=BE4,E22=BE5,E22=BE6),BB30,) ->  | E60: =IF($E$22=$BE$6,(C60+$BB$30)+($BB$27/3),0) ->  | F60: =D60 ->  | G60: =IF(E22=BE5,G64-(BB27/2)-BB18,IF(E22=BE6,BG29-BB18,)) ->  | H60: =H64 ->  | I60: =IF(E21=BH5,0,BB30) ->  | J60: =IF(E21=BH5,0,P46-BE24-BB30) ->  | K60: =IF(AND(E21=BH6,OR(E22=BE4,E22=BE5,E22=BE6)),C72,) ->  | L60: =IF(AND(E21=BH6,OR(E22=BE4,E22=BE5,E22=BE6)),J64,) ->  | M60: =IF(AND($E$22=$BE$6,$E$21=$BH$6),(K60+$BB$30)+($BB$27/3),0) ->  | N60: =IF(AND($E$22=$BE$6,$E$21=$BH$6),L60,0) ->  | O60: =IF(AND(E21=BH6,OR(OR(E22=BE5,E22=BE6),E22=BE6)),G72,) ->  | P60: =IF(AND(E21=BH6,OR(E22=BE5,E22=BE6)),(BB26/2)+BB30,) ->  | R60: =BQ30 ->  | S60: =BQ30 ->  | T60: =IF(OR(I22=BT4,I22=BT5,I22=BT6),AF52+BQ30-BQ14,) ->  | U60: =IF(OR(I22=BT4,I22=BT5,I22=BT6),BQ30,) ->  | V60: =IF($I$22=$BE$6,(T60+$BB$30)+($BB$27/3),0) ->  | W60: =U60 ->  | X60: =IF(I22=BT5,X64-(BQ27/2)-BQ18,IF(I22=BT6,BV29-BQ18,)) ->  | Y60: =Y64 ->  | Z60: =IF(I21=BW5,0,BQ30) ->  | AA60: =IF(I21=BW5,0,AG46-BT24-BQ30) ->  | AB60: =IF(AND(I21=BW6,OR(I22=BT4,I22=BT5,I22=BT6)),T72,) ->  | AC60: =IF(AND(I21=BW6,OR(I22=BT4,I22=BT5,I22=BT6)),AA64,) ->  | AD60: =IF(AND($I$22=$BE$6,$I$21=$BH$6),(AB60+$BB$30)+($BB$27/3),0) ->  | AE60: =IF(AND($I$22=$BE$6,$I$21=$BH$6),AC60,0) ->  | AF60: =IF(AND(I21=BW6,OR(OR(I22=BT5,I22=BT6),I22=BT6)),X72,) ->  | AG60: =IF(AND(I21=BW6,OR(I22=BT5,I22=BT6)),(BQ26/2)+BQ30,) ->  | AI60: =CF30 ->  | AJ60: =CF30 ->  | AK60: =IF(OR(L22=CI4,L22=CI5,L22=CI6),AW52+CF30-CF14,) ->  | AL60: =IF(OR(L22=CI4,L22=CI5,L22=CI6),CF30,) ->  | AM60: =IF($L$22=$BE$6,(AK60+$BB$30)+($BB$27/3),0) ->  | AN60: =AL60 ->  | AO60: =IF(L22=CI5,AO64-(CF27/2)-CF18,IF(L22=CI6,CK29-CF18,)) ->  | AP60: =AP64 ->  | AQ60: =IF(L21=CL5,0,CF30) ->  | AR60: =IF(L21=CL5,0,AX46-CI24-CF30) ->  | AS60: =IF(AND(L21=CL6,OR(L22=CI4,L22=CI5,L22=CI6)),AK72,) ->  | AT60: =IF(AND(L21=CL6,OR(L22=CI4,L22=CI5,L22=CI6)),AR64,) ->  | AU60: =IF(AND($L$22=$BE$6,$L$21=$BH$6),(AS60+$BB$30)+($BB$27/3),0) ->  | AV60: =IF(AND($L$22=$BE$6,$L$21=$BH$6),AT60,0) ->  | AW60: =IF(AND(L21=CL6,OR(OR(L22=CI5,L22=CI6),L22=CI6)),AO72,) ->  | AX60: =IF(AND(L21=CL6,OR(L22=CI5,L22=CI6)),(CF26/2)+CF30,) -> 
A61: =IF(E22=BE2,A60+(BE25/4),A60+(BE25/4)) ->  | B61: =B62*0.75 ->  | C61: =IF(OR(E22=BE4,E22=BE5,E22=BE6),C60+((C64-C60)/4),) ->  | D61: =IF(OR(E22=BE4,E22=BE5,E22=BE6),BE20,) ->  | E61: =IF($E$22=$BE$6,(C61-$BB$30)+($BB$27/3),0) ->  | F61: =D61 ->  | G61: =IF(OR(E22=BE5,E22=BE6),G62-((G64-G60)/4),) ->  | H61: =IF(OR(E22=BE5,E22=BE6),BH18,) ->  | I61: =IF(E21=BH5,0,A71) ->  | J61: =IF(E21=BH5,0,J60+BE15+(BB10/4)) ->  | K61: =IF(AND(E21=BH6,OR(E22=BE4,E22=BE5,E22=BE6)),C71,) ->  | L61: =IF(AND(E21=BH6,OR(E22=BE4,E22=BE5,E22=BE6)),P49+BE19,) ->  | M61: =IF(AND($E$22=$BE$6,$E$21=$BH$6),(K61-$BB$30)+($BB$27/3),0) ->  | O61: =IF(AND(E21=BH6,OR(OR(E22=BE5,E22=BE6),E22=BE6)),G71,) ->  | P61: =IF(AND(E21=BH6,OR(E22=BE5,E22=BE6)),BH17+(BB26/2),) ->  | R61: =IF(I22=BT2,R60+(BT25/4),R60+(BT25/4)) ->  | S61: =S62*0.75 ->  | T61: =IF(OR(I22=BT4,I22=BT5,I22=BT6),T60+((T64-T60)/4),) ->  | U61: =IF(OR(I22=BT4,I22=BT5,I22=BT6),BT20,) ->  | V61: =IF($I$22=$BE$6,(T61-$BB$30)+($BB$27/3),0) ->  | W61: =U61 ->  | X61: =IF(OR(I22=BT5,I22=BT6),X62-((X64-X60)/4),) ->  | Y61: =IF(OR(I22=BT5,I22=BT6),BW18,) ->  | Z61: =IF(I21=BW5,0,R71) ->  | AA61: =IF(I21=BW5,0,AA60+BT15+(BQ10/4)) ->  | AB61: =IF(AND(I21=BW6,OR(I22=BT4,I22=BT5,I22=BT6)),T71,) ->  | AC61: =IF(AND(I21=BW6,OR(I22=BT4,I22=BT5,I22=BT6)),AG49+BT19,) ->  | AD61: =IF(AND($I$22=$BE$6,$I$21=$BH$6),(AB61-$BB$30)+($BB$27/3),0) ->  | AF61: =IF(AND(I21=BW6,OR(OR(I22=BT5,I22=BT6),I22=BT6)),X71,) ->  | AG61: =IF(AND(I21=BW6,OR(I22=BT5,I22=BT6)),BW17+(BQ26/2),) ->  | AI61: =IF(L22=CI2,AI60+(CI25/4),AI60+(CI25/4)) ->  | AJ61: =AJ62*0.75 ->  | AK61: =IF(OR(L22=CI4,L22=CI5,L22=CI6),AK60+((AK64-AK60)/4),) ->  | AL61: =IF(OR(L22=CI4,L22=CI5,L22=CI6),CI20,) ->  | AM61: =IF($L$22=$BE$6,(AK61-$BB$30)+($BB$27/3),0) ->  | AN61: =AL61 ->  | AO61: =IF(OR(L22=CI5,L22=CI6),AO62-((AO64-AO60)/4),) ->  | AP61: =IF(OR(L22=CI5,L22=CI6),CL18,) ->  | AQ61: =IF(L21=CL5,0,AI71) ->  | AR61: =IF(L21=CL5,0,AR60+CI15+(CF10/4)) ->  | AS61: =IF(AND(L21=CL6,OR(L22=CI4,L22=CI5,L22=CI6)),AK71,) ->  | AT61: =IF(AND(L21=CL6,OR(L22=CI4,L22=CI5,L22=CI6)),AX49+CI19,) ->  | AU61: =IF(AND($L$22=$BE$6,$L$21=$BH$6),(AS61-$BB$30)+($BB$27/3),0) ->  | AW61: =IF(AND(L21=CL6,OR(OR(L22=CI5,L22=CI6),L22=CI6)),AO71,) ->  | AX61: =IF(AND(L21=CL6,OR(L22=CI5,L22=CI6)),CL17+(CF26/2),) -> 
A62: =IF(E22=BE2,A60+(BE25/2),A60+(BE25/2)) ->  | B62: =BD16 ->  | C62: =IF(E22=BE4,C64-(C64-C60)/2,IF(OR(E22=BE5,E22=BE6),C64-(C64-C60)/2,)) ->  | D62: =IF(OR(E22=BE4,E22=BE5,E22=BE6),BD20,) ->  | G62: =IF(OR(E22=BE5,E22=BE6),G64-((G64-G60)/2),) ->  | H62: =IF(OR(E22=BE5,E22=BE6),BG18,) ->  | I62: =IF(E21=BH5,0,A70) ->  | J62: =IF(E21=BH5,0,J60+BD15+(BB10/2)) ->  | K62: =IF(AND(E21=BH6,OR(E22=BE4,E22=BE5,E22=BE6)),C70,) ->  | L62: =IF(AND(E21=BH6,OR(E22=BE4,E22=BE5,E22=BE6)),P50+BD19,) ->  | O62: =IF(AND(E21=BH6,OR(OR(E22=BE5,E22=BE6),E22=BE6)),G70,) ->  | P62: =IF(AND(E21=BH6,OR(E22=BE5,E22=BE6)),BG17+(BB26/2),) ->  | R62: =IF(I22=BT2,R60+(BT25/2),R60+(BT25/2)) ->  | S62: =BS16 ->  | T62: =IF(I22=BT4,T64-(T64-T60)/2,IF(OR(I22=BT5,I22=BT6),T64-(T64-T60)/2,)) ->  | U62: =IF(OR(I22=BT4,I22=BT5,I22=BT6),BS20,) ->  | X62: =IF(OR(I22=BT5,I22=BT6),X64-((X64-X60)/2),) ->  | Y62: =IF(OR(I22=BT5,I22=BT6),BV18,) ->  | Z62: =IF(I21=BW5,0,R70) ->  | AA62: =IF(I21=BW5,0,AA60+BS15+(BQ10/2)) ->  | AB62: =IF(AND(I21=BW6,OR(I22=BT4,I22=BT5,I22=BT6)),T70,) ->  | AC62: =IF(AND(I21=BW6,OR(I22=BT4,I22=BT5,I22=BT6)),AG50+BS19,) ->  | AF62: =IF(AND(I21=BW6,OR(OR(I22=BT5,I22=BT6),I22=BT6)),X70,) ->  | AG62: =IF(AND(I21=BW6,OR(I22=BT5,I22=BT6)),BV17+(BQ26/2),) ->  | AI62: =IF(L22=CI2,AI60+(CI25/2),AI60+(CI25/2)) ->  | AJ62: =CH16 ->  | AK62: =IF(L22=CI4,AK64-(AK64-AK60)/2,IF(OR(L22=CI5,L22=CI6),AK64-(AK64-AK60)/2,)) ->  | AL62: =IF(OR(L22=CI4,L22=CI5,L22=CI6),CH20,) ->  | AO62: =IF(OR(L22=CI5,L22=CI6),AO64-((AO64-AO60)/2),) ->  | AP62: =IF(OR(L22=CI5,L22=CI6),CK18,) ->  | AQ62: =IF(L21=CL5,0,AI70) ->  | AR62: =IF(L21=CL5,0,AR60+CH15+(CF10/2)) ->  | AS62: =IF(AND(L21=CL6,OR(L22=CI4,L22=CI5,L22=CI6)),AK70,) ->  | AT62: =IF(AND(L21=CL6,OR(L22=CI4,L22=CI5,L22=CI6)),AX50+CH19,) ->  | AW62: =IF(AND(L21=CL6,OR(OR(L22=CI5,L22=CI6),L22=CI6)),AO70,) ->  | AX62: =IF(AND(L21=CL6,OR(L22=CI5,L22=CI6)),CK17+(CF26/2),) -> 
A63: =IF(E22=BE2,A62+(BE25/4),A62+(BE25/4)) ->  | B63: =B61 ->  | C63: =IF(OR(E22=BE4,E22=BE5,E22=BE6),C62+((C64-C60)/4),) ->  | D63: =IF(OR(E22=BE4,E22=BE5,E22=BE6),D61,) ->  | G63: =IF(OR(E22=BE5,E22=BE6),G64-((G64-G60)/4),) ->  | H63: =IF(OR(E22=BE5,E22=BE6),H61,) ->  | I63: =IF(E21=BH5,0,A69) ->  | J63: =IF(E21=BH5,0,J64+BE15-(BB10/4)) ->  | K63: =K62+(K62-K61) ->  | L63: =IF(AND(E21=BH6,OR(E22=BE4,E22=BE5,E22=BE6)),L61,) ->  | O63: =IF(AND(E21=BH6,OR(OR(E22=BE5,E22=BE6),E22=BE6)),G69,) ->  | P63: =IF(AND(E21=BH6,OR(E22=BE5,E22=BE6)),P61,) ->  | R63: =IF(I22=BT2,R62+(BT25/4),R62+(BT25/4)) ->  | S63: =S61 ->  | T63: =IF(OR(I22=BT4,I22=BT5,I22=BT6),T62+((T64-T60)/4),) ->  | U63: =IF(OR(I22=BT4,I22=BT5,I22=BT6),U61,) ->  | X63: =IF(OR(I22=BT5,I22=BT6),X64-((X64-X60)/4),) ->  | Y63: =IF(OR(I22=BT5,I22=BT6),Y61,) ->  | Z63: =IF(I21=BW5,0,R69) ->  | AA63: =IF(I21=BW5,0,AA64+BT15-(BQ10/4)) ->  | AB63: =AB62+(AB62-AB61) ->  | AC63: =IF(AND(I21=BW6,OR(I22=BT4,I22=BT5,I22=BT6)),AC61,) ->  | AF63: =IF(AND(I21=BW6,OR(OR(I22=BT5,I22=BT6),I22=BT6)),X69,) ->  | AG63: =IF(AND(I21=BW6,OR(I22=BT5,I22=BT6)),AG61,) ->  | AI63: =IF(L22=CI2,AI62+(CI25/4),AI62+(CI25/4)) ->  | AJ63: =AJ61 ->  | AK63: =IF(OR(L22=CI4,L22=CI5,L22=CI6),AK62+((AK64-AK60)/4),) ->  | AL63: =IF(OR(L22=CI4,L22=CI5,L22=CI6),AL61,) ->  | AO63: =IF(OR(L22=CI5,L22=CI6),AO64-((AO64-AO60)/4),) ->  | AP63: =IF(OR(L22=CI5,L22=CI6),AP61,) ->  | AQ63: =IF(L21=CL5,0,AI69) ->  | AR63: =IF(L21=CL5,0,AR64+CI15-(CF10/4)) ->  | AS63: =AS62+(AS62-AS61) ->  | AT63: =IF(AND(L21=CL6,OR(L22=CI4,L22=CI5,L22=CI6)),AT61,) ->  | AW63: =IF(AND(L21=CL6,OR(OR(L22=CI5,L22=CI6),L22=CI6)),AO69,) ->  | AX63: =IF(AND(L21=CL6,OR(L22=CI5,L22=CI6)),AX61,) -> 
A64: =IF((A60+BE25)>BB25,BB25,A60+BE25) ->  | B64: =BB30 ->  | C64: =IF(E22=BE4,BB25-BB30,IF(E22=BE5,C68+BB18,IF(E22=BE6,BE29+BB18,))) ->  | D64: =IF(OR(E22=BE4,E22=BE5,E22=BE6),BB30,) ->  | G64: =IF(OR(E22=BE5,E22=BE6),O50-BB30,) ->  | H64: =IF(OR(E22=BE5,E22=BE6),BB30,) ->  | I64: =IF(E21=BH5,0,IF(E22=BE3,A60+BE25,BD25+A60)) ->  | J64: =IF(E21=BH5,0,P47-BD24-BB30) ->  | K64: =IF(AND(E21=BH6,OR(E22=BE4,E22=BE5,E22=BE6)),C68,) ->  | L64: =IF(AND(E21=BH6,OR(E22=BE4,E22=BE5,E22=BE6)),L60,) ->  | O64: =IF(AND(E21=BH6,OR(E22=BE5,E22=BE6)),O50-BB30,) ->  | P64: =IF(AND(E21=BH6,OR(E22=BE5,E22=BE6)),P60,) ->  | R64: =IF((R60+BT25)>BQ25,BQ25,R60+BT25) ->  | S64: =BQ30 ->  | T64: =IF(I22=BT4,BQ25-BQ30,IF(I22=BT5,T68+BQ18,IF(I22=BT6,BT29+BQ18,))) ->  | U64: =IF(OR(I22=BT4,I22=BT5,I22=BT6),BQ30,) ->  | X64: =IF(OR(I22=BT5,I22=BT6),AF50-BQ30,) ->  | Y64: =IF(OR(I22=BT5,I22=BT6),BQ30,) ->  | Z64: =IF(I21=BW5,0,IF(I22=BT3,R60+BT25,BS25+R60)) ->  | AA64: =IF(I21=BW5,0,AG47-BS24-BQ30) ->  | AB64: =IF(AND(I21=BW6,OR(I22=BT4,I22=BT5,I22=BT6)),T68,) ->  | AC64: =IF(AND(I21=BW6,OR(I22=BT4,I22=BT5,I22=BT6)),AC60,) ->  | AF64: =IF(AND(I21=BW6,OR(I22=BT5,I22=BT6)),AF50-BQ30,) ->  | AG64: =IF(AND(I21=BW6,OR(I22=BT5,I22=BT6)),AG60,) ->  | AI64: =IF((AI60+CI25)>CF25,CF25,AI60+CI25) ->  | AJ64: =CF30 ->  | AK64: =IF(L22=CI4,CF25-CF30,IF(L22=CI5,AK68+CF18,IF(L22=CI6,CI29+CF18,))) ->  | AL64: =IF(OR(L22=CI4,L22=CI5,L22=CI6),CF30,) ->  | AO64: =IF(OR(L22=CI5,L22=CI6),AW50-CF30,) ->  | AP64: =IF(OR(L22=CI5,L22=CI6),CF30,) ->  | AQ64: =IF(L21=CL5,0,IF(L22=CI3,AI60+CI25,CH25+AI60)) ->  | AR64: =IF(L21=CL5,0,AX47-CH24-CF30) ->  | AS64: =IF(AND(L21=CL6,OR(L22=CI4,L22=CI5,L22=CI6)),AK68,) ->  | AT64: =IF(AND(L21=CL6,OR(L22=CI4,L22=CI5,L22=CI6)),AT60,) ->  | AW64: =IF(AND(L21=CL6,OR(L22=CI5,L22=CI6)),AW50-CF30,) ->  | AX64: =IF(AND(L21=CL6,OR(L22=CI5,L22=CI6)),AX60,) -> 
A65: =A64-BE13-(BB14/IF(E22=BE5,2.75,2.75)) ->  | B65: =BD24/4 ->  | C65: =IF(E22=BE4,C67,IF(OR(E22=BE5,E22=BE6),C64-BE18-(BB18/2.75),)) ->  | D65: =IF(OR(E22=BE4,E22=BE5,E22=BE6),B65,) ->  | G65: =IF(OR(E22=BE5,E22=BE6),G64-BH16,) ->  | H65: =IF(OR(E22=BE5,E22=BE6),D65,) ->  | I65: =IF(E21=BH5,0,A67) ->  | J65: =IF(E21=BH5,0,(BD24/4)+(BB26/2)) ->  | K65: =IF(AND(E21=BH6,OR(E22=BE4,E22=BE5,E22=BE6)),C67,) ->  | L65: =IF(AND(E21=BH6,OR(E22=BE4,E22=BE5,E22=BE6)),J65,) ->  | O65: =IF(AND(E21=BH6,OR(E22=BE5,E22=BE6)),G64-BH16,) ->  | P65: =IF(AND(E21=BH6,OR(E22=BE5,E22=BE6)),L65,) ->  | R65: =R64-BT13-(BQ14/IF(I22=BT5,2.75,2.75)) ->  | S65: =BS24/4 ->  | T65: =IF(I22=BT4,T67,IF(OR(I22=BT5,I22=BT6),T64-BT18-(BQ18/2.75),)) ->  | U65: =IF(OR(I22=BT4,I22=BT5,I22=BT6),S65,) ->  | X65: =IF(OR(I22=BT5,I22=BT6),X64-BW16,) ->  | Y65: =IF(OR(I22=BT5,I22=BT6),U65,) ->  | Z65: =IF(I21=BW5,0,R67) ->  | AA65: =IF(I21=BW5,0,(BS24/4)+(BQ26/2)) ->  | AB65: =IF(AND(I21=BW6,OR(I22=BT4,I22=BT5,I22=BT6)),T67,) ->  | AC65: =IF(AND(I21=BW6,OR(I22=BT4,I22=BT5,I22=BT6)),AA65,) ->  | AF65: =IF(AND(I21=BW6,OR(I22=BT5,I22=BT6)),X64-BW16,) ->  | AG65: =IF(AND(I21=BW6,OR(I22=BT5,I22=BT6)),AC65,) ->  | AI65: =AI64-CI13-(CF14/IF(L22=CI5,2.75,2.75)) ->  | AJ65: =CH24/4 ->  | AK65: =IF(L22=CI4,AK67,IF(OR(L22=CI5,L22=CI6),AK64-CI18-(CF18/2.75),)) ->  | AL65: =IF(OR(L22=CI4,L22=CI5,L22=CI6),AJ65,) ->  | AO65: =IF(OR(L22=CI5,L22=CI6),AO64-CL16,) ->  | AP65: =IF(OR(L22=CI5,L22=CI6),AL65,) ->  | AQ65: =IF(L21=CL5,0,AI67) ->  | AR65: =IF(L21=CL5,0,(CH24/4)+(CF26/2)) ->  | AS65: =IF(AND(L21=CL6,OR(L22=CI4,L22=CI5,L22=CI6)),AK67,) ->  | AT65: =IF(AND(L21=CL6,OR(L22=CI4,L22=CI5,L22=CI6)),AR65,) ->  | AW65: =IF(AND(L21=CL6,OR(L22=CI5,L22=CI6)),AO64-CL16,) ->  | AX65: =IF(AND(L21=CL6,OR(L22=CI5,L22=CI6)),AT65,) -> 
A66: =A64-BD13-(BB14/IF(E22=BE5,1.6,1.6)) ->  | B66: =BB26/4 ->  | C66: =IF(E22=BE4,C64-BG16,IF(OR(E22=BE5,E22=BE6),C64-BD18-(BB18/1.6),)) ->  | D66: =IF(OR(E22=BE4,E22=BE5,E22=BE6),B66,) ->  | G66: =IF(OR(E22=BE5,E22=BE6),G64-BG16,) ->  | H66: =IF(OR(E22=BE5,E22=BE6),D66,) ->  | I66: =IF(E21=BH5,0,A66) ->  | J66: =IF(E21=BH5,0,(BB26/4)+(BB26/2)) ->  | K66: =IF(AND(E21=BH6,OR(E22=BE4,E22=BE5,E22=BE6)),C66,) ->  | L66: =IF(OR(E22=BE2,E22=BE3),0,J66) ->  | O66: =IF(AND(E21=BH6,OR(E22=BE5,E22=BE6)),G64-BG16,) ->  | P66: =IF(AND(E21=BH6,OR(E22=BE5,E22=BE6)),L66,) ->  | R66: =R64-BS13-(BQ14/IF(I22=BT5,1.6,1.6)) ->  | S66: =BQ26/4 ->  | T66: =IF(I22=BT4,T64-BV16,IF(OR(I22=BT5,I22=BT6),T64-BS18-(BQ18/1.6),)) ->  | U66: =IF(OR(I22=BT4,I22=BT5,I22=BT6),S66,) ->  | X66: =IF(OR(I22=BT5,I22=BT6),X64-BV16,) ->  | Y66: =IF(OR(I22=BT5,I22=BT6),U66,) ->  | Z66: =IF(I21=BW5,0,R66) ->  | AA66: =IF(I21=BW5,0,(BQ26/4)+(BQ26/2)) ->  | AB66: =IF(AND(I21=BW6,OR(I22=BT4,I22=BT5,I22=BT6)),T66,) ->  | AC66: =IF(OR(I22=BT2,I22=BT3),0,AA66) ->  | AF66: =IF(AND(I21=BW6,OR(I22=BT5,I22=BT6)),X64-BV16,) ->  | AG66: =IF(AND(I21=BW6,OR(I22=BT5,I22=BT6)),AC66,) ->  | AI66: =AI64-CH13-(CF14/IF(L22=CI5,1.6,1.6)) ->  | AJ66: =CF26/4 ->  | AK66: =IF(L22=CI4,AK64-CK16,IF(OR(L22=CI5,L22=CI6),AK64-CH18-(CF18/1.6),)) ->  | AL66: =IF(OR(L22=CI4,L22=CI5,L22=CI6),AJ66,) ->  | AO66: =IF(OR(L22=CI5,L22=CI6),AO64-CK16,) ->  | AP66: =IF(OR(L22=CI5,L22=CI6),AL66,) ->  | AQ66: =IF(L21=CL5,0,AI66) ->  | AR66: =IF(L21=CL5,0,(CF26/4)+(CF26/2)) ->  | AS66: =IF(AND(L21=CL6,OR(L22=CI4,L22=CI5,L22=CI6)),AK66,) ->  | AT66: =IF(OR(L22=CI2,L22=CI3),0,AR66) ->  | AW66: =IF(AND(L21=CL6,OR(L22=CI5,L22=CI6)),AO64-CK16,) ->  | AX66: =IF(AND(L21=CL6,OR(L22=CI5,L22=CI6)),AT66,) -> 
A67: =A68-BE13+(BB14/5) ->  | B67: =(BD24*0.75) ->  | C67: =IF(E22=BE4,C64-BH16,C68-BE18+(BB18/5)) ->  | D67: =IF(OR(E22=BE4,E22=BE5,E22=BE6),B67,) ->  | G67: =IF(OR(E22=BE5,E22=BE6),G65,) ->  | H67: =IF(OR(E22=BE5,E22=BE6),D67,) ->  | I67: =IF(E21=BH5,0,A65) ->  | J67: =IF(E21=BH5,0,(BD24*0.75)+(BB26/2)) ->  | K67: =C65 ->  | L67: =IF(OR(E22=BE2,E22=BE3),0,J67) ->  | O67: =IF(AND(E21=BH6,OR(E22=BE5,E22=BE6)),G65,) ->  | P67: =IF(OR(E22=BE5,E22=BE6),L67,) ->  | R67: =R68-BT13+(BQ14/5) ->  | S67: =(BS24*0.75) ->  | T67: =IF(I22=BT4,T64-BW16,T68-BT18+(BQ18/5)) ->  | U67: =IF(OR(I22=BT4,I22=BT5,I22=BT6),S67,) ->  | X67: =IF(OR(I22=BT5,I22=BT6),X65,) ->  | Y67: =IF(OR(I22=BT5,I22=BT6),U67,) ->  | Z67: =IF(I21=BW5,0,R65) ->  | AA67: =IF(I21=BW5,0,(BS24*0.75)+(BQ26/2)) ->  | AB67: =T65 ->  | AC67: =IF(OR(I22=BT2,I22=BT3),0,AA67) ->  | AF67: =IF(AND(I21=BW6,OR(I22=BT5,I22=BT6)),X65,) ->  | AG67: =IF(OR(I22=BT5,I22=BT6),AC67,) ->  | AI67: =AI68-CI13+(CF14/5) ->  | AJ67: =(CH24*0.75) ->  | AK67: =IF(L22=CI4,AK64-CL16,AK68-CI18+(CF18/5)) ->  | AL67: =IF(OR(L22=CI4,L22=CI5,L22=CI6),AJ67,) ->  | AO67: =IF(OR(L22=CI5,L22=CI6),AO65,) ->  | AP67: =IF(OR(L22=CI5,L22=CI6),AL67,) ->  | AQ67: =IF(L21=CL5,0,AI65) ->  | AR67: =IF(L21=CL5,0,(CH24*0.75)+(CF26/2)) ->  | AS67: =AK65 ->  | AT67: =IF(OR(L22=CI2,L22=CI3),0,AR67) ->  | AW67: =IF(AND(L21=CL6,OR(L22=CI5,L22=CI6)),AO65,) ->  | AX67: =IF(OR(L22=CI5,L22=CI6),AT67,) -> 
A68: =IF(E22=BE3,A60+BE25,A60+BD25) ->  | B68: =(BB26/2)-BB30 ->  | C68: =IF(E22=BE4,BB25-BB30,IF(E22=BE5,O52+(BB27/2),IF(E22=BE6,BE29,))) ->  | D68: =IF(OR(E22=BE4,E22=BE5,E22=BE6),(BB26/2)-BB30,) ->  | G68: =IF(OR(E22=BE5,E22=BE6),G64,) ->  | H68: =IF(OR(E22=BE5,E22=BE6),D68,) ->  | I68: =IF(E21=BH5,0,A64) ->  | J68: =IF(E21=BH5,0,BB26-BB30) ->  | K68: =IF(AND(E21=BH6,OR(E22=BE4,E22=BE5,E22=BE6)),C64,) ->  | L68: =IF(OR(E22=BE2,E22=BE3),0,J72) ->  | O68: =IF(AND(E21=BH6,OR(E22=BE5,E22=BE6)),G64,) ->  | P68: =IF(OR(E22=BE5,E22=BE6),L68,) ->  | R68: =IF(I22=BT3,R60+BT25,R60+BS25) ->  | S68: =(BQ26/2)-BQ30 ->  | T68: =IF(I22=BT4,BQ25-BQ30,IF(I22=BT5,AF52+(BQ27/2),IF(I22=BT6,BT29,))) ->  | U68: =IF(OR(I22=BT4,I22=BT5,I22=BT6),(BQ26/2)-BQ30,) ->  | X68: =IF(OR(I22=BT5,I22=BT6),X64,) ->  | Y68: =IF(OR(I22=BT5,I22=BT6),U68,) ->  | Z68: =IF(I21=BW5,0,R64) ->  | AA68: =IF(I21=BW5,0,BQ26-BQ30) ->  | AB68: =IF(AND(I21=BW6,OR(I22=BT4,I22=BT5,I22=BT6)),T64,) ->  | AC68: =IF(OR(I22=BT2,I22=BT3),0,AA72) ->  | AF68: =IF(AND(I21=BW6,OR(I22=BT5,I22=BT6)),X64,) ->  | AG68: =IF(OR(I22=BT5,I22=BT6),AC68,) ->  | AI68: =IF(L22=CI3,AI60+CI25,AI60+CH25) ->  | AJ68: =(CF26/2)-CF30 ->  | AK68: =IF(L22=CI4,CF25-CF30,IF(L22=CI5,AW52+(CF27/2),IF(L22=CI6,CI29,))) ->  | AL68: =IF(OR(L22=CI4,L22=CI5,L22=CI6),(CF26/2)-CF30,) ->  | AO68: =IF(OR(L22=CI5,L22=CI6),AO64,) ->  | AP68: =IF(OR(L22=CI5,L22=CI6),AL68,) ->  | AQ68: =IF(L21=CL5,0,AI64) ->  | AR68: =IF(L21=CL5,0,CF26-CF30) ->  | AS68: =IF(AND(L21=CL6,OR(L22=CI4,L22=CI5,L22=CI6)),AK64,) ->  | AT68: =IF(OR(L22=CI2,L22=CI3),0,AR72) ->  | AW68: =IF(AND(L21=CL6,OR(L22=CI5,L22=CI6)),AO64,) ->  | AX68: =IF(OR(L22=CI5,L22=CI6),AT68,) -> 
A69: =IF(E22=BE3,A62+(BE25/4),A68-(BD25/4)) ->  | B69: =B68-BE15+(BB10/4) ->  | C69: =IF(OR(E22=BE4,E22=BE5,E22=BE6),C68-((C68-C72)/4),) ->  | D69: =IF(OR(E22=BE4,E22=BE5,E22=BE6),(BB26/2)-BE19,) ->  | G69: =IF(OR(E22=BE5,E22=BE6),G68-((G68-G72)/4),) ->  | H69: =IF(OR(E22=BE5,E22=BE6),(BB26/2)-BH17,) ->  | I69: =IF(E21=BH5,0,A63) ->  | J69: =IF(E21=BH5,0,((BB26/2)-B61)+(BB26/2)) ->  | K69: =IF(AND(E21=BH6,OR(E22=BE4,E22=BE5,E22=BE6)),C63,) ->  | L69: =IF(E21=BH5,0,IF(OR(E22=BE2,E22=BE3),0,P47-BE20)) ->  | O69: =IF(AND(E21=BH6,OR(E22=BE5,E22=BE6)),G63,) ->  | P69: =IF(AND(E21=BH6,OR(E22=BE5,E22=BE6)),P47-BH17,) ->  | R69: =IF(I22=BT3,R62+(BT25/4),R68-(BS25/4)) ->  | S69: =S68-BT15+(BQ10/4) ->  | T69: =IF(OR(I22=BT4,I22=BT5,I22=BT6),T68-((T68-T72)/4),) ->  | U69: =IF(OR(I22=BT4,I22=BT5,I22=BT6),(BQ26/2)-BT19,) ->  | X69: =IF(OR(I22=BT5,I22=BT6),X68-((X68-X72)/4),) ->  | Y69: =IF(OR(I22=BT5,I22=BT6),(BQ26/2)-BW17,) ->  | Z69: =IF(I21=BW5,0,R63) ->  | AA69: =IF(I21=BW5,0,((BQ26/2)-S61)+(BQ26/2)) ->  | AB69: =IF(AND(I21=BW6,OR(I22=BT4,I22=BT5,I22=BT6)),T63,) ->  | AC69: =IF(I21=BW5,0,IF(OR(I22=BT2,I22=BT3),0,AG47-BT20)) ->  | AF69: =IF(AND(I21=BW6,OR(I22=BT5,I22=BT6)),X63,) ->  | AG69: =IF(AND(I21=BW6,OR(I22=BT5,I22=BT6)),AG47-BW17,) ->  | AI69: =IF(L22=CI3,AI62+(CI25/4),AI68-(CH25/4)) ->  | AJ69: =AJ68-CI15+(CF10/4) ->  | AK69: =IF(OR(L22=CI4,L22=CI5,L22=CI6),AK68-((AK68-AK72)/4),) ->  | AL69: =IF(OR(L22=CI4,L22=CI5,L22=CI6),(CF26/2)-CI19,) ->  | AO69: =IF(OR(L22=CI5,L22=CI6),AO68-((AO68-AO72)/4),) ->  | AP69: =IF(OR(L22=CI5,L22=CI6),(CF26/2)-CL17,) ->  | AQ69: =IF(L21=CL5,0,AI63) ->  | AR69: =IF(L21=CL5,0,((CF26/2)-AJ61)+(CF26/2)) ->  | AS69: =IF(AND(L21=CL6,OR(L22=CI4,L22=CI5,L22=CI6)),AK63,) ->  | AT69: =IF(L21=CL5,0,IF(OR(L22=CI2,L22=CI3),0,AX47-CI20)) ->  | AW69: =IF(AND(L21=CL6,OR(L22=CI5,L22=CI6)),AO63,) ->  | AX69: =IF(AND(L21=CL6,OR(L22=CI5,L22=CI6)),AX47-CL17,) -> 
A70: =IF(E22=BE3,A60+(BE25/2),A69-(BD25/4)) ->  | B70: =B72-BD15-(BB10/2) ->  | C70: =IF(OR(E22=BE4,E22=BE5,E22=BE6),C68-((C68-C72)/2),) ->  | D70: =IF(OR(E22=BE4,E22=BE5,E22=BE6),(BB26/2)-BD19,) ->  | G70: =IF(OR(E22=BE5,E22=BE6),G68-((G68-G72)/2),) ->  | H70: =IF(OR(E22=BE5,E22=BE6),(BB26/2)-BG17,) ->  | I70: =IF(E21=BH5,0,A62) ->  | J70: =IF(E21=BH5,0,((BB26/2)-B62)+(BB26/2)) ->  | K70: =IF(AND(E21=BH6,OR(E22=BE4,E22=BE5,E22=BE6)),C62,) ->  | L70: =IF(E21=BH5,0,IF(OR(E22=BE2,E22=BE3),0,P47-BD20)) ->  | O70: =IF(AND(E21=BH6,OR(E22=BE5,E22=BE6)),G62,) ->  | P70: =IF(AND(E21=BH6,OR(E22=BE5,E22=BE6)),P47-BG17,) ->  | R70: =IF(I22=BT3,R60+(BT25/2),R69-(BS25/4)) ->  | S70: =S72-BS15-(BQ10/2) ->  | T70: =IF(OR(I22=BT4,I22=BT5,I22=BT6),T68-((T68-T72)/2),) ->  | U70: =IF(OR(I22=BT4,I22=BT5,I22=BT6),(BQ26/2)-BS19,) ->  | X70: =IF(OR(I22=BT5,I22=BT6),X68-((X68-X72)/2),) ->  | Y70: =IF(OR(I22=BT5,I22=BT6),(BQ26/2)-BV17,) ->  | Z70: =IF(I21=BW5,0,R62) ->  | AA70: =IF(I21=BW5,0,((BQ26/2)-S62)+(BQ26/2)) ->  | AB70: =IF(AND(I21=BW6,OR(I22=BT4,I22=BT5,I22=BT6)),T62,) ->  | AC70: =IF(I21=BW5,0,IF(OR(I22=BT2,I22=BT3),0,AG47-BS20)) ->  | AF70: =IF(AND(I21=BW6,OR(I22=BT5,I22=BT6)),X62,) ->  | AG70: =IF(AND(I21=BW6,OR(I22=BT5,I22=BT6)),AG47-BV17,) ->  | AI70: =IF(L22=CI3,AI60+(CI25/2),AI69-(CH25/4)) ->  | AJ70: =AJ72-CH15-(CF10/2) ->  | AK70: =IF(OR(L22=CI4,L22=CI5,L22=CI6),AK68-((AK68-AK72)/2),) ->  | AL70: =IF(OR(L22=CI4,L22=CI5,L22=CI6),(CF26/2)-CH19,) ->  | AO70: =IF(OR(L22=CI5,L22=CI6),AO68-((AO68-AO72)/2),) ->  | AP70: =IF(OR(L22=CI5,L22=CI6),(CF26/2)-CK17,) ->  | AQ70: =IF(L21=CL5,0,AI62) ->  | AR70: =IF(L21=CL5,0,((CF26/2)-AJ62)+(CF26/2)) ->  | AS70: =IF(AND(L21=CL6,OR(L22=CI4,L22=CI5,L22=CI6)),AK62,) ->  | AT70: =IF(L21=CL5,0,IF(OR(L22=CI2,L22=CI3),0,AX47-CH20)) ->  | AW70: =IF(AND(L21=CL6,OR(L22=CI5,L22=CI6)),AO62,) ->  | AX70: =IF(AND(L21=CL6,OR(L22=CI5,L22=CI6)),AX47-CK17,) -> 
A71: =IF(E22=BE3,A60+(BE25/4),A70-(BD25/4)) ->  | B71: =B72-BE15-(BB10/4) ->  | C71: =IF(OR(E22=BE4,E22=BE5,E22=BE6),C72+((C68-C72)/4),) ->  | D71: =IF(OR(E22=BE4,E22=BE5,E22=BE6),(BB26/2)-BE19,) ->  | G71: =IF(OR(E22=BE5,E22=BE6),G70-((G68-G72)/4),) ->  | H71: =IF(OR(E22=BE5,E22=BE6),H69,) ->  | I71: =IF(E21=BH5,0,A61) ->  | J71: =J69 ->  | K71: =IF(AND(E21=BH6,OR(E22=BE4,E22=BE5,E22=BE6)),C61,) ->  | L71: =IF(OR(E22=BE2,E22=BE3),0,L69) ->  | O71: =IF(AND(E21=BH6,OR(E22=BE5,E22=BE6)),G61,) ->  | P71: =IF(OR(E22=BE5,E22=BE6),P69,) ->  | R71: =IF(I22=BT3,R60+(BT25/4),R70-(BS25/4)) ->  | S71: =S72-BT15-(BQ10/4) ->  | T71: =IF(OR(I22=BT4,I22=BT5,I22=BT6),T72+((T68-T72)/4),) ->  | U71: =IF(OR(I22=BT4,I22=BT5,I22=BT6),(BQ26/2)-BT19,) ->  | X71: =IF(OR(I22=BT5,I22=BT6),X70-((X68-X72)/4),) ->  | Y71: =IF(OR(I22=BT5,I22=BT6),Y69,) ->  | Z71: =IF(I21=BW5,0,R61) ->  | AA71: =AA69 ->  | AB71: =IF(AND(I21=BW6,OR(I22=BT4,I22=BT5,I22=BT6)),T61,) ->  | AC71: =IF(OR(I22=BT2,I22=BT3),0,AC69) ->  | AF71: =IF(AND(I21=BW6,OR(I22=BT5,I22=BT6)),X61,) ->  | AG71: =IF(OR(I22=BT5,I22=BT6),AG69,) ->  | AI71: =IF(L22=CI3,AI60+(CI25/4),AI70-(CH25/4)) ->  | AJ71: =AJ72-CI15-(CF10/4) ->  | AK71: =IF(OR(L22=CI4,L22=CI5,L22=CI6),AK72+((AK68-AK72)/4),) ->  | AL71: =IF(OR(L22=CI4,L22=CI5,L22=CI6),(CF26/2)-CI19,) ->  | AO71: =IF(OR(L22=CI5,L22=CI6),AO70-((AO68-AO72)/4),) ->  | AP71: =IF(OR(L22=CI5,L22=CI6),AP69,) ->  | AQ71: =IF(L21=CL5,0,AI61) ->  | AR71: =AR69 ->  | AS71: =IF(AND(L21=CL6,OR(L22=CI4,L22=CI5,L22=CI6)),AK61,) ->  | AT71: =IF(OR(L22=CI2,L22=CI3),0,AT69) ->  | AW71: =IF(AND(L21=CL6,OR(L22=CI5,L22=CI6)),AO61,) ->  | AX71: =IF(OR(L22=CI5,L22=CI6),AX69,) -> 
A72: =A60 ->  | B72: =B68+BB10 ->  | C72: =IF(OR(E22=BE4,E22=BE5,E22=BE6),O49+BB30,) ->  | D72: =IF(OR(E22=BE4,E22=BE5,E22=BE6),D68,) ->  | E72: =IF($E$22=$BE$6,(C72+$BB$30)+($BB$27/3),0) ->  | G72: =IF(E22=BE5,O52+(BB27/2),IF(E22=BE6,BG29,)) ->  | H72: =IF(OR(E22=BE5,E22=BE6),H68,) ->  | I72: =IF(E21=BH5,0,A60) ->  | J72: =J68 ->  | K72: =IF(AND(E21=BH6,OR(E22=BE4,E22=BE5,E22=BE6)),C76,) ->  | L72: =IF(OR(E22=BE2,E22=BE3),0,L68) ->  | M72: =IF(AND($E$22=$BE$6,$E$21=$BH$6),(K72+$BB$30)+($BB$27/3),0) ->  | O72: =IF(AND(E21=BH6,OR(E22=BE5,E22=BE6)),G60,) ->  | P72: =IF(OR(E22=BE5,E22=BE6),P68,) ->  | R72: =R60 ->  | S72: =S68+BQ10 ->  | T72: =IF(OR(I22=BT4,I22=BT5,I22=BT6),AF49+BQ30,) ->  | U72: =IF(OR(I22=BT4,I22=BT5,I22=BT6),U68,) ->  | V72: =IF($I$22=$BE$6,(T72+$BB$30)+($BB$27/3),0) ->  | X72: =IF(I22=BT5,AF52+(BQ27/2),IF(I22=BT6,BV29,)) ->  | Y72: =IF(OR(I22=BT5,I22=BT6),Y68,) ->  | Z72: =IF(I21=BW5,0,R60) ->  | AA72: =AA68 ->  | AB72: =IF(AND(I21=BW6,OR(I22=BT4,I22=BT5,I22=BT6)),T76,) ->  | AC72: =IF(OR(I22=BT2,I22=BT3),0,AC68) ->  | AD72: =IF(AND($I$22=$BE$6,$I$21=$BH$6),(AB72+$BB$30)+($BB$27/3),0) ->  | AF72: =IF(AND(I21=BW6,OR(I22=BT5,I22=BT6)),X60,) ->  | AG72: =IF(OR(I22=BT5,I22=BT6),AG68,) ->  | AI72: =AI60 ->  | AJ72: =AJ68+CF10 ->  | AK72: =IF(OR(L22=CI4,L22=CI5,L22=CI6),AW49+CF30,) ->  | AL72: =IF(OR(L22=CI4,L22=CI5,L22=CI6),AL68,) ->  | AM72: =IF($L$22=$BE$6,(AK72+$BB$30)+($BB$27/3),0) ->  | AO72: =IF(L22=CI5,AW52+(CF27/2),IF(L22=CI6,CK29,)) ->  | AP72: =IF(OR(L22=CI5,L22=CI6),AP68,) ->  | AQ72: =IF(L21=CL5,0,AI60) ->  | AR72: =AR68 ->  | AS72: =IF(AND(L21=CL6,OR(L22=CI4,L22=CI5,L22=CI6)),AK76,) ->  | AT72: =IF(OR(L22=CI2,L22=CI3),0,AT68) ->  | AU72: =IF(AND($L$22=$BE$6,$L$21=$BH$6),(AS72+$BB$30)+($BB$27/3),0) ->  | AW72: =IF(AND(L21=CL6,OR(L22=CI5,L22=CI6)),AO60,) ->  | AX72: =IF(OR(L22=CI5,L22=CI6),AX68,) -> 
A73: =A60+BE14 ->  | B73: =B72-(BE24/4) ->  | C73: =IF(OR(E22=BE4,E22=BE5,E22=BE6),C72+BE18-(BB14/5),) ->  | D73: =D67 ->  | E73: =IF($E$22=$BE$6,(C73+$BB$30)+($BB$27/3),0) ->  | G73: =IF(OR(E22=BE5,E22=BE6),G72+BH16-(BB18/5),) ->  | H73: =IF(OR(E22=BE5,E22=BE6),H67,) ->  | I73: =IF(E21=BH5,0,A60+BE14) ->  | J73: =IF(E21=BH5,0,J72-(BE24/4)) ->  | K73: =IF(AND(E21=BH6,OR(E22=BE4,E22=BE5,E22=BE6)),C75,) ->  | L73: =L67 ->  | M73: =IF(AND($E$22=$BE$6,$E$21=$BH$6),(K73+$BB$30)+($BB$27/3),0) ->  | O73: =IF(AND(E21=BH6,OR(E22=BE5,E22=BE6)),G75,) ->  | P73: =IF(OR(E22=BE5,E22=BE6),L73,) ->  | R73: =R60+BT14 ->  | S73: =S72-(BT24/4) ->  | T73: =IF(OR(I22=BT4,I22=BT5,I22=BT6),T72+BT18-(BQ14/5),) ->  | U73: =U67 ->  | V73: =IF($I$22=$BE$6,(T73+$BB$30)+($BB$27/3),0) ->  | X73: =IF(OR(I22=BT5,I22=BT6),X72+BW16-(BQ18/5),) ->  | Y73: =IF(OR(I22=BT5,I22=BT6),Y67,) ->  | Z73: =IF(I21=BW5,0,R60+BT14) ->  | AA73: =IF(I21=BW5,0,AA72-(BT24/4)) ->  | AB73: =IF(AND(I21=BW6,OR(I22=BT4,I22=BT5,I22=BT6)),T75,) ->  | AC73: =AC67 ->  | AD73: =IF(AND($I$22=$BE$6,$I$21=$BH$6),(AB73+$BB$30)+($BB$27/3),0) ->  | AF73: =IF(AND(I21=BW6,OR(I22=BT5,I22=BT6)),X75,) ->  | AG73: =IF(OR(I22=BT5,I22=BT6),AC73,) ->  | AI73: =AI60+CI14 ->  | AJ73: =AJ72-(CI24/4) ->  | AK73: =IF(OR(L22=CI4,L22=CI5,L22=CI6),AK72+CI18-(CF14/5),) ->  | AL73: =AL67 ->  | AM73: =IF($L$22=$BE$6,(AK73+$BB$30)+($BB$27/3),0) ->  | AO73: =IF(OR(L22=CI5,L22=CI6),AO72+CL16-(CF18/5),) ->  | AP73: =IF(OR(L22=CI5,L22=CI6),AP67,) ->  | AQ73: =IF(L21=CL5,0,AI60+CI14) ->  | AR73: =IF(L21=CL5,0,AR72-(CI24/4)) ->  | AS73: =IF(AND(L21=CL6,OR(L22=CI4,L22=CI5,L22=CI6)),AK75,) ->  | AT73: =AT67 ->  | AU73: =IF(AND($L$22=$BE$6,$L$21=$BH$6),(AS73+$BB$30)+($BB$27/3),0) ->  | AW73: =IF(AND(L21=CL6,OR(L22=CI5,L22=CI6)),AO75,) ->  | AX73: =IF(OR(L22=CI5,L22=CI6),AT73,) -> 
A74: =A60+BD14 ->  | B74: =B73-(BE24/4) ->  | C74: =IF(OR(E22=BE4,E22=BE5,E22=BE6),C76+BD18+(BB14/1.6),) ->  | D74: =IF(OR(E22=BE4,E22=BE5,E22=BE6),D66,) ->  | E74: =IF($E$22=$BE$6,(C74+$BB$30)+($BB$27/3),0) ->  | G74: =IF(OR(E22=BE5,E22=BE6),G76+BG16+(BB18/1.6),) ->  | H74: =IF(OR(E22=BE5,E22=BE6),H66,) ->  | I74: =IF(E21=BH5,0,A60+BD14) ->  | J74: =IF(E21=BH5,0,J73-(BE24/4)) ->  | K74: =IF(AND(E21=BH6,OR(E22=BE4,E22=BE5,E22=BE6)),C74,) ->  | L74: =IF(OR(E22=BE2,E22=BE3),0,L66) ->  | M74: =IF(AND($E$22=$BE$6,$E$21=$BH$6),(K74+$BB$30)+($BB$27/3),0) ->  | O74: =IF(AND(E21=BH6,OR(E22=BE5,E22=BE6)),G74,) ->  | P74: =IF(OR(E22=BE5,E22=BE6),L74,) ->  | R74: =R60+BS14 ->  | S74: =S73-(BT24/4) ->  | T74: =IF(OR(I22=BT4,I22=BT5,I22=BT6),T76+BS18+(BQ14/1.6),) ->  | U74: =IF(OR(I22=BT4,I22=BT5,I22=BT6),U66,) ->  | V74: =IF($I$22=$BE$6,(T74+$BB$30)+($BB$27/3),0) ->  | X74: =IF(OR(I22=BT5,I22=BT6),X76+BV16+(BQ18/1.6),) ->  | Y74: =IF(OR(I22=BT5,I22=BT6),Y66,) ->  | Z74: =IF(I21=BW5,0,R60+BS14) ->  | AA74: =IF(I21=BW5,0,AA73-(BT24/4)) ->  | AB74: =IF(AND(I21=BW6,OR(I22=BT4,I22=BT5,I22=BT6)),T74,) ->  | AC74: =IF(OR(I22=BT2,I22=BT3),0,AC66) ->  | AD74: =IF(AND($I$22=$BE$6,$I$21=$BH$6),(AB74+$BB$30)+($BB$27/3),0) ->  | AF74: =IF(AND(I21=BW6,OR(I22=BT5,I22=BT6)),X74,) ->  | AG74: =IF(OR(I22=BT5,I22=BT6),AC74,) ->  | AI74: =AI60+CH14 ->  | AJ74: =AJ73-(CI24/4) ->  | AK74: =IF(OR(L22=CI4,L22=CI5,L22=CI6),AK76+CH18+(CF14/1.6),) ->  | AL74: =IF(OR(L22=CI4,L22=CI5,L22=CI6),AL66,) ->  | AM74: =IF($L$22=$BE$6,(AK74+$BB$30)+($BB$27/3),0) ->  | AO74: =IF(OR(L22=CI5,L22=CI6),AO76+CK16+(CF18/1.6),) ->  | AP74: =IF(OR(L22=CI5,L22=CI6),AP66,) ->  | AQ74: =IF(L21=CL5,0,AI60+CH14) ->  | AR74: =IF(L21=CL5,0,AR73-(CI24/4)) ->  | AS74: =IF(AND(L21=CL6,OR(L22=CI4,L22=CI5,L22=CI6)),AK74,) ->  | AT74: =IF(OR(L22=CI2,L22=CI3),0,AT66) ->  | AU74: =IF(AND($L$22=$BE$6,$L$21=$BH$6),(AS74+$BB$30)+($BB$27/3),0) ->  | AW74: =IF(AND(L21=CL6,OR(L22=CI5,L22=CI6)),AO74,) ->  | AX74: =IF(OR(L22=CI5,L22=CI6),AT74,) -> 
A75: =A73 ->  | B75: =B74-(BE24/4) ->  | C75: =IF(OR(E22=BE4,E22=BE5,E22=BE6),C76+BE18+(BB14/2.75),) ->  | D75: =D65 ->  | E75: =IF($E$22=$BE$6,(C75+$BB$30)+($BB$27/3),0) ->  | G75: =IF(OR(E22=BE5,E22=BE6),G76+BH16+(BB18/2.75),) ->  | H75: =IF(OR(E22=BE5,E22=BE6),H65,) ->  | I75: =IF(E21=BH5,0,I73) ->  | J75: =IF(E21=BH5,0,J74-(BE24/4)) ->  | K75: =IF(AND(E21=BH6,OR(E22=BE4,E22=BE5,E22=BE6)),C73,) ->  | L75: =L65 ->  | M75: =IF(AND($E$22=$BE$6,$E$21=$BH$6),(K75+$BB$30)+($BB$27/3),0) ->  | O75: =IF(AND(E21=BH6,OR(E22=BE5,E22=BE6)),G73,) ->  | P75: =IF(OR(E22=BE5,E22=BE6),L75,) ->  | R75: =R73 ->  | S75: =S74-(BT24/4) ->  | T75: =IF(OR(I22=BT4,I22=BT5,I22=BT6),T76+BT18+(BQ14/2.75),) ->  | U75: =U65 ->  | V75: =IF($I$22=$BE$6,(T75+$BB$30)+($BB$27/3),0) ->  | X75: =IF(OR(I22=BT5,I22=BT6),X76+BW16+(BQ18/2.75),) ->  | Y75: =IF(OR(I22=BT5,I22=BT6),Y65,) ->  | Z75: =IF(I21=BW5,0,Z73) ->  | AA75: =IF(I21=BW5,0,AA74-(BT24/4)) ->  | AB75: =IF(AND(I21=BW6,OR(I22=BT4,I22=BT5,I22=BT6)),T73,) ->  | AC75: =AC65 ->  | AD75: =IF(AND($I$22=$BE$6,$I$21=$BH$6),(AB75+$BB$30)+($BB$27/3),0) ->  | AF75: =IF(AND(I21=BW6,OR(I22=BT5,I22=BT6)),X73,) ->  | AG75: =IF(OR(I22=BT5,I22=BT6),AC75,) ->  | AI75: =AI73 ->  | AJ75: =AJ74-(CI24/4) ->  | AK75: =IF(OR(L22=CI4,L22=CI5,L22=CI6),AK76+CI18+(CF14/2.75),) ->  | AL75: =AL65 ->  | AM75: =IF($L$22=$BE$6,(AK75+$BB$30)+($BB$27/3),0) ->  | AO75: =IF(OR(L22=CI5,L22=CI6),AO76+CL16+(CF18/2.75),) ->  | AP75: =IF(OR(L22=CI5,L22=CI6),AP65,) ->  | AQ75: =IF(L21=CL5,0,AQ73) ->  | AR75: =IF(L21=CL5,0,AR74-(CI24/4)) ->  | AS75: =IF(AND(L21=CL6,OR(L22=CI4,L22=CI5,L22=CI6)),AK73,) ->  | AT75: =AT65 ->  | AU75: =IF(AND($L$22=$BE$6,$L$21=$BH$6),(AS75+$BB$30)+($BB$27/3),0) ->  | AW75: =IF(AND(L21=CL6,OR(L22=CI5,L22=CI6)),AO73,) ->  | AX75: =IF(OR(L22=CI5,L22=CI6),AT75,) -> 
A76: =A60 ->  | B76: =BB30 ->  | C76: =IF(OR(E22=BE4,E22=BE5,E22=BE6),C60,) ->  | D76: =IF(OR(E22=BE4,E22=BE5,E22=BE6),BB30,) ->  | E76: =IF($E$22=$BE$6,(C76+$BB$30)+($BB$27/3),0) ->  | G76: =IF(OR(E22=BE5,E22=BE6),G60,) ->  | H76: =IF(OR(E22=BE5,E22=BE6),H64,) ->  | I76: =IF(E21=BH5,0,A60) ->  | J76: =J60 ->  | K76: =IF(AND(E21=BH6,OR(E22=BE4,E22=BE5,E22=BE6)),K60,) ->  | L76: =IF(E22=BE2,0,L60) ->  | M76: =IF(AND($E$22=$BE$6,$E$21=$BH$6),(K76+$BB$30)+($BB$27/3),0) ->  | O76: =IF(AND(E21=BH6,OR(E22=BE5,E22=BE6)),G72,) ->  | P76: =IF(OR(E22=BE5,E22=BE6),P60,) ->  | R76: =R60 ->  | S76: =BQ30 ->  | T76: =IF(OR(I22=BT4,I22=BT5,I22=BT6),T60,) ->  | U76: =IF(OR(I22=BT4,I22=BT5,I22=BT6),BQ30,) ->  | V76: =IF($I$22=$BE$6,(T76+$BB$30)+($BB$27/3),0) ->  | X76: =IF(OR(I22=BT5,I22=BT6),X60,) ->  | Y76: =IF(OR(I22=BT5,I22=BT6),Y64,) ->  | Z76: =IF(I21=BW5,0,R60) ->  | AA76: =AA60 ->  | AB76: =IF(AND(I21=BW6,OR(I22=BT4,I22=BT5,I22=BT6)),AB60,) ->  | AC76: =IF(I22=BT2,0,AC60) ->  | AD76: =IF(AND($I$22=$BE$6,$I$21=$BH$6),(AB76+$BB$30)+($BB$27/3),0) ->  | AF76: =IF(AND(I21=BW6,OR(I22=BT5,I22=BT6)),X72,) ->  | AG76: =IF(OR(I22=BT5,I22=BT6),AG60,) ->  | AI76: =AI60 ->  | AJ76: =CF30 ->  | AK76: =IF(OR(L22=CI4,L22=CI5,L22=CI6),AK60,) ->  | AL76: =IF(OR(L22=CI4,L22=CI5,L22=CI6),CF30,) ->  | AM76: =IF($L$22=$BE$6,(AK76+$BB$30)+($BB$27/3),0) ->  | AO76: =IF(OR(L22=CI5,L22=CI6),AO60,) ->  | AP76: =IF(OR(L22=CI5,L22=CI6),AP64,) ->  | AQ76: =IF(L21=CL5,0,AI60) ->  | AR76: =AR60 ->  | AS76: =IF(AND(L21=CL6,OR(L22=CI4,L22=CI5,L22=CI6)),AS60,) ->  | AT76: =IF(L22=CI2,0,AT60) ->  | AU76: =IF(AND($L$22=$BE$6,$L$21=$BH$6),(AS76+$BB$30)+($BB$27/3),0) ->  | AW76: =IF(AND(L21=CL6,OR(L22=CI5,L22=CI6)),AO72,) ->  | AX76: =IF(OR(L22=CI5,L22=CI6),AX60,) -> 

Sheet Georgian Double Hipped
CE1: MBn material | CF1: =IF(OR(E32=CN2,E32=CN3,E32=CN4,E32=CN5,E32=CN6),' '!B6,IF(OR(E32=CN7,E32=CN8,E32=CN9,E32=CN10,E32=CN11,E32=CN12,E32=CN13,E32=CN14,E32=CN15),' '!B7,IF(OR(E32=CN16,E32=CN17,E32=CN18,E32=CN19,E32=CN20),' '!B8,))) -> 4.54 | CG1: Material cost | CH1: =' '!$B$10 -> 13.25 | CI1: SBls | CJ1: Warnings front/back | CK1: Warnings mid | CL1: Warnings front/back tri | CM1: Warnings mid tri | CN1: Fabric Colour | CP1: Fittings Colours | CT1: MBn material | CU1: =IF(OR(I32=DC2,I32=DC3,I32=DC4,I32=DC5,I32=DC6),' '!B6,IF(OR(I32=DC7,I32=DC8,I32=DC9,I32=DC10,I32=DC11,I32=DC12,I32=DC13,I32=DC14,I32=DC15),' '!B7,IF(OR(I32=DC16,I32=DC17,I32=DC18,I32=DC19,I32=DC20),' '!B8,))) -> 4.54 | CX1: SBls | CY1: Warnings front/back | CZ1: Warnings mid | DA1: Warnings front/back tri | DB1: Warnings mid tri | DC1: Fabric Colour | DE1: Fittings Colours | DJ1: MBn material | DK1: =IF(OR(L32=DS2,L32=DS3,L32=DS4,L32=DS5,L32=DS6),' '!B6,IF(OR(L32=DS7,L32=DS8,L32=DS9,L32=DS10,L32=DS11,L32=DS12,L32=DS13,L32=DS14,L32=DS15),' '!B7,IF(OR(L32=DS16,L32=DS17,L32=DS18,L32=DS19,L32=DS20),' '!B8,))) -> 4.54 | DN1: SBls | DO1: Warnings front/back | DP1: Warnings mid | DQ1: Warnings front/back tri | DR1: Warnings mid tri | DS1: Fabric Colour | DU1: Fittings Colours
CE2: Tri material | CF2: =IF(OR(E33=CN2,E33=CN3,E33=CN4,E33=CN5,E33=CN6),' '!B6,IF(OR(E33=CN7,E33=CN8,E33=CN9,E33=CN10,E33=CN11,E33=CN12,E33=CN13,E33=CN14,E33=CN15),' '!B7,IF(OR(E33=CN16,E33=CN17,E33=CN18,E33=CN19,E33=CN20),' '!B8,))) -> 4.54 | CG2: PE | CH2: =' '!$B$11 -> 3 | CI2: 1 | CJ2: =MIN(CI33,CL33) ->  | CK2: =CJ33 ->  | CL2: =IF(E28<>CJ6,0.001,1)*CM33 -> 0 | CM2: =IF(OR(E28=CJ6,E28=CJ6),1,0.00001)*CN33 ->  | CN2: ISX Solid | CP2: Stainless steel | CT2: Tri material | CU2: =IF(OR(I33=DC2,I33=DC3,I33=DC4,I33=DC5,I33=DC6),' '!B6,IF(OR(I33=DC7,I33=DC8,I33=DC9,I33=DC10,I33=DC11,I33=DC12,I33=DC13,I33=DC14,I33=DC15),' '!B7,IF(OR(I33=DC16,I33=DC17,I33=DC18,I33=DC19,I33=DC20),' '!B8,))) -> 4.54 | CX2: 1 | CY2: =MIN(CX33,DA33) ->  | CZ2: =CY33 ->  | DA2: =IF(I28<>CY6,0.001,1)*DB33 -> 0 | DB2: =IF(OR(I28=CY6,I28=CY6),1,0.00001)*DC33 ->  | DC2: ISX Solid | DE2: Stainless steel | DJ2: Tri material | DK2: =IF(OR(L33=DS2,L33=DS3,L33=DS4,L33=DS5,L33=DS6),' '!B6,IF(OR(L33=DS7,L33=DS8,L33=DS9,L33=DS10,L33=DS11,L33=DS12,L33=DS13,L33=DS14,L33=DS15),' '!B7,IF(OR(L33=DS16,L33=DS17,L33=DS18,L33=DS19,L33=DS20),' '!B8,))) -> 4.54 | DN2: 1 | DO2: =MIN(DN33,DQ33) ->  | DP2: =DO33 ->  | DQ2: =IF(L28<>DO6,0.001,1)*DR33 -> 0 | DR2: =IF(OR(L28=DO6,L28=DO6),1,0.00001)*DS33 ->  | DS2: ISX Solid | DU2: Stainless steel
CG3: PN | CH3: =' '!$B$19 -> 4.25 | CI3: 2 | CJ3: =IF(E26=CI2,CI34,MIN(CI34,CL34)) ->  | CK3: =CJ34+IF(OR(E26=CI2,E26=CI3),1000,1) ->  | CL3: =CM34 ->  | CM3: =CN34 ->  | CN3: ISX White | CP3: White | CX3: 2 | CY3: =IF(I26=CX2,CX34,MIN(CX34,DA34)) ->  | CZ3: =CY34+IF(OR(I26=CX2,I26=CX3),1000,1) ->  | DA3: =DB34 ->  | DB3: =DC34 ->  | DC3: ISX White | DE3: White | DN3: 2 | DO3: =IF(L26=DN2,DN34,MIN(DN34,DQ34)) ->  | DP3: =DO34+IF(OR(L26=DN2,L26=DN3),1000,1) ->  | DQ3: =DR34 ->  | DR3: =DS34 ->  | DS3: ISX White | DU3: White
CI4: 3 | CJ4: Tri sBls | CK4: Warning 1 | CL4: Warning: SBl too narrow, increase no. of sBls, add additional fitting points or reduce gap size | CN4: ISX Solid Ivory | CP4: Gold | CX4: 3 | CY4: Tri sBls | CZ4: Warning 1 | DA4: Warning: SBl too narrow, increase no. of sBls, add additional fitting points or reduce gap size | DC4: ISX Solid Ivory | DE4: Gold | DN4: 3 | DO4: Tri sBls | DP4: Warning 1 | DQ4: Warning: SBl too narrow, increase no. of sBls, add additional fitting points or reduce gap size | DS4: ISX Solid Ivory | DU4: Gold
B5: =' '!A46 -> v2023.2 | CG5: No. of vents | CI5: 4 | CJ5: No | CK5: Warning 2 | CL5: Warning: SBl too narrow, decrease no. of sBls, add additional fitting points or increase gap size | CN5: ISX Solid Oyster | CP5: Cost | CQ5: =IF(E34=CP2, ' '!B24, ' '!B25) -> 7 | CV5: No. of vents | CX5: 4 | CY5: No | CZ5: Warning 2 | DA5: Warning: SBl too narrow, decrease no. of sBls, add additional fitting points or increase gap size | DC5: ISX Solid Oyster | DE5: Cost | DF5: =IF(I34=CP2, ' '!B24, ' '!B25) -> 7 | DL5: No. of vents | DN5: 4 | DO5: No | DP5: Warning 2 | DQ5: Warning: SBl too narrow, decrease no. of sBls, add additional fitting points or increase gap size | DS5: ISX Solid Oyster | DU5: Cost | DV5: =IF(L34=CP2, ' '!B24, ' '!B25) -> 7
CE6: Standard | CF6: =' '!B14 -> 1 | CG6: 0 | CI6: 5 | CJ6: Yes | CK6: Warning 3 | CL6: Warning: SBl too wide for standard fabric, please add more sBls or increase gap size | CN6: ISX Solid Stone | CV6: 0 | CX6: 5 | CY6: Yes | CZ6: Warning 3 | DA6: Warning: SBl too wide for standard fabric, please add more sBls or increase gap size | DC6: ISX Solid Stone | DL6: 0 | DN6: 5 | DO6: Yes | DP6: Warning 3 | DQ6: Warning: SBl too wide for standard fabric, please add more sBls or increase gap size | DS6: ISX Solid Stone
CE7: Triangle | CF7: =' '!B15 -> 0.75 | CG7: 1 | CJ7: Coverage | CK7: Warning 4 | CL7: Warning: Conservatory too long for standard fabric, contact office for more detBled price | CN7: ISX Duplex | CV7: 1 | CY7: Coverage | CZ7: Warning 4 | DA7: Warning: Conservatory too long for standard fabric, contact office for more detBled price | DC7: ISX Duplex | DL7: 1 | DO7: Coverage | DP7: Warning 4 | DQ7: Warning: Conservatory too long for standard fabric, contact office for more detBled price | DS7: ISX Duplex
CG8: 2 | CH8: No. of corners | CI8: 4 | CJ8: One Side | CK8: Warning 5 | CL8: Warning: Some triangular sBls are too thin for this conservatory | CN8: ISX Duplex Ocean | CV8: 2 | CY8: One Side | CZ8: Warning 5 | DA8: Warning: Some triangular sBls are too thin for this conservatory | DC8: ISX Duplex Ocean | DL8: 2 | DO8: One Side | DP8: Warning 5 | DQ8: Warning: Some triangular sBls are too thin for this conservatory | DS8: ISX Duplex Ocean
CG9: 3 | CJ9: Both Sides | CK9: Warning 6 | CL9: Warning: Ridge is too short for a 3 sBls per side solution, reduce no. of sBls | CN9: ISX Duplex Stone | CV9: 3 | CY9: Both Sides | CZ9: Warning 6 | DA9: Warning: Ridge is too short for a 3 sBls per side solution, reduce no. of sBls | DC9: ISX Duplex Stone | DL9: 3 | DO9: Both Sides | DP9: Warning 6 | DQ9: Warning: Ridge is too short for a 3 sBls per side solution, reduce no. of sBls | DS9: ISX Duplex Stone
CE10: Overlap front | CF10: =IF(E27=CE11,CF11,IF(E27=CE12,CF12,IF(E27=CE13,CF13))) ->  | CG10: 4 | CH10: Curve allowance | CI10: 0.5 | CN10: ISX Duplex Slate | CT10: Overlap front | CU10: =IF(I27=CT11,CU11,IF(I27=CT12,CU12,IF(I27=CT13,CU13))) ->  | CV10: 4 | CW10: Curve allowance | CX10: 0.5 | DC10: ISX Duplex Slate | DJ10: Overlap front | DK10: =IF(L27=DJ11,DK11,IF(L27=DJ12,DK12,IF(L27=DJ13,DK13))) -> 0 | DL10: 4 | DM10: Curve allowance | DN10: 0.5 | DS10: ISX Duplex Slate
CE11: 0 | CF11: 0 | CG11: 5 | CH11: Front | CI11: Mid | CJ11: Quarters | CK11: Back | CL11: Mid | CM11: Quarters | CN11: ISX Duplex Graphite | CT11: 0 | CU11: 0 | CV11: 5 | CW11: Front | CX11: Mid | CY11: Quarters | CZ11: Back | DA11: Mid | DB11: Quarters | DC11: ISX Duplex Graphite | DJ11: 0 | DK11: 0 | DL11: 5 | DM11: Front | DN11: Mid | DO11: Quarters | DP11: Back | DQ11: Mid | DR11: Quarters | DS11: ISX Duplex Graphite
CE12: 0.5 | CF12: =(CI14*2)/2+(0.035/(IF(B23>B24,B23,B24)/1000)) ->  | CG12: 6 | CH12: Horizontal | CI12: =((CH27+(0.07/(IF(B23>B24,B23,B24)/1000)))*0.13)+CH25 ->  | CJ12: =(CI12)*0.75 ->  | CK12: Horizontal | CL12: =((CK27+(0.07/(IF(B23>B24,B23,B24)/1000)))*0.13)+CH25 ->  | CM12: =(CL12)*0.75 ->  | CN12: ISXFR Solid | CT12: 0.5 | CU12: =(CX14*2)/2+(0.035/(IF(B23>B24,B23,B24)/1000)) ->  | CV12: 6 | CW12: Horizontal | CX12: =((CW27+(0.07/(IF(B23>B24,B23,B24)/1000)))*0.13)+CW25 ->  | CY12: =(CX12)*0.75 ->  | CZ12: Horizontal | DA12: =((CZ27+(0.07/(IF(B23>B24,B23,B24)/1000)))*0.13)+CW25 ->  | DB12: =(DA12)*0.75 ->  | DC12: ISXFR Solid | DJ12: 0.5 | DK12: =(DN14*2)/2+(0.035/(IF(B23>B24,B23,B24)/1000)) ->  | DL12: 6 | DM12: Horizontal | DN12: =((DM27+(0.07/(IF(B23>B24,B23,B24)/1000)))*0.13)+DM25 ->  | DO12: =(DN12)*0.75 ->  | DP12: Horizontal | DQ12: =((DP27+(0.07/(IF(B23>B24,B23,B24)/1000)))*0.13)+DM25 ->  | DR12: =(DQ12)*0.75 ->  | DS12: ISXFR Solid
CE13: 1 | CF13: =CI14*2+(0.035/(IF(B23>B24,B23,B24)/1000)) ->  | CH13: Horizontal overlaped | CI13: =((CI27+(0.07/(IF(B23>B24,B23,B24)/1000)))*0.13)+CH25 ->  | CJ13: =(CI13)*0.75 ->  | CK13: Horizontal overlaped | CL13: =((CK27+(0.07/(IF(B23>B24,B23,B24)/1000)))*0.13)+CH25 ->  | CM13: =(CL13)*0.75 ->  | CN13: ISXFR White | CT13: 1 | CU13: =CX14*2+(0.035/(IF(B23>B24,B23,B24)/1000)) ->  | CW13: Horizontal overlaped | CX13: =((CX27+(0.07/(IF(B23>B24,B23,B24)/1000)))*0.13)+CW25 ->  | CY13: =(CX13)*0.75 ->  | CZ13: Horizontal overlaped | DA13: =((CZ27+(0.07/(IF(B23>B24,B23,B24)/1000)))*0.13)+CW25 ->  | DB13: =(DA13)*0.75 ->  | DC13: ISXFR White | DJ13: 1 | DK13: =DN14*2+(0.035/(IF(B23>B24,B23,B24)/1000)) ->  | DM13: Horizontal overlaped | DN13: =((DN27+(0.07/(IF(B23>B24,B23,B24)/1000)))*0.13)+DM25 ->  | DO13: =(DN13)*0.75 ->  | DP13: Horizontal overlaped | DQ13: =((DP27+(0.07/(IF(B23>B24,B23,B24)/1000)))*0.13)+DM25 ->  | DR13: =(DQ13)*0.75 ->  | DS13: ISXFR White
